Workbook

Sheet INDICE
F1: REPÚBLICA CHECA
F2: Trocas comerciais com Portugal (PT) 2018-2022 Setores agrícola e agroalimentar, do mar e das florestas
C3: Fonte
D4: Estatísticas do Comércio Internacional | F4: República Checa - Síntese
D5: dados: 2021 provisórios; 2022 preliminares | F5: 1. Evolução da balança comercial
F6: 2. Ranking dos parceiros comerciais de Portugal por país
C7: Data | D7: 2023-07-31T11:56:40.420 | F7: 2A Parceiros comerciais de Portugal - UE vs. Países Terceiros
F8: 3. Principais produtos transacionados (NC a 2 e 4 dígitos)
F9: 3A Principais produtos transacionados (sem mar nem florestas)
F10: 4A Evolução da balança comercial por produto
F11: 5.2. Trocas comerciais por produto (NC 2 dígitos)

Sheet Sintese
A1: República Checa - Síntese (2018-2022)
A3: • As trocas comerciais de bens transacionáveis (excluindo serviços) entre Portugal e República Checa representam um total de 438,5 milhões de € (M€) em exportações e 601,7 M€ em importações, na média do período 2018-2022, correspondendo a um saldo negativo da balança comercial de cerca de -163,1 M€.
A4: • No que respeita aos produtos dos setores agrícola e agroalimentar, mar e florestas, Portugal exportou para República Checa 29,1 M€ em média anual, no mesmo período (este país ocupa assim a 38ª posição em relação ao total dos países), enquanto as importações totalizaram 36 M€ (36ª posição), com um saldo negativo de -6,8 M€. Estes setores representam perto de 6,6% do total de exportações de bens transacionáveis e 6% das correspondentes importações.
A5: • Se nos referirmos apenas ao setor agrícola e agroalimentar, as exportações representam, em média, 18,2 M€ (32ª posição) e as importações 22,2 milhões (30ª posição), ou seja, Portugal tem um saldo negativo de -3,9 M€. Estes valores representam, respetivamente, cerca de 62,6% das exportações do setor agroflorestal e mar e 61,7% das importações.
A6: • As principais exportações agrícolas e agroalimentares (NC 4 dígitos) neste período são Cenouras, nabos, beterrabas, etc., frescos ou refrigerados (21%), Vinhos de uvas frescas (12%) e Outros produtos hortícolas, frescos ou refrigerados (9%). As importações agrícolas e agroalimentares mais relevantes referem-se a Produtos de padaria, pastelaria, etc. (29%), Charutos, cigarrilhas e cigarros (19%) e Leitelho, leite coalhado, iogurte, etc. (9%). Se considerarmos também os produtos do mar e da floresta, merecem particular destaque, em termos de exportações, Cenouras, nabos, beterrabas, etc., frescos ou refrigerados (13%), Cortiça aglomerada e suas obras (12%) e Vinhos de uvas frescas (8%). Nas importações destes setores, destacam-se Produtos de padaria, pastelaria, etc. (18%), Papel e cartão "kraft", não revestidos (17%) e Charutos, cigarrilhas e cigarros (12%).
A9: Saldo da Balança Comercial | B9: 2018 | C9: 2019 | D9: 2020 | E9: 2021 | F9: 2022 | G9: média 2018-2022 | J9: Posição entre os parceiros comerciais de Portugal (milhares de euros)
A10: Total de Bens Transacionáveis* | B10: -220528.389 | C10: -217356.162 | D10: -97563.412 | E10: -108286.046 | F10: -172010.421 | G10: -163148.886 | J10: AA + M + F | K10: Posição | L10: média 2018-2022 | M10: % do total | N10: TVMA* 2018-2022 | O10: TVT* 2018-2022
A11: Agrícola e Agroalimentar (AA) | B11: -5599.503 | C11: -5460.082 | D11: -2522.856 | E11: -86.705 | F11: -6001.429 | G11: -3934.115 | J11: Exportações | K11: 38ª | L11: 29120.8636 | M11: 0.00224726538 | N11: 0.09124927374 | O11: 0.4180641269
A12: Mar (M) | B12: 321.572 | C12: 789.992 | D12: 1331.574 | E12: 1544.267 | F12: 2478.718 | G12: 1293.2246 | J12: Importações | K12: 36ª | L12: 35951.6258 | M12: 0.002404194127 | N12: 0.1315016459 | O12: 0.6391577829
A13: Florestas (F) | B13: 51.307 | C13: -3599.026 | D13: -2349.021 | E13: -4650.159 | F13: -10402.46 | G13: -4189.8718 | J13: AA
A14: AA + M + F | B14: -5226.624 | C14: -8269.116 | D14: -3540.303 | E14: -3192.597 | F14: -13925.171 | G14: -6830.7622 | J14: Exportações | K14: 32ª | L14: 18235.0968 | M14: 0.002580655207 | N14: 0.08219001942 | O14: 0.371557746
J15: Importações | K15: 30ª | L15: 22169.2118 | M15: 0.002173790225 | N15: 0.05231572412 | O15: 0.2904176638
A16: milhares de euros *exclui serviços | K16: *TVMA - Taxa de variação média anual; TVT - Taxa de variação total
A18: Evolução das trocas comerciais Portugal-República Checa em milhares de euros (2018-2022)
E27: Exportações | G27: Importações | I27: Saldo
A28: Principais produtos agrícolas e agroalimentares, do mar e da floresta transacionados (NC 4 dígitos)
A47: Principais produtos agrícolas e agroalimentares transacionados (NC 4 dígitos)
A81: Fonte: GPP a partir de dados INE/Comércio Internacional (2021 provisórios; 2022 preliminares) | N81: 2023-07-31T11:56:40.420

Sheet 1
A1: Evolução da balança comercial Portugal-República Checa 2018-2022 em milhões de euros
A3: Total de Bens Transacionáveis (BT)(1) | B3: 2018 | C3: 2019 | D3: 2020 | E3: 2021 | F3: 2022 | G3: média quinquénio | H3: var. 18/19 | I3: var. 19/20 | J3: var. 20/21 | K3: var. 21/22 | L3: TVMA* 2018-2022 | M3: TVT* 2018-2022
A4: Exportações | B4: 354.088433 | C4: 393.066974 | D4: 387.98842 | E4: 474.477232 | F4: 583.016854 | G4: 438.5275826 | H4: 0.1100813734 | I4: -0.01292032741 | J4: 0.2229159623 | K4: 0.2287562283 | L4: 0.1327715746 | M4: 0.6465289449
A5: Importações | B5: 574.616822 | C5: 610.423136 | D5: 485.551832 | E5: 582.763278 | F5: 755.027275 | G5: 601.6764686 | H5: 0.06231337585 | I5: -0.2045651559 | J5: 0.2002081747 | K5: 0.2955985792 | L5: 0.07064643731 | M5: 0.3139665358
A6: Saldo (exp-imp) | B6: -220.528389 | C6: -217.356162 | D6: -97.563412 | E6: -108.286046 | F6: -172.010421 | G6: -163.148886
A7: Cobertura (exp/imp) | B7: 0.616216615 | C7: 0.6439254196 | D7: 0.799066947 | E7: 0.814185193 | F7: 0.772179858 | G7: 0.7288428341
A8: Exp BT República Checa / Exp BT Mundo | B8: 0.006120803532 | C8: 0.006561745173 | D8: 0.007217396557 | E8: 0.007458161437 | F8: 0.007460907131 | G8: 0.00699915932 | L8: Exportações
A9: Imp BT República Checa / Imp BT Mundo | B9: 0.007616948077 | C9: 0.007632471291 | D9: 0.007125215131 | E9: 0.007008939418 | F9: 0.006911427322 | G9: 0.007232540606 | L9: Importações
A10: Exp BT República Checa / Exp TE Mundo | B10: 0.003972107524 | C10: 0.004214245746 | D10: 0.005222917192 | E10: 0.005307071988 | F10: 0.004868544571 | G10: 0.004706676038
A11: Imp BT República Checa / Imp TE Mundo | B11: 0.006515345253 | C11: 0.006613341608 | D11: 0.00617870121 | E11: 0.006100273078 | F11: 0.006006680357 | G11: 0.006263424141
A12: (1) Todos os produtos transacionados entre PT e República Checa (exclui serviços) | D12: TE - Total da Economia (bens e serviços) Fonte: INE/Contas Nacionais | H12: *TVMA - Taxa de variação média anual; TVT - Taxa de variação total
A24: Agro(1) + Mar + Florestas (AMF) | B24: 2018 | C24: 2019 | D24: 2020 | E24: 2021 | F24: 2022 | G24: média quinquénio | H24: var. 18/19 | I24: var. 19/20 | J24: var. 20/21 | K24: var. 21/22 | L24: TVMA* 2018-2022 | M24: TVT* 2018-2022
A25: Exportações | B25: 24.233665 | C25: 26.418331 | D25: 29.37599 | E25: 31.211441 | F25: 34.364891 | G25: 29.1208636 | H25: 0.0901500454 | I25: 0.1119548014 | J25: 0.06248133254 | K25: 0.101035066 | L25: 0.09124927374 | M25: 0.4180641269
A26: Importações | B26: 29.460289 | C26: 34.687447 | D26: 32.916293 | E26: 34.404038 | F26: 48.290062 | G26: 35.9516258 | H26: 0.1774306423 | I26: -0.05106037351 | J26: 0.04519782954 | K26: 0.4036161104 | L26: 0.1315016459 | M26: 0.6391577829
A27: Saldo (exp-imp) | B27: -5.226624 | C27: -8.269116 | D27: -3.540303 | E27: -3.192597 | F27: -13.925171 | G27: -6.8307622
A28: Cobertura (exp/imp) | B28: 0.8225874838 | C28: 0.761610706 | D28: 0.8924452702 | E28: 0.9072028406 | F28: 0.7116348494 | G28: 0.810001299
A29: Exp AMF / Exp BT | B29: 0.06843958385 | C29: 0.06721076241 | D29: 0.07571357413 | E29: 0.06578069272 | F29: 0.05894322053 | G29: 0.06640600217 | L29: Exportações
A30: Imp AMF / Imp BT | B30: 0.051269451 | C30: 0.05682524949 | D30: 0.06779151232 | E30: 0.0590360431 | F30: 0.06395803648 | G30: 0.05975242124 | L30: Importações
A31: Exp AMF República Checa / Exp AMF Mundo | B31: 0.002080016226 | C31: 0.002233574652 | D31: 0.00254658621 | E31: 0.002329808454 | F31: 0.002097820692 | G31: 0.00224726538
A32: Imp AMF República Checa / Imp AMF Mundo | B32: 0.002161335226 | C32: 0.002507520448 | D32: 0.002523213066 | E32: 0.002302103264 | F32: 0.00250018479 | G32: 0.002404194127
A33: (1) Produtos agrícolas e agroalimentares | B33: BT - Total de Bens Transacionáveis (exclui serviços) | H33: *TVMA - Taxa de variação média anual; TVT - Taxa de variação total
A45: Agroalimentar (AA)(1) | B45: 2018 | C45: 2019 | D45: 2020 | E45: 2021 | F45: 2022 | G45: média quinquénio | H45: var. 18/19 | I45: var. 19/20 | J45: var. 20/21 | K45: var. 21/22 | L45: TVMA* 2018-2022 | M45: TVT* 2018-2022
A46: Exportações | B46: 15.088333 | C46: 16.566394 | D46: 18.518819 | E46: 20.307418 | F46: 20.69452 | G46: 18.2350968 | H46: 0.09796052354 | I46: 0.1178545554 | J46: 0.09658277885 | K46: 0.01906209839 | L46: 0.08219001942 | M46: 0.371557746
A47: Importações | B47: 20.687836 | C47: 22.026476 | D47: 21.041675 | E47: 20.394123 | F47: 26.695949 | G47: 22.1692118 | H47: 0.06470662277 | I47: -0.04470987552 | J47: -0.03077473633 | K47: 0.3090020591 | L47: 0.06581683253 | M47: 0.2904176638
A48: Saldo (exp-imp) | B48: -5.599503 | C48: -5.460082 | D48: -2.522856 | E48: -0.086705 | F48: -6.001429 | G48: -3.934115
A49: Cobertura (exp/imp) | B49: 0.7293335562 | C49: 0.7521127756 | D49: 0.8801019406 | E49: 0.9957485301 | F49: 0.77519327 | G49: 0.8225415033
A50: Exp AA / Exp AMF | B50: 0.6226187001 | C50: 0.6270795078 | D50: 0.6304066348 | E50: 0.6506401931 | F50: 0.6021994948 | G50: 0.6261866767 | L50: Exportações
A51: Imp AA / Imp AMF | B51: 0.7022278702 | C51: 0.6349984765 | D51: 0.6392480162 | E51: 0.5927828297 | F51: 0.5528249063 | G51: 0.6166400352 | L51: Importações
A52: Exp AA / Exp BT | B52: 0.04261176473 | C52: 0.04214649181 | D52: 0.04773033948 | E52: 0.04279956261 | F52: 0.03549557763 | G52: 0.04158255381
A53: Imp AA / Imp BT | B53: 0.03600283738 | C53: 0.03608394686 | D53: 0.04333558976 | E53: 0.03499555269 | F53: 0.03535759553 | G53: 0.03684573514
A54: Exp AA República Checa / Exp AA Mundo | B54: 0.002470711865 | C54: 0.002633072271 | D54: 0.002798638437 | E54: 0.002725168463 | F54: 0.002334949319 | G54: 0.002580655207
A55: Imp AA República Checa / Imp AA Mundo | B55: 0.002274419165 | C55: 0.002364098215 | D55: 0.00231622963 | E55: 0.001985632728 | F55: 0.002018776852 | G55: 0.002173790225
A56: (1) Produtos agrícolas e agroalimentares | B56: AMF - Agroalimentar, Mar e Florestas; BT - Total de Bens Transacionáveis (exclui serviços) | H56: *TVMA - Taxa de variação média anual; TVT - Taxa de variação total
A67: Mar (M) | B67: 2018 | C67: 2019 | D67: 2020 | E67: 2021 | F67: 2022 | G67: média quinquénio | H67: var. 18/19 | I67: var. 19/20 | J67: var. 20/21 | K67: var. 21/22 | L67: TVMA* 2018-2022 | M67: TVT* 2018-2022
A68: Exportações | B68: 0.372417 | C68: 0.898444 | D68: 1.524598 | E68: 1.678068 | F68: 2.727104 | G68: 1.4401262 | H68: 1.412467744 | I68: 0.6969315839 | J68: 0.1006626009 | K68: 0.6251451073 | L68: 0.6450081379 | M68: 6.322716203
A69: Importações | B69: 0.050845 | C69: 0.108452 | D69: 0.193024 | E69: 0.133801 | F69: 0.248386 | G69: 0.1469016 | H69: 1.132992428 | I69: 0.779810423 | J69: -0.3068167689 | K69: 0.8563837341 | L69: 0.4866875876
A70: Saldo (exp-imp) | B70: 0.321572 | C70: 0.789992 | D70: 1.331574 | E70: 1.544267 | F70: 2.478718 | G70: 1.2932246
A71: Cobertura (exp/imp) | B71: 7.32455502 | C71: 8.284254786 | D71: 7.898489307 | E71: 12.54152062 | F71: 10.97929835 | G71: 9.803339106
A72: Exp M / Exp AMF | B72: 0.01536775391 | C72: 0.03400835579 | D72: 0.05189945939 | E72: 0.05376451539 | F72: 0.07935727193 | G72: 0.04945341662 | L72: Exportações
A73: Imp M / Imp AMF | B73: 0.001725882594 | C73: 0.003126548921 | D73: 0.005864086822 | E73: 0.003889107436 | F73: 0.005143625618 | G73: 0.004086090593 | L73: Importações
A74: Exp M / Exp BT | B74: 0.001051762682 | C74: 0.002285727521 | D74: 0.003929493566 | E74: 0.003536667066 | F74: 0.00467757318 | G74: 0.003284003691
A75: Imp M / Imp BT | B75: 8.848505309e-05 | C75: 0.0001776669225 | D75: 0.000397535314 | E75: 0.0002295975142 | F75: 0.0003289761949 | G75: 0.0002441538064
A76: Exp M República Checa / Exp M Mundo | B76: 0.0003414141734 | C76: 0.0008409350299 | D76: 0.00169461972 | E76: 0.001531886131 | F76: 0.002125763059 | G76: 0.001324333821
A77: Imp M República Checa / Imp M Mundo | B77: 2.306696119e-05 | C77: 4.976363873e-05 | D77: 0.0001002791412 | E77: 6.395674392e-05 | F77: 9.533183651e-05 | G77: 6.673713096e-05
A78: AMF - Agroalimentar, Mar e Florestas; BT - Total de Bens Transacionáveis (exclui serviços) | H78: *TVMA - Taxa de variação média anual; TVT - Taxa de variação total
A90: Florestas (F) | B90: 2018 | C90: 2019 | D90: 2020 | E90: 2021 | F90: 2022 | G90: média quinquénio | H90: var. 18/19 | I90: var. 19/20 | J90: var. 20/21 | K90: var. 21/22 | L90: TVMA* 2018-2022 | M90: TVT* 2018-2022
A91: Exportações | B91: 8.772915 | C91: 8.953493 | D91: 9.332573 | E91: 9.225955 | F91: 10.943267 | G91: 9.4456406 | H91: 0.02058358026 | I91: 0.04233878331 | J91: -0.01142428781 | K91: 0.1861392127 | L91: 0.05681937928 | M91: 0.2473923434
A92: Importações | B92: 8.721608 | C92: 12.552519 | D92: 11.681594 | E92: 13.876114 | F92: 21.345727 | G92: 13.6355124 | H92: 0.4392436578 | I92: -0.06938248809 | J92: 0.1878613484 | K92: 0.5383072667 | L92: 0.2507732857 | M92: 1.447453153
A93: Saldo (exp-imp) | B93: 0.051307 | C93: -3.599026 | D93: -2.349021 | E93: -4.650159 | F93: -10.40246 | G93: -4.1898718
A94: Cobertura (exp/imp) | B94: 1.005882745 | C94: 0.713282569 | D94: 0.7989126313 | E94: 0.6648803116 | F94: 0.5126678047 | G94: 0.6927235532
A95: Exp F / Exp AMF | B95: 0.362013546 | C95: 0.3389121364 | D95: 0.3176939058 | E95: 0.2955952915 | F95: 0.3184432332 | G95: 0.3243599067 | L95: Exportações
A96: Imp F / Imp AMF | B96: 0.2960462472 | C96: 0.3618749745 | D96: 0.354887897 | E96: 0.4033280628 | F96: 0.4420314681 | G96: 0.3792738742 | L96: Importações
A97: Exp F / Exp BT | B97: 0.02477605644 | C97: 0.02277854308 | D97: 0.02405374109 | E97: 0.01944446304 | F97: 0.01877006972 | G97: 0.02153944467
A98: Imp F / Imp BT | B98: 0.01517812857 | C98: 0.02056363571 | D98: 0.02405838724 | E98: 0.0238108929 | F98: 0.02827146476 | G98: 0.02266253229
A99: Exp F República Checa / Exp F Mundo | B99: 0.00197010204 | C99: 0.002004014288 | D99: 0.002322293655 | E99: 0.001902517395 | F99: 0.001755019788 | G99: 0.001965856065
A100: Imp F República Checa / Imp F Mundo | B100: 0.003742399827 | C100: 0.005371325062 | D100: 0.005737325105 | E100: 0.005374770146 | F100: 0.006124528284 | G100: 0.005338674615
A101: AMF - Agroalimentar, Mar e Florestas; BT - Total de Bens Transacionáveis (exclui serviços) | H101: *TVMA - Taxa de variação média anual; TVT - Taxa de variação total
A111: Fonte: GPP a partir de dados INE/Comércio Internacional (2021 provisórios; 2022 preliminares) | H111: 2023-07-31T11:56:40.420

Sheet 2
A1: Ranking dos parceiros comerciais de Portugal por país (média 2018-2022 em milhares de euros) produtos agrícolas e agroalimentares, do mar e da floresta
A2: Exportações | F2: Importações | K2: Trocas comerciais (total e saldo)
A3: P | B3: País | C3: média quinquénio | D3: % do Total | F3: P | G3: País | H3: média quinquénio | I3: % do Total | K3: P | L3: País | M3: Total (exp+imp) | N3: % do Total | O3: Saldo (exp-imp)
A4: 1 | B4: Espanha | C4: 4146454.758 | D4: 0.3199831006 | F4: 1 | G4: Espanha | H4: 6898685.753 | I4: 0.4613360147 | K4: 1 | L4: Espanha | M4: 11045140.51 | N4: 0.3957120214 | O4: -2752230.994
A5: 2 | B5: França | C5: 1358997.152 | D5: 0.1048741993 | F5: 2 | G5: França | H5: 985555.8696 | I5: 0.06590710658 | K5: 2 | L5: França | M5: 2344553.022 | N5: 0.08399782825 | O5: 373441.2826
A6: 3 | B6: Itália | C6: 876597.9418 | D6: 0.0676473141 | F6: 3 | G6: Alemanha | H6: 880908.072 | I6: 0.05890899134 | K6: 3 | L6: Alemanha | M6: 1516348.182 | N6: 0.05432590048 | O6: -245467.9624
A7: 4 | B7: Alemanha | C7: 635440.1096 | D7: 0.04903709516 | F7: 4 | G7: Países Baixos | H7: 832880.4034 | I7: 0.05569723565 | K7: 4 | L7: Países Baixos | M7: 1421041.707 | N7: 0.05091137463 | O7: -244719.0998
A8: 5 | B8: Países Baixos | C8: 588161.3036 | D8: 0.04538857616 | F8: 5 | G8: Brasil | H8: 705274.2876 | I8: 0.04716382812 | K8: 5 | L8: Itália | M8: 1323412.341 | N8: 0.04741362704 | O8: 429783.5422
A9: 6 | B9: Estados Unidos | C9: 554106.8232 | D9: 0.04276058216 | F9: 6 | G9: Itália | H9: 446814.3996 | I9: 0.02987983245 | K9: 6 | L9: Brasil | M9: 1157990.494 | N9: 0.04148709187 | O9: -252558.0814 | P9: Nota: Nesta listagem, o Reino Unido passa a ser constituído por três componentes: Reino Unido [até 2020] ; Reino Unido (sem Irlanda do Norte) pós-2020 e Reino Unido (Irlanda do Norte) pós-2020. Estas componentes são calculadas igualmente como média do quinquénio, embora a primeira corresponda apenas a 2018-2020 e as duas últimas a 2021-2022.
A10: 7 | B10: Brasil | C10: 452716.2062 | D10: 0.03493623922 | F10: 7 | G10: Suécia | H10: 341935.6152 | I10: 0.02286627042 | K10: 7 | L10: Estados Unidos | M10: 835578.5624 | N10: 0.02993610463 | O10: 272635.084
A11: 8 | B11: Reino Unido | C11: 382822.421 | D11: 0.02954251581 | F11: 8 | G11: Bélgica | H11: 285371.451 | I11: 0.01908365341 | K11: 8 | L11: Reino Unido | M11: 527725.3878 | N11: 0.01890671103 | O11: 237919.4542
A12: 9 | B12: Angola | C12: 331119.6562 | D12: 0.02555259865 | F12: 9 | G12: Estados Unidos | H12: 281471.7392 | I12: 0.01882286787 | K12: 9 | L12: Bélgica | M12: 524506.1098 | N12: 0.01879137461 | O12: -46236.7922
A13: 10 | B13: Reino Unido (sem Irlanda do Norte) pós 2020 | C13: 297911.4506 | D13: 0.02298991192 | F13: 10 | G13: Polónia | H13: 207484.8952 | I13: 0.01387514348 | K13: 10 | L13: Polónia | M13: 458805.1662 | N13: 0.01643752016 | O13: 43835.3758
A14: 11 | B14: Polónia | C14: 251320.271 | D14: 0.01939445725 | F14: 11 | G14: Ucrânia | H14: 195332.8996 | I14: 0.01306250272 | K14: 11 | L14: Suécia | M14: 435895.9016 | N14: 0.01561675455 | O14: -247975.3288
A15: 12 | B15: Bélgica | C15: 239134.6588 | D15: 0.01845409007 | F15: 12 | G15: China, República Popular da | H15: 173708.8634 | I15: 0.01161643792 | K15: 12 | L15: China, República Popular da | M15: 367378.303 | N15: 0.01316198837 | O15: 19960.5762
A16: 13 | B16: Israel | C16: 214334.0624 | D16: 0.01654022095 | F16: 13 | G16: África do Sul | H16: 145344.5192 | I16: 0.009719628296 | K16: 13 | L16: Reino Unido (sem Irlanda do Norte) pós 2020 | M16: 358973.5286 | N16: 0.01286087221 | O16: 236849.3726
A17: 14 | B17: China, República Popular da | C17: 193669.4396 | D17: 0.01494552609 | F17: 14 | G17: Reino Unido | H17: 144902.9668 | I17: 0.009690100349 | K17: 14 | L17: Angola | M17: 346542.8048 | N17: 0.01241551918 | O17: 315696.5076
A18: 15 | B18: Turquia | C18: 167228.7496 | D18: 0.01290509048 | F18: 15 | G18: Dinamarca | H18: 144410.5462 | I18: 0.009657170692 | K18: 15 | L18: Dinamarca | M18: 229157.968 | N18: 0.008209996302 | O18: -59663.1244
A19: 16 | B19: Suíça | C19: 143382.5624 | D19: 0.01106487338 | F19: 16 | G19: Roménia | H19: 138729.3114 | I19: 0.00927724931 | K19: 16 | L19: Turquia | M19: 223208.1582 | N19: 0.007996833666 | O19: 111249.341
A20: 17 | B20: Marrocos | C20: 109031.778 | D20: 0.008414013519 | F20: 17 | G20: Irlanda | H20: 118243.0764 | I20: 0.007907272716 | K20: 17 | L20: Israel | M20: 222677.5138 | N20: 0.007977822376 | O20: 205990.611
A21: 18 | B21: Cabo Verde | C21: 100899.9446 | D21: 0.007786477608 | F21: 18 | G21: Canadá | H21: 108500.262 | I21: 0.007255741203 | K21: 18 | L21: Ucrânia | M21: 209672.7922 | N21: 0.007511904838 | O21: -180993.007
A22: 19 | B22: Canadá | C22: 96471.0096 | D22: 0.007444695426 | F22: 19 | G22: Rússia, Federação da | H22: 105947.3528 | I22: 0.007085020431 | K22: 19 | L22: Canadá | M22: 204971.2716 | N22: 0.007343464408 | O22: -12029.2524
A23: 20 | B23: Suécia | C23: 93960.2864 | D23: 0.007250942198 | F23: 20 | G23: Uruguai | H23: 102111.7952 | I23: 0.006828525075 | K23: 20 | L23: Rússia, Federação da | M23: 185992.9178 | N23: 0.006663530754 | O23: -25901.7878
A24: 21 | B24: Dinamarca | C24: 84747.4218 | D24: 0.0065399828 | F24: 21 | G24: Argentina | H24: 97726.5184 | I24: 0.006535268331 | K24: 21 | L24: África do Sul | M24: 182500.0166 | N24: 0.006538391287 | O24: -108189.0218
A25: 22 | B25: Egito | C25: 83378.3752 | D25: 0.006434333082 | F25: 22 | G25: Índia | H25: 75540.6788 | I25: 0.005051634029 | K25: 22 | L25: Irlanda | M25: 182216.4716 | N25: 0.006528232778 | O25: -54269.6812
A26: 23 | B26: Rússia, Federação da | C26: 80045.565 | D26: 0.006177139164 | F26: 23 | G26: Finlândia | H26: 74014.7114 | I26: 0.004949587966 | K26: 23 | L26: Roménia | M26: 164574.233 | N26: 0.005896167854 | O26: -112884.3898
A27: 24 | B27: Argélia | C27: 78380.8918 | D27: 0.006048675857 | F27: 24 | G27: Vietname | H27: 70006.3292 | I27: 0.004681535306 | K27: 24 | L27: Marrocos | M27: 151640.1714 | N27: 0.005432781837 | O27: 66423.3846
A28: 25 | B28: México | C28: 73464.5916 | D28: 0.005669283563 | F28: 25 | G28: Costa Rica | H28: 69968.8442 | I28: 0.00467902857 | K28: 25 | L28: Suíça | M28: 147879.8298 | N28: 0.005298060837 | O28: 138885.295
A29: 26 | B29: Japão | C29: 66607.632 | D29: 0.005140130028 | F29: 26 | G29: Áustria | H29: 64437.3394 | I29: 0.004309120088 | K29: 26 | L29: Grécia | M29: 116239.3676 | N29: 0.004164484379 | O29: -11103.4736
A30: 27 | B30: Irlanda | C30: 63973.3952 | D30: 0.00493684522 | F30: 27 | G30: Grécia | H30: 63671.4206 | I30: 0.004257900777 | K30: 27 | L30: Argentina | M30: 113791.3158 | N30: 0.004076778521 | O30: -81661.721
A31: 28 | B31: Luxemburgo | C31: 55233.376 | D31: 0.004262375437 | F31: 28 | G31: Reino Unido (sem Irlanda do Norte) pós 2020 | H31: 61062.078 | I31: 0.004083406133 | K31: 28 | L31: Uruguai | M31: 105100.8748 | N31: 0.003765427844 | O31: -99122.7156
A32: 29 | B32: Grécia | C32: 52567.947 | D32: 0.004056683518 | F32: 29 | G32: Turquia | H32: 55979.4086 | I32: 0.003743512633 | K32: 29 | L32: Áustria | M32: 103605.5406 | N32: 0.003711854807 | O32: -25269.1382
A33: 30 | B33: Áustria | C33: 39168.2012 | D33: 0.003022621299 | F33: 30 | G33: Equador | H33: 48766.9652 | I33: 0.003261194694 | K33: 30 | L33: Finlândia | M33: 103235.6284 | N33: 0.003698602038 | O33: -44793.7944
A34: 31 | B34: Moçambique | C34: 37451.371 | D34: 0.002890133021 | F34: 31 | G34: Chile | H34: 47783.2146 | I34: 0.003195408311 | K34: 31 | L34: Cabo Verde | M34: 101736.0812 | N34: 0.003644878063 | O34: 100063.808
A35: 32 | B35: África do Sul | C35: 37155.4974 | D35: 0.00286730037 | F35: 32 | G35: Bulgária | H35: 47595.9378 | I35: 0.003182884545 | K35: 32 | L35: Índia | M35: 100003.3314 | N35: 0.003582799185 | O35: -51078.0262
A36: 33 | B36: Chile | C36: 36026.5554 | D36: 0.002780179593 | F36: 33 | G36: Cuba | H36: 43073.8564 | I36: 0.002880479262 | K36: 33 | L36: Egito | M36: 93743.8836 | N36: 0.003358543211 | O36: 73012.8668
A37: 34 | B37: Austrália | C37: 34889.2258 | D37: 0.002692411542 | F37: 34 | G37: Marrocos | H37: 42608.3934 | I37: 0.002849352342 | K37: 34 | L37: México | M37: 93550.6764 | N37: 0.003351621216 | O37: 53378.5068
A38: 35 | B38: Arábia Saudita | C38: 32824.7102 | D38: 0.002533092282 | F38: 35 | G38: Moçambique | H38: 40008.1492 | I38: 0.002675466135 | K38: 35 | L38: Chile | M38: 83809.77 | N38: 0.003002635727 | O38: -11756.6592
A39: 36 | B39: Guiné-Bissau | C39: 32182.3282 | D39: 0.00248351948 | F39: 36 | G39: Checa, República | H39: 35951.6258 | I39: 0.002404194127 | K39: 36 | L39: Argélia | M39: 83292.5462 | N39: 0.002984105254 | O39: 73469.2374
A40: 37 | B40: Finlândia | C40: 29220.917 | D40: 0.002254986529 | F40: 37 | G40: Colômbia | H40: 29155.8878 | I40: 0.00194974254 | K40: 37 | L40: Japão | M40: 83018.2336 | N40: 0.002974277512 | O40: 50197.0304
A41: 38 | B41: Checa, República | C41: 29120.8636 | D41: 0.00224726538 | F41: 38 | G41: Indonésia | H41: 28536.2748 | I41: 0.001908307142 | K41: 38 | L41: Moçambique | M41: 77459.5202 | N41: 0.002775126608 | O41: -2556.7782
A42: 39 | B42: Emirados Árabes Unidos | C42: 29075.6888 | D42: 0.002243779228 | F42: 39 | G42: Guiana | H42: 28025.2642 | I42: 0.001874134315 | K42: 39 | L42: Vietname | M42: 75952.8202 | N42: 0.002721146371 | O42: -64059.8382
A43: 40 | B43: São Tomé e Príncipe | C43: 26794.0764 | D43: 0.002067706546 | F43: 40 | G43: Hungria | H43: 24241.8222 | I43: 0.001621124087 | K43: 40 | L43: Costa Rica | M43: 73986.1334 | N43: 0.002650686279 | O43: -65951.555
A44: 41 | B44: Jordânia | C44: 26642.1032 | D44: 0.00205597873 | F44: 41 | G44: Namíbia | H44: 22812.3548 | I44: 0.001525531272 | K44: 41 | L44: Checa, República | M44: 65072.4894 | N44: 0.002331338954 | O44: -6830.7622
A45: 42 | B45: Roménia | C45: 25844.9216 | D45: 0.001994459998 | F45: 42 | G45: Costa do Marfim | H45: 22796.1714 | I45: 0.001524449039 | K45: 42 | L45: Luxemburgo | M45: 63920.9884 | N45: 0.00229008436 | O45: 46545.7636
A46: 43 | B46: Tunísia | C46: 24967.3514 | D46: 0.001926737655 | F46: 43 | G46: Uganda | H46: 22685.1304 | I46: 0.001517023391 | K46: 43 | L46: Bulgária | M46: 60579.4162 | N46: 0.002170366526 | O46: -34612.4594
A47: 44 | B47: Índia | C47: 24462.6526 | D47: 0.001887789904 | F47: 44 | G47: México | H47: 20086.0848 | I47: 0.001343217338 | K47: 44 | L47: Equador | M47: 51816.5236 | N47: 0.00185642014 | O47: -45717.4068
A48: 45 | B48: Noruega | C48: 22053.074 | D48: 0.001701842033 | F48: 45 | G48: Peru | H48: 19492.7516 | I48: 0.001303539349 | K48: 45 | L48: Austrália | M48: 48706.4602 | N48: 0.001744996526 | O48: 21071.9914
A49: 46 | B49: Coreia, República da | C49: 18918.1652 | D49: 0.001459920224 | F49: 46 | G49: Paraguai | H49: 18841.0926 | I49: 0.001259960938 | K49: 46 | L49: Cuba | M49: 48370.083 | N49: 0.001732945208 | O49: -37777.6298
A50: 47 | B50: Hungria | C50: 18318.947 | D50: 0.001413678384 | F50: 47 | G50: Senegal | H50: 17576.369 | I50: 0.00117538504 | K50: 47 | L50: Hungria | M50: 42560.7692 | N50: 0.001524816094 | O50: -5922.8752
A51: 48 | B51: Nigéria | C51: 16230.2952 | D51: 0.001252496527 | F51: 48 | G51: Nova Zelânda | H51: 17376.4264 | I51: 0.001162014272 | K51: 48 | L51: Colômbia | M51: 37488.773 | N51: 0.001343102709 | O51: -20823.0026
A52: 49 | B52: Argentina | C52: 16064.7974 | D52: 0.001239725014 | F52: 49 | G52: Japão | H52: 16410.6016 | I52: 0.001097426642 | K52: 49 | L52: Tunísia | M52: 35512.9364 | N52: 0.00127231481 | O52: 14421.7664
A53: 50 | B53: Lituânia | C53: 14413.8814 | D53: 0.001112323354 | F53: 50 | G53: Angola | H53: 15423.1486 | I53: 0.001031392669 | K53: 50 | L53: Noruega | M53: 34929.1028 | N53: 0.001251397921 | O53: 9177.0452
A54: 51 | B54: Ucrânia | C54: 14339.8926 | D54: 0.001106613617 | F54: 51 | G54: Lituânia | H54: 14632.016 | I54: 0.0009784872351 | K54: 51 | L54: Costa do Marfim | M54: 32980.227 | N54: 0.001181575941 | O54: -12612.1158
A55: 52 | B55: Macau | C55: 14162.3014 | D55: 0.001092908853 | F55: 52 | G55: Mauritânia | H55: 14124.4552 | I55: 0.0009445451069 | K55: 52 | L55: Arábia Saudita | M55: 32858.648 | N55: 0.001177220155 | O55: 32790.7724
A56: 53 | B56: Síria, República Árabe da | C56: 13309.7072 | D56: 0.001027113915 | F56: 53 | G56: Austrália | H56: 13817.2344 | I56: 0.0009240003213 | K56: 53 | L56: Guiné-Bissau | M56: 32561.5328 | N56: 0.001166575468 | O56: 31803.1236
A57: 54 | B57: Iraque | C57: 13221.9204 | D57: 0.001020339382 | F57: 54 | G57: Tanzânia, República Unida da | H57: 13710.948 | I57: 0.0009168926278 | K57: 54 | L57: Indonésia | M57: 32138.0738 | N57: 0.001151404288 | O57: -24934.4758
A58: 55 | B58: Bulgária | C58: 12983.4784 | D58: 0.001001938745 | F58: 55 | G58: Eslovénia | H58: 13650.4762 | I58: 0.0009128486953 | K58: 55 | L58: Coreia, República da | M58: 31290.6162 | N58: 0.001121042596 | O58: 6545.7142
A59: 56 | B59: HongKong | C59: 12801.5844 | D59: 0.0009879019327 | F59: 56 | G59: Suazilândia | H59: 13238.574 | I59: 0.0008853035474 | K59: 56 | L59: Emirados Árabes Unidos | M59: 29704.3194 | N59: 0.00106421066 | O59: 28447.0582
A60: 57 | B60: Eslováquia | C60: 12723.6548 | D60: 0.0009818880831 | F60: 57 | G60: Noruega | H60: 12876.0288 | I60: 0.0008610590516 | K60: 57 | L60: Lituânia | M60: 29045.8974 | N60: 0.001040621508 | O60: -218.1346
A61: 58 | B61: Letónia | C61: 11854.8684 | D61: 0.0009148435879 | F61: 58 | G61: Tailândia | H61: 12763.9012 | I61: 0.0008535607393 | K61: 58 | L61: Senegal | M61: 28854.7126 | N61: 0.001033771969 | O61: -6298.0254
A62: 59 | B62: Croácia | C62: 11368.2152 | D62: 0.0008772884212 | F62: 59 | G62: Camarões | H62: 12420.1756 | I62: 0.0008305747672 | K62: 59 | L62: Guiana | M62: 28164.8444 | N62: 0.0010090562 | O62: -27885.684
A63: 60 | B63: Senegal | C63: 11278.3436 | D63: 0.0008703530041 | F63: 60 | G63: Coreia, República da | H63: 12372.451 | I63: 0.0008273832786 | K63: 60 | L63: São Tomé e Príncipe | M63: 27847.803 | N63: 0.0009976976216 | O63: 25740.3498
A64: 61 | B64: Dominicana, República | C64: 11207.4662 | D64: 0.0008648833748 | F64: 61 | G64: Estónia | H64: 12191.4028 | I64: 0.000815276037 | K64: 61 | L64: Jordânia | M64: 26698.3012 | N64: 0.0009565146525 | O64: 26585.9052
A65: 62 | B65: Líbia, Jamahira Árabe da | C65: 11110.442 | D65: 0.0008573959896 | F65: 62 | G65: Moldava, República de | H65: 11911.7076 | I65: 0.0007965719717 | K65: 62 | L65: Peru | M65: 25630.734 | N65: 0.0009182671377 | O65: -13354.7692
A66: 63 | B66: Costa do Marfim | C66: 10184.0556 | D66: 0.0007859064859 | F66: 63 | G66: Sérvia | H66: 11556.9174 | I66: 0.0007728460763 | K66: 63 | L66: Uganda | M66: 23651.9568 | N66: 0.000847373886 | O66: -21718.304
A67: 64 | B67: Malta | C67: 9933.2892 | D67: 0.000766554771 | F67: 64 | G67: Letónia | H67: 10713.2288 | I67: 0.0007164260638 | K67: 64 | L67: Namíbia | M67: 23552.016 | N67: 0.0008437933272 | O67: -22072.6936
A68: 65 | B68: Líbano | C68: 9909.3948 | D68: 0.0007647108333 | F68: 65 | G68: Tunísia | H68: 10545.585 | I68: 0.000705215215 | K68: 65 | L68: Letónia | M68: 22568.0972 | N68: 0.0008085426667 | O68: 1141.6396
A69: 66 | B69: Território Palestiniano Ocupado | C69: 9895.7186 | D69: 0.0007636554371 | F69: 66 | G69: Paquistão | H69: 10439.2814 | I69: 0.0006981063713 | K69: 66 | L69: Tailândia | M69: 22047.6452 | N69: 0.0007898965379 | O69: -3480.1572
A70: 67 | B70: Chipre | C70: 9813.0332 | D70: 0.0007572745811 | F70: 67 | G70: Egito | H70: 10365.5084 | I70: 0.0006931729473 | K70: 67 | L70: Eslovénia | M70: 21973.065 | N70: 0.0007872245681 | O70: -5327.8874
A71: 68 | B71: Tailândia | C71: 9283.744 | D71: 0.000716429182 | F71: 68 | G71: Islândia | H71: 10004.2966 | I71: 0.00066901762 | K71: 68 | L71: Nigéria | M71: 21616.2318 | N71: 0.000774440377 | O71: 10844.3586
A72: 69 | B72: Kuwait | C72: 9136.5242 | D72: 0.0007050681879 | F72: 69 | G72: Maurícias | H72: 9636.258 | I72: 0.0006444057639 | K72: 69 | L72: Nova Zelânda | M72: 21601.4804 | N72: 0.0007739118816 | O72: -13151.3724
A73: 70 | B73: Camarões | C73: 9091.9556 | D73: 0.0007016288163 | F73: 70 | G73: Luxemburgo | H73: 8687.6124 | I73: 0.0005809669588 | K73: 70 | L73: Camarões | M73: 21512.1312 | N73: 0.0007707107858 | O73: -3328.22
A74: 71 | B74: Colômbia | C74: 8332.8852 | D74: 0.0006430511362 | F74: 71 | G74: Israel | H74: 8343.4514 | I74: 0.0005579518702 | K74: 71 | L74: Estónia | M74: 20493.83 | N74: 0.0007342283141 | O74: -3888.9756
A75: 72 | B75: Eslovénia | C75: 8322.5888 | D75: 0.0006422565601 | F75: 72 | G75: Filipinas | H75: 8336.7014 | I75: 0.0005575004772 | K75: 72 | L75: Paraguai | M75: 20050.3854 | N75: 0.0007183411139 | O75: -17631.7998
A76: 73 | B76: Estónia | C76: 8302.4272 | D76: 0.0006407006836 | F76: 73 | G76: Belize | H76: 8129.6594 | I76: 0.0005436549515 | K76: 73 | L76: Croácia | M76: 18458.4608 | N76: 0.0006613075523 | O76: 4277.9696
A77: 74 | B77: Geórgia | C77: 8048.6886 | D77: 0.0006211196032 | F77: 74 | G77: Malásia | H77: 8111.8758 | I77: 0.0005424657083 | K77: 74 | L77: Eslováquia | M77: 18117.5172 | N77: 0.0006490926347 | O77: 7329.7924
A78: 75 | B78: Gibraltar | C78: 7970.9208 | D78: 0.0006151182398 | F78: 75 | G78: Bangladesh | H78: 7928.3318 | I78: 0.000530191565 | K78: 75 | L78: Sérvia | M78: 17501.5482 | N78: 0.0006270244376 | O78: -5612.2866
A79: 76 | B79: Gana | C79: 7307.4466 | D79: 0.0005639177459 | F79: 76 | G79: Croácia | H79: 7090.2456 | I79: 0.000474146202 | K79: 76 | L79: Mauritânia | M79: 16926.9998 | N79: 0.0006064402079 | O79: -11321.9106
A80: 77 | B80: Taiwan | C80: 6604.3022 | D80: 0.0005096558913 | F80: 77 | G80: Quénia | H80: 6720.3804 | I80: 0.0004494121956 | K80: 77 | L80: HongKong | M80: 15599.17 | N80: 0.0005588683175 | O80: 10003.9988
A81: 78 | B81: Belarus | C81: 6189.2796 | D81: 0.0004776284784 | F81: 78 | G81: Gana | H81: 6620.3222 | I81: 0.0004427210007 | K81: 78 | L81: Maurícias | M81: 15492.8062 | N81: 0.0005550576431 | O81: -3779.7098
A82: 79 | B82: Guatemala | C82: 6179.8032 | D82: 0.0004768971819 | F82: 79 | G82: Reino Unido (Irlanda do Norte) pós-2020 | H82: 6509.1378 | I82: 0.000435285763 | K82: 79 | L82: Suazilândia | M82: 15229.7308 | N82: 0.0005456324938 | O82: -11247.4172
A83: 80 | B83: Peru | C83: 6137.9824 | D83: 0.0004736698588 | F83: 80 | G83: Panamá | H83: 6501.636 | I83: 0.0004347840949 | K83: 80 | L83: Moldava, República de | M83: 14880.8148 | N83: 0.0005331319506 | O83: -8942.6004
A84: 81 | B84: Vietname | C84: 5946.491 | D84: 0.0004588924127 | F84: 81 | G84: Honduras | H84: 6221.2504 | I84: 0.0004160338605 | K84: 81 | L84: Síria, República Árabe da | M84: 14259.5412 | N84: 0.0005108737066 | O84: 12359.8732
A85: 82 | B85: Sérvia | C85: 5944.6308 | D85: 0.0004587488605 | F85: 82 | G85: Suriname | H85: 5829.6302 | I85: 0.0003898450314 | K85: 82 | L85: Tanzânia, República Unida da | M85: 14227.4994 | N85: 0.0005097257515 | O85: -13194.3966
A86: 83 | B86: Maurícias | C86: 5856.5482 | D86: 0.0004519515011 | F86: 83 | G86: Eslováquia | H86: 5393.8624 | I86: 0.0003607039185 | K86: 83 | L86: Macau | M86: 14180.6616 | N86: 0.0005080477031 | O86: 14143.9412
A87: 84 | B87: Andorra | C87: 5401.2632 | D87: 0.0004168170273 | F87: 84 | G87: Nigéria | H87: 5385.9366 | I87: 0.0003601738962 | K87: 84 | L87: Gana | M87: 13927.7688 | N87: 0.0004989873638 | O87: 687.1244
A88: 85 | B88: Cuba | C88: 5296.2266 | D88: 0.0004087113228 | F88: 85 | G88: Etiópia | H88: 5332.739 | I88: 0.0003566164116 | K88: 85 | L88: Paquistão | M88: 13694.5862 | N88: 0.0004906331778 | O88: -7183.9766
A89: 86 | B89: Singapura | C89: 4688.1098 | D89: 0.0003617827753 | F89: 86 | G89: Congo | H89: 5207.2118 | I89: 0.0003482220274 | K89: 86 | L89: Dominicana, República | M89: 13458.9994 | N89: 0.000482192857 | O89: 8955.933
A90: 87 | B90: Omã | C90: 4393.4536 | D90: 0.000339044072 | F90: 87 | G90: Guatemala | H90: 5138.5064 | I90: 0.0003436274892 | K90: 87 | L90: Chipre | M90: 13271.6582 | N90: 0.0004754810216 | O90: 6354.4082
A91: 88 | B91: Nova Zelânda | C91: 4225.054 | D91: 0.0003260486266 | F91: 88 | G91: Camboja | H91: 4965.2796 | I91: 0.0003320432883 | K91: 88 | L91: Iraque | M91: 13234.1844 | N91: 0.0004741384554 | O91: 13209.6564
A92: 89 | B92: Panamá | C92: 4203.97 | D92: 0.0003244215683 | F92: 89 | G92: Argélia | H92: 4911.6544 | I92: 0.0003284572088 | K92: 89 | L92: Malta | M92: 12134.198 | N92: 0.0004347294645 | O92: 7732.3804
A93: 90 | B93: Costa Rica | C93: 4017.2892 | D93: 0.0003100153575 | F93: 90 | G93: Macedónia, Antiga República jugoslava da | H93: 4838.0028 | I93: 0.0003235319031 | K93: 90 | L93: Filipinas | M93: 11815.5126 | N93: 0.0004233119869 | O93: -4857.8902
A94: 91 | B94: Catar | C94: 3815.048 | D94: 0.0002944083462 | F94: 91 | G94: Zimbabwe | H94: 4709.1506 | I94: 0.0003149151662 | K94: 91 | L94: Islândia | M94: 11807.758 | N94: 0.0004230341644 | O94: -8200.8352
A95: 92 | B95: Burquina Faso | C95: 3646.8948 | D95: 0.0002814319157 | F95: 92 | G95: Suíça | H95: 4497.2674 | I95: 0.0003007458948 | K95: 92 | L95: Malásia | M95: 11523.7994 | N95: 0.0004128608369 | O95: -4699.9522
A96: 93 | B96: Indonésia | C96: 3601.799 | D96: 0.0002779518599 | F96: 93 | G96: Sri Lanca | H96: 4393.1556 | I96: 0.0002937836233 | K96: 93 | L96: Guatemala | M96: 11318.3096 | N96: 0.0004054987953 | O96: 1041.2968
A97: 94 | B97: Sudão | C97: 3570.9408 | D97: 0.0002755705237 | F97: 94 | G97: Madagáscar | H97: 3797.768 | I97: 0.0002539682509 | K97: 94 | L97: Líbia, Jamahira Árabe da | M97: 11116.443 | N97: 0.0003982665613 | O97: 11104.441
A98: 95 | B98: Filipinas | C98: 3478.8112 | D98: 0.0002684608561 | F98: 95 | G98: Mali | H98: 3762.5872 | I98: 0.0002516156042 | K98: 95 | L98: Panamá | M98: 10705.606 | N98: 0.000383547587 | O98: -2297.666
A99: 96 | B99: Mali | C99: 3441.82 | D99: 0.0002656062346 | F99: 96 | G99: Myanmar | H99: 3487.5904 | I99: 0.0002332257351 | K99: 96 | L99: Líbano | M99: 10450.9178 | N99: 0.0003744229242 | O99: 9367.8718
A100: 97 | B100: Malásia | C100: 3411.9236 | D100: 0.0002632991209 | F100: 97 | G100: Chipre | H100: 3458.625 | I100: 0.0002312887311 | K100: 97 | L100: Kuwait | M100: 10320.1982 | N100: 0.0003697396595 | O100: 7952.8502
A101: 98 | B101: Venezuela | C101: 3292.4432 | D101: 0.0002540787842 | F101: 98 | G101: Nicarágua | H101: 3458.6086 | I101: 0.0002312876344 | K101: 98 | L101: Taiwan | M101: 10028.0104 | N101: 0.0003592715061 | O101: 3180.594
A102: 99 | B102: Paquistão | C102: 3255.3048 | D102: 0.0002512128033 | F102: 99 | G102: Taiwan | H102: 3423.7082 | I102: 0.0002289537389 | K102: 99 | L102: Território Palestiniano Ocupado | M102: 9896.2038 | N102: 0.0003545492976 | O102: 9895.2334
A103: 100 | B103: Irão, República Islâmica do | C103: 3151.3458 | D103: 0.0002431902575 | F103: 100 | G103: Congo, República Democrática do | H103: 3287.5874 | I103: 0.0002198509286 | K103: 100 | L103: Bangladesh | M103: 9893.1502 | N103: 0.0003544398969 | O103: -5963.5134
A104: 101 | B104: Equador | C104: 3049.5584 | D104: 0.0002353352947 | F104: 101 | G104: Malavi | H104: 3258.318 | I104: 0.0002178935952 | K104: 101 | L104: Quénia | M104: 9767.4084 | N104: 0.0003499349708 | O104: -3673.3524
A105: 102 | B105: Quénia | C105: 3047.028 | D105: 0.000235140023 | F105: 102 | G105: Papuásia-Nova Guiné | H105: 3105.1676 | I105: 0.000207651964 | K105: 102 | L105: Reino Unido (Irlanda do Norte) pós-2020 | M105: 8990.4374 | N105: 0.0003220985875 | O105: -4027.8382
A106: 103 | B106: Uruguai | C106: 2989.0796 | D106: 0.0002306681284 | F106: 103 | G106: HongKong | H106: 2797.5856 | I106: 0.0001870830239 | K106: 103 | L106: Geórgia | M106: 8359.3498 | N106: 0.0002994887393 | O106: 7738.0274
A107: 104 | B107: Moldava, República de | C107: 2969.1072 | D107: 0.0002291268525 | F107: 104 | G107: Gabão | H107: 2642.8406 | I107: 0.000176734757 | K107: 104 | L107: Belize | M107: 8131.84 | N107: 0.0002913377916 | O107: -8127.4788
A108: 105 | B108: Mauritânia | C108: 2802.5446 | D108: 0.000216273169 | F108: 105 | G108: Centro-Africana, República | H108: 2579.2684 | I108: 0.0001724834914 | K108: 105 | L108: Gibraltar | M108: 7990.6994 | N108: 0.0002862811758 | O108: 7951.1422
A109: 106 | B109: Timor-Leste | C109: 2726.394 | D109: 0.0002103966054 | F109: 106 | G109: Gâmbia | H109: 2389.373 | I109: 0.0001597846107 | K109: 106 | L109: Congo | M109: 7640.4052 | N109: 0.0002737312561 | O109: -2774.0184
A110: 107 | B110: Guiné | C110: 2671.9054 | D110: 0.0002061917046 | F110: 107 | G110: Dominicana, República | H110: 2251.5332 | I110: 0.0001505668457 | K110: 107 | L110: Honduras | M110: 7590.891 | N110: 0.0002719573209 | O110: -4851.6098
A111: 108 | B111: Arménia | C111: 2588.4812 | D111: 0.0001997538352 | F111: 108 | G111: Malta | H111: 2200.9088 | I111: 0.0001471814387 | K111: 108 | L111: Etiópia | M111: 7364.853 | N111: 0.0002638591031 | O111: -3300.625
A112: 109 | B112: Gabão | C112: 2550.5466 | D112: 0.0001968264112 | F112: 109 | G112: Serra Leoa | H112: 1997.8504 | I112: 0.0001336023084 | K112: 109 | L112: Mali | M112: 7204.4072 | N112: 0.0002581108437 | O112: -320.7672
A113: 110 | B113: Reino Unido (Irlanda do Norte) pós-2020 | C113: 2481.2996 | D113: 0.0001914826004 | F113: 110 | G113: Benim | H113: 1832.152 | I113: 0.0001225215544 | K113: 110 | L113: Belarus | M113: 7048.6518 | N113: 0.0002525306264 | O113: 5329.9074
A114: 111 | B114: Congo | C114: 2433.1934 | D114: 0.0001877702312 | F114: 111 | G114: El Salvador | H114: 1779.4546 | I114: 0.0001189975197 | K114: 111 | L114: Suriname | M114: 6411.9606 | N114: 0.0002297200192 | O114: -5247.2998
A115: 112 | B115: Albânia | C115: 2230.3856 | D115: 0.0001721194952 | F115: 112 | G115: Burquina Faso | H115: 1725.7416 | I115: 0.0001154055686 | K115: 112 | L115: Singapura | M115: 5996.509 | N115: 0.0002148357185 | O115: 3379.7106
A116: 113 | B116: Seychelles | C116: 2209.8298 | D116: 0.0001705331982 | F116: 113 | G116: Laos, República Democrática Popular do | H116: 1570.485 | I116: 0.0001050230895 | K116: 113 | L116: Camboja | M116: 5868.657 | N116: 0.0002102551907 | O116: -4061.9022
A117: 114 | B117: Guiné Equatorial | C117: 2176.386 | D117: 0.0001679523306 | F117: 114 | G117: Singapura | H117: 1308.3992 | I117: 8.749661808e-05 | K117: 114 | L117: Sri Lanca | M117: 5833.9434 | N117: 0.0002090115136 | O117: -2952.3678
A118: 115 | B118: Etiópia | C118: 2032.114 | D118: 0.0001568188191 | F118: 115 | G118: Seychelles | H118: 1264.2444 | I118: 8.454385284e-05 | K118: 115 | L118: Macedónia, Antiga República jugoslava da | M118: 5788.8886 | N118: 0.0002073973443 | O118: -3887.117
A119: 116 | B119: Suazilândia | C119: 1991.1568 | D119: 0.0001536581402 | F119: 116 | G119: Kuwait | H119: 1183.674 | I119: 7.915586612e-05 | K119: 116 | L119: Andorra | M119: 5443.4826 | N119: 0.0001950225532 | O119: 5359.0438
A120: 117 | B120: Bangladesh | C120: 1964.8184 | D120: 0.0001516255984 | F120: 117 | G120: Bolívia | H120: 1171.2708 | I120: 7.832642656e-05 | K120: 117 | L120: Burquina Faso | M120: 5372.6364 | N120: 0.0001924843607 | O120: 1921.1532
A121: 118 | B121: Islândia | C121: 1803.4614 | D121: 0.0001391736325 | F121: 118 | G121: Togo | H121: 1123.3014 | I121: 7.511856747e-05 | K121: 118 | L121: Gabão | M121: 5193.3872 | N121: 0.0001860624358 | O121: -92.294
A122: 119 | B122: Benim | C122: 1771.8166 | D122: 0.0001367315942 | F122: 119 | G122: São Tomé e Príncipe | H122: 1053.7266 | I122: 7.046588983e-05 | K122: 119 | L122: Nicarágua | M122: 5085.0522 | N122: 0.0001821811396 | O122: -1832.165
A123: 120 | B123: Congo, República Democrática do | C123: 1727.2344 | D123: 0.0001332911731 | F123: 120 | G123: Venezuela | H123: 1042.4414 | I123: 6.971121432e-05 | K123: 120 | L123: Congo, República Democrática do | M123: 5014.8218 | N123: 0.0001796650092 | O123: -1560.353
A124: 121 | B124: Jamaica | C124: 1687.498 | D124: 0.0001302247037 | F124: 121 | G124: Iémen | H124: 1024.4982 | I124: 6.851129818e-05 | K124: 121 | L124: Omã | M124: 4887.3662 | N124: 0.0001750986831 | O124: 3899.541
A125: 122 | B125: Nicarágua | C125: 1626.4436 | D125: 0.0001255131182 | F125: 122 | G125: Síria, República Árabe da | H125: 949.834 | I125: 6.351827694e-05 | K125: 122 | L125: Zimbabwe | M125: 4774.1098 | N125: 0.0001710410689 | O125: -4644.1914
A126: 123 | B126: Togo | C126: 1570.864 | D126: 0.0001212240245 | F126: 123 | G126: Belarus | H126: 859.3722 | I126: 5.746882234e-05 | K126: 123 | L126: Venezuela | M126: 4334.8846 | N126: 0.0001553050363 | O126: 2250.0018
A127: 124 | B127: El Salvador | C127: 1565.6294 | D127: 0.000120820069 | F127: 124 | G127: Cabo Verde | H127: 836.1366 | I127: 5.591498738e-05 | K127: 124 | L127: Madagáscar | M127: 4107.7632 | N127: 0.0001471680037 | O127: -3487.7728
A128: 125 | B128: Cazaquistão | C128: 1539.9044 | D128: 0.0001188348634 | F128: 125 | G128: Bósnia-Herzegovina | H128: 758.1446 | I128: 5.069942607e-05 | K128: 125 | L128: Myanmar | M128: 3979.9732 | N128: 0.0001425896971 | O128: -2995.2076
A129: 126 | B129: Sri Lanca | C129: 1440.7878 | D129: 0.000111186007 | F129: 126 | G129: Turquemenistão | H129: 720.6558 | I129: 4.819243645e-05 | K129: 126 | L129: Catar | M129: 3835.8118 | N129: 0.0001374248557 | O129: 3794.2842
A130: 127 | B130: Azerbaijão | C130: 1435.1898 | D130: 0.0001107540077 | F130: 127 | G130: Chade | H130: 675.9004 | I130: 4.519950727e-05 | K130: 127 | L130: Benim | M130: 3603.9686 | N130: 0.0001291186562 | O130: -60.3354
A131: 128 | B131: Bolívia | C131: 1412.2374 | D131: 0.0001089827644 | F131: 128 | G131: Emirados Árabes Unidos | H131: 628.6306 | I131: 4.203843255e-05 | K131: 128 | L131: Sudão | M131: 3591.4234 | N131: 0.0001286692018 | O131: 3550.4582
A132: 129 | B132: Honduras | C132: 1369.6406 | D132: 0.0001056955572 | F132: 129 | G132: Timor-Leste | H132: 614.51 | I132: 4.109414525e-05 | K132: 129 | L132: Seychelles | M132: 3474.0742 | N132: 0.0001244649557 | O132: 945.5854
A133: 130 | B133: São Bartolomeu | C133: 1280.9726 | D133: 9.885302223e-05 | F133: 130 | G133: Faroé, Ilhas | H133: 597.6172 | I133: 3.996447254e-05 | K133: 130 | L133: Irão, República Islâmica do | M133: 3375.8016 | N133: 0.0001209441631 | O133: 2926.89
A134: 131 | B134: Ruanda | C134: 1241.2404 | D134: 9.578687698e-05 | F134: 131 | G134: Líbano | H134: 541.523 | I134: 3.621328346e-05 | K134: 131 | L134: El Salvador | M134: 3345.084 | N134: 0.0001198436498 | O134: -213.8252
A135: 132 | B135: Paraguai | C135: 1209.2928 | D135: 9.332147154e-05 | F135: 132 | G135: Omã | H135: 493.9126 | I135: 3.302943179e-05 | K135: 132 | L135: Timor-Leste | M135: 3340.904 | N135: 0.0001196938938 | O135: 2111.884
A136: 133 | B136: Iémen | C136: 1145.3826 | D136: 8.838950311e-05 | F136: 133 | G136: Gronelândia | H136: 481.3548 | I136: 3.218965366e-05 | K136: 133 | L136: Malavi | M136: 3267.4472 | N136: 0.0001170621718 | O136: -3249.1888
A137: 134 | B137: Montenegro | C137: 1046.3476 | D137: 8.074694381e-05 | F137: 134 | G137: Guiné-Bissau | H137: 379.2046 | I137: 2.535856034e-05 | K137: 134 | L137: Papuásia-Nova Guiné | M137: 3108.0532 | N137: 0.0001113515952 | O137: -3102.282
A138: 135 | B138: Uganda | C138: 966.8264 | D138: 7.461027005e-05 | F138: 135 | G138: Geórgia | H138: 310.6612 | I138: 2.077485554e-05 | K138: 135 | L138: Guiné | M138: 2974.7226 | N138: 0.0001065747866 | O138: 2369.0882
A139: 136 | B139: Macedónia, Antiga República jugoslava da | C139: 950.8858 | D139: 7.338012938e-05 | F139: 136 | G139: Usbequistão | H139: 308.3052 | I139: 2.061730268e-05 | K139: 136 | L139: Gâmbia | M139: 2880.9438 | N139: 0.0001032149925 | O139: -1897.8022
A140: 137 | B140: Bermudas | C140: 907.5284 | D140: 7.003422641e-05 | F140: 137 | G140: Guiné | H140: 302.8172 | I140: 2.02503035e-05 | K140: 137 | L140: Togo | M140: 2694.1654 | N140: 9.652332041e-05 | O140: 447.5626
A141: 138 | B141: Camboja | C141: 903.3774 | D141: 6.971389255e-05 | F141: 138 | G141: Irão, República Islâmica do | H141: 224.4558 | I141: 1.50100393e-05 | K141: 138 | L141: Centro-Africana, República | M141: 2675.6308 | N141: 9.585928504e-05 | O141: -2482.906
A142: 139 | B142: Barbados | C142: 886.8842 | D142: 6.844110759e-05 | F142: 139 | G142: Zâmbia | H142: 199.4064 | I142: 1.333491004e-05 | K142: 139 | L142: Arménia | M142: 2615.4888 | N142: 9.370458973e-05 | O142: 2561.4736
A143: 140 | B143: Trindade e Tobago | C143: 878.7574 | D143: 6.781396011e-05 | F143: 140 | G143: Azerbaijão | H143: 125.9648 | I143: 8.423647765e-06 | K143: 140 | L143: Bolívia | M143: 2583.5082 | N143: 9.255882723e-05 | O143: 240.9666
A144: 141 | B144: Namíbia | C144: 739.6612 | D144: 5.707986654e-05 | F144: 141 | G144: Fiji, Ilhas | H144: 123.8224 | I144: 8.280378987e-06 | K144: 141 | L144: Serra Leoa | M144: 2504.667 | N144: 8.973419946e-05 | O144: -1491.0338
A145: 142 | B145: Turquemenistão | C145: 730.8192 | D145: 5.639752686e-05 | F145: 142 | G145: Maldivas | H145: 106.1904 | I145: 7.101273734e-06 | K145: 142 | L145: Albânia | M145: 2336.138 | N145: 8.369634496e-05 | O145: 2124.6332
A146: 143 | B146: Barém | C146: 714.5288 | D146: 5.514039203e-05 | F146: 143 | G146: Albânia | H146: 105.7524 | I146: 7.071983347e-06 | K146: 143 | L146: Guiné Equatorial | M146: 2182.3724 | N146: 7.818741582e-05 | O146: 2170.3996
A147: 144 | B147: Burundi | C147: 677.1012 | D147: 5.225209343e-05 | F147: 144 | G147: Tajiquistão | H147: 59.4122 | I147: 3.973073793e-06 | K147: 144 | L147: Iémen | M147: 2169.8808 | N147: 7.773988179e-05 | O147: 120.8844
A148: 145 | B148: Aruba | C148: 656.9934 | D148: 5.070036875e-05 | F148: 145 | G148: Jordânia | H148: 56.198 | I148: 3.758130502e-06 | K148: 145 | L148: Jamaica | M148: 1698.6206 | N148: 6.085613765e-05 | O148: 1676.3754
A149: 146 | B149: Niger | C149: 652.165 | D149: 5.032775973e-05 | F149: 146 | G149: Andorra | H149: 42.2194 | I149: 2.823339175e-06 | K149: 146 | L149: Laos, República Democrática Popular do | M149: 1586.3348 | N149: 5.683329694e-05 | O149: -1554.6352
A150: 147 | B150: São Martinho (parte holandesa) | C150: 597.7744 | D150: 4.613042156e-05 | F150: 147 | G150: Libéria | H150: 38.8276 | I150: 2.596519234e-06 | K150: 147 | L150: Azerbaijão | M150: 1561.1546 | N150: 5.593117099e-05 | O150: 1309.225
A151: 148 | B151: Suriname | C151: 582.3304 | D151: 4.493860366e-05 | F151: 148 | G151: Falkland Ilhas (Malvinas) | H151: 38.0622 | I151: 2.545334617e-06 | K151: 148 | L151: Cazaquistão | M151: 1555.7084 | N151: 5.573605108e-05 | O151: 1524.1004
A152: 149 | B152: Bósnia-Herzegovina | C152: 535.6404 | D152: 4.1335523e-05 | F152: 149 | G152: Aruba | H152: 38.029 | I152: 2.543114432e-06 | K152: 149 | L152: Turquemenistão | M152: 1451.475 | N152: 5.200170208e-05 | O152: 10.1634
A153: 150 | B153: Tanzânia, República Unida da | C153: 516.5514 | D153: 3.98624194e-05 | F153: 150 | G153: Arábia Saudita | H153: 33.9378 | I153: 2.269523495e-06 | K153: 150 | L153: Bósnia-Herzegovina | M153: 1293.785 | N153: 4.635217426e-05 | O153: -222.5042
A154: 151 | B154: Ceuta e Melilha | C154: 507.8786 | D154: 3.919313694e-05 | F154: 151 | G154: São Marino | H154: 32.7702 | I154: 2.191442546e-06 | K154: 151 | L154: São Bartolomeu | M154: 1281.3862 | N154: 4.590796495e-05 | O154: 1280.559
A155: 152 | B155: Serra Leoa | C155: 506.8166 | D155: 3.91111821e-05 | F155: 152 | G155: Botswana | H155: 29.9908 | I155: 2.005575648e-06 | K155: 152 | L155: Ruanda | M155: 1241.8804 | N155: 4.449259862e-05 | O155: 1240.6004
A156: 153 | B156: Myanmar | C156: 492.3828 | D156: 3.799732162e-05 | F156: 153 | G156: São Pedro e Miquelon | H156: 28.9156 | I156: 1.933673767e-06 | K156: 153 | L156: Montenegro | M156: 1046.6634 | N156: 3.749859854e-05 | O156: 1046.0318
A157: 154 | B157: Gâmbia | C157: 491.5708 | D157: 3.793465935e-05 | F157: 154 | G157: Arménia | H157: 27.0076 | I157: 1.806080027e-06 | K157: 154 | L157: Bermudas | M157: 908.2538 | N157: 3.253982571e-05 | O157: 906.803
A158: 155 | B158: Curaçau | C158: 479.6396 | D158: 3.701392523e-05 | F158: 155 | G158: Catar | H158: 20.7638 | I158: 1.388538206e-06 | K158: 155 | L158: Barbados | M158: 897.2042 | N158: 3.214395392e-05 | O158: 876.5642
A159: 156 | B159: Kosovo | C159: 471.1818 | D159: 3.636123438e-05 | F159: 156 | G159: Sudão | H159: 20.4826 | I159: 1.369733511e-06 | K159: 156 | L159: Trindade e Tobago | M159: 878.7678 | N159: 3.148343674e-05 | O159: 878.747
A160: 157 | B160: Polinésia Francesa | C160: 366.6458 | D160: 2.829416134e-05 | F160: 157 | G160: Gibraltar | H160: 19.7786 | I160: 1.322654898e-06 | K160: 157 | L160: Barém | M160: 719.082 | N160: 2.576240579e-05 | O160: 709.9756
A161: 158 | B161: Antígua e Barbuda | C161: 363.7054 | D161: 2.806724983e-05 | F161: 158 | G161: Macau | H161: 18.3602 | I161: 1.227802193e-06 | K161: 158 | L161: Aruba | M161: 695.0224 | N161: 2.490042735e-05 | O161: 618.9644
A162: 159 | B162: Haiti | C162: 328.5232 | D162: 2.535222939e-05 | F162: 159 | G162: Quirguizistão | H162: 17.4752 | I162: 1.168619562e-06 | K162: 159 | L162: Burundi | M162: 677.2152 | N162: 2.426245239e-05 | O162: 676.9872
A163: 160 | B163: Comores | C163: 311.607 | D163: 2.404680139e-05 | F163: 160 | G163: Salomão, Ilhas | H163: 16.0532 | I163: 1.073526114e-06 | K163: 160 | L163: Chade | M163: 676.014 | N163: 2.421941724e-05 | O163: -675.7868
A164: 161 | B164: Madagáscar | C164: 309.9952 | D164: 2.392241832e-05 | F164: 161 | G164: Cazaquistão | H164: 15.804 | I164: 1.056861356e-06 | K164: 161 | L164: Niger | M164: 655.4318 | N164: 2.348202291e-05 | O164: 648.8982
A165: 162 | B165: Nova Caledónia | C165: 302.6442 | D165: 2.335513955e-05 | F165: 162 | G165: Santa Helena | H165: 15.7338 | I165: 1.052166869e-06 | K165: 162 | L165: Faroé, Ilhas | M165: 598.4668 | N165: 2.144114934e-05 | O165: -596.7676
A166: 163 | B166: Libéria | C166: 295.8354 | D166: 2.28297025e-05 | F166: 163 | G166: Marshall, Ilhas | H166: 13.4098 | I166: 8.967539487e-07 | K166: 163 | L166: São Martinho (parte holandesa) | M166: 597.7772 | N166: 2.141644318e-05 | O166: 597.7716
A167: 164 | B167: Somália | C167: 292.9902 | D167: 2.26101376e-05 | F167: 164 | G167: Curaçau | H167: 12.9632 | I167: 8.668884538e-07 | K167: 164 | L167: Usbequistão | M167: 531.3872 | N167: 1.903790204e-05 | O167: -85.2232
A168: 165 | B168: Bahamas | C168: 280.4744 | D168: 2.164428973e-05 | F168: 165 | G168: Iraque | H168: 12.264 | I168: 8.201308317e-07 | K168: 165 | L168: Ceuta e Melilha | M168: 507.8786 | N168: 1.819566417e-05 | O168: 507.8786
A169: 166 | B169: Usbequistão | C169: 223.082 | D169: 1.72153018e-05 | F169: 166 | G169: Jamaica | H169: 11.1226 | I169: 7.43801956e-07 | K169: 166 | L169: Curaçau | M169: 492.6028 | N169: 1.764838117e-05 | O169: 466.6764
A170: 167 | B170: São Marino | C170: 219.9688 | D170: 1.697505526e-05 | F170: 167 | G170: Nepal | H170: 10.3458 | I170: 6.918549869e-07 | K170: 167 | L170: Gronelândia | M170: 481.9304 | N170: 1.726602324e-05 | O170: -480.7792
A171: 168 | B171: Bonaire, Santo Eustáquio e Saba | C171: 206.5448 | D171: 1.593912134e-05 | F171: 168 | G171: Barbados | H171: 10.32 | I171: 6.901296627e-07 | K171: 168 | L171: Kosovo | M171: 479.554 | N171: 1.718088444e-05 | O171: 462.8096
A172: 169 | B172: Guiana | C172: 139.5802 | D172: 1.077144399e-05 | F172: 169 | G172: Antígua e Barbuda | H172: 9.2326 | I172: 6.174119306e-07 | K172: 169 | L172: Antígua e Barbuda | M172: 372.938 | N172: 1.336117451e-05 | O172: 354.4728
A173: 170 | B173: Zâmbia | C173: 138.1944 | D173: 1.066450141e-05 | F173: 170 | G173: Kosovo | H173: 8.3722 | I173: 5.598743762e-07 | K173: 170 | L173: Polinésia Francesa | M173: 367.1436 | N173: 1.315357971e-05 | O173: 366.148
A174: 171 | B174: Maldivas | C174: 129.0678 | D174: 9.960199072e-06 | F174: 171 | G174: Jibuti | H174: 7.3022 | I174: 4.883202348e-07 | K174: 171 | L174: Zâmbia | M174: 337.6008 | N174: 1.209515577e-05 | O174: -61.212
A175: 172 | B175: Santa Lúcia | C175: 120.252 | D175: 9.279881263e-06 | F175: 172 | G175: Líbia, Jamahira Árabe da | H175: 6.001 | I175: 4.01305049e-07 | K175: 172 | L175: Libéria | M175: 334.663 | N175: 1.19899038e-05 | O175: 257.0078
A176: 173 | B176: Liechtenstein | C176: 119.4194 | D176: 9.215629282e-06 | F176: 173 | G176: Guiné Equatorial | H176: 5.9864 | I176: 4.003287028e-07 | K176: 173 | L176: Haiti | M176: 328.8008 | N176: 1.177987995e-05 | O176: 328.2456
A177: 174 | B177: Afeganistão | C177: 109.4574 | D177: 8.446858891e-06 | F177: 174 | G177: Barém | H177: 4.5532 | I177: 3.044862772e-07 | K177: 174 | L177: Comores | M177: 311.607 | N177: 1.116388114e-05 | O177: 311.607
A178: 175 | B178: Quirguizistão | C178: 109.2342 | D178: 8.429634483e-06 | F178: 175 | G178: São Cristovão e Nevis | H178: 4.4378 | I178: 2.967691296e-07 | K178: 175 | L178: Nova Caledónia | M178: 303.3498 | N178: 1.08680521e-05 | O178: 301.9386
A179: 176 | B179: Virgens Britânicas, Ilhas | C179: 102.589 | D179: 7.916822497e-06 | F179: 176 | G179: Afeganistão | H179: 4.3662 | I179: 2.919810207e-07 | K179: 176 | L179: Somália | M179: 292.9902 | N179: 1.04969008e-05 | O179: 292.9902
A180: 177 | B180: Botswana | C180: 98.1832 | D180: 7.576825649e-06 | F180: 177 | G180: Niger | H180: 3.2668 | I180: 2.184608122e-07 | K180: 177 | L180: Bahamas | M180: 280.4744 | N180: 1.004849976e-05 | O180: 280.4744
A181: 178 | B181: Jibuti | C181: 96.957 | D181: 7.482199444e-06 | F181: 178 | G181: Liechtenstein | H181: 1.7444 | I181: 1.166533124e-07 | K181: 178 | L181: São Marino | M181: 252.739 | N181: 9.054829179e-06 | O181: 187.1986
A182: 179 | B182: Centro-Africana, República | C182: 96.3624 | D182: 7.436313992e-06 | F182: 179 | G182: Lesoto | H182: 1.7136 | I182: 1.145936231e-07 | K182: 179 | L182: Maldivas | M182: 235.2582 | N182: 8.428548083e-06 | O182: 22.8774
A183: 180 | B183: Nepal | C183: 77.231 | D183: 5.959938378e-06 | F183: 180 | G183: Butão | H183: 1.2178 | I183: 8.143797512e-08 | K183: 180 | L183: Bonaire, Santo Eustáquio e Saba | M183: 206.5448 | N183: 7.399838893e-06 | O183: 206.5448
A184: 181 | B184: Zimbabwe | C184: 64.9592 | D184: 5.012920059e-06 | F184: 181 | G184: Bermudas | H184: 0.7254 | I184: 4.850969548e-08 | K184: 181 | L184: Fiji, Ilhas | M184: 135.9286 | N184: 4.869886538e-06 | O184: -111.7162
A185: 182 | B185: Caimão, Ilhas | C185: 51.6906 | D185: 3.988978399e-06 | F185: 182 | G185: Nova Caledónia | H185: 0.7056 | I185: 4.71856095e-08 | K185: 182 | L185: Botswana | M185: 128.174 | N185: 4.592064047e-06 | O185: 68.1924
A186: 183 | B186: Mongólia | C186: 37.8358 | D186: 2.919799517e-06 | F186: 183 | G186: Ruanda | H186: 0.64 | I186: 4.279873877e-08 | K186: 183 | L186: Quirguizistão | M186: 126.7094 | N186: 4.539592118e-06 | O186: 91.759
A187: 184 | B187: Turcas e Caicos, Ilhas | C187: 19.071 | D187: 1.471714529e-06 | F187: 184 | G187: Polinésia Francesa | H187: 0.4978 | I187: 3.3289394e-08 | K187: 184 | L187: Liechtenstein | M187: 121.1638 | N187: 4.340911026e-06 | O187: 117.675
A188: 185 | B188: Laos, República Democrática Popular do | C188: 15.8498 | D188: 1.223133603e-06 | F188: 185 | G188: Território Palestiniano Ocupado | H188: 0.4852 | I188: 3.244679383e-08 | K188: 185 | L188: Santa Lúcia | M188: 120.2706 | N188: 4.308910529e-06 | O188: 120.2334
A189: 186 | B189: Fiji, Ilhas | C189: 12.1062 | D189: 9.342389195e-07 | F189: 186 | G189: São Bartolomeu | H189: 0.4136 | I189: 2.765868493e-08 | K189: 186 | L189: Afeganistão | M189: 113.8236 | N189: 4.077935161e-06 | O189: 105.0912
A190: 187 | B190: Anguila | C190: 10.0614 | D190: 7.764411181e-07 | F190: 187 | G190: Micronésia, Estados Federados da | H190: 0.3438 | I190: 2.299094748e-08 | K190: 187 | L190: Jibuti | M190: 104.2592 | N190: 3.735273331e-06 | O190: 89.6548
A191: 188 | B191: Malavi | C191: 9.1292 | D191: 7.045029773e-07 | F191: 188 | G191: Montenegro | H191: 0.3158 | I191: 2.111850266e-08 | K191: 188 | L191: Virgens Britânicas, Ilhas | M191: 102.589 | N191: 3.675435412e-06 | O191: 102.589
A192: 189 | B192: Brunei Darussalam | C192: 7.7238 | D192: 5.96047857e-07 | F192: 189 | G192: Haiti | H192: 0.2776 | I192: 1.856395294e-08 | K192: 189 | L192: Nepal | M192: 87.5768 | N192: 3.137596351e-06 | O192: 66.8852
A193: 190 | B193: São Vicente e Granadinas | C193: 7.6034 | D193: 5.867565545e-07 | F193: 190 | G193: Burundi | H193: 0.114 | I193: 7.623525344e-09 | K193: 190 | L193: Tajiquistão | M193: 59.4122 | N193: 2.128548907e-06 | O193: -59.4122
A194: 191 | B194: Guam | C194: 6.6636 | D194: 5.142319195e-07 | F194: 191 | G194: Oceano Indico, Território Britânico do | H194: 0.098 | I194: 6.553556874e-09 | K194: 191 | L194: Caimão, Ilhas | M194: 51.6906 | N194: 1.851908701e-06 | O194: 51.6906
A195: 192 | B195: Territórios Franceses do Sul | C195: 6.3102 | D195: 4.869599403e-07 | F195: 192 | G195: Nauru | H195: 0.0694 | I195: 4.640988236e-09 | K195: 192 | L195: Falkland Ilhas (Malvinas) | M195: 38.0622 | N195: 1.363646763e-06 | O195: -38.0622
A196: 193 | B196: Menores distantes dos Estados Unidos, lhas | C196: 4.5544 | D196: 3.514643517e-07 | F196: 193 | G196: Vanuatu | H196: 0.065 | I196: 4.346746907e-09 | K196: 193 | L196: Mongólia | M196: 37.8488 | N196: 1.356001324e-06 | O196: 37.8228
A197: 194 | B197: Sudão do Sul | C197: 3.771 | D197: 2.910091495e-07 | F197: 194 | G197: São Vicente e Granadinas | H197: 0.0416 | I197: 2.78191802e-09 | K197: 194 | L197: São Pedro e Miquelon | M197: 29.2314 | N197: 1.047267472e-06 | O197: -28.5998
A198: 195 | B198: Melilha | C198: 3.6164 | D198: 2.790786232e-07 | F198: 195 | G198: Santa Sé (Cidade Estado do Vaticano) | H198: 0.021 | I198: 1.404333616e-09 | K198: 195 | L198: Turcas e Caicos, Ilhas | M198: 19.071 | N198: 6.832528707e-07 | O198: 19.071
A199: 196 | B199: Marianas do Norte, Ilhas | C199: 2.9244 | D199: 2.256767851e-07 | F199: 196 | G199: Santa Lúcia | H199: 0.0186 | I199: 1.243838346e-09 | K199: 196 | L199: Salomão, Ilhas | M199: 16.0532 | N199: 5.751347587e-07 | O199: -16.0532
A200: 197 | B200: Papuásia-Nova Guiné | C200: 2.8856 | D200: 2.22682578e-07 | F200: 197 | G200: Mongólia | H200: 0.013 | I200: 8.693493813e-10 | K200: 197 | L200: Santa Helena | M200: 15.7338 | N200: 5.636916793e-07 | O200: -15.7338
... 58 more rows

Sheet 2AA
A1: Ranking dos parceiros comerciais de Portugal por país (média 2018-2022 em milhares de euros) produtos agrícolas e agroalimentares
A2: Exportações | F2: Importações | K2: Trocas comerciais (total e saldo)
A3: P | B3: País | C3: média quinquénio | D3: % do Total | F3: P | G3: País | H3: média quinquénio | I3: % do Total | K3: P | L3: País | M3: Total (exp+imp) | N3: % do Total | O3: Saldo (exp-imp)
A4: 1 | B4: Espanha | C4: 2411545.104 | D4: 0.3412850777 | F4: 1 | G4: Espanha | H4: 4702622.823 | I4: 0.4611131698 | K4: 1 | L4: Espanha | M4: 7114167.927 | N4: 0.4120694865 | O4: -2291077.719
A5: 2 | B5: França | C5: 676548.204 | D5: 0.09574600368 | F5: 2 | G5: França | H5: 801883.8928 | I5: 0.07862829691 | K5: 2 | L5: França | M5: 1478432.097 | N5: 0.08563429499 | O5: -125335.6888
A6: 3 | B6: Itália | C6: 450103.1874 | D6: 0.06369920307 | F6: 3 | G6: Alemanha | H6: 691439.1198 | I6: 0.06779869367 | K6: 3 | L6: Alemanha | M6: 951321.041 | N6: 0.05510277194 | O6: -431557.1986
A7: 4 | B7: Brasil | C7: 371211.2184 | D7: 0.05253430646 | F7: 4 | G7: Países Baixos | H7: 595448.7582 | I7: 0.05838641002 | K7: 4 | L7: Países Baixos | M7: 927730.709 | N7: 0.05373636394 | O7: -263166.8074
A8: 5 | B8: Países Baixos | C8: 332281.9508 | D8: 0.04702498461 | F8: 5 | G8: Brasil | H8: 551854.2014 | I8: 0.05411176904 | K8: 5 | L8: Brasil | M8: 923065.4198 | N8: 0.05346613932 | O8: -180642.983
A9: 6 | B9: Angola | C9: 270815.3222 | D9: 0.0383261454 | F9: 6 | G9: Itália | H9: 325089.427 | I9: 0.03187647017 | K9: 6 | L9: Itália | M9: 775192.6144 | N9: 0.04490099556 | O9: 125013.7604 | P9: Nota: Nesta listagem, o Reino Unido passa a ser constituído por três componentes: Reino Unido [até 2020] ; Reino Unido (sem Irlanda do Norte) pós-2020 e Reino Unido (Irlanda do Norte) pós-2020. Estas componentes são calculadas igualmente como média do quinquénio, embora a primeira corresponda apenas a 2018-2020 e as duas últimas a 2021-2022.
A10: 7 | B10: Alemanha | C10: 259881.9212 | D10: 0.03677883591 | F10: 7 | G10: Bélgica | H10: 256059.544 | I10: 0.02510778185 | K10: 7 | L10: Bélgica | M10: 422577.6918 | N10: 0.02447670258 | O10: -89541.3962
A11: 8 | B11: Reino Unido | C11: 202835.6198 | D11: 0.0287055673 | F11: 8 | G11: Estados Unidos | H11: 216780.4248 | I11: 0.0212562888 | K11: 8 | L11: Estados Unidos | M11: 400397.3552 | N11: 0.02319196486 | O11: -33163.4944
A12: 9 | B12: Estados Unidos | C12: 183616.9304 | D12: 0.02598571275 | F12: 9 | G12: Ucrânia | H12: 191923.2566 | I12: 0.01881893244 | K12: 9 | L12: Polónia | M12: 317924.6778 | N12: 0.01841495169 | O12: -49349.5234
A13: 10 | B13: Israel | C13: 169490.6434 | D13: 0.02398654179 | F13: 10 | G13: Polónia | H13: 183637.1006 | I13: 0.01800643784 | K13: 10 | L13: Reino Unido | M13: 313115.4092 | N13: 0.01813638745 | O13: 92555.8304
A14: 11 | B14: Bélgica | C14: 166518.1478 | D14: 0.02356587025 | F14: 11 | G14: Roménia | H14: 135111.7674 | I14: 0.0132483122 | K14: 11 | L14: Angola | M14: 277936.6246 | N14: 0.01609874877 | O14: 263694.0198
A15: 12 | B15: Reino Unido (sem Irlanda do Norte) pós 2020 | C15: 153199.9856 | D15: 0.02168106618 | F15: 12 | G15: África do Sul | H15: 112523.4846 | I15: 0.0110334302 | K15: 12 | L15: Reino Unido (sem Irlanda do Norte) pós 2020 | M15: 202787.0812 | N15: 0.01174590891 | O15: 103612.89
A16: 13 | B16: Polónia | C16: 134287.5772 | D16: 0.01900455693 | F16: 13 | G16: Reino Unido | H16: 110279.7894 | I16: 0.01081342586 | K16: 13 | L16: Ucrânia | M16: 198678.4348 | N16: 0.01150792636 | O16: -185168.0784
A17: 14 | B17: Suíça | C17: 92003.1512 | D17: 0.0130204086 | F17: 14 | G17: Irlanda | H17: 110243.3216 | I17: 0.01080985003 | K17: 14 | L17: Canadá | M17: 175349.2144 | N17: 0.01015664256 | O17: -30879.5124
A18: 15 | B18: Cabo Verde | C18: 85447.0724 | D18: 0.01209258359 | F18: 15 | G18: Canadá | H18: 103114.3634 | I18: 0.01011082384 | K18: 15 | L18: Israel | M18: 174656.3316 | N18: 0.01011650914 | O18: 164324.9552
A19: 16 | B19: Canadá | C19: 72234.851 | D19: 0.0102227724 | F19: 16 | G19: Argentina | H19: 72786.9924 | I19: 0.007137089672 | K19: 16 | L19: Roménia | M19: 150921.1448 | N19: 0.008741710805 | O19: -119302.39
A20: 17 | B20: China, República Popular da | C20: 72213.8082 | D20: 0.0102197944 | F20: 17 | G20: Dinamarca | H20: 70231.4784 | I20: 0.006886510112 | K20: 17 | L20: Irlanda | M20: 137024.7724 | N20: 0.007936799943 | O20: -83461.8708
A21: 18 | B21: Japão | C21: 54923.5388 | D21: 0.007772852425 | F21: 18 | G21: Costa Rica | H21: 69966.4528 | I21: 0.006860523168 | K21: 18 | L21: África do Sul | M21: 134358.9168 | N21: 0.007782387261 | O21: -90688.0524
A22: 19 | B22: Suécia | C22: 50824.6094 | D22: 0.007192766472 | F22: 19 | G22: Reino Unido (sem Irlanda do Norte) pós 2020 | H22: 49587.0956 | I22: 0.00486223618 | K22: 19 | L22: Dinamarca | M22: 117591.8134 | N22: 0.006811196848 | O22: -22871.1434
A23: 20 | B23: Rússia, Federação da | C23: 48396.534 | D23: 0.006849142005 | F23: 20 | G23: Bulgária | H23: 45248.5012 | I23: 0.004436817623 | K23: 20 | L23: China, República Popular da | M23: 117263.0084 | N23: 0.006792151682 | O23: 27164.608
A24: 21 | B24: Dinamarca | C24: 47360.335 | D24: 0.006702497741 | F24: 21 | G24: China, República Popular da | H24: 45049.2002 | I24: 0.00441727527 | K24: 21 | L24: Suíça | M24: 94990.2382 | N24: 0.005502059985 | O24: 89016.0642
A25: 22 | B25: Luxemburgo | C25: 45455.684 | D25: 0.006432948993 | F25: 22 | G25: Cuba | H25: 35800.4636 | I25: 0.003510395341 | K25: 22 | L25: Cabo Verde | M25: 85573.8106 | N25: 0.004956638155 | O25: 85320.3342
A26: 23 | B26: Marrocos | C26: 40790.7978 | D26: 0.005772768079 | F26: 23 | G26: Grécia | H26: 30696.3508 | I26: 0.003009914286 | K26: 23 | L26: Argentina | M26: 73024.3208 | N26: 0.004229741929 | O26: -72549.664
A27: 24 | B27: Guiné-Bissau | C27: 30105.257 | D27: 0.004260536101 | F27: 24 | G27: Vietname | H27: 28842.503 | I27: 0.00282813623 | K27: 24 | L27: Costa Rica | M27: 71166.176 | N27: 0.004122113773 | O27: -68766.7296
A28: 25 | B28: Irlanda | C28: 26781.4508 | D28: 0.003790146617 | F28: 25 | G28: Colômbia | H28: 28226.344 | I28: 0.002767719088 | K28: 25 | L28: Japão | M28: 68515.1074 | N28: 0.00396855759 | O28: 41331.9702
A29: 26 | B29: São Tomé e Príncipe | C29: 25260.7912 | D29: 0.003574940844 | F29: 26 | G29: Guiana | H29: 28025.2642 | I29: 0.002748002316 | K29: 26 | L29: Suécia | M29: 64540.5576 | N29: 0.003738342235 | O29: 37108.6612
A30: 27 | B30: Arábia Saudita | C30: 25200.9646 | D30: 0.003566474103 | F30: 27 | G30: Chile | H30: 24582.6414 | I30: 0.002410437776 | K30: 27 | L30: Rússia, Federação da | M30: 60555.2322 | N30: 0.003507502731 | O30: 36237.8358
A31: 28 | B31: Moçambique | C31: 25040.048 | D31: 0.003543700972 | F31: 28 | G31: Áustria | H31: 23767.51 | I31: 0.002330510502 | K31: 28 | L31: Luxemburgo | M31: 53698.83 | N31: 0.003110363647 | O31: 37212.538
A32: 29 | B32: Grécia | C32: 22271.2594 | D32: 0.003151858318 | F32: 29 | G32: Uruguai | H32: 22544.114 | I32: 0.00221055106 | K32: 29 | L32: Bulgária | M32: 53404.496 | N32: 0.003093315124 | O32: -37092.5064
A33: 30 | B33: África do Sul | C33: 21835.4322 | D33: 0.003090179472 | F33: 30 | G33: Checa, República | H33: 22169.2118 | I33: 0.002173790225 | K33: 30 | L33: Grécia | M33: 52967.6102 | N33: 0.003068009662 | O33: -8425.0914
A34: 31 | B34: Finlândia | C34: 19884.365 | D34: 0.002814061841 | F34: 31 | G34: Costa do Marfim | H34: 21706.6942 | I34: 0.002128438309 | K34: 31 | L34: Marrocos | M34: 50677.0038 | N34: 0.002935332304 | O34: 30904.5918
A35: 32 | B35: Checa, República | C35: 18235.0968 | D35: 0.002580655207 | F35: 32 | G35: Índia | H35: 20821.1078 | I35: 0.002041602607 | K35: 32 | L35: Checa, República | M35: 40404.3086 | N35: 0.002340313423 | O35: -3934.115
A36: 33 | B36: Jordânia | C36: 17519.4376 | D36: 0.002479374163 | F36: 33 | G36: Paraguai | H36: 18543.3936 | I36: 0.001818262558 | K36: 33 | L36: Cuba | M36: 38670.0018 | N36: 0.002239858258 | O36: -32930.9254
A37: 34 | B37: Noruega | C37: 16995.9884 | D37: 0.002405294934 | F37: 34 | G37: Turquia | H37: 17986.1158 | I37: 0.00176361898 | K37: 34 | L37: Áustria | M37: 38061.8468 | N37: 0.002204632478 | O37: -9473.1732
A38: 35 | B38: Roménia | C38: 15809.3774 | D38: 0.002237364164 | F38: 35 | G38: Hungria | H38: 16799.5642 | I38: 0.001647272297 | K38: 35 | L38: Moçambique | M38: 35153.372 | N38: 0.002036166716 | O38: 14926.724
A39: 36 | B39: Austrália | C39: 14444.1886 | D39: 0.002044160825 | F39: 36 | G39: Uganda | H39: 16711.9112 | I39: 0.001638677529 | K39: 36 | L39: Colômbia | M39: 34587.7746 | N39: 0.002003405973 | O39: -21864.9134
A40: 37 | B40: Áustria | C40: 14294.3368 | D40: 0.002022953598 | F40: 37 | G40: Suécia | H40: 13715.9482 | I40: 0.001344909977 | K40: 37 | L40: Vietname | M40: 30876.7168 | N40: 0.0017884527 | O40: -26808.2892
A41: 38 | B41: Coreia, República da | C41: 13714.1396 | D41: 0.001940843317 | F41: 38 | G41: Japão | H41: 13591.5686 | I41: 0.001332714001 | K41: 38 | L41: Guiné-Bissau | M41: 30466.7032 | N41: 0.001764703739 | O41: 29743.8108
A42: 39 | B42: Iraque | C42: 12402.8826 | D42: 0.001755272479 | F42: 39 | G42: Suazilândia | H42: 13238.5734 | I42: 0.001298101246 | K42: 39 | L42: Chile | M42: 30212.416 | N42: 0.001749974821 | O42: -18952.8668
A43: 40 | B43: Emirados Árabes Unidos | C43: 11850.4352 | D43: 0.001677089386 | F43: 40 | G43: Indonésia | H43: 13223.1014 | I43: 0.001296584147 | K43: 40 | L43: Guiana | M43: 28043.5076 | N43: 0.0016243465 | O43: -28007.0208
A44: 41 | B44: Argélia | C44: 11256.5744 | D44: 0.001593045414 | F44: 41 | G44: México | H44: 13063.4442 | I44: 0.001280929045 | K44: 41 | L44: Hungria | M44: 27998.5132 | N44: 0.001621740318 | O44: -5600.6152
A45: 42 | B45: Macau | C45: 11226.3432 | D45: 0.001588767055 | F45: 42 | G45: Austrália | H45: 12929.8552 | I45: 0.001267830047 | K45: 42 | L45: Turquia | M45: 27952.4328 | N45: 0.001619071232 | O45: -8019.7988
A46: 43 | B46: Hungria | C46: 11198.949 | D46: 0.001584890191 | F46: 43 | G46: Rússia, Federação da | H46: 12158.6982 | I46: 0.001192214659 | K46: 43 | L46: Austrália | M46: 27374.0438 | N46: 0.001585569569 | O46: 1514.3334
A47: 44 | B47: Nigéria | C47: 10950.0114 | D47: 0.00154966021 | F47: 44 | G47: Moldava, República de | H47: 11903.4008 | I47: 0.001167181609 | K47: 44 | L47: Finlândia | M47: 27349.3512 | N47: 0.001584139315 | O47: 12419.3788
A48: 45 | B48: Turquia | C48: 9966.317 | D48: 0.001410446467 | F48: 45 | G48: Peru | H48: 11309.1784 | I48: 0.001108915449 | K48: 45 | L48: Costa do Marfim | M48: 27312.2444 | N48: 0.001581990001 | O48: -16101.144
A49: 46 | B49: Território Palestiniano Ocupado | C49: 9369.3582 | D49: 0.001325964062 | F49: 46 | G49: Lituânia | H49: 10559.9636 | I49: 0.001035451592 | K49: 46 | L49: São Tomé e Príncipe | M49: 26314.2624 | N49: 0.001524184515 | O49: 24207.32
A50: 47 | B50: Eslováquia | C50: 9087.5718 | D50: 0.001286085275 | F50: 47 | G50: Paquistão | H50: 10304.0036 | I50: 0.001010353571 | K50: 47 | L50: Arábia Saudita | M50: 25224.07 | N50: 0.001461037985 | O50: 25177.8592
A51: 48 | B51: Senegal | C51: 8493.732 | D51: 0.001202044275 | F51: 48 | G51: Tailândia | H51: 10199.4388 | I51: 0.001000100525 | K51: 48 | L51: Uruguai | M51: 24295.7548 | N51: 0.001407267766 | O51: -20792.4732
A52: 49 | B52: Bulgária | C52: 8155.9948 | D52: 0.001154247256 | F52: 49 | G52: Moçambique | H52: 10113.324 | I52: 0.0009916565844 | K52: 49 | L52: Índia | M52: 23835.9726 | N52: 0.00138063609 | O52: -17806.243
A53: 50 | B53: Líbia, Jamahira Árabe da | C53: 7994.648 | D53: 0.001131413242 | F53: 50 | G53: Marrocos | H53: 9886.206 | I53: 0.0009693866502 | K53: 50 | L53: Paraguai | M53: 19188.0202 | N53: 0.001111415658 | O53: -17898.767
A54: 51 | B54: Gibraltar | C54: 7555.2434 | D54: 0.001069228117 | F54: 51 | G54: Egito | H54: 9790.4264 | I54: 0.0009599950327 | K54: 51 | L54: México | M54: 18719.0294 | N54: 0.001084250598 | O54: -7407.859
A55: 52 | B55: Kuwait | C55: 7349.7522 | D55: 0.001040146729 | F55: 52 | G55: Letónia | H55: 8952.1544 | I55: 0.0008777987194 | K55: 52 | L55: Noruega | M55: 18005.9244 | N55: 0.001042945865 | O55: 15986.0524
A56: 53 | B56: Ucrânia | C56: 6755.1782 | D56: 0.0009560018236 | F56: 53 | G56: Sérvia | H56: 8809.7352 | I56: 0.0008638338807 | K56: 53 | L56: Jordânia | M56: 17548.9282 | N56: 0.001016475561 | O56: 17489.947
A57: 54 | B57: Colômbia | C57: 6361.4306 | D57: 0.0009002781384 | F57: 54 | G57: Luxemburgo | H57: 8243.146 | I57: 0.0008082772793 | K57: 54 | L57: Uganda | M57: 17197.4672 | N57: 0.0009961181055 | O57: -16226.3552
A58: 55 | B58: Letónia | C58: 5851.9654 | D58: 0.0008281779442 | F58: 55 | G58: Equador | H58: 8207.9326 | I58: 0.0008048244482 | K58: 55 | L58: Lituânia | M58: 15596.9716 | N58: 0.0009034136028 | O58: -5522.9556
A59: 56 | B59: HongKong | C59: 5831.0346 | D59: 0.0008252157894 | F59: 56 | G59: Nova Zelânda | H59: 7880.6232 | I59: 0.0007727302997 | K59: 56 | L59: Suazilândia | M59: 15229.1516 | N59: 0.0008821085956 | O59: -11247.9952
A60: 57 | B60: Maurícias | C60: 5663.2906 | D60: 0.000801476435 | F60: 57 | G60: Finlândia | H60: 7464.9862 | I60: 0.0007319752356 | K60: 57 | L60: Letónia | M60: 14804.1198 | N60: 0.0008574897453 | O60: -3100.189
A61: 58 | B61: México | C61: 5655.5852 | D61: 0.0008003859565 | F61: 58 | G61: Malásia | H61: 7402.4108 | I61: 0.0007258394382 | K61: 58 | L61: Coreia, República da | M61: 14651.7386 | N61: 0.0008486634646 | O61: 12776.5406
A62: 59 | B62: Chile | C62: 5629.7746 | D62: 0.000796733206 | F62: 59 | G62: Angola | H62: 7121.3024 | I62: 0.0006982755041 | K62: 59 | L62: Indonésia | M62: 14360.499 | N62: 0.0008317941759 | O62: -12085.7038
A63: 60 | B63: Costa do Marfim | C63: 5605.5502 | D63: 0.0007933049366 | F63: 60 | G63: Camarões | H63: 6330.7516 | I63: 0.0006207584676 | K63: 60 | L63: Tailândia | M63: 13287.765 | N63: 0.0007696588773 | O63: -7111.1126
A64: 61 | B64: Andorra | C64: 5268.3636 | D64: 0.0007455858395 | F64: 61 | G64: Honduras | H64: 6193.611 | I64: 0.0006073112193 | K64: 61 | L64: Peru | M64: 13096.3328 | N64: 0.0007585706701 | O64: -9522.024
A65: 62 | B65: Lituânia | C65: 5037.008 | D65: 0.0007128440866 | F65: 62 | G65: Etiópia | H65: 5332.6708 | I65: 0.0005228921877 | K65: 62 | L65: Eslováquia | M65: 12663.425 | N65: 0.0007334956231 | O65: 5511.7186
A66: 63 | B66: Estónia | C66: 4869.894 | D66: 0.0006891938905 | F66: 63 | G66: Israel | H66: 5165.6882 | I66: 0.000506518798 | K66: 63 | L66: Iraque | M66: 12415.1466 | N66: 0.0007191147491 | O66: 12390.6186
A67: 64 | B67: Malta | C67: 4732.779 | D67: 0.0006697891929 | F67: 64 | G67: Belize | H67: 5153.7922 | I67: 0.0005053523421 | K67: 64 | L67: Emirados Árabes Unidos | M67: 12305.7766 | N67: 0.0007127797792 | O67: 11395.0938
A68: 65 | B68: Síria, República Árabe da | C68: 4399.3294 | D68: 0.0006225989611 | F68: 65 | G68: Camboja | H68: 4964.372 | I68: 0.0004867788455 | K68: 65 | L68: Moldava, República de | M68: 12104.7888 | N68: 0.0007011380889 | O68: -11702.0128
A69: 66 | B69: Chipre | C69: 4087.2516 | D69: 0.0005784332948 | F69: 66 | G69: Zimbabwe | H69: 4708.9854 | I69: 0.0004617370489 | K69: 66 | L69: Argélia | M69: 11803.7068 | N69: 0.0006836987051 | O69: 10709.442
A70: 67 | B70: Omã | C70: 3805.6814 | D70: 0.0005385851048 | F70: 67 | G70: Guatemala | H70: 4634.8976 | I70: 0.0004544724092 | K70: 67 | L70: Sérvia | M70: 11344.2464 | N70: 0.0006570856685 | O70: -6275.224
A71: 68 | B71: Eslovénia | C71: 3320.9676 | D71: 0.0004699877617 | F71: 68 | G71: Suriname | H71: 4613.819 | I71: 0.0004524055583 | K71: 68 | L71: Egito | M71: 11328.9988 | N71: 0.0006562024914 | O71: -8251.854
A72: 69 | B72: Mali | C72: 3288.1148 | D72: 0.0004653383896 | F72: 69 | G72: Macedónia, Antiga República jugoslava da | H72: 4601.6794 | I72: 0.0004512152163 | K72: 69 | L72: Macau | M72: 11242.8404 | N72: 0.0006512119924 | O72: 11209.846
A73: 70 | B73: Tailândia | C73: 3088.3262 | D73: 0.0004370640406 | F73: 70 | G73: Eslovénia | H73: 4577.0544 | I73: 0.0004488006251 | K73: 70 | L73: Nigéria | M73: 11147.6308 | N73: 0.0006456972265 | O73: 10752.392
A74: 71 | B74: Índia | C74: 3014.8648 | D74: 0.0004266676854 | F74: 71 | G74: Tanzânia, República Unida da | H74: 4539.6584 | I74: 0.0004451337803 | K74: 71 | L74: Paquistão | M74: 10570.8542 | N74: 0.0006122889572 | O74: -10037.153
A75: 72 | B75: Singapura | C75: 2956.254 | D75: 0.0004183730068 | F75: 72 | G75: Filipinas | H75: 4493.245 | I75: 0.0004405827391 | K75: 72 | L75: Nova Zelânda | M75: 10271.0628 | N75: 0.000594924328 | O75: -5490.1836
A76: 73 | B76: Cuba | C76: 2869.5382 | D76: 0.0004061008712 | F76: 73 | G76: Tunísia | H76: 4126.4674 | I76: 0.0004046185574 | K76: 73 | L76: Território Palestiniano Ocupado | M76: 9369.8434 | N76: 0.000542723562 | O76: 9368.873
A77: 74 | B77: Gana | C77: 2746.7854 | D77: 0.0003887287313 | F77: 74 | G77: Estónia | H77: 4043.8982 | I77: 0.0003965222786 | K77: 74 | L77: Senegal | M77: 9057.0902 | N77: 0.0005246081546 | O77: 7930.3738
A78: 75 | B78: Taiwan | C78: 2744.6238 | D78: 0.0003884228188 | F78: 75 | G78: Reino Unido (Irlanda do Norte) pós-2020 | H78: 3995.535 | I78: 0.0003917800509 | K78: 75 | L78: Equador | M78: 9035.3682 | N78: 0.0005233499648 | O78: -7380.497
A79: 76 | B79: Sérvia | C79: 2534.5112 | D79: 0.0003586874036 | F79: 76 | G79: Mali | H79: 3760.9918 | I79: 0.0003687820426 | K79: 76 | L79: Estónia | M79: 8913.7922 | N79: 0.0005163079944 | O79: 825.9958
A80: 77 | B80: Líbano | C80: 2519.7508 | D80: 0.0003565984921 | F80: 77 | G80: Eslováquia | H80: 3575.8532 | I80: 0.0003506283761 | K80: 77 | L80: Malásia | M80: 8903.6532 | N80: 0.0005157207195 | O80: -5901.1684
A81: 78 | B81: Timor-Leste | C81: 2471.9198 | D81: 0.0003498293852 | F81: 78 | G81: Myanmar | H81: 3336.325 | I81: 0.0003271415663 | K81: 78 | L81: Camarões | M81: 8611.8814 | N81: 0.0004988206045 | O81: -4049.6218
A82: 79 | B82: Belarus | C82: 2455.9286 | D82: 0.0003475662893 | F82: 79 | G82: Quénia | H82: 3256.0222 | I82: 0.0003192675181 | K82: 79 | L82: Kuwait | M82: 8533.2046 | N82: 0.0004942634576 | O82: 6166.2998
A83: 80 | B83: Nova Zelânda | C83: 2390.4396 | D83: 0.0003382981987 | F83: 80 | G83: Malavi | H83: 3254.1762 | I83: 0.0003190865096 | K83: 80 | L83: Líbia, Jamahira Árabe da | M83: 8000.598 | N83: 0.0004634136196 | O83: 7988.698
A84: 81 | B84: Filipinas | C84: 2342.9576 | D84: 0.0003315784827 | F84: 81 | G84: Nicarágua | H84: 3164.5064 | I84: 0.0003102939852 | K84: 81 | L84: Eslovénia | M84: 7898.022 | N84: 0.0004574721743 | O84: -1256.0868
A85: 82 | B85: Camarões | C85: 2281.1298 | D85: 0.0003228285301 | F85: 82 | G85: Chipre | H85: 3147.1004 | I85: 0.0003085872492 | K85: 82 | L85: Gibraltar | M85: 7555.2434 | N85: 0.0004376176244 | O85: 7555.2434
A86: 83 | B86: Guiné | C86: 2265.6424 | D86: 0.0003206367326 | F86: 83 | G86: Sri Lanca | H86: 3073.8124 | I86: 0.0003014010335 | K86: 83 | L86: Chipre | M86: 7234.352 | N86: 0.0004190308331 | O86: 940.1512
A87: 84 | B87: Irão, República Islâmica do | C87: 2234.7082 | D87: 0.0003162588834 | F87: 84 | G87: Suíça | H87: 2987.087 | I87: 0.0002928972207 | K87: 84 | L87: Maurícias | M87: 7215.0708 | N87: 0.0004179140203 | O87: 4111.5104
A88: 85 | B88: Congo | C88: 2184.5722 | D88: 0.0003091635698 | F88: 85 | G88: Taiwan | H88: 2718.5488 | I88: 0.0002665658509 | K88: 85 | L88: Mali | M88: 7049.1066 | N88: 0.00040830098 | O88: -472.877
A89: 86 | B89: Seychelles | C89: 2103.9052 | D89: 0.0002977474684 | F89: 86 | G89: Dominicana, República | H89: 2224.7352 | I89: 0.0002181452221 | K89: 86 | L89: HongKong | M89: 7034.5032 | N89: 0.0004074551165 | O89: 4627.566
A90: 87 | B90: Gabão | C90: 2079.6516 | D90: 0.0002943150666 | F90: 87 | G90: Serra Leoa | H90: 1997.841 | I90: 0.0001958972324 | K90: 87 | L90: Honduras | M90: 7007.3132 | N90: 0.0004058802071 | O90: -5379.9088
A91: 88 | B91: Venezuela | C91: 2058.7692 | D91: 0.0002913597616 | F91: 88 | G91: Benim | H91: 1817.538 | I91: 0.000178217718 | K91: 88 | L91: Filipinas | M91: 6836.2026 | N91: 0.0003959690752 | O91: -2150.2874
A92: 89 | B92: Vietname | C92: 2034.2138 | D92: 0.0002878846486 | F92: 89 | G92: Croácia | H92: 1813.6516 | I92: 0.0001778366392 | K92: 89 | L92: Etiópia | M92: 6077.0796 | N92: 0.0003519988698 | O92: -4588.262
A93: 90 | B93: Suazilândia | C93: 1990.5782 | D93: 0.0002817092803 | F93: 90 | G93: Burquina Faso | H93: 1725.737 | I93: 0.00016921622 | K93: 90 | L93: Malta | M93: 5816.0858 | N93: 0.0003368814896 | O93: 3649.4722
A94: 91 | B94: Sudão | C94: 1865.0268 | D94: 0.0002639410788 | F94: 91 | G94: Gana | H94: 1658.4144 | I94: 0.0001626149384 | K94: 91 | L94: Taiwan | M94: 5463.1726 | N94: 0.0003164399197 | O94: 26.075
A95: 92 | B95: Burquina Faso | C95: 1848.8938 | D95: 0.0002616579152 | F95: 92 | G95: Laos, República Democrática Popular do | H95: 1570.3752 | I95: 0.0001539823017 | K95: 92 | L95: Camboja | M95: 5365.8038 | N95: 0.0003108000878 | O95: -4562.9402
A96: 93 | B96: Guiné Equatorial | C96: 1818.2016 | D96: 0.0002573143141 | F96: 93 | G96: Maurícias | H96: 1551.7802 | I96: 0.0001521589789 | K96: 93 | L96: Síria, República Árabe da | M96: 5349.1634 | N96: 0.0003098362363 | O96: 3449.4954
A97: 94 | B97: Peru | C97: 1787.1544 | D97: 0.000252920473 | F97: 94 | G97: Madagáscar | H97: 1535.4896 | I97: 0.0001505616128 | K97: 94 | L97: Reino Unido (Irlanda do Norte) pós-2020 | M97: 5295.453 | N97: 0.0003067252025 | O97: -2695.617
A98: 95 | B98: Croácia | C98: 1771.9842 | D98: 0.0002507735661 | F98: 95 | G98: Panamá | H98: 1513.6692 | I98: 0.0001484220251 | K98: 95 | L98: Andorra | M98: 5273.09 | N98: 0.0003054298845 | O98: 5263.6372
A99: 96 | B99: Uruguai | C99: 1751.6408 | D99: 0.000247894541 | F99: 96 | G99: Congo, República Democrática do | H99: 1226.6902 | I99: 0.0001202824525 | K99: 96 | L99: Belize | M99: 5155.9728 | N99: 0.0002986461784 | O99: -5151.6116
A100: 97 | B100: Dominicana, República | C100: 1708.9932 | D100: 0.0002418589958 | F100: 97 | G100: HongKong | H100: 1203.4686 | I100: 0.0001180054709 | K100: 97 | L100: Guatemala | M100: 5126.7604 | N100: 0.0002969541269 | O100: -4143.0348
A101: 98 | B101: Benim | C101: 1572.4166 | D101: 0.0002225304933 | F101: 98 | G101: Kuwait | H101: 1183.4524 | I101: 0.0001160427931 | K101: 98 | L101: Tanzânia, República Unida da | M101: 4910.6254 | N101: 0.0002844350748 | O101: -4168.6914
A102: 99 | B102: Bangladesh | C102: 1558.9346 | D102: 0.0002206225027 | F102: 99 | G102: Togo | H102: 1123.3014 | I102: 0.0001101447189 | K102: 99 | L102: Macedónia, Antiga República jugoslava da | M102: 4874.3908 | N102: 0.0002823362808 | O102: -4328.968
A103: 100 | B103: Egito | C103: 1538.5724 | D103: 0.000217740817 | F103: 100 | G103: Malta | H103: 1083.3068 | I103: 0.0001062230698 | K103: 100 | L103: Tunísia | M103: 4852.0784 | N103: 0.0002810438937 | O103: -3400.8564
A104: 101 | B104: Catar | C104: 1515.2294 | D104: 0.0002144372845 | F104: 101 | G104: Singapura | H104: 1064.6932 | I104: 0.0001043979232 | K104: 101 | L104: Zimbabwe | M104: 4772.268 | N104: 0.000276421086 | O104: -4645.7028
A105: 102 | B105: Malásia | C105: 1501.2424 | D105: 0.0002124578256 | F105: 102 | G105: São Tomé e Príncipe | H105: 1053.4712 | I105: 0.000103297556 | K105: 102 | L105: Suriname | M105: 4769.9158 | N105: 0.0002762848409 | O105: -4457.7222
A106: 103 | B106: Geórgia | C106: 1344.215 | D106: 0.0001902350987 | F106: 103 | G106: Noruega | H106: 1009.936 | I106: 9.902873519e-05 | K106: 103 | L106: Gana | M106: 4405.1998 | N106: 0.0002551596248 | O106: 1088.371
A107: 104 | B107: Reino Unido (Irlanda do Norte) pós-2020 | C107: 1299.918 | D107: 0.0001839661282 | F107: 104 | G107: Síria, República Árabe da | H107: 949.834 | I107: 9.313546567e-05 | K107: 104 | L107: Omã | M107: 4285.638 | N107: 0.0002482343217 | O107: 3325.7248
A108: 105 | B108: Albânia | C108: 1266.1722 | D108: 0.0001791903776 | F108: 105 | G108: Coreia, República da | H108: 937.599 | I108: 9.193576928e-05 | K108: 105 | L108: Singapura | M108: 4020.9472 | N108: 0.0002329028025 | O108: 1891.5608
A109: 106 | B109: Costa Rica | C109: 1199.7232 | D109: 0.0001697864265 | F109: 106 | G109: El Salvador | H109: 727.8254 | I109: 7.136653095e-05 | K109: 106 | L109: Dominicana, República | M109: 3933.7284 | N109: 0.0002278508827 | O109: -515.742
A110: 107 | B110: Indonésia | C110: 1137.3976 | D110: 0.0001609660245 | F110: 107 | G110: Turquemenistão | H110: 720.6558 | I110: 7.066351965e-05 | K110: 107 | L110: Myanmar | M110: 3786.5344 | N110: 0.0002193250569 | O110: -2886.1156
A111: 108 | B111: Islândia | C111: 1133.5366 | D111: 0.0001604196107 | F111: 108 | G111: Chade | H111: 675.9004 | I111: 6.62750528e-05 | K111: 108 | L111: Quénia | M111: 3706.4946 | N111: 0.0002146889618 | O111: -2805.5498
A112: 109 | B112: Congo, República Democrática do | C112: 1102.9464 | D112: 0.0001560904448 | F112: 109 | G112: Timor-Leste | H112: 614.232 | I112: 6.022819077e-05 | K112: 109 | L112: Croácia | M112: 3585.6358 | N112: 0.0002076885333 | O112: -41.6674
A113: 110 | B113: Togo | C113: 886.836 | D113: 0.0001255062129 | F113: 110 | G113: Senegal | H113: 563.3582 | I113: 5.523978747e-05 | K113: 110 | L113: Nicarágua | M113: 3581.558 | N113: 0.0002074523375 | O113: -2747.4548
A114: 111 | B114: Panamá | C114: 853.2114 | D114: 0.0001207476147 | F114: 111 | G114: Argélia | H114: 547.1324 | I114: 5.364877532e-05 | K114: 111 | L114: Burquina Faso | M114: 3574.6308 | N114: 0.0002070510976 | O114: 123.1568
A115: 112 | B115: Equador | C115: 827.4356 | D115: 0.0001170997891 | F115: 112 | G115: Líbano | H115: 532.1362 | I115: 5.217833094e-05 | K115: 112 | L115: Sri Lanca | M115: 3466.8512 | N115: 0.0002008082475 | O115: -2680.7736
A116: 113 | B116: Ruanda | C116: 825.9096 | D116: 0.0001168838275 | F116: 113 | G116: Omã | H116: 479.9566 | I116: 4.706188812e-05 | K116: 113 | L116: Benim | M116: 3389.9546 | N116: 0.0001963542139 | O116: -245.1214
A117: 114 | B117: Honduras | C117: 813.7022 | D117: 0.00011515622 | F117: 114 | G117: Emirados Árabes Unidos | H117: 455.3414 | I117: 4.464825783e-05 | K117: 114 | L117: Malavi | M117: 3260.7796 | N117: 0.0001888720914 | O117: -3247.5728
A118: 115 | B118: Bermudas | C118: 793.1712 | D118: 0.0001122506455 | F118: 115 | G118: Belarus | H118: 370.9342 | I118: 3.637175491e-05 | K118: 115 | L118: Timor-Leste | M118: 3086.1518 | N118: 0.0001787572349 | O118: 1857.6878
A119: 116 | B119: Etiópia | C119: 744.4088 | D119: 0.0001053497257 | F119: 116 | G119: Guiné-Bissau | H119: 361.4462 | I119: 3.544141413e-05 | K119: 116 | L119: Líbano | M119: 3051.887 | N119: 0.0001767725364 | O119: 1987.6146
A120: 117 | B120: Tunísia | C120: 725.611 | D120: 0.000102689436 | F120: 117 | G120: Usbequistão | H120: 308.2694 | I120: 3.022719141e-05 | K120: 117 | L120: Belarus | M120: 2826.8628 | N120: 0.0001637386008 | O120: 2084.9944
A121: 118 | B121: Burundi | C121: 677.0954 | D121: 9.582344359e-05 | F121: 118 | G121: Guiné | H121: 302.1342 | I121: 2.962560765e-05 | K121: 118 | L121: Guiné | M121: 2567.7766 | N121: 0.0001487317134 | O121: 1963.5082
A122: 119 | B122: Iémen | C122: 670.7886 | D122: 9.493089684e-05 | F122: 119 | G122: Geórgia | H122: 294.5626 | I122: 2.888317845e-05 | K122: 119 | L122: Serra Leoa | M122: 2499.2974 | N122: 0.0001447652356 | O122: -1496.3846
A123: 120 | B123: Paraguai | C123: 644.6266 | D123: 9.122841573e-05 | F123: 120 | G123: Bolívia | H123: 281.6492 | I123: 2.761696191e-05 | K123: 120 | L123: Irão, República Islâmica do | M123: 2440.1832 | N123: 0.0001413412009 | O123: 2029.2332
A124: 121 | B124: Namíbia | C124: 633.8792 | D124: 8.970742935e-05 | F124: 121 | G124: Bangladesh | H124: 280.7044 | I124: 2.752432005e-05 | K124: 121 | L124: Congo | M124: 2383.877 | N124: 0.0001380798122 | O124: 1985.2674
A125: 122 | B125: Azerbaijão | C125: 594.9756 | D125: 8.420174002e-05 | F125: 122 | G125: Irão, República Islâmica do | H125: 205.475 | I125: 2.01477414e-05 | K125: 122 | L125: Panamá | M125: 2366.8806 | N125: 0.0001370953404 | O125: -660.4578
A126: 123 | B126: Arménia | C126: 559.6906 | D126: 7.920815979e-05 | F126: 123 | G126: Congo | H126: 199.3048 | I126: 1.954272574e-05 | K126: 123 | L126: Congo, República Democrática do | M126: 2329.6366 | N126: 0.0001349380795 | O126: -123.7438
A127: 124 | B127: Cazaquistão | C127: 531.8816 | D127: 7.527259304e-05 | F127: 124 | G127: Zâmbia | H127: 199.3012 | I127: 1.954237274e-05 | K127: 124 | L127: Venezuela | M127: 2213.7304 | N127: 0.0001282245174 | O127: 1903.808
A128: 125 | B128: Aruba | C128: 522.985 | D128: 7.401353435e-05 | F128: 125 | G128: Nigéria | H128: 197.6194 | I128: 1.937746474e-05 | K128: 125 | L128: Seychelles | M128: 2103.9052 | N128: 0.0001218631812 | O128: 2103.9052
A129: 126 | B129: Serra Leoa | C129: 501.4564 | D129: 7.096677818e-05 | F129: 126 | G129: Islândia | H129: 194.2478 | I129: 1.90468643e-05 | K129: 126 | L129: Gabão | M129: 2079.9016 | N129: 0.0001204728358 | O129: 2079.4016
A130: 127 | B130: Guatemala | C130: 491.8628 | D130: 6.960907912e-05 | F130: 127 | G130: Venezuela | H130: 154.9612 | I130: 1.519463772e-05 | K130: 127 | L130: Togo | M130: 2010.1374 | N130: 0.0001164319278 | O130: -236.4654
A131: 128 | B131: Uganda | C131: 485.556 | D131: 6.871653237e-05 | F131: 128 | G131: Cabo Verde | H131: 126.7382 | I131: 1.242724652e-05 | K131: 128 | L131: Sudão | M131: 1881.5594 | N131: 0.0001089843849 | O131: 1848.4942
A132: 129 | B132: São Bartolomeu | C132: 472.0258 | D132: 6.680172043e-05 | F132: 129 | G132: Azerbaijão | H132: 124.8946 | I132: 1.224647331e-05 | K132: 129 | L132: Bangladesh | M132: 1839.639 | N132: 0.0001065562559 | O132: 1278.2302
A133: 130 | B133: Mauritânia | C133: 470.2498 | D133: 6.655037855e-05 | F133: 130 | G133: Albânia | H133: 104.056 | I133: 1.020315552e-05 | K133: 130 | L133: Guiné Equatorial | M133: 1818.2016 | N133: 0.0001053145508 | O133: 1818.2016
A134: 131 | B134: Barém | C134: 469.46 | D134: 6.6438605e-05 | F134: 131 | G134: Namíbia | H134: 69.6464 | I134: 6.829140562e-06 | K134: 131 | L134: Madagáscar | M134: 1665.147 | N134: 9.644926522e-05 | O134: -1405.8322
A135: 132 | B135: Gâmbia | C135: 455.249 | D135: 6.442744533e-05 | F135: 132 | G135: Tajiquistão | H135: 59.4122 | I135: 5.825631546e-06 | K135: 132 | L135: Geórgia | M135: 1638.7776 | N135: 9.4921887e-05 | O135: 1049.6524
A136: 133 | B136: Quénia | C136: 450.4724 | D136: 6.375145453e-05 | F136: 133 | G136: Iémen | H136: 45.76 | I136: 4.486972365e-06 | K136: 133 | L136: Laos, República Democrática Popular do | M136: 1584.7624 | N136: 9.179319845e-05 | O136: -1555.988
A137: 134 | B137: Myanmar | C137: 450.2094 | D137: 6.371423442e-05 | F137: 134 | G137: Libéria | H137: 38.8276 | I137: 3.807219585e-06 | K137: 134 | L137: Catar | M137: 1531.2716 | N137: 8.869488439e-05 | O137: 1499.1872
A138: 135 | B138: Kosovo | C138: 418.4652 | D138: 5.922175292e-05 | F138: 135 | G138: Aruba | H138: 38.029 | I138: 3.728913288e-06 | K138: 135 | L138: Albânia | M138: 1370.2282 | N138: 7.936686855e-05 | O138: 1162.1162
A139: 136 | B139: Nicarágua | C139: 417.0516 | D139: 5.902169837e-05 | F139: 136 | G139: São Marino | H139: 32.7702 | I139: 3.213264462e-06 | K139: 136 | L139: Islândia | M139: 1327.7844 | N139: 7.690842295e-05 | O139: 939.2888
A140: 137 | B140: Camboja | C140: 401.4318 | D140: 5.681116345e-05 | F140: 137 | G140: Botswana | H140: 29.9908 | I140: 2.940731879e-06 | K140: 137 | L140: El Salvador | M140: 1020.3732 | N140: 5.910243683e-05 | O140: -435.2776
A141: 138 | B141: Sri Lanca | C141: 393.0388 | D141: 5.56233749e-05 | F141: 138 | G141: Jordânia | H141: 29.4906 | I141: 2.891685035e-06 | K141: 138 | L141: Ruanda | M141: 826.0866 | N141: 4.784889597e-05 | O141: 825.7326
A142: 139 | B142: Bolívia | C142: 391.1324 | D142: 5.535357863e-05 | F142: 139 | G142: Bósnia-Herzegovina | H142: 27.8982 | I142: 2.735543104e-06 | K142: 139 | L142: Bermudas | M142: 793.8604 | N142: 4.5982278e-05 | O142: 792.482
A143: 140 | B143: Tanzânia, República Unida da | C143: 370.967 | D143: 5.249974434e-05 | F143: 140 | G143: Papuásia-Nova Guiné | H143: 25.837 | I143: 2.533433238e-06 | K143: 140 | L143: Turquemenistão | M143: 732.4956 | N143: 4.242788318e-05 | O143: -708.816
A144: 141 | B144: São Martinho (parte holandesa) | C144: 349.244 | D144: 4.942547643e-05 | F144: 141 | G144: Arábia Saudita | H144: 23.1054 | I144: 2.265587659e-06 | K144: 141 | L144: Azerbaijão | M144: 719.8702 | N144: 4.169659006e-05 | O144: 470.081
A145: 142 | B145: Comores | C145: 311.607 | D145: 4.409903802e-05 | F145: 142 | G145: Quirguizistão | H145: 17.4752 | I145: 1.713521404e-06 | K145: 142 | L145: Iémen | M145: 716.5486 | N145: 4.15041951e-05 | O145: 625.0286
A146: 143 | B146: Libéria | C146: 294.774 | D146: 4.171680942e-05 | F146: 143 | G146: Sudão | H146: 16.5326 | I146: 1.621095265e-06 | K146: 143 | L146: Namíbia | M146: 703.5256 | N146: 4.074987204e-05 | O146: 564.2328
A147: 144 | B147: Somália | C147: 292.8146 | D147: 4.143951252e-05 | F147: 144 | G147: Macau | H147: 16.4972 | I147: 1.617624137e-06 | K147: 144 | L147: Burundi | M147: 677.2094 | N147: 3.92255753e-05 | O147: 676.9814
A148: 145 | B148: El Salvador | C148: 292.5478 | D148: 4.140175463e-05 | F148: 145 | G148: Catar | H148: 16.0422 | I148: 1.573009355e-06 | K148: 145 | L148: Chade | M148: 675.9044 | N148: 3.91499866e-05 | O148: -675.8964
A149: 146 | B149: Jamaica | C149: 276.7996 | D149: 3.917304837e-05 | F149: 146 | G149: Arménia | H149: 15.34 | I149: 1.504155509e-06 | K149: 146 | L149: Bolívia | M149: 672.7816 | N149: 3.896910661e-05 | O149: 109.4832
A150: 147 | B150: Macedónia, Antiga República jugoslava da | C150: 272.7114 | D150: 3.859448086e-05 | F150: 147 | G150: Curaçau | H150: 12.9632 | I150: 1.271099654e-06 | K150: 147 | L150: Arménia | M150: 575.0306 | N150: 3.330713676e-05 | O150: 544.3506
A151: 148 | B151: Paquistão | C151: 266.8506 | D151: 3.776505263e-05 | F151: 148 | G151: Iraque | H151: 12.264 | I151: 1.202539971e-06 | K151: 148 | L151: Aruba | M151: 561.014 | N151: 3.249526203e-05 | O151: 484.956
A152: 149 | B152: Antígua e Barbuda | C152: 264.4064 | D152: 3.741914619e-05 | F152: 149 | G152: Jamaica | H152: 11.1226 | I152: 1.090620604e-06 | K152: 149 | L152: Cazaquistão | M152: 537.7376 | N152: 3.114703771e-05 | O152: 526.0256
A153: 150 | B153: Argentina | C153: 237.3284 | D153: 3.358703153e-05 | F153: 150 | G153: Kosovo | H153: 8.3722 | I153: 8.209316004e-07 | K153: 150 | L153: Barém | M153: 473.8044 | N153: 2.744387507e-05 | O153: 465.1156
A154: 151 | B154: Curaçau | C154: 224.0074 | D154: 3.170182585e-05 | F154: 151 | G154: Líbia, Jamahira Árabe da | H154: 5.95 | I154: 5.834240728e-07 | K154: 151 | L154: São Bartolomeu | M154: 472.3088 | N154: 2.735724637e-05 | O154: 471.7428
A155: 152 | B155: Moldava, República de | C155: 201.388 | D155: 2.850069821e-05 | F155: 152 | G155: Cazaquistão | H155: 5.856 | I155: 5.74206953e-07 | K155: 152 | L155: Mauritânia | M155: 471.8238 | N155: 2.732915402e-05 | O155: 468.6758
A156: 153 | B156: Haiti | C156: 195.7344 | D156: 2.77005932e-05 | F156: 153 | G156: Andorra | H156: 4.7264 | I156: 4.634446282e-07 | K156: 153 | L156: Gâmbia | M156: 455.249 | N156: 2.636910227e-05 | O156: 455.249
A157: 154 | B157: Ceuta e Melilha | C157: 191.5534 | D157: 2.710889251e-05 | F157: 154 | G157: São Cristovão e Nevis | H157: 4.4378 | I157: 4.351461093e-07 | K157: 154 | L157: Kosovo | M157: 426.8374 | N157: 2.472343499e-05 | O157: 410.093
A158: 155 | B158: Suriname | C158: 156.0968 | D158: 2.209102722e-05 | F158: 155 | G158: Afeganistão | H158: 4.3662 | I158: 4.281254095e-07 | K158: 155 | L158: São Martinho (parte holandesa) | M158: 349.244 | N158: 2.022904115e-05 | O158: 349.244
A159: 156 | B159: Trindade e Tobago | C159: 142.2682 | D159: 2.013398531e-05 | F159: 156 | G159: Barém | H159: 4.3444 | I159: 4.259878221e-07 | K159: 156 | L159: Usbequistão | M159: 348.6042 | N159: 2.019198241e-05 | O159: -267.9346
A160: 157 | B160: Nova Caledónia | C160: 140.1192 | D160: 1.982985596e-05 | F160: 157 | G160: Nepal | H160: 2.4222 | I160: 2.375075276e-07 | K160: 157 | L160: Zâmbia | M160: 336.5272 | N160: 1.949245392e-05 | O160: -62.0752
A161: 158 | B161: Zâmbia | C161: 137.226 | D161: 1.942040644e-05 | F161: 158 | G161: Lesoto | H161: 1.7136 | I161: 1.68026133e-07 | K161: 158 | L161: Libéria | M161: 333.6016 | N161: 1.932299622e-05 | O161: 255.9464
A162: 159 | B162: Polinésia Francesa | C162: 133.1554 | D162: 1.884432971e-05 | F162: 159 | G162: Liechtenstein | H162: 1.6922 | I162: 1.659277674e-07 | K162: 159 | L162: Comores | M162: 311.607 | N162: 1.804901681e-05 | O162: 311.607
A163: 160 | B163: Madagáscar | C163: 129.6574 | D163: 1.834928808e-05 | F163: 160 | G163: Mauritânia | H163: 1.574 | I163: 1.543377295e-07 | K163: 160 | L163: Somália | M163: 292.8146 | N163: 1.696051641e-05 | O163: 292.8146
A164: 161 | B164: Maldivas | C164: 127.1794 | D164: 1.799859822e-05 | F164: 161 | G164: Fiji, Ilhas | H164: 1.3646 | I164: 1.338051243e-07 | K164: 161 | L164: Jamaica | M164: 287.9222 | N164: 1.667713699e-05 | O164: 265.677
A165: 162 | B165: Niger | C165: 113.05 | D165: 1.59989867e-05 | F165: 162 | G165: Bermudas | H165: 0.6892 | I165: 6.757913798e-08 | K165: 162 | L165: Antígua e Barbuda | M165: 264.426 | N165: 1.531618134e-05 | O165: 264.3868
A166: 163 | B166: Liechtenstein | C166: 106.2456 | D166: 1.503601894e-05 | F166: 163 | G166: Território Palestiniano Ocupado | H166: 0.4852 | I166: 4.757602691e-08 | K166: 163 | L166: Curaçau | M166: 236.9706 | N166: 1.372589942e-05 | O166: 211.0442
A167: 164 | B167: Centro-Africana, República | C167: 83.0308 | D167: 1.17506295e-05 | F167: 164 | G167: Montenegro | H167: 0.3086 | I167: 3.025960821e-08 | K167: 164 | L167: Haiti | M167: 195.7408 | N167: 1.133777158e-05 | O167: 195.728
A168: 165 | B168: Jibuti | C168: 77.3086 | D168: 1.094081613e-05 | F168: 165 | G168: São Bartolomeu | H168: 0.283 | I168: 2.774941388e-08 | K168: 165 | L168: Ceuta e Melilha | M168: 191.5534 | N168: 1.109522744e-05 | O168: 191.5534
A169: 166 | B169: Nepal | C169: 76.6542 | D169: 1.084820457e-05 | F169: 166 | G169: Gabão | H169: 0.25 | I169: 2.45136165e-08 | K169: 166 | L169: Trindade e Tobago | M169: 142.2786 | N169: 8.241114103e-06 | O169: 142.2578
A170: 167 | B170: Zimbabwe | C170: 63.2826 | D170: 8.955837909e-06 | F170: 167 | G170: Ruanda | H170: 0.177 | I170: 1.735564048e-08 | K170: 167 | L170: Nova Caledónia | M170: 140.1192 | N170: 8.116036532e-06 | O170: 140.1192
A171: 168 | B171: Caimão, Ilhas | C171: 51.4562 | D171: 7.282150016e-06 | F171: 168 | G171: Barbados | H171: 0.1378 | I171: 1.351190542e-08 | K171: 168 | L171: Polinésia Francesa | M171: 133.1554 | N171: 7.712676712e-06 | O171: 133.1554
A172: 169 | B172: Bósnia-Herzegovina | C172: 50.6168 | D172: 7.163357009e-06 | F172: 169 | G172: Niger | H172: 0.1252 | I172: 1.227641914e-08 | K172: 169 | L172: Maldivas | M172: 127.183 | N172: 7.366741133e-06 | O172: 127.1758
A173: 170 | B173: Montenegro | C173: 46.101 | D173: 6.524274973e-06 | F173: 170 | G173: Burundi | H173: 0.114 | I173: 1.117820913e-08 | K173: 170 | L173: Niger | M173: 113.1752 | N173: 6.55537612e-06 | O173: 112.9248
A174: 171 | B174: Bahamas | C174: 42.9652 | D174: 6.080492377e-06 | F174: 171 | G174: Oceano Indico, Território Britânico do | H174: 0.098 | I174: 9.609337669e-09 | K174: 171 | L174: Liechtenstein | M174: 107.9378 | N174: 6.252013485e-06 | O174: 104.5534
A175: 172 | B175: Usbequistão | C175: 40.3348 | D175: 5.708234663e-06 | F175: 172 | G175: São Vicente e Granadinas | H175: 0.0416 | I175: 4.079065786e-09 | K175: 172 | L175: Centro-Africana, República | M175: 83.0308 | N175: 4.809340947e-06 | O175: 83.0308
A176: 173 | B176: Mongólia | C176: 30.8452 | D176: 4.365253821e-06 | F176: 173 | G176: Antígua e Barbuda | H176: 0.0196 | I176: 1.921867534e-09 | K176: 173 | L176: Nepal | M176: 79.0764 | N176: 4.580292716e-06 | O176: 74.232
A177: 174 | B177: Afeganistão | C177: 18.9718 | D177: 2.684914426e-06 | F177: 174 | G177: Santa Sé (Cidade Estado do Vaticano) | H177: 0.018 | I177: 1.764980388e-09 | K177: 174 | L177: Bósnia-Herzegovina | M177: 78.515 | N177: 4.547775096e-06 | O177: 22.7186
A178: 175 | B178: Guiana | C178: 18.2434 | D178: 2.581830287e-06 | F178: 175 | G178: Mongólia | H178: 0.0112 | I178: 1.098210019e-09 | K178: 175 | L178: Jibuti | M178: 77.3086 | N178: 4.477897546e-06 | O178: 77.3086
A179: 176 | B179: Turcas e Caicos, Ilhas | C179: 18.0666 | D179: 2.556809315e-06 | F179: 176 | G179: Trindade e Tobago | H179: 0.0104 | I179: 1.019766447e-09 | K179: 176 | L179: Tajiquistão | M179: 59.4122 | N179: 3.441295594e-06 | O179: -59.4122
A180: 177 | B180: Laos, República Democrática Popular do | C180: 14.3872 | D180: 2.036095722e-06 | F180: 177 | G180: Haiti | H180: 0.0064 | I180: 6.275485825e-10 | K180: 177 | L180: Caimão, Ilhas | M180: 51.4562 | N180: 2.980465197e-06 | O180: 51.4562
A181: 178 | B181: Turquemenistão | C181: 11.8398 | D181: 1.675584279e-06 | F181: 178 | G181: Maldivas | H181: 0.0036 | I181: 3.529960776e-10 | K181: 178 | L181: Montenegro | M181: 46.4096 | N181: 2.68815415e-06 | O181: 45.7924
A182: 179 | B182: Barbados | C182: 11.7888 | D182: 1.668366691e-06 | F182: 179 | G182: Anguila | H182: 0 | I182: 0 | K182: 179 | L182: Bahamas | M182: 42.9652 | N182: 2.48864633e-06 | O182: 42.9652
A183: 180 | B183: Virgens Britânicas, Ilhas | C183: 9.9272 | D183: 1.404910577e-06 | F183: 180 | G183: Antárctica | H183: 0 | I183: 0 | K183: 180 | L183: São Marino | M183: 32.7902 | N183: 1.899286187e-06 | O183: -32.7502
A184: 181 | B184: Fiji, Ilhas | C184: 8.1268 | D184: 1.150115569e-06 | F184: 181 | G184: Antilhas Holandesas | H184: 0 | I184: 0 | K184: 181 | L184: Mongólia | M184: 30.8564 | N184: 1.787275902e-06 | O184: 30.834
A185: 182 | B185: Santa Lúcia | C185: 7.138 | D185: 1.010179275e-06 | F185: 182 | G185: Bahamas | H185: 0 | I185: 0 | K185: 182 | L185: Botswana | M185: 30.0852 | N185: 1.742606169e-06 | O185: -29.8964
A186: 183 | B186: Brunei Darussalam | C186: 6.98 | D186: 9.878189044e-07 | F186: 183 | G186: Bonaire, Santo Eustáquio e Saba | H186: 0 | I186: 0 | K186: 183 | L186: Papuásia-Nova Guiné | M186: 28.7226 | N186: 1.663681144e-06 | O186: -22.9514
A187: 184 | B187: Malavi | C187: 6.6034 | D187: 9.345219704e-07 | F187: 184 | G187: Bouvet, Ilha | H187: 0 | I187: 0 | K187: 184 | L187: Afeganistão | M187: 23.338 | N187: 1.351792335e-06 | O187: 14.6056
A188: 185 | B188: Guam | C188: 6.5774 | D188: 9.308424158e-07 | F188: 185 | G188: Brunei Darussalam | H188: 0 | I188: 0 | K188: 185 | L188: Quirguizistão | M188: 22.1318 | N188: 1.281926369e-06 | O188: -12.8186
A189: 186 | B189: São Vicente e Granadinas | C189: 5.6654 | D189: 8.017749601e-07 | F189: 186 | G189: Butão | H189: 0 | I189: 0 | K189: 186 | L189: Turcas e Caicos, Ilhas | M189: 18.0666 | N189: 1.04646034e-06 | O189: 18.0666
A190: 187 | B190: Quirguizistão | C190: 4.6566 | D190: 6.590082393e-07 | F190: 187 | G190: Caimão, Ilhas | H190: 0 | I190: 0 | K190: 187 | L190: Barbados | M190: 11.9266 | N190: 6.908169708e-07 | O190: 11.651
A191: 188 | B191: Menores distantes dos Estados Unidos, lhas | C191: 4.5542 | D191: 6.445164548e-07 | F191: 188 | G191: Centro-Africana, República | H191: 0 | I191: 0 | K191: 188 | L191: Virgens Britânicas, Ilhas | M191: 9.9272 | N191: 5.750069788e-07 | O191: 9.9272
A192: 189 | B192: Sudão do Sul | C192: 3.771 | D192: 5.336769468e-07 | F192: 189 | G192: Ceuta | H192: 0 | I192: 0 | K192: 189 | L192: Fiji, Ilhas | M192: 9.4914 | N192: 5.497644087e-07 | O192: 6.7622
A193: 190 | B193: Bonaire, Santo Eustáquio e Saba | C193: 3.1276 | D193: 4.426221211e-07 | F193: 190 | G193: Ceuta e Melilha | H193: 0 | I193: 0 | K193: 190 | L193: Santa Lúcia | M193: 7.138 | N193: 4.134498967e-07 | O193: 7.138
A194: 191 | B194: Marianas do Norte, Ilhas | C194: 2.9244 | D194: 4.138649863e-07 | F194: 191 | G194: Christmas, Ilha | H194: 0 | I194: 0 | K194: 191 | L194: Brunei Darussalam | M194: 6.98 | N194: 4.042981618e-07 | O194: 6.98
A195: 192 | B195: Papuásia-Nova Guiné | C195: 2.8856 | D195: 4.083739585e-07 | F195: 192 | G195: Cocos (Keeling), Ilhas | H195: 0 | I195: 0 | K195: 192 | L195: Guam | M195: 6.5774 | N195: 3.809786145e-07 | O195: 6.5774
A196: 193 | B196: Belize | C196: 2.1806 | D196: 3.086014188e-07 | F196: 193 | G196: Comores | H196: 0 | I196: 0 | K196: 193 | L196: São Vicente e Granadinas | M196: 5.707 | N196: 3.305629813e-07 | O196: 5.6238
A197: 194 | B197: Melilha | C197: 1.3464 | D197: 1.905443228e-07 | F197: 194 | G197: Cook, Ilhas | H197: 0 | I197: 0 | K197: 194 | L197: Menores distantes dos Estados Unidos, lhas | M197: 4.5542 | N197: 2.6379007e-07 | O197: 4.5542
A198: 195 | B198: Granada | C198: 0.6866 | D198: 9.716854725e-08 | F198: 195 | G198: Coreia, República Popular Democrática da | H198: 0 | I198: 0 | K198: 195 | L198: São Cristovão e Nevis | M198: 4.4378 | N198: 2.570479058e-07 | O198: -4.4378
A199: 196 | B199: Virgens dos Estados Unidos, Ilhas | C199: 0.295 | D199: 4.174879324e-08 | F199: 196 | G199: Domínica | H199: 0 | I199: 0 | K199: 196 | L199: Sudão do Sul | M199: 3.771 | N199: 2.184252676e-07 | O199: 3.771
A200: 197 | B200: Botswana | C200: 0.0944 | D200: 1.335961384e-08 | F200: 197 | G200: Eritreia | H200: 0 | I200: 0 | K200: 197 | L200: Bonaire, Santo Eustáquio e Saba | M200: 3.1276 | N200: 1.81158013e-07 | O200: 3.1276
... 58 more rows

Sheet 2A
A1: Parceiros comerciais de Portugal - União Europeia vs. Países Terceiros (média 2018-2022 em milhões de euros) produtos agrícolas e agroalimentares, do mar e da floresta
A2: Exportações | F2: Importações | K2: Trocas comerciais (total e saldo)
A3: P | B3: Grupo de Países | C3: média quinquénio | D3: % do Total | F3: P | G3: Grupo de Países | H3: média quinquénio | I3: % do Total | K3: P | L3: Grupo de Países | M3: média quinquénio | N3: % do Total | O3: Saldo (exp-imp)
A4: 1 | B4: União Europeia | C4: 8687.977909 | D4: 0.6704537422 | F4: 1 | G4: União Europeia | H4: 11668.95063 | I4: 0.7803380776 | K4: 1 | L4: União Europeia | M4: 20356.92854 | N4: 0.729323573 | O4: -2980.972719
A5: 2 | B5: Países Terceiros | C5: 4270.960171 | D5: 0.329591219 | F5: 2 | G5: Países Terceiros | H5: 3284.761055 | I5: 0.2196619224 | K5: 2 | L5: Países Terceiros | M5: 7555.721226 | N5: 0.2706973005 | O5: 986.1991156
B6: Outros | C6: 0 | D6: -4.496115282e-05 | G6: Outros | H6: 0 | I6: 0 | L6: Outros | M6: 0 | N6: -2.087350238e-05 | O6: 0
B7: Total | C7: 12958.35546 | D7: 1 | G7: Total | H7: 14953.71168 | I7: 1 | L7: Total | M7: 27912.06714 | N7: 1 | O7: -1995.356226 | R7: -0.5826226
F27: valores em milhões de euros
A28: Nota: Outros = Países não determinados, abastecimentos de bordo, etc.
A29: Fonte: GPP a partir de dados INE/Comércio Internacional (2021 provisórios; 2022 preliminares) | M29: 2023-03-23

Sheet 3
A1: Principais produtos agrícolas e agroalimentares, do mar e da floresta transacionados entre Portugal e República Checa em 2018-2022 (NC a 2 e 4 dígitos) em milhões de euros
AC4: P | AE4: Cód.NC | AF4: Descritivo | AG4: Média export quinquénio | AH4: % do total | AI4: % acumulada | AN4: P | AO4: NC | AP4: Exportações | AQ4: 2018 | AR4: 2019 | AS4: 2020 | AT4: 2021 | AU4: 2022 | AV4: média quinquénio
AC5: 1 | AD5: º | AE5: 07 | AF5: Produtos hortícolas | AG5: 7.0596928 | AH5: 0.2424273159 | AN5: 1º | AO5: 07 | AP5: Produtos hortícolas | AQ5: 6.307967 | AR5: 7.381474 | AS5: 7.925697 | AT5: 7.625342 | AU5: 6.057984 | AV5: 7.0596928
AC6: 2 | AD6: º | AE6: 48 | AF6: Papel e cartão | AG6: 4.1185926 | AH6: 0.1414309911 | AN6: 2º | AO6: 48 | AP6: Papel e cartão | AQ6: 3.725834 | AR6: 3.958661 | AS6: 4.556439 | AT6: 3.34127 | AU6: 5.010759 | AV6: 4.1185926
AC7: 3 | AD7: º | AE7: 45 | AF7: Cortiça e suas obras | AG7: 4.006924 | AH7: 0.1375963314 | AI7: 0.5214546385 | AN7: 3º | AO7: 45 | AP7: Cortiça e suas obras | AQ7: 4.345715 | AR7: 3.861484 | AS7: 3.660539 | AT7: 4.306679 | AU7: 3.860203 | AV7: 4.006924
AC8: 4 | AD8: º | AE8: 22 | AF8: Bebidas, líquidos alcoólicos e vinagres | AG8: 2.3770148 | AH8: 0.08162583475 | AO8: - | AP8: Outros | AQ8: 9.854149 | AR8: 11.216712 | AS8: 13.233315 | AT8: 15.93815 | AU8: 19.435945 | AV8: 13.9356542
AC9: 5 | AD9: º | AE9: 21 | AF9: Preparações alimentícias diversas | AG9: 2.1761002 | AH9: 0.07472649953 | AP9: Total | AQ9: 24.233665 | AR9: 26.418331 | AS9: 29.37599 | AT9: 31.211441 | AU9: 34.364891 | AV9: 29.1208636
AC10: 6 | AD10: º | AE10: 24 | AF10: Tabaco | AG10: 1.3659712 | AH10: 0.04690696055
AC11: 7 | AD11: º | AE11: 20 | AF11: Preparações de produtos vegetais | AG11: 1.2355574 | AH11: 0.04242859748
AC12: 8 | AD12: º | AE12: 23a | AF12: Resíduos indústrias alimentares; alimentos p/ animais (exc. NC 230120) (a) | AG12: 1.1928754 | AH12: 0.04096291293
AC13: 9 | AD13: º | AE13: 09 | AF13: Café, chá, mate e especiarias | AG13: 1.1865146 | AH13: 0.04074448534
AC14: 10 | AD14: º | AE14: 44 | AF14: Madeira e suas obras | AG14: 1.1510678 | AH14: 0.03952725495 | AI14: 0.888377184
AE15: - | AF15: Outros | AG15: 3.2505528 | AH15: 0.111622816
AE16: Total | AG16: 29.1208636 | AH16: 1
AC38: P | AE38: Cód.NC | AF38: Descritivo | AG38: Média import quinquénio | AH38: % do total | AI38: % acumulada | AN38: P | AO38: NC | AP38: Importações | AQ38: 2018 | AR38: 2019 | AS38: 2020 | AT38: 2021 | AU38: 2022 | AV38: média quinquénio
AC39: 1 | AD39: º | AE39: 48 | AF39: Papel e cartão | AG39: 11.8922734 | AH39: 0.3307854133 | AN39: 1º | AO39: 48 | AP39: Papel e cartão | AQ39: 6.782011 | AR39: 10.84898 | AS39: 10.19426 | AT39: 12.032972 | AU39: 19.603144 | AV39: 11.8922734
AC40: 2 | AD40: º | AE40: 19a | AF40: Preparações à base de cereais (exc. NC 19022010) (a) | AG40: 7.585417 | AH40: 0.2109895403 | AN40: 2º | AO40: 19a | AP40: Preparações à base de cereais (exc. NC 19022010) (a) | AQ40: 8.028517 | AR40: 8.539254 | AS40: 7.099447 | AT40: 7.07287 | AU40: 7.186997 | AV40: 7.585417
AC41: 3 | AD41: º | AE41: 24 | AF41: Tabaco | AG41: 4.8771332 | AH41: 0.1356582099 | AI41: 0.6774331635 | AN41: 3º | AO41: 24 | AP41: Tabaco | AQ41: 4.72983 | AR41: 5.413002 | AS41: 6.043407 | AT41: 3.566583 | AU41: 4.632844 | AV41: 4.8771332
AC42: 4 | AD42: º | AE42: 04 | AF42: Leite e laticínios; ovos; mel, etc. | AG42: 2.3263104 | AH42: 0.0647066815 | AO42: - | AP42: Outros | AQ42: 9.919931 | AR42: 9.886211 | AS42: 9.579179 | AT42: 11.731613 | AU42: 16.867077 | AV42: 11.5968022
AC43: 5 | AD43: º | AE43: 44 | AF43: Madeira e suas obras | AG43: 1.7365636 | AH43: 0.04830278357 | AP43: Total | AQ43: 29.460289 | AR43: 34.687447 | AS43: 32.916293 | AT43: 34.404038 | AU43: 48.290062 | AV43: 35.9516258
AC44: 6 | AD44: º | AE44: 18 | AF44: Cacau e suas preparações | AG44: 1.2525224 | AH44: 0.03483910316
AC45: 7 | AD45: º | AE45: 23a | AF45: Resíduos indústrias alimentares; alimentos p/ animais (exc. NC 230120) (a) | AG45: 1.1003834 | AH45: 0.03060733348
AC46: 8 | AD46: º | AE46: 21 | AF46: Preparações alimentícias diversas | AG46: 1.0664912 | AH46: 0.02966461673
AC47: 9 | AD47: º | AE47: 17 | AF47: Açúcares e produtos de confeitaria | AG47: 1.0268444 | AH47: 0.02856183489
AC48: 10 | AD48: º | AE48: 43 | AF48: Peles com pelo em bruto (NC 4301) | AG48: 1.025992 | AH48: 0.02853812525 | AI48: 0.9426536421
AE49: - | AF49: Outros | AG49: 2.0616948 | AH49: 0.05734635789
AE50: Total | AG50: 35.9516258 | AH50: 1
AC62: DESAGREGAÇÃO A 4 DÍGITOS | AN62: DESAGREGAÇÃO A 4 DÍGITOS
AC64: P | AE64: Cód.NC | AF64: Descritivo | AG64: Média export quinquénio | AH64: % do total | AI64: % acumulada | AN64: P | AO64: NC | AP64: Exportações | AQ64: 2018 | AR64: 2019 | AS64: 2020 | AT64: 2021 | AU64: 2022 | AV64: média quinquénio
AC65: 1 | AD65: º | AE65: 0706 | AF65: Cenouras, nabos, beterrabas, etc., frescos ou refrigerados | AG65: 3.9103396 | AH65: 0.1342796578 | AN65: 1º | AO65: 0706 | AP65: Cenouras, nabos, beterrabas, etc., frescos ou refrigerados | AQ65: 4.106332 | AR65: 4.650421 | AS65: 3.621508 | AT65: 4.132917 | AU65: 3.04052 | AV65: 3.9103396
AC66: 2 | AD66: º | AE66: 4504 | AF66: Cortiça aglomerada e suas obras | AG66: 3.6004156 | AH66: 0.123636979 | AN66: 2º | AO66: 4504 | AP66: Cortiça aglomerada e suas obras | AQ66: 3.80257 | AR66: 3.315695 | AS66: 3.357294 | AT66: 3.987621 | AU66: 3.538898 | AV66: 3.6004156
AC67: 3 | AD67: º | AE67: 2204 | AF67: Vinhos de uvas frescas | AG67: 2.276253 | AH67: 0.07816571072 | AI67: 0.3360823475 | AN67: 3º | AO67: 2204 | AP67: Vinhos de uvas frescas | AQ67: 2.642633 | AR67: 2.348482 | AS67: 2.096903 | AT67: 2.04173 | AU67: 2.251517 | AV67: 2.276253
AC68: 4 | AD68: º | AE68: 0709 | AF68: Outros produtos hortícolas, frescos ou refrigerados | AG68: 1.7002136 | AH68: 0.05838472455 | AN68: - | AO68: - | AP68: Outros | AQ68: 13.68213 | AR68: 16.103733 | AS68: 20.300285 | AT68: 21.049173 | AU68: 25.533956 | AV68: 19.3338554
AC69: 5 | AD69: º | AE69: 4802 | AF69: Papel e cartão p/ escrita, etc. | AG69: 1.6367672 | AH69: 0.05620599796 | AP69: Total | AQ69: 24.233665 | AR69: 26.418331 | AS69: 29.37599 | AT69: 31.211441 | AU69: 34.364891 | AV69: 29.1208636
AC70: 6 | AD70: º | AE70: 2309 | AF70: Preparações p/ alimentação animal | AG70: 1.1928754 | AH70: 0.04096291293
AC71: 7 | AD71: º | AE71: 4819 | AF71: Embalagens de papel, cartão etc. | AG71: 1.1871958 | AH71: 0.0407678775
AC72: 8 | AD72: º | AE72: 0901 | AF72: Café | AG72: 1.1755632 | AH72: 0.04036841819
AC73: 9 | AD73: º | AE73: 2402 | AF73: Charutos, cigarrilhas e cigarros | AG73: 1.1188954 | AH73: 0.03842246629
AC74: 10 | AD74: º | AE74: 2101 | AF74: Extratos e preparados de café, chá ou mate | AG74: 1.0216992 | AH74: 0.03508478368 | AI74: 0.6462795286
AE75: - | AF75: Outros | AG75: 10.3006456 | AH75: 0.3537204714
AE76: Total | AG76: 29.1208636 | AH76: 1
AC89: DESAGREGAÇÃO A 4 DÍGITOS | AN89: DESAGREGAÇÃO A 4 DÍGITOS
G91: média 2018-2022 em milhões de euros | I91: Cód. NC | J91: Descritivo | K91: Export | L91: Import | M91: Saldo | AC91: P | AE91: Cód.NC | AF91: Descritivo | AG91: Média import quinquénio | AH91: % do total | AI91: % acumulada | AN91: P | AO91: NC | AP91: Importações | AQ91: 2018 | AR91: 2019 | AS91: 2020 | AT91: 2021 | AU91: 2022 | AV91: média quinquénio
I92: 0706 | J92: Cenouras, nabos, beterrabas, etc., frescos ou refrigerados | K92: 3.9103396 | L92: 0.1291082 | M92: 3.7812314 | AC92: 1 | AD92: º | AE92: 1905 | AF92: Produtos de padaria, pastelaria, etc. | AG92: 6.5094046 | AH92: 0.1810600899 | AN92: 1º | AO92: 1905 | AP92: Produtos de padaria, pastelaria, etc. | AQ92: 7.306425 | AR92: 7.606856 | AS92: 6.347109 | AT92: 5.798868 | AU92: 5.487765 | AV92: 6.5094046
I93: 4504 | J93: Cortiça aglomerada e suas obras | K93: 3.6004156 | L93: 0.0059522 | M93: 3.5944634 | AC93: 2 | AD93: º | AE93: 4804 | AF93: Papel e cartão "kraft", não revestidos | AG93: 6.0500696 | AH93: 0.1682836163 | AN93: 2º | AO93: 4804 | AP93: Papel e cartão "kraft", não revestidos | AQ93: 2.718113 | AR93: 3.51718 | AS93: 6.160257 | AT93: 7.100815 | AU93: 10.753983 | AV93: 6.0500696
I94: 2204 | J94: Vinhos de uvas frescas | K94: 2.276253 | L94: 0.0020986 | M94: 2.2741544 | AC94: 3 | AD94: º | AE94: 2402 | AF94: Charutos, cigarrilhas e cigarros | AG94: 4.1662004 | AH94: 0.1158835048 | AI94: 0.4652272109 | AN94: 3º | AO94: 2402 | AP94: Charutos, cigarrilhas e cigarros | AQ94: 4.08674 | AR94: 4.543716 | AS94: 6.043407 | AT94: 2.58607 | AU94: 3.571069 | AV94: 4.1662004
I95: 0709 | J95: Outros produtos hortícolas, frescos ou refrigerados | K95: 1.7002136 | L95: 0.1518966 | M95: 1.548317 | AC95: 4 | AD95: º | AE95: 0403 | AF95: Leitelho, leite coalhado, iogurte, etc. | AG95: 2.0325766 | AH95: 0.05653643068 | AN95: - | AO95: - | AP95: Outros | AQ95: 15.349011 | AR95: 19.019695 | AS95: 14.36552 | AT95: 18.918285 | AU95: 28.477245 | AV95: 19.2259512
I96: 4802 | J96: Papel e cartão p/ escrita, etc. | K96: 1.6367672 | L96: 0.4238264 | M96: 1.2129408 | AC96: 5 | AD96: º | AE96: 4807 | AF96: Papel e cartão, não revestidos nem impregnados, etc. | AG96: 1.3286576 | AH96: 0.03695681546 | AP96: Total | AQ96: 29.460289 | AR96: 34.687447 | AS96: 32.916293 | AT96: 34.404038 | AU96: 48.290062 | AV96: 35.9516258
I97: 0901 | J97: Café | K97: 1.1755632 | L97: 0.0001094 | M97: 1.1754538 | AC97: 6 | AD97: º | AE97: 1806 | AF97: Chocolate e outras preparações com cacau | AG97: 1.2516428 | AH97: 0.03481463695
I98: 2101 | J98: Extratos e preparados de café, chá ou mate | K98: 1.0216992 | L98: 0.0056268 | M98: 1.0160724 | AC98: 7 | AD98: º | AE98: 2309 | AF98: Preparações p/ alimentação animal | AG98: 1.1003834 | AH98: 0.03060733348
I99: 1604 | J99: Preparações e conservas de peixes, etc. | K99: 0.9205024 | L99: 0.00443 | M99: 0.9160724 | AC99: 8 | AD99: º | AE99: 4301 | AF99: Peles com pêlo em bruto | AG99: 1.025992 | AH99: 0.02853812525
I100: 2002 | J100: Tomates preparados | K100: 0.6100788 | L100: 0.0036318 | M100: 0.606447 | AC100: 9 | AD100: º | AE100: 4819 | AF100: Embalagens de papel, cartão etc. | AG100: 0.9684682 | AH100: 0.02693809191
I101: 0704 | J101: Couves, frescas ou refrigeradas | K101: 0.624786 | L101: 0.0295894 | M101: 0.5951966 | AC101: 10 | AD101: º | AE101: 4806 | AF101: Papel-pergaminho, papel impermeável, etc. | AG101: 0.9506236 | AH101: 0.02644174161 | AI101: 0.7060603863
I102: - | J102: Outros | K102: 10.206016 | L102: 10.346203 | M102: -0.140187 | AE102: - | AF102: Outros | AG102: 10.567607 | AH102: 0.2939396137
I103: 1704 | J103: Produtos de confeitaria sem cacau, incluindo chocolate branco | K103: 8e-06 | L103: 0.6811932 | M103: -0.6811852 | AE103: Total | AG103: 35.9516258 | AH103: 1
I104: 4813 | J104: Papel para cigarros | K104: 0.0633282 | L104: 0.852793 | M104: -0.7894648
I105: 4806 | J105: Papel-pergaminho, papel impermeável, etc. | K105: 0.0005208 | L105: 0.9506236 | M105: -0.9501028
I106: 4301 | J106: Peles com pêlo em bruto | K106: 0 | L106: 1.025992 | M106: -1.025992
I107: 1806 | J107: Chocolate e outras preparações com cacau | K107: 0.0406438 | L107: 1.2516428 | M107: -1.210999
I108: 4807 | J108: Papel e cartão, não revestidos nem impregnados, etc. | K108: 0 | L108: 1.3286576 | M108: -1.3286576
I109: 0403 | J109: Leitelho, leite coalhado, iogurte, etc. | K109: 0 | L109: 2.0325766 | M109: -2.0325766
I110: 2402 | J110: Charutos, cigarrilhas e cigarros | K110: 1.1188954 | L110: 4.1662004 | M110: -3.047305
I111: 4804 | J111: Papel e cartão "kraft", não revestidos | K111: 0.158471 | L111: 6.0500696 | M111: -5.8915986
I112: 1905 | J112: Produtos de padaria, pastelaria, etc. | K112: 0.0563618 | L112: 6.5094046 | M112: -6.4530428
I113: Total | K113: 29.1208636 | L113: 35.9516258 | M113: -6.8307622
A116: Fonte: GPP a partir de dados INE/Comércio Internacional (2021 provisórios; 2022 preliminares) | Y116: 2023-07-31T11:56:40.420

Sheet 3A
A1: Principais produtos agrícolas e agroalimentares transacionados entre Portugal e República Checa em 2018-2022 (NC a 2 e 4 dígitos) em milhões de euros
AC4: P | AE4: Cód.NC | AF4: Descritivo | AG4: Média export quinquénio | AH4: % do total | AI4: % acumulada | AN4: P | AO4: NC | AP4: Exportações | AQ4: 2018 | AR4: 2019 | AS4: 2020 | AT4: 2021 | AU4: 2022 | AV4: média quinquénio
AC5: 1 | AD5: º | AE5: 07 | AF5: Produtos hortícolas | AG5: 7.0596928 | AH5: 0.3871486331 | AN5: 1º | AO5: 07 | AP5: Produtos hortícolas | AQ5: 6.307967 | AR5: 7.381474 | AS5: 7.925697 | AT5: 7.625342 | AU5: 6.057984 | AV5: 7.0596928
AC6: 2 | AD6: º | AE6: 22 | AF6: Bebidas, líquidos alcoólicos e vinagres | AG6: 2.3770148 | AH6: 0.130353835 | AN6: 2º | AO6: 22 | AP6: Bebidas, líquidos alcoólicos e vinagres | AQ6: 2.665208 | AR6: 2.459709 | AS6: 2.142658 | AT6: 2.157525 | AU6: 2.459974 | AV6: 2.3770148
AC7: 3 | AD7: º | AE7: 21 | AF7: Preparações alimentícias diversas | AG7: 2.1761002 | AH7: 0.1193358184 | AI7: 0.6368382865 | AN7: 3º | AO7: 21 | AP7: Preparações alimentícias diversas | AQ7: 0.833029 | AR7: 0.819062 | AS7: 1.252096 | AT7: 3.733712 | AU7: 4.242602 | AV7: 2.1761002
AC8: 4 | AD8: º | AE8: 24 | AF8: Tabaco | AG8: 1.3659712 | AH8: 0.07490890863 | AO8: - | AP8: Outros | AQ8: 5.282129 | AR8: 5.906149 | AS8: 7.198368 | AT8: 6.790839 | AU8: 7.93396 | AV8: 6.622289
AC9: 5 | AD9: º | AE9: 20 | AF9: Preparações de produtos vegetais | AG9: 1.2355574 | AH9: 0.06775710672 | AP9: Total | AQ9: 15.088333 | AR9: 16.566394 | AS9: 18.518819 | AT9: 20.307418 | AU9: 20.69452 | AV9: 18.2350968
AC10: 6 | AD10: º | AE10: 23a | AF10: Resíduos indústrias alimentares; alimentos p/ animais (exc. NC 230120) (a) | AG10: 1.1928754 | AH10: 0.06541645559
AC11: 7 | AD11: º | AE11: 09 | AF11: Café, chá, mate e especiarias | AG11: 1.1865146 | AH11: 0.06506763375
AC12: 8 | AD12: º | AE12: 19a | AF12: Preparações à base de cereais (exc. NC 19022010) (a) | AG12: 0.7270188 | AH12: 0.03986920431
AC13: 9 | AD13: º | AE13: 04 | AF13: Leite e laticínios; ovos; mel, etc. | AG13: 0.2013198 | AH13: 0.01104023753
AC14: 10 | AD14: º | AE14: 08 | AF14: Frutas | AG14: 0.155844 | AH14: 0.008546376348 | AI14: 0.9694442094
AE15: - | AF15: Outros | AG15: 0.5571878 | AH15: 0.03055579063
AE16: Total | AG16: 18.2350968 | AH16: 1
AC38: P | AE38: Cód.NC | AF38: Descritivo | AG38: Média import quinquénio | AH38: % do total | AI38: % acumulada | AN38: P | AO38: NC | AP38: Importações | AQ38: 2018 | AR38: 2019 | AS38: 2020 | AT38: 2021 | AU38: 2022 | AV38: média quinquénio
AC39: 1 | AD39: º | AE39: 19a | AF39: Preparações à base de cereais (exc. NC 19022010) (a) | AG39: 7.585417 | AH39: 0.342159977 | AN39: 1º | AO39: 19a | AP39: Preparações à base de cereais (exc. NC 19022010) (a) | AQ39: 8.028517 | AR39: 8.539254 | AS39: 7.099447 | AT39: 7.07287 | AU39: 7.186997 | AV39: 7.585417
AC40: 2 | AD40: º | AE40: 24 | AF40: Tabaco | AG40: 4.8771332 | AH40: 0.2199957871 | AN40: 2º | AO40: 24 | AP40: Tabaco | AQ40: 4.72983 | AR40: 5.413002 | AS40: 6.043407 | AT40: 3.566583 | AU40: 4.632844 | AV40: 4.8771332
AC41: 3 | AD41: º | AE41: 04 | AF41: Leite e laticínios; ovos; mel, etc. | AG41: 2.3263104 | AH41: 0.1049342855 | AI41: 0.6670900496 | AN41: 3º | AO41: 04 | AP41: Leite e laticínios; ovos; mel, etc. | AQ41: 1.198606 | AR41: 1.627368 | AS41: 1.638504 | AT41: 2.198018 | AU41: 4.969056 | AV41: 2.3263104
AC42: 4 | AD42: º | AE42: 18 | AF42: Cacau e suas preparações | AG42: 1.2525224 | AH42: 0.0564982829 | AO42: - | AP42: Outros | AQ42: 6.730883 | AR42: 6.446852 | AS42: 6.260317 | AT42: 7.556652 | AU42: 9.907052 | AV42: 7.3803512
AC43: 5 | AD43: º | AE43: 23a | AF43: Resíduos indústrias alimentares; alimentos p/ animais (exc. NC 230120) (a) | AG43: 1.1003834 | AH43: 0.04963565732 | AP43: Total | AQ43: 20.687836 | AR43: 22.026476 | AS43: 21.041675 | AT43: 20.394123 | AU43: 26.695949 | AV43: 22.1692118
AC44: 6 | AD44: º | AE44: 21 | AF44: Preparações alimentícias diversas | AG44: 1.0664912 | AH44: 0.04810686143
AC45: 7 | AD45: º | AE45: 17 | AF45: Açúcares e produtos de confeitaria | AG45: 1.0268444 | AH45: 0.04631848932
AC46: 8 | AD46: º | AE46: 43 | AF46: Peles com pelo em bruto (NC 4301) | AG46: 1.025992 | AH46: 0.0462800396
AC47: 9 | AD47: º | AE47: 07 | AF47: Produtos hortícolas | AG47: 0.4027894 | AH47: 0.01816886426
AC48: 10 | AD48: º | AE48: 35 | AF48: Caseínas, albuminas, gelatinas, peptonas, dextrinas (NC 3501 a 3505) | AG48: 0.3587938 | AH48: 0.01618432821 | AI48: 0.9482825727
AE49: - | AF49: Outros | AG49: 1.1465346 | AH49: 0.05171742732
AE50: Total | AG50: 22.1692118 | AH50: 1
AC62: DESAGREGAÇÃO A 4 DÍGITOS | AN62: DESAGREGAÇÃO A 4 DÍGITOS
AC64: P | AE64: Cód.NC | AF64: Descritivo | AG64: Média export quinquénio | AH64: % do total | AI64: % acumulada | AN64: P | AO64: NC | AP64: Exportações | AQ64: 2018 | AR64: 2019 | AS64: 2020 | AT64: 2021 | AU64: 2022 | AV64: média quinquénio
AC65: 1 | AD65: º | AE65: 0706 | AF65: Cenouras, nabos, beterrabas, etc., frescos ou refrigerados | AG65: 3.9103396 | AH65: 0.2144402984 | AN65: 1º | AO65: 0706 | AP65: Cenouras, nabos, beterrabas, etc., frescos ou refrigerados | AQ65: 4.106332 | AR65: 4.650421 | AS65: 3.621508 | AT65: 4.132917 | AU65: 3.04052 | AV65: 3.9103396
AC66: 2 | AD66: º | AE66: 2204 | AF66: Vinhos de uvas frescas | AG66: 2.276253 | AH66: 0.1248281281 | AN66: 2º | AO66: 2204 | AP66: Vinhos de uvas frescas | AQ66: 2.642633 | AR66: 2.348482 | AS66: 2.096903 | AT66: 2.04173 | AU66: 2.251517 | AV66: 2.276253
AC67: 3 | AD67: º | AE67: 0709 | AF67: Outros produtos hortícolas, frescos ou refrigerados | AG67: 1.7002136 | AH67: 0.0932385289 | AI67: 0.4325069555 | AN67: 3º | AO67: 0709 | AP67: Outros produtos hortícolas, frescos ou refrigerados | AQ67: 1.464546 | AR67: 1.74738 | AS67: 2.570148 | AT67: 1.611604 | AU67: 1.10739 | AV67: 1.7002136
AC68: 4 | AD68: º | AE68: 2309 | AF68: Preparações p/ alimentação animal | AG68: 1.1928754 | AH68: 0.06541645559 | AN68: - | AO68: - | AP68: Outros | AQ68: 6.874822 | AR68: 7.820111 | AS68: 10.23026 | AT68: 12.521167 | AU68: 14.295093 | AV68: 10.3482906
AC69: 5 | AD69: º | AE69: 0901 | AF69: Café | AG69: 1.1755632 | AH69: 0.06446706661 | AP69: Total | AQ69: 15.088333 | AR69: 16.566394 | AS69: 18.518819 | AT69: 20.307418 | AU69: 20.69452 | AV69: 18.2350968
AC70: 6 | AD70: º | AE70: 2402 | AF70: Charutos, cigarrilhas e cigarros | AG70: 1.1188954 | AH70: 0.06135944395
AC71: 7 | AD71: º | AE71: 2101 | AF71: Extratos e preparados de café, chá ou mate | AG71: 1.0216992 | AH71: 0.05602927208
AC72: 8 | AD72: º | AE72: 2105 | AF72: Sorvetes, mesmo contendo cacau | AG72: 0.6832122 | AH72: 0.0374668809
AC73: 9 | AD73: º | AE73: 0704 | AF73: Couves, frescas ou refrigeradas | AG73: 0.624786 | AH73: 0.03426282881
AC74: 10 | AD74: º | AE74: 1901 | AF74: Extratos de malte; preparações de farinhas, etc., sem cacau | AG74: 0.6177626 | AH74: 0.03387767045 | AI74: 0.7853865739
AE75: - | AF75: Outros | AG75: 3.9134966 | AH75: 0.2146134261
AE76: Total | AG76: 18.2350968 | AH76: 1
AC89: DESAGREGAÇÃO A 4 DÍGITOS | AN89: DESAGREGAÇÃO A 4 DÍGITOS
G91: média 2018-2022 em milhões de euros | I91: Cód. NC | J91: Descritivo | K91: Export | L91: Import | M91: Saldo | AC91: P | AE91: Cód.NC | AF91: Descritivo | AG91: Média import quinquénio | AH91: % do total | AI91: % acumulada | AN91: P | AO91: NC | AP91: Importações | AQ91: 2018 | AR91: 2019 | AS91: 2020 | AT91: 2021 | AU91: 2022 | AV91: média quinquénio
I92: 0706 | J92: Cenouras, nabos, beterrabas, etc., frescos ou refrigerados | K92: 3.9103396 | L92: 0.1291082 | M92: 3.7812314 | AC92: 1 | AD92: º | AE92: 1905 | AF92: Produtos de padaria, pastelaria, etc. | AG92: 6.5094046 | AH92: 0.2936236371 | AN92: 1º | AO92: 1905 | AP92: Produtos de padaria, pastelaria, etc. | AQ92: 7.306425 | AR92: 7.606856 | AS92: 6.347109 | AT92: 5.798868 | AU92: 5.487765 | AV92: 6.5094046
I93: 2204 | J93: Vinhos de uvas frescas | K93: 2.276253 | L93: 0.0020986 | M93: 2.2741544 | AC93: 2 | AD93: º | AE93: 2402 | AF93: Charutos, cigarrilhas e cigarros | AG93: 4.1662004 | AH93: 0.1879273128 | AN93: 2º | AO93: 2402 | AP93: Charutos, cigarrilhas e cigarros | AQ93: 4.08674 | AR93: 4.543716 | AS93: 6.043407 | AT93: 2.58607 | AU93: 3.571069 | AV93: 4.1662004
I94: 0709 | J94: Outros produtos hortícolas, frescos ou refrigerados | K94: 1.7002136 | L94: 0.1518966 | M94: 1.548317 | AC94: 3 | AD94: º | AE94: 0403 | AF94: Leitelho, leite coalhado, iogurte, etc. | AG94: 2.0325766 | AH94: 0.09168465791 | AI94: 0.5732356078 | AN94: 3º | AO94: 0403 | AP94: Leitelho, leite coalhado, iogurte, etc. | AQ94: 1.063638 | AR94: 1.414444 | AS94: 1.459756 | AT94: 2.172294 | AU94: 4.052751 | AV94: 2.0325766
I95: 0901 | J95: Café | K95: 1.1755632 | L95: 0.0001094 | M95: 1.1754538 | AC95: 4 | AD95: º | AE95: 1806 | AF95: Chocolate e outras preparações com cacau | AG95: 1.2516428 | AH95: 0.05645860626 | AN95: - | AO95: - | AP95: Outros | AQ95: 8.231033 | AR95: 8.46146 | AS95: 7.191403 | AT95: 9.836891 | AU95: 13.584364 | AV95: 9.4610302
I96: 2101 | J96: Extratos e preparados de café, chá ou mate | K96: 1.0216992 | L96: 0.0056268 | M96: 1.0160724 | AC96: 5 | AD96: º | AE96: 2309 | AF96: Preparações p/ alimentação animal | AG96: 1.1003834 | AH96: 0.04963565732 | AP96: Total | AQ96: 20.687836 | AR96: 22.026476 | AS96: 21.041675 | AT96: 20.394123 | AU96: 26.695949 | AV96: 22.1692118
I97: 2002 | J97: Tomates preparados | K97: 0.6100788 | L97: 0.0036318 | M97: 0.606447 | AC97: 6 | AD97: º | AE97: 4301 | AF97: Peles com pêlo em bruto | AG97: 1.025992 | AH97: 0.0462800396
I98: 0704 | J98: Couves, frescas ou refrigeradas | K98: 0.624786 | L98: 0.0295894 | M98: 0.5951966 | AC98: 7 | AD98: º | AE98: 2106 | AF98: Outras preparações alimentícias | AG98: 0.8292552 | AH98: 0.03740571417
I99: 2105 | J99: Sorvetes, mesmo contendo cacau | K99: 0.6832122 | L99: 0.16242 | M99: 0.5207922 | AC99: 8 | AD99: º | AE99: 2403 | AF99: Outros produtos de tabaco | AG99: 0.7108582 | AH99: 0.03206510932
I100: 0701 | J100: Batatas, frescas ou refrigeradas | K100: 0.4603994 | L100: 0.071326 | M100: 0.3890734 | AC100: 9 | AD100: º | AE100: 1904 | AF100: Produtos à base de cereais | AG100: 0.6925092 | AH100: 0.03123742992
I101: 1901 | J101: Extratos de malte; preparações de farinhas, etc., sem cacau | K101: 0.6177626 | L101: 0.331713 | M101: 0.2860496 | AC101: 10 | AD101: º | AE101: 1704 | AF101: Produtos de confeitaria sem cacau, incluindo chocolate branco | AG101: 0.6811932 | AH101: 0.03072699229 | AI101: 0.8570451567
I102: - | J102: Outros | K102: 3.4490952 | L102: 3.027673 | M102: 0.4214222 | AE102: - | AF102: Outros | AG102: 3.1691962 | AH102: 0.1429548433
I103: 3505 | J103: Dextrina e outros amidos e féculas modificados | K103: 9.78e-05 | L103: 0.3543868 | M103: -0.354289 | AE103: Total | AG103: 22.1692118 | AH103: 1
I104: 2403 | J104: Outros produtos de tabaco | K104: 0.2080674 | L104: 0.7108582 | M104: -0.5027908
I105: 2106 | J105: Outras preparações alimentícias | K105: 0.2288888 | L105: 0.8292552 | M105: -0.6003664
I106: 1904 | J106: Produtos à base de cereais | K106: 0.052731 | L106: 0.6925092 | M106: -0.6397782
I107: 1704 | J107: Produtos de confeitaria sem cacau, incluindo chocolate branco | K107: 8e-06 | L107: 0.6811932 | M107: -0.6811852
I108: 4301 | J108: Peles com pêlo em bruto | K108: 0 | L108: 1.025992 | M108: -1.025992
I109: 1806 | J109: Chocolate e outras preparações com cacau | K109: 0.0406438 | L109: 1.2516428 | M109: -1.210999
I110: 0403 | J110: Leitelho, leite coalhado, iogurte, etc. | K110: 0 | L110: 2.0325766 | M110: -2.0325766
I111: 2402 | J111: Charutos, cigarrilhas e cigarros | K111: 1.1188954 | L111: 4.1662004 | M111: -3.047305
I112: 1905 | J112: Produtos de padaria, pastelaria, etc. | K112: 0.0563618 | L112: 6.5094046 | M112: -6.4530428
I113: Total | K113: 18.2350968 | L113: 22.1692118 | M113: -3.934115
A116: Fonte: GPP a partir de dados INE/Comércio Internacional (2021 provisórios; 2022 preliminares) | Y116: 2023-07-31T11:56:40.420

Sheet 4A
A1: Evolução da balança comercial Portugal-República Checa 2018-2022 por produto em euros (NC 2 dígitos)
A3: =+aux!A31 -> Evolução da balança comercial Portugal-República Checa para Produtos hortícolas
A5: Selecione o produto:
Q7: Para obter uma maior desagregação deste produto, clique no botão respetivo:
A20: =+aux!A43 -> Evolução da balança comercial Portugal-República Checa para Preparações à base de cereais (exc. NC 19022010) (a)
A22: Selecione o produto:
A38: Fonte: GPP a partir de dados INE/Comércio Internacional (2021 provisórios; 2022 preliminares) | N38: 2023-07-31T11:56:40.420

Sheet 5.2
A1: Trocas comerciais Portugal-República Checa 2018-2022 em milhares de euros (NC 2 dígitos) | C1: Produtos agrícolas e agroalimentares, do mar e da floresta
A2: Cód. NC | B2: Descritivo | C2: Importações | K2: Exportações | S2: Saldo quinquénio (exp-imp) | T2: Evolução das importações | U2: =+"Variação das Importações " & INDEX(K3:N3,1,aux!AL1) & "-"& '5.2'!O3 &"" -> Variação das Importações 2018-2022 | Z2: Evolução das exportações | AA2: ="Variação das Exportações " & INDEX(K3:N3,1,aux!AL1) & "-"& '5.2'!O3 &"" -> Variação das Exportações 2018-2022
C3: 2018 | D3: 2019 | E3: 2020 | F3: 2021 | G3: 2022 | H3: média quinquénio | I3: % Subtot | J3: % Total | K3: 2018 | L3: 2019 | M3: 2020 | N3: 2021 | O3: 2022 | P3: média quinquénio | Q3: % Subtot | R3: % Total | U3: variação total em valor | V3: % no subtotal de variação | W3: % no total de variação | X3: taxa de variação média anual | Y3: taxa de variação total | AA3: variação total em valor | AB3: % no subtotal de variação | AC3: % no total de variação | AD3: taxa de variação média anual | AE3: taxa de variação total
A4: 01 | B4: Animais vivos | C4: 9.152 | D4: 4.864 | E4: 7.027 | F4: 56.188 | G4: 51.056 | H4: 25.6574 | I4: 0.001157343808 | J4: 0.0007136645264 | K4: 0 | L4: 42.519 | M4: 33.539 | N4: 0 | O4: 25.391 | P4: 20.2898 | Q4: 0.001112678492 | R4: 0.0006967444468 | S4: -5.3676 | U4: =G4-INDEX($C4:$G4,1,aux!$AL$1) -> 41.904 | V4: =IF($U$37<>0,U4/$U$37, "n.d.") -> 0.00697456922 | W4: =IF($U$53<>0,U4/$U$53, "n.d.") -> 0.002225411852 | X4: =+IF(INDEX($C4:$G4,1,aux!$AL$1)>0,(G4/INDEX($C4:$G4,1,aux!$AL$1))^(1/($G$3-INDEX($C$3:$G$3,1,aux!$AL$1)))-1,"n.d.") -> 0.5368542903 | Y4: =IF(INDEX($C4:$G4,1,aux!$AL$1)>0,(G4-INDEX($C4:$G4,1,aux!$AL$1))/INDEX($C4:$G4,1,aux!$AL$1),"n.d.") -> 4.578671329 | AA4: =O4-INDEX($K4:$O4,1,aux!$AL$1) -> 25.391 | AB4: =IF($AA$37<>0,AA4/$AA$37, "n.d.") -> 0.004529103292 | AC4: =IF($AA$53<>0,AA4/$AA$53, "n.d.") -> 0.002506211983 | AD4: =+IF(INDEX($K4:$O4,1,aux!$AL$1)>0,(O4/INDEX($K4:$O4,1,aux!$AL$1))^(1/($O$3-INDEX($K$3:$O$3,1,aux!$AL$1)))-1,"n.d.") -> n.d. | AE4: =IF(INDEX($K4:$O4,1,aux!$AL$1)>0,(O4-INDEX($K4:$O4,1,aux!$AL$1))/INDEX($K4:$O4,1,aux!$AL$1),"n.d.") -> n.d.
A5: 02 | B5: Carnes e miudezas | C5: 0 | D5: 47.894 | E5: 0 | F5: 32.34 | G5: 9.201 | H5: 17.887 | I5: 0.0008068396911 | J5: 0.0004975296555 | K5: 248.236 | L5: 362.872 | M5: 0 | N5: 81.146 | O5: 38.433 | P5: 146.1374 | Q5: 0.008014073169 | R5: 0.005018305844 | S5: 128.2504 | U5: =G5-INDEX($C5:$G5,1,aux!$AL$1) -> 9.201 | V5: 0.001531429252 | W5: 0.0004886410473 | X5: =+IF(INDEX($C5:$G5,1,aux!$AL$1)>0,(G5/INDEX($C5:$G5,1,aux!$AL$1))^(1/($G$3-INDEX($C$3:$G$3,1,aux!$AL$1)))-1,"n.d.") -> n.d. | Y5: =IF(INDEX($C5:$G5,1,aux!$AL$1)>0,(G5-INDEX($C5:$G5,1,aux!$AL$1))/INDEX($C5:$G5,1,aux!$AL$1),"n.d.") -> n.d. | AA5: =O5-INDEX($K5:$O5,1,aux!$AL$1) -> -209.803 | AB5: -0.03742347517 | AC5: -0.02070854998 | AD5: =+IF(INDEX($K5:$O5,1,aux!$AL$1)>0,(O5/INDEX($K5:$O5,1,aux!$AL$1))^(1/($O$3-INDEX($K$3:$O$3,1,aux!$AL$1)))-1,"n.d.") -> -0.3727222539 | AE5: =IF(INDEX($K5:$O5,1,aux!$AL$1)>0,(O5-INDEX($K5:$O5,1,aux!$AL$1))/INDEX($K5:$O5,1,aux!$AL$1),"n.d.") -> -0.8451755587
A6: 04 | B6: Leite e laticínios; ovos; mel, etc. | C6: 1198.606 | D6: 1627.368 | E6: 1638.504 | F6: 2198.018 | G6: 4969.056 | H6: 2326.3104 | I6: 0.1049342855 | J6: 0.0647066815 | K6: 178.917 | L6: 181.858 | M6: 153.889 | N6: 223.484 | O6: 268.451 | P6: 201.3198 | Q6: 0.01104023753 | R6: 0.006913249647 | S6: -2124.9906 | U6: =G6-INDEX($C6:$G6,1,aux!$AL$1) -> 3770.45 | V6: 0.6275597679 | W6: 0.2002387389 | X6: =+IF(INDEX($C6:$G6,1,aux!$AL$1)>0,(G6/INDEX($C6:$G6,1,aux!$AL$1))^(1/($G$3-INDEX($C$3:$G$3,1,aux!$AL$1)))-1,"n.d.") -> 0.4269191319 | Y6: =IF(INDEX($C6:$G6,1,aux!$AL$1)>0,(G6-INDEX($C6:$G6,1,aux!$AL$1))/INDEX($C6:$G6,1,aux!$AL$1),"n.d.") -> 3.145695917 | AA6: =O6-INDEX($K6:$O6,1,aux!$AL$1) -> 89.534 | AB6: 0.01597056966 | AC6: 0.008837429942 | AD6: =+IF(INDEX($K6:$O6,1,aux!$AL$1)>0,(O6/INDEX($K6:$O6,1,aux!$AL$1))^(1/($O$3-INDEX($K$3:$O$3,1,aux!$AL$1)))-1,"n.d.") -> 0.1067597451 | AE6: =IF(INDEX($K6:$O6,1,aux!$AL$1)>0,(O6-INDEX($K6:$O6,1,aux!$AL$1))/INDEX($K6:$O6,1,aux!$AL$1),"n.d.") -> 0.5004219834
A7: 05a | B7: Outros produtos de origem animal (exc. NC 0508, 051191) (a) | C7: 0 | D7: 0 | E7: 0.005 | F7: 0.006 | G7: 3.177 | H7: 0.6376 | I7: 2.876060754e-05 | J7: 1.773494205e-05 | K7: 0 | L7: 0 | M7: 0 | N7: 0 | O7: 0 | P7: 0 | Q7: 0 | R7: 0 | S7: -0.6376 | U7: =G7-INDEX($C7:$G7,1,aux!$AL$1) -> 3.177 | V7: 0.0005287849946 | W7: 0.0001687221614 | X7: =+IF(INDEX($C7:$G7,1,aux!$AL$1)>0,(G7/INDEX($C7:$G7,1,aux!$AL$1))^(1/($G$3-INDEX($C$3:$G$3,1,aux!$AL$1)))-1,"n.d.") -> n.d. | Y7: =IF(INDEX($C7:$G7,1,aux!$AL$1)>0,(G7-INDEX($C7:$G7,1,aux!$AL$1))/INDEX($C7:$G7,1,aux!$AL$1),"n.d.") -> n.d. | AA7: =O7-INDEX($K7:$O7,1,aux!$AL$1) -> 0 | AB7: 0 | AC7: 0 | AD7: =+IF(INDEX($K7:$O7,1,aux!$AL$1)>0,(O7/INDEX($K7:$O7,1,aux!$AL$1))^(1/($O$3-INDEX($K$3:$O$3,1,aux!$AL$1)))-1,"n.d.") -> n.d. | AE7: =IF(INDEX($K7:$O7,1,aux!$AL$1)>0,(O7-INDEX($K7:$O7,1,aux!$AL$1))/INDEX($K7:$O7,1,aux!$AL$1),"n.d.") -> n.d.
A8: 06 | B8: Plantas vivas e produtos de floricultura | C8: 8.742 | D8: 6.526 | E8: 8.127 | F8: 10.144 | G8: 6.644 | H8: 8.0366 | I8: 0.0003625117606 | J8: 0.0002235392648 | K8: 37.749 | L8: 54.512 | M8: 0.934 | N8: 1.424 | O8: 2.054 | P8: 19.3346 | Q8: 0.001060295989 | R8: 0.0006639432218 | S8: 11.298 | U8: =G8-INDEX($C8:$G8,1,aux!$AL$1) -> -2.098 | V8: -0.0003491944975 | W8: -0.0001114192933 | X8: =+IF(INDEX($C8:$G8,1,aux!$AL$1)>0,(G8/INDEX($C8:$G8,1,aux!$AL$1))^(1/($G$3-INDEX($C$3:$G$3,1,aux!$AL$1)))-1,"n.d.") -> -0.06630570459 | Y8: =IF(INDEX($C8:$G8,1,aux!$AL$1)>0,(G8-INDEX($C8:$G8,1,aux!$AL$1))/INDEX($C8:$G8,1,aux!$AL$1),"n.d.") -> -0.2399908488 | AA8: =O8-INDEX($K8:$O8,1,aux!$AL$1) -> -35.695 | AB8: -0.006367072665 | AC8: -0.003523265595 | AD8: =+IF(INDEX($K8:$O8,1,aux!$AL$1)>0,(O8/INDEX($K8:$O8,1,aux!$AL$1))^(1/($O$3-INDEX($K$3:$O$3,1,aux!$AL$1)))-1,"n.d.") -> -0.5170260055 | AE8: =IF(INDEX($K8:$O8,1,aux!$AL$1)>0,(O8-INDEX($K8:$O8,1,aux!$AL$1))/INDEX($K8:$O8,1,aux!$AL$1),"n.d.") -> -0.9455879626
A9: 07 | B9: Produtos hortícolas | C9: 248.335 | D9: 399.74 | E9: 730.814 | F9: 427.523 | G9: 207.535 | H9: 402.7894 | I9: 0.01816886426 | J9: 0.0112036491 | K9: 6307.967 | L9: 7381.474 | M9: 7925.697 | N9: 7625.342 | O9: 6057.984 | P9: 7059.6928 | Q9: 0.3871486331 | R9: 0.2424273159 | S9: 6656.9034 | U9: =G9-INDEX($C9:$G9,1,aux!$AL$1) -> -40.8 | V9: -0.006790817683 | W9: -0.002166781299 | X9: =+IF(INDEX($C9:$G9,1,aux!$AL$1)>0,(G9/INDEX($C9:$G9,1,aux!$AL$1))^(1/($G$3-INDEX($C$3:$G$3,1,aux!$AL$1)))-1,"n.d.") -> -0.04387790556 | Y9: =IF(INDEX($C9:$G9,1,aux!$AL$1)>0,(G9-INDEX($C9:$G9,1,aux!$AL$1))/INDEX($C9:$G9,1,aux!$AL$1),"n.d.") -> -0.1642941994 | AA9: =O9-INDEX($K9:$O9,1,aux!$AL$1) -> -249.983 | AB9: -0.04459055683 | AC9: -0.02467450632 | AD9: =+IF(INDEX($K9:$O9,1,aux!$AL$1)>0,(O9/INDEX($K9:$O9,1,aux!$AL$1))^(1/($O$3-INDEX($K$3:$O$3,1,aux!$AL$1)))-1,"n.d.") -> -0.01005816642 | AE9: =IF(INDEX($K9:$O9,1,aux!$AL$1)>0,(O9-INDEX($K9:$O9,1,aux!$AL$1))/INDEX($K9:$O9,1,aux!$AL$1),"n.d.") -> -0.03962972539
A10: 08 | B10: Frutas | C10: 0 | D10: 0.045 | E10: 1.555 | F10: 0.372 | G10: 0.468 | H10: 0.488 | I10: 2.201251016e-05 | J10: 1.357379504e-05 | K10: 182.243 | L10: 169.684 | M10: 234.068 | N10: 159.831 | O10: 33.394 | P10: 155.844 | Q10: 0.008546376348 | R10: 0.005351627003 | S10: 155.356 | U10: =G10-INDEX($C10:$G10,1,aux!$AL$1) -> 0.468 | V10: 7.789467342e-05 | W10: 2.485425608e-05 | X10: =+IF(INDEX($C10:$G10,1,aux!$AL$1)>0,(G10/INDEX($C10:$G10,1,aux!$AL$1))^(1/($G$3-INDEX($C$3:$G$3,1,aux!$AL$1)))-1,"n.d.") -> n.d. | Y10: =IF(INDEX($C10:$G10,1,aux!$AL$1)>0,(G10-INDEX($C10:$G10,1,aux!$AL$1))/INDEX($C10:$G10,1,aux!$AL$1),"n.d.") -> n.d. | AA10: =O10-INDEX($K10:$O10,1,aux!$AL$1) -> -148.849 | AB10: -0.02655084463 | AC10: -0.01469210143 | AD10: =+IF(INDEX($K10:$O10,1,aux!$AL$1)>0,(O10/INDEX($K10:$O10,1,aux!$AL$1))^(1/($O$3-INDEX($K$3:$O$3,1,aux!$AL$1)))-1,"n.d.") -> -0.3457339327 | AE10: =IF(INDEX($K10:$O10,1,aux!$AL$1)>0,(O10-INDEX($K10:$O10,1,aux!$AL$1))/INDEX($K10:$O10,1,aux!$AL$1),"n.d.") -> -0.8167611376
A11: 09 | B11: Café, chá, mate e especiarias | C11: 0 | D11: 0.402 | E11: 1.428 | F11: 2.214 | G11: 1.737 | H11: 1.1562 | I11: 5.215341034e-05 | J11: 3.215988079e-05 | K11: 744.552 | L11: 756.087 | M11: 981.223 | N11: 1609.487 | O11: 1841.224 | P11: 1186.5146 | Q11: 0.06506763375 | R11: 0.04074448534 | S11: 1185.3584 | U11: =G11-INDEX($C11:$G11,1,aux!$AL$1) -> 1.737 | V11: 0.0002891090763 | W11: 9.224752736e-05 | X11: =+IF(INDEX($C11:$G11,1,aux!$AL$1)>0,(G11/INDEX($C11:$G11,1,aux!$AL$1))^(1/($G$3-INDEX($C$3:$G$3,1,aux!$AL$1)))-1,"n.d.") -> n.d. | Y11: =IF(INDEX($C11:$G11,1,aux!$AL$1)>0,(G11-INDEX($C11:$G11,1,aux!$AL$1))/INDEX($C11:$G11,1,aux!$AL$1),"n.d.") -> n.d. | AA11: =O11-INDEX($K11:$O11,1,aux!$AL$1) -> 1096.672 | AB11: 0.1956181626 | AC11: 0.1082467216 | AD11: =+IF(INDEX($K11:$O11,1,aux!$AL$1)>0,(O11/INDEX($K11:$O11,1,aux!$AL$1))^(1/($O$3-INDEX($K$3:$O$3,1,aux!$AL$1)))-1,"n.d.") -> 0.2540154816 | AE11: =IF(INDEX($K11:$O11,1,aux!$AL$1)>0,(O11-INDEX($K11:$O11,1,aux!$AL$1))/INDEX($K11:$O11,1,aux!$AL$1),"n.d.") -> 1.472928687
A12: 10 | B12: Cereais | C12: 208.002 | D12: 119.987 | E12: 74.082 | F12: 0.368 | G12: 0.259 | H12: 80.5396 | I12: 0.003632948286 | J12: 0.002240221359 | K12: 62.018 | L12: 77.345 | M12: 0.004 | N12: 0.004 | O12: 66.982 | P12: 41.2706 | Q12: 0.002263250941 | R12: 0.001417217586 | S12: -39.269 | U12: =G12-INDEX($C12:$G12,1,aux!$AL$1) -> -207.743 | V12: -0.03457707936 | W12: -0.01103268744 | X12: =+IF(INDEX($C12:$G12,1,aux!$AL$1)>0,(G12/INDEX($C12:$G12,1,aux!$AL$1))^(1/($G$3-INDEX($C$3:$G$3,1,aux!$AL$1)))-1,"n.d.") -> -0.8121513565 | Y12: =IF(INDEX($C12:$G12,1,aux!$AL$1)>0,(G12-INDEX($C12:$G12,1,aux!$AL$1))/INDEX($C12:$G12,1,aux!$AL$1),"n.d.") -> -0.9987548197 | AA12: =O12-INDEX($K12:$O12,1,aux!$AL$1) -> 4.964 | AB12: 0.000885450307 | AC12: 0.0004899703155 | AD12: =+IF(INDEX($K12:$O12,1,aux!$AL$1)>0,(O12/INDEX($K12:$O12,1,aux!$AL$1))^(1/($O$3-INDEX($K$3:$O$3,1,aux!$AL$1)))-1,"n.d.") -> 0.01943628756 | AE12: =IF(INDEX($K12:$O12,1,aux!$AL$1)>0,(O12-INDEX($K12:$O12,1,aux!$AL$1))/INDEX($K12:$O12,1,aux!$AL$1),"n.d.") -> 0.08004127834
A13: 11 | B13: Produtos da indústria de moagem e outros | C13: 0 | D13: 0 | E13: 3.228 | F13: 0.21 | G13: 1.538 | H13: 0.9952 | I13: 4.489108629e-05 | J13: 2.768164103e-05 | K13: 97.743 | L13: 78.514 | M13: 88.193 | N13: 28.451 | O13: 8.127 | P13: 60.2056 | Q13: 0.003301633145 | R13: 0.002067438687 | S13: 59.2104 | U13: =G13-INDEX($C13:$G13,1,aux!$AL$1) -> 1.538 | V13: 0.000255987196 | W13: 8.167915779e-05 | X13: =+IF(INDEX($C13:$G13,1,aux!$AL$1)>0,(G13/INDEX($C13:$G13,1,aux!$AL$1))^(1/($G$3-INDEX($C$3:$G$3,1,aux!$AL$1)))-1,"n.d.") -> n.d. | Y13: =IF(INDEX($C13:$G13,1,aux!$AL$1)>0,(G13-INDEX($C13:$G13,1,aux!$AL$1))/INDEX($C13:$G13,1,aux!$AL$1),"n.d.") -> n.d. | AA13: =O13-INDEX($K13:$O13,1,aux!$AL$1) -> -89.616 | AB13: -0.01598519636 | AC13: -0.00884552373 | AD13: =+IF(INDEX($K13:$O13,1,aux!$AL$1)>0,(O13/INDEX($K13:$O13,1,aux!$AL$1))^(1/($O$3-INDEX($K$3:$O$3,1,aux!$AL$1)))-1,"n.d.") -> -0.4630162434 | AE13: =IF(INDEX($K13:$O13,1,aux!$AL$1)>0,(O13-INDEX($K13:$O13,1,aux!$AL$1))/INDEX($K13:$O13,1,aux!$AL$1),"n.d.") -> -0.9168533808
A14: 12 | B14: Sementes e frutos oleaginosos | C14: 325.74 | D14: 71.176 | E14: 135.325 | F14: 48.779 | G14: 41.585 | H14: 124.521 | I14: 0.005616843807 | J14: 0.003463570763 | K14: 5.507 | L14: 0.034 | M14: 6.866 | N14: 20.836 | O14: 116.253 | P14: 29.8992 | Q14: 0.00163965129 | R14: 0.001026727793 | S14: -94.6218 | U14: =G14-INDEX($C14:$G14,1,aux!$AL$1) -> -284.155 | V14: -0.04729521565 | W14: -0.01509072892 | X14: =+IF(INDEX($C14:$G14,1,aux!$AL$1)>0,(G14/INDEX($C14:$G14,1,aux!$AL$1))^(1/($G$3-INDEX($C$3:$G$3,1,aux!$AL$1)))-1,"n.d.") -> -0.4022543787 | Y14: =IF(INDEX($C14:$G14,1,aux!$AL$1)>0,(G14-INDEX($C14:$G14,1,aux!$AL$1))/INDEX($C14:$G14,1,aux!$AL$1),"n.d.") -> -0.8723368331 | AA14: =O14-INDEX($K14:$O14,1,aux!$AL$1) -> 110.746 | AB14: 0.01975424651 | AC14: 0.01093115483 | AD14: =+IF(INDEX($K14:$O14,1,aux!$AL$1)>0,(O14/INDEX($K14:$O14,1,aux!$AL$1))^(1/($O$3-INDEX($K$3:$O$3,1,aux!$AL$1)))-1,"n.d.") -> 1.143494005 | AE14: =IF(INDEX($K14:$O14,1,aux!$AL$1)>0,(O14-INDEX($K14:$O14,1,aux!$AL$1))/INDEX($K14:$O14,1,aux!$AL$1),"n.d.") -> 20.11004177
A15: 13a | B15: Sucos e extratos vegetais (exc. NC 1301) (a) | C15: 57.37 | D15: 7.661 | E15: 5.67 | F15: 0.651 | G15: 24.008 | H15: 19.072 | I15: 0.0008602922004 | J15: 0.0005304906127 | K15: 2.637 | L15: 1.213 | M15: 0.181 | N15: 0 | O15: 0 | P15: 0.8062 | Q15: 4.421144614e-05 | R15: 2.768461853e-05 | S15: -18.2658 | U15: =G15-INDEX($C15:$G15,1,aux!$AL$1) -> -33.362 | V15: -0.005552824988 | W15: -0.001771768571 | X15: =+IF(INDEX($C15:$G15,1,aux!$AL$1)>0,(G15/INDEX($C15:$G15,1,aux!$AL$1))^(1/($G$3-INDEX($C$3:$G$3,1,aux!$AL$1)))-1,"n.d.") -> -0.1957005289 | Y15: =IF(INDEX($C15:$G15,1,aux!$AL$1)>0,(G15-INDEX($C15:$G15,1,aux!$AL$1))/INDEX($C15:$G15,1,aux!$AL$1),"n.d.") -> -0.5815234443 | AA15: =O15-INDEX($K15:$O15,1,aux!$AL$1) -> -2.637 | AB15: -0.0004703731788 | AC15: -0.000260284392 | AD15: =+IF(INDEX($K15:$O15,1,aux!$AL$1)>0,(O15/INDEX($K15:$O15,1,aux!$AL$1))^(1/($O$3-INDEX($K$3:$O$3,1,aux!$AL$1)))-1,"n.d.") -> -1 | AE15: =IF(INDEX($K15:$O15,1,aux!$AL$1)>0,(O15-INDEX($K15:$O15,1,aux!$AL$1))/INDEX($K15:$O15,1,aux!$AL$1),"n.d.") -> -1
A16: 14 | B16: Matérias para entrançar e outros | C16: 0.03 | D16: 0.013 | E16: 0.053 | F16: 1.48 | G16: 0.094 | H16: 0.334 | I16: 1.506593933e-05 | J16: 9.29026136e-06 | K16: 0.131 | L16: 0.019 | M16: 0.003 | N16: 0.048 | O16: 0.565 | P16: 0.1532 | Q16: 8.401381231e-06 | R16: 5.260832993e-06 | S16: -0.1808 | U16: =G16-INDEX($C16:$G16,1,aux!$AL$1) -> 0.064 | V16: 1.065226303e-05 | W16: 3.398872626e-06 | X16: =+IF(INDEX($C16:$G16,1,aux!$AL$1)>0,(G16/INDEX($C16:$G16,1,aux!$AL$1))^(1/($G$3-INDEX($C$3:$G$3,1,aux!$AL$1)))-1,"n.d.") -> 0.3304594719 | Y16: =IF(INDEX($C16:$G16,1,aux!$AL$1)>0,(G16-INDEX($C16:$G16,1,aux!$AL$1))/INDEX($C16:$G16,1,aux!$AL$1),"n.d.") -> 2.133333333 | AA16: =O16-INDEX($K16:$O16,1,aux!$AL$1) -> 0.434 | AB16: 7.741447083e-05 | AC16: 4.283785595e-05 | AD16: =+IF(INDEX($K16:$O16,1,aux!$AL$1)>0,(O16/INDEX($K16:$O16,1,aux!$AL$1))^(1/($O$3-INDEX($K$3:$O$3,1,aux!$AL$1)))-1,"n.d.") -> 0.4411005636 | AE16: =IF(INDEX($K16:$O16,1,aux!$AL$1)>0,(O16-INDEX($K16:$O16,1,aux!$AL$1))/INDEX($K16:$O16,1,aux!$AL$1),"n.d.") -> 3.312977099
A17: 15 | B17: Gorduras e óleos animais ou vegetais | C17: 0 | D17: 0.331 | E17: 21.585 | F17: 0.666 | G17: 0.446 | H17: 4.6056 | I17: 0.0002077475754 | J17: 0.0001281054722 | K17: 187.064 | L17: 199.593 | M17: 106.241 | N17: 139.645 | O17: 118.951 | P17: 150.2988 | Q17: 0.008242281445 | R17: 0.005161206826 | S17: 145.6932 | U17: =G17-INDEX($C17:$G17,1,aux!$AL$1) -> 0.446 | V17: 7.4232958e-05 | W17: 2.368589361e-05 | X17: =+IF(INDEX($C17:$G17,1,aux!$AL$1)>0,(G17/INDEX($C17:$G17,1,aux!$AL$1))^(1/($G$3-INDEX($C$3:$G$3,1,aux!$AL$1)))-1,"n.d.") -> n.d. | Y17: =IF(INDEX($C17:$G17,1,aux!$AL$1)>0,(G17-INDEX($C17:$G17,1,aux!$AL$1))/INDEX($C17:$G17,1,aux!$AL$1),"n.d.") -> n.d. | AA17: =O17-INDEX($K17:$O17,1,aux!$AL$1) -> -68.113 | AB17: -0.01214961256 | AC17: -0.006723075766 | AD17: =+IF(INDEX($K17:$O17,1,aux!$AL$1)>0,(O17/INDEX($K17:$O17,1,aux!$AL$1))^(1/($O$3-INDEX($K$3:$O$3,1,aux!$AL$1)))-1,"n.d.") -> -0.1070143701 | AE17: =IF(INDEX($K17:$O17,1,aux!$AL$1)>0,(O17-INDEX($K17:$O17,1,aux!$AL$1))/INDEX($K17:$O17,1,aux!$AL$1),"n.d.") -> -0.3641160245
A18: 16a | B18: Preparações de carnes (exc. NC 1604-05) (a) | C18: 67.926 | D18: 79.181 | E18: 91.44 | F18: 311.744 | G18: 551.282 | H18: 220.3146 | I18: 0.009937863465 | J18: 0.006128084477 | K18: 0.854 | L18: 2.081 | M18: 1.45 | N18: 30.072 | O18: 2.047 | P18: 7.3008 | Q18: 0.0004003707839 | R18: 0.0002507068506 | S18: -213.0138 | U18: =G18-INDEX($C18:$G18,1,aux!$AL$1) -> 483.356 | V18: 0.08045055078 | W18: 0.02566977308 | X18: =+IF(INDEX($C18:$G18,1,aux!$AL$1)>0,(G18/INDEX($C18:$G18,1,aux!$AL$1))^(1/($G$3-INDEX($C$3:$G$3,1,aux!$AL$1)))-1,"n.d.") -> 0.6878523119 | Y18: =IF(INDEX($C18:$G18,1,aux!$AL$1)>0,(G18-INDEX($C18:$G18,1,aux!$AL$1))/INDEX($C18:$G18,1,aux!$AL$1),"n.d.") -> 7.115920266 | AA18: =O18-INDEX($K18:$O18,1,aux!$AL$1) -> 1.193 | AB18: 0.0002128006076 | AC18: 0.0001177547515 | AD18: =+IF(INDEX($K18:$O18,1,aux!$AL$1)>0,(O18/INDEX($K18:$O18,1,aux!$AL$1))^(1/($O$3-INDEX($K$3:$O$3,1,aux!$AL$1)))-1,"n.d.") -> 0.2442710395 | AE18: =IF(INDEX($K18:$O18,1,aux!$AL$1)>0,(O18-INDEX($K18:$O18,1,aux!$AL$1))/INDEX($K18:$O18,1,aux!$AL$1),"n.d.") -> 1.396955504
A19: 17 | B19: Açúcares e produtos de confeitaria | C19: 1543.585 | D19: 1533.718 | E19: 793.394 | F19: 606.923 | G19: 656.602 | H19: 1026.8444 | I19: 0.04631848932 | J19: 0.02856183489 | K19: 15.666 | L19: 0 | M19: 2.861 | N19: 1.836 | O19: 0.045 | P19: 4.0816 | Q19: 0.0002238320994 | R19: 0.0001401606785 | S19: -1022.7628 | U19: =G19-INDEX($C19:$G19,1,aux!$AL$1) -> -886.983 | V19: -0.1476308784 | W19: -0.04710534747 | X19: =+IF(INDEX($C19:$G19,1,aux!$AL$1)>0,(G19/INDEX($C19:$G19,1,aux!$AL$1))^(1/($G$3-INDEX($C$3:$G$3,1,aux!$AL$1)))-1,"n.d.") -> -0.1924063176 | Y19: =IF(INDEX($C19:$G19,1,aux!$AL$1)>0,(G19-INDEX($C19:$G19,1,aux!$AL$1))/INDEX($C19:$G19,1,aux!$AL$1),"n.d.") -> -0.5746253041 | AA19: =O19-INDEX($K19:$O19,1,aux!$AL$1) -> -15.621 | AB19: -0.002786385827 | AC19: -0.0015418667 | AD19: =+IF(INDEX($K19:$O19,1,aux!$AL$1)>0,(O19/INDEX($K19:$O19,1,aux!$AL$1))^(1/($O$3-INDEX($K$3:$O$3,1,aux!$AL$1)))-1,"n.d.") -> -0.7684932821 | AE19: =IF(INDEX($K19:$O19,1,aux!$AL$1)>0,(O19-INDEX($K19:$O19,1,aux!$AL$1))/INDEX($K19:$O19,1,aux!$AL$1),"n.d.") -> -0.9971275373
A20: 18 | B20: Cacau e suas preparações | C20: 1427.605 | D20: 1170.875 | E20: 1200.116 | F20: 1178.545 | G20: 1285.471 | H20: 1252.5224 | I20: 0.0564982829 | J20: 0.03483910316 | K20: 27.813 | L20: 8.435 | M20: 35.252 | N20: 58.564 | O20: 109.811 | P20: 47.975 | Q20: 0.002630915565 | R20: 0.001647444274 | S20: -1204.5474 | U20: =G20-INDEX($C20:$G20,1,aux!$AL$1) -> -142.134 | V20: -0.02365701178 | W20: -0.007548365028 | X20: =+IF(INDEX($C20:$G20,1,aux!$AL$1)>0,(G20/INDEX($C20:$G20,1,aux!$AL$1))^(1/($G$3-INDEX($C$3:$G$3,1,aux!$AL$1)))-1,"n.d.") -> -0.02587754236 | Y20: =IF(INDEX($C20:$G20,1,aux!$AL$1)>0,(G20-INDEX($C20:$G20,1,aux!$AL$1))/INDEX($C20:$G20,1,aux!$AL$1),"n.d.") -> -0.09956115312 | AA20: =O20-INDEX($K20:$O20,1,aux!$AL$1) -> 81.998 | AB20: 0.01462634051 | AC20: 0.008093591042 | AD20: =+IF(INDEX($K20:$O20,1,aux!$AL$1)>0,(O20/INDEX($K20:$O20,1,aux!$AL$1))^(1/($O$3-INDEX($K$3:$O$3,1,aux!$AL$1)))-1,"n.d.") -> 0.4096117223 | AE20: =IF(INDEX($K20:$O20,1,aux!$AL$1)>0,(O20-INDEX($K20:$O20,1,aux!$AL$1))/INDEX($K20:$O20,1,aux!$AL$1),"n.d.") -> 2.948189695
A21: 19a | B21: Preparações à base de cereais (exc. NC 19022010) (a) | C21: 8028.517 | D21: 8539.254 | E21: 7099.447 | F21: 7072.87 | G21: 7186.997 | H21: 7585.417 | I21: 0.342159977 | J21: 0.2109895403 | K21: 21.999 | L21: 1167.48 | M21: 1660.379 | N21: 362.232 | O21: 423.004 | P21: 727.0188 | Q21: 0.03986920431 | R21: 0.02496556455 | S21: -6858.3982 | U21: =G21-INDEX($C21:$G21,1,aux!$AL$1) -> -841.52 | V21: -0.1400639435 | W21: -0.04469092644 | X21: =+IF(INDEX($C21:$G21,1,aux!$AL$1)>0,(G21/INDEX($C21:$G21,1,aux!$AL$1))^(1/($G$3-INDEX($C$3:$G$3,1,aux!$AL$1)))-1,"n.d.") -> -0.02730197725 | Y21: =IF(INDEX($C21:$G21,1,aux!$AL$1)>0,(G21-INDEX($C21:$G21,1,aux!$AL$1))/INDEX($C21:$G21,1,aux!$AL$1),"n.d.") -> -0.104816369 | AA21: =O21-INDEX($K21:$O21,1,aux!$AL$1) -> 401.005 | AB21: 0.07152900893 | AC21: 0.03958109315 | AD21: =+IF(INDEX($K21:$O21,1,aux!$AL$1)>0,(O21/INDEX($K21:$O21,1,aux!$AL$1))^(1/($O$3-INDEX($K$3:$O$3,1,aux!$AL$1)))-1,"n.d.") -> 1.094041979 | AE21: =IF(INDEX($K21:$O21,1,aux!$AL$1)>0,(O21-INDEX($K21:$O21,1,aux!$AL$1))/INDEX($K21:$O21,1,aux!$AL$1),"n.d.") -> 18.22832856
A22: 20 | B22: Preparações de produtos vegetais | C22: 0.022 | D22: 28.819 | E22: 134.077 | F22: 411.271 | G22: 615.963 | H22: 238.0304 | I22: 0.01073698073 | J22: 0.006620852179 | K22: 1577.837 | L22: 703.936 | M22: 1322.332 | N22: 1323.014 | O22: 1250.668 | P22: 1235.5574 | Q22: 0.06775710672 | R22: 0.04242859748 | S22: 997.527 | U22: =G22-INDEX($C22:$G22,1,aux!$AL$1) -> 615.941 | V22: 0.1025182116 | W22: 0.03271101569 | X22: =+IF(INDEX($C22:$G22,1,aux!$AL$1)>0,(G22/INDEX($C22:$G22,1,aux!$AL$1))^(1/($G$3-INDEX($C$3:$G$3,1,aux!$AL$1)))-1,"n.d.") -> 11.93549303 | Y22: =IF(INDEX($C22:$G22,1,aux!$AL$1)>0,(G22-INDEX($C22:$G22,1,aux!$AL$1))/INDEX($C22:$G22,1,aux!$AL$1),"n.d.") -> 27997.31818 | AA22: =O22-INDEX($K22:$O22,1,aux!$AL$1) -> -327.169 | AB22: -0.05835855993 | AC22: -0.03229313017 | AD22: =+IF(INDEX($K22:$O22,1,aux!$AL$1)>0,(O22/INDEX($K22:$O22,1,aux!$AL$1))^(1/($O$3-INDEX($K$3:$O$3,1,aux!$AL$1)))-1,"n.d.") -> -0.05643901408 | AE22: =IF(INDEX($K22:$O22,1,aux!$AL$1)>0,(O22-INDEX($K22:$O22,1,aux!$AL$1))/INDEX($K22:$O22,1,aux!$AL$1),"n.d.") -> -0.2073528508
A23: 21 | B23: Preparações alimentícias diversas | C23: 1189.683 | D23: 957.068 | E23: 1081.027 | F23: 948.969 | G23: 1155.709 | H23: 1066.4912 | I23: 0.04810686143 | J23: 0.02966461673 | K23: 833.029 | L23: 819.062 | M23: 1252.096 | N23: 3733.712 | O23: 4242.602 | P23: 2176.1002 | Q23: 0.1193358184 | R23: 0.07472649953 | S23: 1109.609 | U23: =G23-INDEX($C23:$G23,1,aux!$AL$1) -> -33.974 | V23: -0.005654687254 | W23: -0.00180427029 | X23: =+IF(INDEX($C23:$G23,1,aux!$AL$1)>0,(G23/INDEX($C23:$G23,1,aux!$AL$1))^(1/($G$3-INDEX($C$3:$G$3,1,aux!$AL$1)))-1,"n.d.") -> -0.007217050265 | Y23: =IF(INDEX($C23:$G23,1,aux!$AL$1)>0,(G23-INDEX($C23:$G23,1,aux!$AL$1))/INDEX($C23:$G23,1,aux!$AL$1),"n.d.") -> -0.02855718708 | AA23: =O23-INDEX($K23:$O23,1,aux!$AL$1) -> 3409.573 | AB23: 0.6081803907 | AC23: 0.336541007 | AD23: =+IF(INDEX($K23:$O23,1,aux!$AL$1)>0,(O23/INDEX($K23:$O23,1,aux!$AL$1))^(1/($O$3-INDEX($K$3:$O$3,1,aux!$AL$1)))-1,"n.d.") -> 0.5022528719 | AE23: =IF(INDEX($K23:$O23,1,aux!$AL$1)>0,(O23-INDEX($K23:$O23,1,aux!$AL$1))/INDEX($K23:$O23,1,aux!$AL$1),"n.d.") -> 4.092982357
A24: 22 | B24: Bebidas, líquidos alcoólicos e vinagres | C24: 109.917 | D24: 72.765 | E24: 34.801 | F24: 66.415 | G24: 119.406 | H24: 80.6608 | I24: 0.003638415327 | J24: 0.002243592555 | K24: 2665.208 | L24: 2459.709 | M24: 2142.658 | N24: 2157.525 | O24: 2459.974 | P24: 2377.0148 | Q24: 0.130353835 | R24: 0.08162583475 | S24: 2296.354 | U24: =G24-INDEX($C24:$G24,1,aux!$AL$1) -> 9.489 | V24: 0.001579364436 | W24: 0.0005039359742 | X24: =+IF(INDEX($C24:$G24,1,aux!$AL$1)>0,(G24/INDEX($C24:$G24,1,aux!$AL$1))^(1/($G$3-INDEX($C$3:$G$3,1,aux!$AL$1)))-1,"n.d.") -> 0.0209167303 | Y24: =IF(INDEX($C24:$G24,1,aux!$AL$1)>0,(G24-INDEX($C24:$G24,1,aux!$AL$1))/INDEX($C24:$G24,1,aux!$AL$1),"n.d.") -> 0.08632877535 | AA24: =O24-INDEX($K24:$O24,1,aux!$AL$1) -> -205.234 | AB24: -0.03660848274 | AC24: -0.02025756804 | AD24: =+IF(INDEX($K24:$O24,1,aux!$AL$1)>0,(O24/INDEX($K24:$O24,1,aux!$AL$1))^(1/($O$3-INDEX($K$3:$O$3,1,aux!$AL$1)))-1,"n.d.") -> -0.01983350672 | AE24: =IF(INDEX($K24:$O24,1,aux!$AL$1)>0,(O24-INDEX($K24:$O24,1,aux!$AL$1))/INDEX($K24:$O24,1,aux!$AL$1),"n.d.") -> -0.07700487166
A25: 23a | B25: Resíduos indústrias alimentares; alimentos p/ animais (exc. NC 230120) (a) | C25: 535.039 | D25: 822.803 | E25: 599.273 | F25: 1824.443 | G25: 1720.359 | H25: 1100.3834 | I25: 0.04963565732 | J25: 0.03060733348 | K25: 987.893 | L25: 813.39 | M25: 1092.023 | N25: 1716.662 | O25: 1354.409 | P25: 1192.8754 | Q25: 0.06541645559 | R25: 0.04096291293 | S25: 92.492 | U25: =G25-INDEX($C25:$G25,1,aux!$AL$1) -> 1185.32 | V25: 0.197286569 | W25: 0.06294924533 | X25: =+IF(INDEX($C25:$G25,1,aux!$AL$1)>0,(G25/INDEX($C25:$G25,1,aux!$AL$1))^(1/($G$3-INDEX($C$3:$G$3,1,aux!$AL$1)))-1,"n.d.") -> 0.3390858195 | Y25: =IF(INDEX($C25:$G25,1,aux!$AL$1)>0,(G25-INDEX($C25:$G25,1,aux!$AL$1))/INDEX($C25:$G25,1,aux!$AL$1),"n.d.") -> 2.215389906 | AA25: =O25-INDEX($K25:$O25,1,aux!$AL$1) -> 366.516 | AB25: 0.06537705574 | AC25: 0.03617686547 | AD25: =+IF(INDEX($K25:$O25,1,aux!$AL$1)>0,(O25/INDEX($K25:$O25,1,aux!$AL$1))^(1/($O$3-INDEX($K$3:$O$3,1,aux!$AL$1)))-1,"n.d.") -> 0.08208152144 | AE25: =IF(INDEX($K25:$O25,1,aux!$AL$1)>0,(O25-INDEX($K25:$O25,1,aux!$AL$1))/INDEX($K25:$O25,1,aux!$AL$1),"n.d.") -> 0.3710077913
A26: 24 | B26: Tabaco | C26: 4729.83 | D26: 5413.002 | E26: 6043.407 | F26: 3566.583 | G26: 4632.844 | H26: 4877.1332 | I26: 0.2199957871 | J26: 0.1356582099 | K26: 898.22 | L26: 1280.095 | M26: 1432.218 | N26: 1018.458 | O26: 2200.865 | P26: 1365.9712 | Q26: 0.07490890863 | R26: 0.04690696055 | S26: -3511.162 | U26: =G26-INDEX($C26:$G26,1,aux!$AL$1) -> -96.986 | V26: -0.01614250597 | W26: -0.00515067282 | X26: =+IF(INDEX($C26:$G26,1,aux!$AL$1)>0,(G26/INDEX($C26:$G26,1,aux!$AL$1))^(1/($G$3-INDEX($C$3:$G$3,1,aux!$AL$1)))-1,"n.d.") -> -0.005166190765 | Y26: =IF(INDEX($C26:$G26,1,aux!$AL$1)>0,(G26-INDEX($C26:$G26,1,aux!$AL$1))/INDEX($C26:$G26,1,aux!$AL$1),"n.d.") -> -0.02050517672 | AA26: =O26-INDEX($K26:$O26,1,aux!$AL$1) -> 1302.645 | AB26: 0.232358464 | AC26: 0.1285772324 | AD26: =+IF(INDEX($K26:$O26,1,aux!$AL$1)>0,(O26/INDEX($K26:$O26,1,aux!$AL$1))^(1/($O$3-INDEX($K$3:$O$3,1,aux!$AL$1)))-1,"n.d.") -> 0.2511306709 | AE26: =IF(INDEX($K26:$O26,1,aux!$AL$1)>0,(O26-INDEX($K26:$O26,1,aux!$AL$1))/INDEX($K26:$O26,1,aux!$AL$1),"n.d.") -> 1.450251609
A27: 29 | B27: Manitol e sorbitol (NC 290543; 290544) | C27: 0 | D27: 0 | E27: 0 | F27: 0 | G27: 0 | H27: 0 | I27: 0 | J27: 0 | K27: 0 | L27: 0 | M27: 0 | N27: 0 | O27: 0 | P27: 0 | Q27: 0 | R27: 0 | S27: 0 | U27: =G27-INDEX($C27:$G27,1,aux!$AL$1) -> 0 | V27: 0 | W27: 0 | X27: =+IF(INDEX($C27:$G27,1,aux!$AL$1)>0,(G27/INDEX($C27:$G27,1,aux!$AL$1))^(1/($G$3-INDEX($C$3:$G$3,1,aux!$AL$1)))-1,"n.d.") -> n.d. | Y27: =IF(INDEX($C27:$G27,1,aux!$AL$1)>0,(G27-INDEX($C27:$G27,1,aux!$AL$1))/INDEX($C27:$G27,1,aux!$AL$1),"n.d.") -> n.d. | AA27: =O27-INDEX($K27:$O27,1,aux!$AL$1) -> 0 | AB27: 0 | AC27: 0 | AD27: =+IF(INDEX($K27:$O27,1,aux!$AL$1)>0,(O27/INDEX($K27:$O27,1,aux!$AL$1))^(1/($O$3-INDEX($K$3:$O$3,1,aux!$AL$1)))-1,"n.d.") -> n.d. | AE27: =IF(INDEX($K27:$O27,1,aux!$AL$1)>0,(O27-INDEX($K27:$O27,1,aux!$AL$1))/INDEX($K27:$O27,1,aux!$AL$1),"n.d.") -> n.d.
A28: 33 | B28: Óleos essenciais e resinóides (NC 3301) | C28: 20.561 | D28: 0 | E28: 0.01 | F28: 0.232 | G28: 0.057 | H28: 4.172 | I28: 0.0001881889188 | J28: 0.0001160448215 | K28: 4.211 | L28: 1.72 | M28: 1.609 | N28: 2.675 | O28: 2.972 | P28: 2.6374 | Q28: 0.0001446331779 | R28: 9.056736903e-05 | S28: -1.5346 | U28: =G28-INDEX($C28:$G28,1,aux!$AL$1) -> -20.504 | V28: -0.003412718769 | W28: -0.001088913817 | X28: =+IF(INDEX($C28:$G28,1,aux!$AL$1)>0,(G28/INDEX($C28:$G28,1,aux!$AL$1))^(1/($G$3-INDEX($C$3:$G$3,1,aux!$AL$1)))-1,"n.d.") -> -0.7705396479 | Y28: =IF(INDEX($C28:$G28,1,aux!$AL$1)>0,(G28-INDEX($C28:$G28,1,aux!$AL$1))/INDEX($C28:$G28,1,aux!$AL$1),"n.d.") -> -0.9972277613 | AA28: =O28-INDEX($K28:$O28,1,aux!$AL$1) -> -1.239 | AB28: -0.000221005828 | AC28: -0.0001222951694 | AD28: =+IF(INDEX($K28:$O28,1,aux!$AL$1)>0,(O28/INDEX($K28:$O28,1,aux!$AL$1))^(1/($O$3-INDEX($K$3:$O$3,1,aux!$AL$1)))-1,"n.d.") -> -0.083429467 | AE28: =IF(INDEX($K28:$O28,1,aux!$AL$1)>0,(O28-INDEX($K28:$O28,1,aux!$AL$1))/INDEX($K28:$O28,1,aux!$AL$1),"n.d.") -> -0.2942293992
A29: 35 | B29: Caseínas, albuminas, gelatinas, peptonas, dextrinas (NC 3501 a 3505) | C29: 167.254 | D29: 265.134 | E29: 301.097 | F29: 458.286 | G29: 602.198 | H29: 358.7938 | I29: 0.01618432821 | J29: 0.00997990472 | K29: 0.839 | L29: 4.762 | M29: 5.976 | N29: 0 | O29: 2.511 | P29: 2.8176 | Q29: 0.0001545152203 | R29: 9.675537232e-05 | S29: -355.9762 | U29: =G29-INDEX($C29:$G29,1,aux!$AL$1) -> 434.944 | V29: 0.07239277956 | W29: 0.02309873837 | X29: =+IF(INDEX($C29:$G29,1,aux!$AL$1)>0,(G29/INDEX($C29:$G29,1,aux!$AL$1))^(1/($G$3-INDEX($C$3:$G$3,1,aux!$AL$1)))-1,"n.d.") -> 0.3774971182 | Y29: =IF(INDEX($C29:$G29,1,aux!$AL$1)>0,(G29-INDEX($C29:$G29,1,aux!$AL$1))/INDEX($C29:$G29,1,aux!$AL$1),"n.d.") -> 2.600499839 | AA29: =O29-INDEX($K29:$O29,1,aux!$AL$1) -> 1.672 | AB29: 0.0002982419245 | AC29: 0.0001650343206 | AD29: =+IF(INDEX($K29:$O29,1,aux!$AL$1)>0,(O29/INDEX($K29:$O29,1,aux!$AL$1))^(1/($O$3-INDEX($K$3:$O$3,1,aux!$AL$1)))-1,"n.d.") -> 0.3152889998 | AE29: =IF(INDEX($K29:$O29,1,aux!$AL$1)>0,(O29-INDEX($K29:$O29,1,aux!$AL$1))/INDEX($K29:$O29,1,aux!$AL$1),"n.d.") -> 1.992848629
A30: 38a | B30: Agentes de acabamento, ácidos gordos, sorbitol (NC 380910, 382311-12-13-19-70, 382460) (a) | C30: 0.807 | D30: 0 | E30: 0 | F30: 0 | G30: 0 | H30: 0.1614 | I30: 7.28036709e-06 | J30: 4.489365819e-06 | K30: 0 | L30: 0 | M30: 0 | N30: 0 | O30: 0 | P30: 0 | Q30: 0 | R30: 0 | S30: -0.1614 | U30: =G30-INDEX($C30:$G30,1,aux!$AL$1) -> -0.807 | V30: -0.0001343183792 | W30: -4.285765952e-05 | X30: =+IF(INDEX($C30:$G30,1,aux!$AL$1)>0,(G30/INDEX($C30:$G30,1,aux!$AL$1))^(1/($G$3-INDEX($C$3:$G$3,1,aux!$AL$1)))-1,"n.d.") -> -1 | Y30: =IF(INDEX($C30:$G30,1,aux!$AL$1)>0,(G30-INDEX($C30:$G30,1,aux!$AL$1))/INDEX($C30:$G30,1,aux!$AL$1),"n.d.") -> -1 | AA30: =O30-INDEX($K30:$O30,1,aux!$AL$1) -> 0 | AB30: 0 | AC30: 0 | AD30: =+IF(INDEX($K30:$O30,1,aux!$AL$1)>0,(O30/INDEX($K30:$O30,1,aux!$AL$1))^(1/($O$3-INDEX($K$3:$O$3,1,aux!$AL$1)))-1,"n.d.") -> n.d. | AE30: =IF(INDEX($K30:$O30,1,aux!$AL$1)>0,(O30-INDEX($K30:$O30,1,aux!$AL$1))/INDEX($K30:$O30,1,aux!$AL$1),"n.d.") -> n.d.
A31: 41 | B31: Couro e peles em bruto (NC 4101 a 4103) | C31: 0 | D31: 0 | E31: 148.515 | F31: 82.621 | G31: 1193.251 | H31: 284.8774 | I31: 0.0128501366 | J31: 0.007923908687 | K31: 0 | L31: 0 | M31: 39.127 | N31: 12.959 | O31: 67.803 | P31: 23.9778 | Q31: 0.001314925841 | R31: 0.0008233890426 | S31: -260.8996 | U31: =G31-INDEX($C31:$G31,1,aux!$AL$1) -> 1193.251 | V31: 0.1986066174 | W31: 0.06337043999 | X31: =+IF(INDEX($C31:$G31,1,aux!$AL$1)>0,(G31/INDEX($C31:$G31,1,aux!$AL$1))^(1/($G$3-INDEX($C$3:$G$3,1,aux!$AL$1)))-1,"n.d.") -> n.d. | Y31: =IF(INDEX($C31:$G31,1,aux!$AL$1)>0,(G31-INDEX($C31:$G31,1,aux!$AL$1))/INDEX($C31:$G31,1,aux!$AL$1),"n.d.") -> n.d. | AA31: =O31-INDEX($K31:$O31,1,aux!$AL$1) -> 67.803 | AB31: 0.01209431651 | AC31: 0.006692477297 | AD31: =+IF(INDEX($K31:$O31,1,aux!$AL$1)>0,(O31/INDEX($K31:$O31,1,aux!$AL$1))^(1/($O$3-INDEX($K$3:$O$3,1,aux!$AL$1)))-1,"n.d.") -> n.d. | AE31: =IF(INDEX($K31:$O31,1,aux!$AL$1)>0,(O31-INDEX($K31:$O31,1,aux!$AL$1))/INDEX($K31:$O31,1,aux!$AL$1),"n.d.") -> n.d.
A32: 43 | B32: Peles com pelo em bruto (NC 4301) | C32: 811.113 | D32: 832.928 | E32: 871.651 | F32: 1016.057 | G32: 1598.211 | H32: 1025.992 | I32: 0.0462800396 | J32: 0.02853812525 | K32: 0 | L32: 0 | M32: 0 | N32: 0 | O32: 0 | P32: 0 | Q32: 0 | R32: 0 | S32: -1025.992 | U32: =G32-INDEX($C32:$G32,1,aux!$AL$1) -> 787.098 | V32: 0.1310058582 | W32: 0.04180071634 | X32: =+IF(INDEX($C32:$G32,1,aux!$AL$1)>0,(G32/INDEX($C32:$G32,1,aux!$AL$1))^(1/($G$3-INDEX($C$3:$G$3,1,aux!$AL$1)))-1,"n.d.") -> 0.1847812931 | Y32: =IF(INDEX($C32:$G32,1,aux!$AL$1)>0,(G32-INDEX($C32:$G32,1,aux!$AL$1))/INDEX($C32:$G32,1,aux!$AL$1),"n.d.") -> 0.9703925347 | AA32: =O32-INDEX($K32:$O32,1,aux!$AL$1) -> 0 | AB32: 0 | AC32: 0 | AD32: =+IF(INDEX($K32:$O32,1,aux!$AL$1)>0,(O32/INDEX($K32:$O32,1,aux!$AL$1))^(1/($O$3-INDEX($K$3:$O$3,1,aux!$AL$1)))-1,"n.d.") -> n.d. | AE32: =IF(INDEX($K32:$O32,1,aux!$AL$1)>0,(O32-INDEX($K32:$O32,1,aux!$AL$1))/INDEX($K32:$O32,1,aux!$AL$1),"n.d.") -> n.d.
A33: 50 | B33: Seda crua (NC 5001-5003) | C33: 0 | D33: 0 | E33: 0 | F33: 0 | G33: 0 | H33: 0 | I33: 0 | J33: 0 | K33: 0 | L33: 0 | M33: 0 | N33: 0 | O33: 0 | P33: 0 | Q33: 0 | R33: 0 | S33: 0 | U33: =G33-INDEX($C33:$G33,1,aux!$AL$1) -> 0 | V33: 0 | W33: 0 | X33: =+IF(INDEX($C33:$G33,1,aux!$AL$1)>0,(G33/INDEX($C33:$G33,1,aux!$AL$1))^(1/($G$3-INDEX($C$3:$G$3,1,aux!$AL$1)))-1,"n.d.") -> n.d. | Y33: =IF(INDEX($C33:$G33,1,aux!$AL$1)>0,(G33-INDEX($C33:$G33,1,aux!$AL$1))/INDEX($C33:$G33,1,aux!$AL$1),"n.d.") -> n.d. | AA33: =O33-INDEX($K33:$O33,1,aux!$AL$1) -> 0 | AB33: 0 | AC33: 0 | AD33: =+IF(INDEX($K33:$O33,1,aux!$AL$1)>0,(O33/INDEX($K33:$O33,1,aux!$AL$1))^(1/($O$3-INDEX($K$3:$O$3,1,aux!$AL$1)))-1,"n.d.") -> n.d. | AE33: =IF(INDEX($K33:$O33,1,aux!$AL$1)>0,(O33-INDEX($K33:$O33,1,aux!$AL$1))/INDEX($K33:$O33,1,aux!$AL$1),"n.d.") -> n.d.
A34: 51 | B34: Lã não cardada (NC 5101-5103) | C34: 0 | D34: 24.922 | E34: 16.017 | F34: 23.882 | G34: 60.795 | H34: 25.1232 | I34: 0.001133247326 | J34: 0.0006988056713 | K34: 0 | L34: 0 | M34: 0 | N34: 0 | O34: 0 | P34: 0 | Q34: 0 | R34: 0 | S34: -25.1232 | U34: =G34-INDEX($C34:$G34,1,aux!$AL$1) -> 60.795 | V34: 0.01011881767 | W34: 0.003228663458 | X34: =+IF(INDEX($C34:$G34,1,aux!$AL$1)>0,(G34/INDEX($C34:$G34,1,aux!$AL$1))^(1/($G$3-INDEX($C$3:$G$3,1,aux!$AL$1)))-1,"n.d.") -> n.d. | Y34: =IF(INDEX($C34:$G34,1,aux!$AL$1)>0,(G34-INDEX($C34:$G34,1,aux!$AL$1))/INDEX($C34:$G34,1,aux!$AL$1),"n.d.") -> n.d. | AA34: =O34-INDEX($K34:$O34,1,aux!$AL$1) -> 0 | AB34: 0 | AC34: 0 | AD34: =+IF(INDEX($K34:$O34,1,aux!$AL$1)>0,(O34/INDEX($K34:$O34,1,aux!$AL$1))^(1/($O$3-INDEX($K$3:$O$3,1,aux!$AL$1)))-1,"n.d.") -> n.d. | AE34: =IF(INDEX($K34:$O34,1,aux!$AL$1)>0,(O34-INDEX($K34:$O34,1,aux!$AL$1))/INDEX($K34:$O34,1,aux!$AL$1),"n.d.") -> n.d.
A35: 52 | B35: Algodão (NC 5201-5203) | C35: 0 | D35: 0 | E35: 0 | F35: 46.323 | G35: 0 | H35: 9.2646 | I35: 0.0004179038968 | J35: 0.0002576962736 | K35: 0 | L35: 0 | M35: 0 | N35: 0.011 | O35: 0 | P35: 0.0022 | Q35: 1.206464668e-07 | R35: 7.554721008e-08 | S35: -9.2624 | U35: =G35-INDEX($C35:$G35,1,aux!$AL$1) -> 0 | V35: 0 | W35: 0 | X35: =+IF(INDEX($C35:$G35,1,aux!$AL$1)>0,(G35/INDEX($C35:$G35,1,aux!$AL$1))^(1/($G$3-INDEX($C$3:$G$3,1,aux!$AL$1)))-1,"n.d.") -> n.d. | Y35: =IF(INDEX($C35:$G35,1,aux!$AL$1)>0,(G35-INDEX($C35:$G35,1,aux!$AL$1))/INDEX($C35:$G35,1,aux!$AL$1),"n.d.") -> n.d. | AA35: =O35-INDEX($K35:$O35,1,aux!$AL$1) -> 0 | AB35: 0 | AC35: 0 | AD35: =+IF(INDEX($K35:$O35,1,aux!$AL$1)>0,(O35/INDEX($K35:$O35,1,aux!$AL$1))^(1/($O$3-INDEX($K$3:$O$3,1,aux!$AL$1)))-1,"n.d.") -> n.d. | AE35: =IF(INDEX($K35:$O35,1,aux!$AL$1)>0,(O35-INDEX($K35:$O35,1,aux!$AL$1))/INDEX($K35:$O35,1,aux!$AL$1),"n.d.") -> n.d.
A36: 53 | B36: Linho e cânhamo em bruto (NC 5301-5302) | C36: 0 | D36: 0 | E36: 0 | F36: 0 | G36: 0 | H36: 0 | I36: 0 | J36: 0 | K36: 0 | L36: 0 | M36: 0 | N36: 0 | O36: 0 | P36: 0 | Q36: 0 | R36: 0 | S36: 0 | U36: =G36-INDEX($C36:$G36,1,aux!$AL$1) -> 0 | V36: 0 | W36: =IF($U$53<>0,U36/$U$53, "n.d.") -> 0 | X36: =+IF(INDEX($C36:$G36,1,aux!$AL$1)>0,(G36/INDEX($C36:$G36,1,aux!$AL$1))^(1/($G$3-INDEX($C$3:$G$3,1,aux!$AL$1)))-1,"n.d.") -> n.d. | Y36: =IF(INDEX($C36:$G36,1,aux!$AL$1)>0,(G36-INDEX($C36:$G36,1,aux!$AL$1))/INDEX($C36:$G36,1,aux!$AL$1),"n.d.") -> n.d. | AA36: =O36-INDEX($K36:$O36,1,aux!$AL$1) -> 0 | AB36: 0 | AC36: =IF($AA$53<>0,AA36/$AA$53, "n.d.") -> 0 | AD36: =+IF(INDEX($K36:$O36,1,aux!$AL$1)>0,(O36/INDEX($K36:$O36,1,aux!$AL$1))^(1/($O$3-INDEX($K$3:$O$3,1,aux!$AL$1)))-1,"n.d.") -> n.d. | AE36: =IF(INDEX($K36:$O36,1,aux!$AL$1)>0,(O36-INDEX($K36:$O36,1,aux!$AL$1))/INDEX($K36:$O36,1,aux!$AL$1),"n.d.") -> n.d.
A37: Subtotal Agrícola e Agroalimentar | C37: 20687.836 | D37: 22026.476 | E37: 21041.675 | F37: 20394.123 | G37: 26695.949 | H37: 22169.2118 | I37: 1 | J37: 0.6166400352 | K37: 15088.333 | L37: 16566.394 | M37: 18518.819 | N37: 20307.418 | O37: 20694.52 | P37: 18235.0968 | Q37: 1 | R37: 0.6261866767 | S37: -3934.115 | U37: =G37-INDEX($C37:$G37,1,aux!$AL$1) -> 6008.113 | V37: 1 | W37: 0.3190751689 | X37: =+IF(INDEX($C37:$G37,1,aux!$AL$1)>0,(G37/INDEX($C37:$G37,1,aux!$AL$1))^(1/($G$3-INDEX($C$3:$G$3,1,aux!$AL$1)))-1,"n.d.") -> 0.06581683253 | Y37: =IF(INDEX($C37:$G37,1,aux!$AL$1)>0,(G37-INDEX($C37:$G37,1,aux!$AL$1))/INDEX($C37:$G37,1,aux!$AL$1),"n.d.") -> 0.2904176638 | AA37: =O37-INDEX($K37:$O37,1,aux!$AL$1) -> 5606.187 | AB37: 1 | AC37: 0.5533572146 | AD37: =+IF(INDEX($K37:$O37,1,aux!$AL$1)>0,(O37/INDEX($K37:$O37,1,aux!$AL$1))^(1/($O$3-INDEX($K$3:$O$3,1,aux!$AL$1)))-1,"n.d.") -> 0.08219001942 | AE37: =IF(INDEX($K37:$O37,1,aux!$AL$1)>0,(O37-INDEX($K37:$O37,1,aux!$AL$1))/INDEX($K37:$O37,1,aux!$AL$1),"n.d.") -> 0.371557746
A38: 03 | B38: Peixes e crustáceos | C38: 29.55 | D38: 63.755 | E38: 71.12 | F38: 39.535 | G38: 62.739 | H38: 53.3398 | I38: 0.3630988362 | J38: 0.001483654739 | K38: 168.308 | L38: 348.858 | M38: 313.7 | N38: 272.183 | O38: 519.136 | P38: 324.437 | Q38: 0.2252837286 | R38: 0.01114105009 | S38: 271.0972 | U38: =G38-INDEX($C38:$G38,1,aux!$AL$1) -> 33.189 | V38: =IF($U$44<>0,U38/$U$44, "n.d.") -> 0.1680106915 | W38: 0.001762580993 | X38: =+IF(INDEX($C38:$G38,1,aux!$AL$1)>0,(G38/INDEX($C38:$G38,1,aux!$AL$1))^(1/($G$3-INDEX($C$3:$G$3,1,aux!$AL$1)))-1,"n.d.") -> 0.2071049386 | Y38: =IF(INDEX($C38:$G38,1,aux!$AL$1)>0,(G38-INDEX($C38:$G38,1,aux!$AL$1))/INDEX($C38:$G38,1,aux!$AL$1),"n.d.") -> 1.123147208 | AA38: =O38-INDEX($K38:$O38,1,aux!$AL$1) -> 350.828 | AB38: =IF($AA$44<>0,AA38/$AA$44, "n.d.") -> 0.1489913521 | AC38: 0.03462838555 | AD38: =+IF(INDEX($K38:$O38,1,aux!$AL$1)>0,(O38/INDEX($K38:$O38,1,aux!$AL$1))^(1/($O$3-INDEX($K$3:$O$3,1,aux!$AL$1)))-1,"n.d.") -> 0.3252386604 | AE38: =IF(INDEX($K38:$O38,1,aux!$AL$1)>0,(O38-INDEX($K38:$O38,1,aux!$AL$1))/INDEX($K38:$O38,1,aux!$AL$1),"n.d.") -> 2.084440431
A39: 05p | B39: Outros produtos de pescado (NC 0508, 051191) (p) | C39: 1.671 | D39: 2.569 | E39: 2.079 | F39: 60.045 | G39: 120.769 | H39: 37.4266 | I39: 0.2547732632 | J39: 0.001041026634 | K39: 0 | L39: 0 | M39: 0 | N39: 0 | O39: 0 | P39: 0 | Q39: 0 | R39: 0 | S39: -37.4266 | U39: =G39-INDEX($C39:$G39,1,aux!$AL$1) -> 119.098 | V39: 0.6029026886 | W39: 0.006324983312 | X39: =+IF(INDEX($C39:$G39,1,aux!$AL$1)>0,(G39/INDEX($C39:$G39,1,aux!$AL$1))^(1/($G$3-INDEX($C$3:$G$3,1,aux!$AL$1)))-1,"n.d.") -> 1.915712878 | Y39: =IF(INDEX($C39:$G39,1,aux!$AL$1)>0,(G39-INDEX($C39:$G39,1,aux!$AL$1))/INDEX($C39:$G39,1,aux!$AL$1),"n.d.") -> 71.27348893 | AA39: =O39-INDEX($K39:$O39,1,aux!$AL$1) -> 0 | AB39: 0 | AC39: 0 | AD39: =+IF(INDEX($K39:$O39,1,aux!$AL$1)>0,(O39/INDEX($K39:$O39,1,aux!$AL$1))^(1/($O$3-INDEX($K$3:$O$3,1,aux!$AL$1)))-1,"n.d.") -> n.d. | AE39: =IF(INDEX($K39:$O39,1,aux!$AL$1)>0,(O39-INDEX($K39:$O39,1,aux!$AL$1))/INDEX($K39:$O39,1,aux!$AL$1),"n.d.") -> n.d.
A40: 16p | B40: Preparações e conservas de peixes ou crustáceos (NC 1604-05) (p) | C40: 0 | D40: 0.04 | E40: 21.867 | F40: 0.243 | G40: 0 | H40: 4.43 | I40: 0.03015624064 | J40: 0.0001232211312 | K40: 199.624 | L40: 549.586 | M40: 851.046 | N40: 1104.388 | O40: 1924.276 | P40: 925.784 | Q40: 0.642849217 | R40: 0.03179109015 | S40: 921.354 | U40: =G40-INDEX($C40:$G40,1,aux!$AL$1) -> 0 | V40: 0 | W40: 0 | X40: =+IF(INDEX($C40:$G40,1,aux!$AL$1)>0,(G40/INDEX($C40:$G40,1,aux!$AL$1))^(1/($G$3-INDEX($C$3:$G$3,1,aux!$AL$1)))-1,"n.d.") -> n.d. | Y40: =IF(INDEX($C40:$G40,1,aux!$AL$1)>0,(G40-INDEX($C40:$G40,1,aux!$AL$1))/INDEX($C40:$G40,1,aux!$AL$1),"n.d.") -> n.d. | AA40: =O40-INDEX($K40:$O40,1,aux!$AL$1) -> 1724.652 | AB40: 0.7324336525 | AC40: 0.1702313224 | AD40: =+IF(INDEX($K40:$O40,1,aux!$AL$1)>0,(O40/INDEX($K40:$O40,1,aux!$AL$1))^(1/($O$3-INDEX($K$3:$O$3,1,aux!$AL$1)))-1,"n.d.") -> 0.7620314365 | AE40: =IF(INDEX($K40:$O40,1,aux!$AL$1)>0,(O40-INDEX($K40:$O40,1,aux!$AL$1))/INDEX($K40:$O40,1,aux!$AL$1),"n.d.") -> 8.639502264
A41: 19p | B41: Massas recheadas com pescado (NC 19022010) (p) | C41: 0 | D41: 0 | E41: 0 | F41: 0.02 | G41: 0.032 | H41: 0.0104 | I41: 7.079568909e-05 | J41: 2.892775992e-07 | K41: 0 | L41: 0 | M41: 0 | N41: 0 | O41: 0 | P41: 0 | Q41: 0 | R41: 0 | S41: -0.0104 | U41: =G41-INDEX($C41:$G41,1,aux!$AL$1) -> 0.032 | V41: 0.0001619916878 | W41: 1.699436313e-06 | X41: =+IF(INDEX($C41:$G41,1,aux!$AL$1)>0,(G41/INDEX($C41:$G41,1,aux!$AL$1))^(1/($G$3-INDEX($C$3:$G$3,1,aux!$AL$1)))-1,"n.d.") -> n.d. | Y41: =IF(INDEX($C41:$G41,1,aux!$AL$1)>0,(G41-INDEX($C41:$G41,1,aux!$AL$1))/INDEX($C41:$G41,1,aux!$AL$1),"n.d.") -> n.d. | AA41: =O41-INDEX($K41:$O41,1,aux!$AL$1) -> 0 | AB41: 0 | AC41: 0 | AD41: =+IF(INDEX($K41:$O41,1,aux!$AL$1)>0,(O41/INDEX($K41:$O41,1,aux!$AL$1))^(1/($O$3-INDEX($K$3:$O$3,1,aux!$AL$1)))-1,"n.d.") -> n.d. | AE41: =IF(INDEX($K41:$O41,1,aux!$AL$1)>0,(O41-INDEX($K41:$O41,1,aux!$AL$1))/INDEX($K41:$O41,1,aux!$AL$1),"n.d.") -> n.d.
A42: 23p | B42: Farinhas de pescado (NC 230120) (p) | C42: 0 | D42: 0 | E42: 0 | F42: 0 | G42: 0 | H42: 0 | I42: 0 | J42: 0 | K42: 0 | L42: 0 | M42: 0 | N42: 0 | O42: 0 | P42: 0 | Q42: 0 | R42: 0 | S42: 0 | U42: =G42-INDEX($C42:$G42,1,aux!$AL$1) -> 0 | V42: 0 | W42: 0 | X42: =+IF(INDEX($C42:$G42,1,aux!$AL$1)>0,(G42/INDEX($C42:$G42,1,aux!$AL$1))^(1/($G$3-INDEX($C$3:$G$3,1,aux!$AL$1)))-1,"n.d.") -> n.d. | Y42: =IF(INDEX($C42:$G42,1,aux!$AL$1)>0,(G42-INDEX($C42:$G42,1,aux!$AL$1))/INDEX($C42:$G42,1,aux!$AL$1),"n.d.") -> n.d. | AA42: =O42-INDEX($K42:$O42,1,aux!$AL$1) -> 0 | AB42: 0 | AC42: 0 | AD42: =+IF(INDEX($K42:$O42,1,aux!$AL$1)>0,(O42/INDEX($K42:$O42,1,aux!$AL$1))^(1/($O$3-INDEX($K$3:$O$3,1,aux!$AL$1)))-1,"n.d.") -> n.d. | AE42: =IF(INDEX($K42:$O42,1,aux!$AL$1)>0,(O42-INDEX($K42:$O42,1,aux!$AL$1))/INDEX($K42:$O42,1,aux!$AL$1),"n.d.") -> n.d.
A43: 25 | B43: Sal e cloreto de sódio puro; água do mar (NC 2501) | C43: 19.624 | D43: 42.088 | E43: 97.958 | F43: 33.958 | G43: 64.846 | H43: 51.6948 | I43: 0.3519008643 | J43: 0.001437898811 | K43: 4.485 | L43: 0 | M43: 359.852 | N43: 301.497 | O43: 283.692 | P43: 189.9052 | Q43: 0.1318670544 | R43: 0.006521276381 | S43: 138.2104 | U43: =G43-INDEX($C43:$G43,1,aux!$AL$1) -> 45.222 | V43: 0.2289246283 | W43: 0.002401622154 | X43: =+IF(INDEX($C43:$G43,1,aux!$AL$1)>0,(G43/INDEX($C43:$G43,1,aux!$AL$1))^(1/($G$3-INDEX($C$3:$G$3,1,aux!$AL$1)))-1,"n.d.") -> 0.3482608198 | Y43: =IF(INDEX($C43:$G43,1,aux!$AL$1)>0,(G43-INDEX($C43:$G43,1,aux!$AL$1))/INDEX($C43:$G43,1,aux!$AL$1),"n.d.") -> 2.304423155 | AA43: =O43-INDEX($K43:$O43,1,aux!$AL$1) -> 279.207 | AB43: 0.1185749953 | AC43: 0.02755905356 | AD43: =+IF(INDEX($K43:$O43,1,aux!$AL$1)>0,(O43/INDEX($K43:$O43,1,aux!$AL$1))^(1/($O$3-INDEX($K$3:$O$3,1,aux!$AL$1)))-1,"n.d.") -> 1.820143194 | AE43: =IF(INDEX($K43:$O43,1,aux!$AL$1)>0,(O43-INDEX($K43:$O43,1,aux!$AL$1))/INDEX($K43:$O43,1,aux!$AL$1),"n.d.") -> 62.25351171
A44: Subtotal Mar | C44: 50.845 | D44: 108.452 | E44: 193.024 | F44: 133.801 | G44: 248.386 | H44: 146.9016 | I44: 1 | J44: 0.004086090593 | K44: 372.417 | L44: 898.444 | M44: 1524.598 | N44: 1678.068 | O44: 2727.104 | P44: 1440.1262 | Q44: 1 | R44: 0.04945341662 | S44: 1293.2246 | U44: =G44-INDEX($C44:$G44,1,aux!$AL$1) -> 197.541 | V44: 1 | W44: 0.0104908859 | X44: =+IF(INDEX($C44:$G44,1,aux!$AL$1)>0,(G44/INDEX($C44:$G44,1,aux!$AL$1))^(1/($G$3-INDEX($C$3:$G$3,1,aux!$AL$1)))-1,"n.d.") -> 0.4866875876 | Y44: =IF(INDEX($C44:$G44,1,aux!$AL$1)>0,(G44-INDEX($C44:$G44,1,aux!$AL$1))/INDEX($C44:$G44,1,aux!$AL$1),"n.d.") -> 3.885160783 | AA44: =O44-INDEX($K44:$O44,1,aux!$AL$1) -> 2354.687 | AB44: 1 | AC44: 0.2324187616 | AD44: =+IF(INDEX($K44:$O44,1,aux!$AL$1)>0,(O44/INDEX($K44:$O44,1,aux!$AL$1))^(1/($O$3-INDEX($K$3:$O$3,1,aux!$AL$1)))-1,"n.d.") -> 0.6450081379 | AE44: =IF(INDEX($K44:$O44,1,aux!$AL$1)>0,(O44-INDEX($K44:$O44,1,aux!$AL$1))/INDEX($K44:$O44,1,aux!$AL$1),"n.d.") -> 6.322716203
A45: 13f | B45: Gomas e resinas (NC 1301) (f) | C45: 0 | D45: 0 | E45: 0 | F45: 0 | G45: 0 | H45: 0 | I45: 0 | J45: 0 | K45: 14.456 | L45: 0.388 | M45: 0 | N45: 0 | O45: 10.418 | P45: 5.0524 | Q45: 0.000534892255 | R45: 0.0001734976019 | S45: 5.0524 | U45: =G45-INDEX($C45:$G45,1,aux!$AL$1) -> 0 | V45: =IF($U$52<>0,U45/$U$52, "n.d.") -> 0 | W45: 0 | X45: =+IF(INDEX($C45:$G45,1,aux!$AL$1)>0,(G45/INDEX($C45:$G45,1,aux!$AL$1))^(1/($G$3-INDEX($C$3:$G$3,1,aux!$AL$1)))-1,"n.d.") -> n.d. | Y45: =IF(INDEX($C45:$G45,1,aux!$AL$1)>0,(G45-INDEX($C45:$G45,1,aux!$AL$1))/INDEX($C45:$G45,1,aux!$AL$1),"n.d.") -> n.d. | AA45: =O45-INDEX($K45:$O45,1,aux!$AL$1) -> -4.038 | AB45: =IF($AA$52<>0,AA45/$AA$52, "n.d.") -> -0.001860527693 | AC45: -0.0003985697289 | AD45: =+IF(INDEX($K45:$O45,1,aux!$AL$1)>0,(O45/INDEX($K45:$O45,1,aux!$AL$1))^(1/($O$3-INDEX($K$3:$O$3,1,aux!$AL$1)))-1,"n.d.") -> -0.07863002979 | AE45: =IF(INDEX($K45:$O45,1,aux!$AL$1)>0,(O45-INDEX($K45:$O45,1,aux!$AL$1))/INDEX($K45:$O45,1,aux!$AL$1),"n.d.") -> -0.2793303818
A46: 38f | B46: Tall oil, essências e colofónias (NC 3803,3805,3806) (f) | C46: 0 | D46: 0 | E46: 0 | F46: 0.109 | G46: 0.038 | H46: 0.0294 | I46: 2.156134595e-06 | J46: 8.177655209e-07 | K46: 8.44 | L46: 47.47 | M46: 121.911 | N46: 284.555 | O46: 229.286 | P46: 138.3324 | Q46: 0.01464510517 | R46: 0.004750284947 | S46: 138.303 | U46: =G46-INDEX($C46:$G46,1,aux!$AL$1) -> 0.038 | V46: 3.010111042e-06 | W46: 2.018080622e-06 | X46: =+IF(INDEX($C46:$G46,1,aux!$AL$1)>0,(G46/INDEX($C46:$G46,1,aux!$AL$1))^(1/($G$3-INDEX($C$3:$G$3,1,aux!$AL$1)))-1,"n.d.") -> n.d. | Y46: =IF(INDEX($C46:$G46,1,aux!$AL$1)>0,(G46-INDEX($C46:$G46,1,aux!$AL$1))/INDEX($C46:$G46,1,aux!$AL$1),"n.d.") -> n.d. | AA46: =O46-INDEX($K46:$O46,1,aux!$AL$1) -> 220.846 | AB46: 0.1017558442 | AC46: 0.0217985464 | AD46: =+IF(INDEX($K46:$O46,1,aux!$AL$1)>0,(O46/INDEX($K46:$O46,1,aux!$AL$1))^(1/($O$3-INDEX($K$3:$O$3,1,aux!$AL$1)))-1,"n.d.") -> 1.283015041 | AE46: =IF(INDEX($K46:$O46,1,aux!$AL$1)>0,(O46-INDEX($K46:$O46,1,aux!$AL$1))/INDEX($K46:$O46,1,aux!$AL$1),"n.d.") -> 26.16658768
A47: 44 | B47: Madeira e suas obras | C47: 1939.211 | D47: 1680.378 | E47: 1485.078 | F47: 1842.924 | G47: 1735.227 | H47: 1736.5636 | I47: 0.1273559474 | J47: 0.04830278357 | K47: 678.002 | L47: 1085.022 | M47: 993.684 | N47: 1293.325 | O47: 1705.306 | P47: 1151.0678 | Q47: 0.121862333 | R47: 0.03952725495 | S47: -585.4958 | U47: =G47-INDEX($C47:$G47,1,aux!$AL$1) -> -203.984 | V47: -0.01615827607 | W47: -0.01083305678 | X47: =+IF(INDEX($C47:$G47,1,aux!$AL$1)>0,(G47/INDEX($C47:$G47,1,aux!$AL$1))^(1/($G$3-INDEX($C$3:$G$3,1,aux!$AL$1)))-1,"n.d.") -> -0.02740326421 | Y47: =IF(INDEX($C47:$G47,1,aux!$AL$1)>0,(G47-INDEX($C47:$G47,1,aux!$AL$1))/INDEX($C47:$G47,1,aux!$AL$1),"n.d.") -> -0.1051891723 | AA47: =O47-INDEX($K47:$O47,1,aux!$AL$1) -> 1027.304 | AB47: 0.4733352009 | AC47: 0.1013997714 | AD47: =+IF(INDEX($K47:$O47,1,aux!$AL$1)>0,(O47/INDEX($K47:$O47,1,aux!$AL$1))^(1/($O$3-INDEX($K$3:$O$3,1,aux!$AL$1)))-1,"n.d.") -> 0.2593395313 | AE47: =IF(INDEX($K47:$O47,1,aux!$AL$1)>0,(O47-INDEX($K47:$O47,1,aux!$AL$1))/INDEX($K47:$O47,1,aux!$AL$1),"n.d.") -> 1.515193171
A48: 45 | B48: Cortiça e suas obras | C48: 0.386 | D48: 23.161 | E48: 2.256 | F48: 0.025 | G48: 4.092 | H48: 5.984 | I48: 0.0004388540617 | J48: 0.0001664458802 | K48: 4345.715 | L48: 3861.484 | M48: 3660.539 | N48: 4306.679 | O48: 3860.203 | P48: 4006.924 | Q48: 0.4242088144 | R48: 0.1375963314 | S48: 4000.94 | U48: =G48-INDEX($C48:$G48,1,aux!$AL$1) -> 3.706 | V48: 0.0002935650401 | W48: 0.000196815968 | X48: =+IF(INDEX($C48:$G48,1,aux!$AL$1)>0,(G48/INDEX($C48:$G48,1,aux!$AL$1))^(1/($G$3-INDEX($C$3:$G$3,1,aux!$AL$1)))-1,"n.d.") -> 0.8044177064 | Y48: =IF(INDEX($C48:$G48,1,aux!$AL$1)>0,(G48-INDEX($C48:$G48,1,aux!$AL$1))/INDEX($C48:$G48,1,aux!$AL$1),"n.d.") -> 9.601036269 | AA48: =O48-INDEX($K48:$O48,1,aux!$AL$1) -> -485.512 | AB48: -0.2237019617 | AC48: -0.04792233437 | AD48: =+IF(INDEX($K48:$O48,1,aux!$AL$1)>0,(O48/INDEX($K48:$O48,1,aux!$AL$1))^(1/($O$3-INDEX($K$3:$O$3,1,aux!$AL$1)))-1,"n.d.") -> -0.02918332852 | AE48: =IF(INDEX($K48:$O48,1,aux!$AL$1)>0,(O48-INDEX($K48:$O48,1,aux!$AL$1))/INDEX($K48:$O48,1,aux!$AL$1),"n.d.") -> -0.1117220066
A49: 46 | B49: Obras de espartaria ou de cestaria | C49: 0 | D49: 0 | E49: 0 | F49: 0.067 | G49: 0.02 | H49: 0.0174 | I49: 1.276079658e-06 | J49: 4.839836756e-07 | K49: 0.468 | L49: 0.468 | M49: 0 | N49: 0.126 | O49: 1.137 | P49: 0.4398 | Q49: 4.656116177e-05 | R49: 1.510257409e-05 | S49: 0.4224 | U49: =G49-INDEX($C49:$G49,1,aux!$AL$1) -> 0.02 | V49: 1.58426897e-06 | W49: 1.062147696e-06 | X49: =+IF(INDEX($C49:$G49,1,aux!$AL$1)>0,(G49/INDEX($C49:$G49,1,aux!$AL$1))^(1/($G$3-INDEX($C$3:$G$3,1,aux!$AL$1)))-1,"n.d.") -> n.d. | Y49: =IF(INDEX($C49:$G49,1,aux!$AL$1)>0,(G49-INDEX($C49:$G49,1,aux!$AL$1))/INDEX($C49:$G49,1,aux!$AL$1),"n.d.") -> n.d. | AA49: =O49-INDEX($K49:$O49,1,aux!$AL$1) -> 0.669 | AB49: 0.0003082449299 | AC49: 6.60334692e-05 | AD49: =+IF(INDEX($K49:$O49,1,aux!$AL$1)>0,(O49/INDEX($K49:$O49,1,aux!$AL$1))^(1/($O$3-INDEX($K$3:$O$3,1,aux!$AL$1)))-1,"n.d.") -> 0.2484715579 | AE49: =IF(INDEX($K49:$O49,1,aux!$AL$1)>0,(O49-INDEX($K49:$O49,1,aux!$AL$1))/INDEX($K49:$O49,1,aux!$AL$1),"n.d.") -> 1.429487179
A50: 47 | B50: Pastas de madeira | C50: 0 | D50: 0 | E50: 0 | F50: 0.017 | G50: 3.206 | H50: 0.6446 | I50: 4.727361767e-05 | J50: 1.792964812e-05 | K50: 0 | L50: 0 | M50: 0 | N50: 0 | O50: 126.158 | P50: 25.2316 | Q50: 0.002671242859 | R50: 0.0008664440844 | S50: 24.587 | U50: =G50-INDEX($C50:$G50,1,aux!$AL$1) -> 3.206 | V50: 0.0002539583158 | W50: 0.0001702622756 | X50: =+IF(INDEX($C50:$G50,1,aux!$AL$1)>0,(G50/INDEX($C50:$G50,1,aux!$AL$1))^(1/($G$3-INDEX($C$3:$G$3,1,aux!$AL$1)))-1,"n.d.") -> n.d. | Y50: =IF(INDEX($C50:$G50,1,aux!$AL$1)>0,(G50-INDEX($C50:$G50,1,aux!$AL$1))/INDEX($C50:$G50,1,aux!$AL$1),"n.d.") -> n.d. | AA50: =O50-INDEX($K50:$O50,1,aux!$AL$1) -> 126.158 | AB50: 0.05812789815 | AC50: 0.01245239224 | AD50: =+IF(INDEX($K50:$O50,1,aux!$AL$1)>0,(O50/INDEX($K50:$O50,1,aux!$AL$1))^(1/($O$3-INDEX($K$3:$O$3,1,aux!$AL$1)))-1,"n.d.") -> n.d. | AE50: =IF(INDEX($K50:$O50,1,aux!$AL$1)>0,(O50-INDEX($K50:$O50,1,aux!$AL$1))/INDEX($K50:$O50,1,aux!$AL$1),"n.d.") -> n.d.
A51: 48 | B51: Papel e cartão | C51: 6782.011 | D51: 10848.98 | E51: 10194.26 | F51: 12032.972 | G51: 19603.144 | H51: 11892.2734 | I51: 0.8721544927 | J51: 0.3307854133 | K51: 3725.834 | L51: 3958.661 | M51: 4556.439 | N51: 3341.27 | O51: 5010.759 | P51: 4118.5926 | Q51: 0.4360310512 | R51: 0.1414309911 | S51: -7773.6808 | U51: =G51-INDEX($C51:$G51,1,aux!$AL$1) -> 12821.133 | V51: 1.015606158 | W51: 0.6808968435 | X51: =+IF(INDEX($C51:$G51,1,aux!$AL$1)>0,(G51/INDEX($C51:$G51,1,aux!$AL$1))^(1/($G$3-INDEX($C$3:$G$3,1,aux!$AL$1)))-1,"n.d.") -> 0.3038925685 | Y51: =IF(INDEX($C51:$G51,1,aux!$AL$1)>0,(G51-INDEX($C51:$G51,1,aux!$AL$1))/INDEX($C51:$G51,1,aux!$AL$1),"n.d.") -> 1.890461841 | AA51: =O51-INDEX($K51:$O51,1,aux!$AL$1) -> 1284.925 | AB51: 0.5920353012 | AC51: 0.1268281845 | AD51: =+IF(INDEX($K51:$O51,1,aux!$AL$1)>0,(O51/INDEX($K51:$O51,1,aux!$AL$1))^(1/($O$3-INDEX($K$3:$O$3,1,aux!$AL$1)))-1,"n.d.") -> 0.07688667555 | AE51: =IF(INDEX($K51:$O51,1,aux!$AL$1)>0,(O51-INDEX($K51:$O51,1,aux!$AL$1))/INDEX($K51:$O51,1,aux!$AL$1),"n.d.") -> 0.3448690951
A52: Subtotal Florestas | C52: 8721.608 | D52: 12552.519 | E52: 11681.594 | F52: 13876.114 | G52: 21345.727 | H52: 13635.5124 | I52: 1 | J52: 0.3792738742 | K52: 8772.915 | L52: 8953.493 | M52: 9332.573 | N52: 9225.955 | O52: 10943.267 | P52: 9445.6406 | Q52: 1 | R52: 0.3243599067 | S52: -4189.8718 | U52: =G52-INDEX($C52:$G52,1,aux!$AL$1) -> 12624.119 | V52: 1 | W52: 0.6704339452 | X52: =+IF(INDEX($C52:$G52,1,aux!$AL$1)>0,(G52/INDEX($C52:$G52,1,aux!$AL$1))^(1/($G$3-INDEX($C$3:$G$3,1,aux!$AL$1)))-1,"n.d.") -> 0.2507732857 | Y52: =IF(INDEX($C52:$G52,1,aux!$AL$1)>0,(G52-INDEX($C52:$G52,1,aux!$AL$1))/INDEX($C52:$G52,1,aux!$AL$1),"n.d.") -> 1.447453153 | AA52: =O52-INDEX($K52:$O52,1,aux!$AL$1) -> 2170.352 | AB52: 1 | AC52: 0.2142240238 | AD52: =+IF(INDEX($K52:$O52,1,aux!$AL$1)>0,(O52/INDEX($K52:$O52,1,aux!$AL$1))^(1/($O$3-INDEX($K$3:$O$3,1,aux!$AL$1)))-1,"n.d.") -> 0.05681937928 | AE52: =IF(INDEX($K52:$O52,1,aux!$AL$1)>0,(O52-INDEX($K52:$O52,1,aux!$AL$1))/INDEX($K52:$O52,1,aux!$AL$1),"n.d.") -> 0.2473923434
B53: TOTAL | C53: 29460.289 | D53: 34687.447 | E53: 32916.293 | F53: 34404.038 | G53: 48290.062 | H53: 35951.6258 | J53: 1 | K53: 24233.665 | L53: 26418.331 | M53: 29375.99 | N53: 31211.441 | O53: 34364.891 | P53: 29120.8636 | R53: 1 | S53: -6830.7622 | U53: =G53-INDEX($C53:$G53,1,aux!$AL$1) -> 18829.773 | W53: 1 | X53: =+IF(INDEX($C53:$G53,1,aux!$AL$1)>0,(G53/INDEX($C53:$G53,1,aux!$AL$1))^(1/($G$3-INDEX($C$3:$G$3,1,aux!$AL$1)))-1,"n.d.") -> 0.1315016459 | Y53: =IF(INDEX($C53:$G53,1,aux!$AL$1)>0,(G53-INDEX($C53:$G53,1,aux!$AL$1))/INDEX($C53:$G53,1,aux!$AL$1),"n.d.") -> 0.6391577829 | AA53: =O53-INDEX($K53:$O53,1,aux!$AL$1) -> 10131.226 | AC53: 1 | AD53: =+IF(INDEX($K53:$O53,1,aux!$AL$1)>0,(O53/INDEX($K53:$O53,1,aux!$AL$1))^(1/($O$3-INDEX($K$3:$O$3,1,aux!$AL$1)))-1,"n.d.") -> 0.09124927374 | AE53: =IF(INDEX($K53:$O53,1,aux!$AL$1)>0,(O53-INDEX($K53:$O53,1,aux!$AL$1))/INDEX($K53:$O53,1,aux!$AL$1),"n.d.") -> 0.4180641269
B54: a - agrícola e agroalimentar; p - pescas; f - florestas
A55: Fonte: GPP a partir de dados INE/Comércio Internacional (2021 provisórios; 2022 preliminares) | S55: 2023-07-31T11:56:40.420

Sheet 5.2_var
A1: ="Principais contributos por produto para a variação das trocas comerciais PT-República Checa_x000D_ no período " & INDEX('5.2'!K3:N3,1,aux!AL1) & "-2022 (NC 2 dígitos - milhares de euros) Produtos agrícolas e agroalimentares, do mar e da floresta" -> Principais contributos por produto para a variação das trocas comerciais PT-República Checa no período 2018-2022 (NC 2 dígitos - milhares de euros) Produtos agrícolas e agroalimentares, do mar e da floresta
E5: aumento das importações | J5: aumento das exportações
E17: redução das importações | J17: redução das exportações
A28: Fonte: GPP a partir de dados INE/Comércio Internacional (2021 provisórios; 2022 preliminares) | F28: a - agrícola e agroalimentar; p - mar; f - florestas | H28: ='3'!Y116 -> 2023-07-31T11:56:40.420
A29: Cód. NC | B29: Descritivo | C29: ="Variação das Importações " & INDEX('5.2'!K3:N3,1,aux!AL1) & "-"& '5.2'!O3 &"" -> Variação das Importações 2018-2022 | F29: Cód. NC | G29: Descritivo | H29: ="Variação das Exportações " & INDEX('5.2'!K3:N3,1,aux!AL1) & "-"& '5.2'!O3 &"" -> Variação das Exportações 2018-2022
C30: variação total em valor | D30: % do aumento/ redução total | H30: variação total em valor | I30: % do aumento/ redução total
A31: =IF(C31>0,aux!AU6,"") -> 48 | B31: =IF(C31>0,aux!AV6,"") -> Papel e cartão | C31: =IF(aux!AW6>0,aux!AW6,0) -> 12821.133 | D31: =IF(SUM($C$31:$C$41)<>0,C31/SUM($C$31:$C$41),0) -> 0.5928896158 | F31: =IF(H31>0,aux!AZ6,"") -> 21 | G31: =IF(H31>0,aux!BA6,"") -> Preparações alimentícias diversas | H31: =IF(aux!BB6>0,aux!BB6,0) -> 3409.573 | I31: =IF(SUM($H$31:$H$41)<>0,H31/SUM($H$31:$H$41),0) -> 0.2847305598
A32: =IF(C32>0,aux!AU7,"") -> 04 | B32: =IF(C32>0,aux!AV7,"") -> Leite e laticínios; ovos; mel, etc. | C32: =IF(aux!AW7>0,aux!AW7,0) -> 3770.45 | D32: =IF(SUM($C$31:$C$41)<>0,C32/SUM($C$31:$C$41),0) -> 0.1743574965 | F32: =IF(H32>0,aux!AZ7,"") -> 16p | G32: =IF(H32>0,aux!BA7,"") -> Preparações e conservas de peixes ou crustáceos (NC 1604-05) (p) | H32: =IF(aux!BB7>0,aux!BB7,0) -> 1724.652 | I32: =IF(SUM($H$31:$H$41)<>0,H32/SUM($H$31:$H$41),0) -> 0.144024231
A33: =IF(C33>0,aux!AU8,"") -> 41 | B33: =IF(C33>0,aux!AV8,"") -> Couro e peles em bruto (NC 4101 a 4103) | C33: =IF(aux!AW8>0,aux!AW8,0) -> 1193.251 | D33: 0.05517968864 | F33: =IF(H33>0,aux!AZ8,"") -> 24 | G33: =IF(H33>0,aux!BA8,"") -> Tabaco | H33: =IF(aux!BB8>0,aux!BB8,0) -> 1302.645 | I33: 0.1087827831
A34: =IF(C34>0,aux!AU9,"") -> 23a | B34: =IF(C34>0,aux!AV9,"") -> Resíduos indústrias alimentares; alimentos p/ animais (exc. NC 230120) (a) | C34: =IF(aux!AW9>0,aux!AW9,0) -> 1185.32 | D34: 0.05481293419 | F34: =IF(H34>0,aux!AZ9,"") -> 48 | G34: =IF(H34>0,aux!BA9,"") -> Papel e cartão | H34: =IF(aux!BB9>0,aux!BB9,0) -> 1284.925 | I34: 0.1073030009
A35: =IF(C35>0,aux!AU10,"") -> 43 | B35: =IF(C35>0,aux!AV10,"") -> Peles com pelo em bruto (NC 4301) | C35: =IF(aux!AW10>0,aux!AW10,0) -> 787.098 | D35: 0.03639789329 | F35: =IF(H35>0,aux!AZ10,"") -> 09 | G35: =IF(H35>0,aux!BA10,"") -> Café, chá, mate e especiarias | H35: =IF(aux!BB10>0,aux!BB10,0) -> 1096.672 | I35: 0.09158215192
A36: =IF(C36>0,aux!AU11,"") -> 20 | B36: =IF(C36>0,aux!AV11,"") -> Preparações de produtos vegetais | C36: =IF(aux!AW11>0,aux!AW11,0) -> 615.941 | D36: 0.02848305394 | F36: =IF(H36>0,aux!AZ11,"") -> 44 | G36: =IF(H36>0,aux!BA11,"") -> Madeira e suas obras | H36: =IF(aux!BB11>0,aux!BB11,0) -> 1027.304 | I36: 0.08578928887
A37: =IF(C37>0,aux!AU12,"") -> 16a | B37: =IF(C37>0,aux!AV12,"") -> Preparações de carnes (exc. NC 1604-05) (a) | C37: =IF(aux!AW12>0,aux!AW12,0) -> 483.356 | D37: 0.02235190549 | F37: =IF(H37>0,aux!AZ12,"") -> 19a | G37: =IF(H37>0,aux!BA12,"") -> Preparações à base de cereais (exc. NC 19022010) (a) | H37: =IF(aux!BB12>0,aux!BB12,0) -> 401.005 | I37: 0.03348758866
A38: =IF(C38>0,aux!AU13,"") -> 35 | B38: =IF(C38>0,aux!AV13,"") -> Caseínas, albuminas, gelatinas, peptonas, dextrinas (NC 3501 a 3505) | C38: =IF(aux!AW13>0,aux!AW13,0) -> 434.944 | D38: 0.02011318197 | F38: =IF(H38>0,aux!AZ13,"") -> 23a | G38: =IF(H38>0,aux!BA13,"") -> Resíduos indústrias alimentares; alimentos p/ animais (exc. NC 230120) (a) | H38: =IF(aux!BB13>0,aux!BB13,0) -> 366.516 | I38: 0.03060744142
A39: =IF(C39>0,aux!AU14,"") -> 05p | B39: =IF(C39>0,aux!AV14,"") -> Outros produtos de pescado (NC 0508, 051191) (p) | C39: =IF(aux!AW14>0,aux!AW14,0) -> 119.098 | D39: 0.005507467044 | F39: =IF(H39>0,aux!AZ14,"") -> 03 | G39: =IF(H39>0,aux!BA14,"") -> Peixes e crustáceos | H39: =IF(aux!BB14>0,aux!BB14,0) -> 350.828 | I39: 0.0292973498
A40: =IF(C40>0,aux!AU15,"") -> 51 | B40: =IF(C40>0,aux!AV15,"") -> Lã não cardada (NC 5101-5103) | C40: =IF(aux!AW15>0,aux!AW15,0) -> 60.795 | D40: 0.002811352491 | F40: =IF(H40>0,aux!AZ15,"") -> 25 | G40: =IF(H40>0,aux!BA15,"") -> Sal e cloreto de sódio puro; água do mar (NC 2501) | H40: =IF(aux!BB15>0,aux!BB15,0) -> 279.207 | I40: 0.02331634061
B41: Outros contributos para o aumento das importações | C41: =SUMIF(aux!AW16:AW51,">0") -> 153.437 | D41: 0.007095410677 | G41: Outros contributos para o aumento das exportações | H41: =SUMIF(aux!BB16:BB51,">0") -> 731.408 | I41: 0.06107926397
B42: Outros contributos para a redução das importações | C42: =SUMIF(aux!AW6:AW41,"<0") -> -23.409 | D42: =IF(SUM($C$42:$C$52)<>0,C42/SUM($C$42:$C$52),0) -> 0.008375163235 | G42: Outros contributos para a redução das exportações | H42: =SUMIF(aux!BB6:BB41,"<0") -> -7.914 | I42: =IF(SUM($H$42:$H$52)<>0,H42/SUM($H$42:$H$52),0) -> 0.004292900116
A43: =IF(C43<>0,aux!AU42,"") -> 13a | B43: =IF(C43<0,aux!AV42,"") -> Sucos e extratos vegetais (exc. NC 1301) (a) | C43: =IF(aux!AW42<0,aux!AW42,0) -> -33.362 | D43: =IF(SUM($C$42:$C$52)<>0,C43/SUM($C$42:$C$52),0) -> 0.01193610132 | F43: =IF(H43<>0,aux!AZ42,"") -> 17 | G43: =IF(H43<>0,aux!BA42,"") -> Açúcares e produtos de confeitaria | H43: =IF(aux!BB42<0,aux!BB42,0) -> -15.621 | I43: =IF(SUM($H$42:$H$52)<>0,H43/SUM($H$42:$H$52),0) -> 0.008473514369
A44: =IF(C44<>0,aux!AU43,"") -> 21 | B44: =IF(C44<0,aux!AV43,"") -> Preparações alimentícias diversas | C44: =IF(aux!AW43<0,aux!AW43,0) -> -33.974 | D44: 0.01215505984 | F44: =IF(H44<>0,aux!AZ43,"") -> 06 | G44: =IF(H44<>0,aux!BA43,"") -> Plantas vivas e produtos de floricultura | H44: =IF(aux!BB43<0,aux!BB43,0) -> -35.695 | I44: 0.01936253091
A45: =IF(C45<>0,aux!AU44,"") -> 07 | B45: =IF(C45<0,aux!AV44,"") -> Produtos hortícolas | C45: =IF(aux!AW44<0,aux!AW44,0) -> -40.8 | D45: 0.0145972344 | F45: =IF(H45<>0,aux!AZ44,"") -> 15 | G45: =IF(H45<>0,aux!BA44,"") -> Gorduras e óleos animais ou vegetais | H45: =IF(aux!BB44<0,aux!BB44,0) -> -68.113 | I45: 0.03694747354
A46: =IF(C46<>0,aux!AU45,"") -> 24 | B46: =IF(C46<0,aux!AV45,"") -> Tabaco | C46: =IF(aux!AW45<0,aux!AW45,0) -> -96.986 | D46: 0.03469920037 | F46: =IF(H46<>0,aux!AZ45,"") -> 11 | G46: =IF(H46<>0,aux!BA45,"") -> Produtos da indústria de moagem e outros | H46: =IF(aux!BB45<0,aux!BB45,0) -> -89.616 | I46: 0.04861164225
A47: =IF(C47<>0,aux!AU46,"") -> 18 | B47: =IF(C47<0,aux!AV46,"") -> Cacau e suas preparações | C47: =IF(aux!AW46<0,aux!AW46,0) -> -142.134 | D47: 0.050852042 | F47: =IF(H47<>0,aux!AZ46,"") -> 08 | G47: =IF(H47<>0,aux!BA46,"") -> Frutas | H47: =IF(aux!BB46<0,aux!BB46,0) -> -148.849 | I47: 0.08074221498
A48: =IF(C48<>0,aux!AU47,"") -> 44 | B48: =IF(C48<0,aux!AV47,"") -> Madeira e suas obras | C48: =IF(aux!AW47<0,aux!AW47,0) -> -203.984 | D48: 0.07298044758 | F48: =IF(H48<>0,aux!AZ47,"") -> 22 | G48: =IF(H48<>0,aux!BA47,"") -> Bebidas, líquidos alcoólicos e vinagres | H48: =IF(aux!BB47<0,aux!BB47,0) -> -205.234 | I48: 0.1113279078
A49: =IF(C49<>0,aux!AU48,"") -> 10 | B49: =IF(C49<0,aux!AV48,"") -> Cereais | C49: =IF(aux!AW48<0,aux!AW48,0) -> -207.743 | D49: 0.07432532513 | F49: =IF(H49<>0,aux!AZ48,"") -> 02 | G49: =IF(H49<>0,aux!BA48,"") -> Carnes e miudezas | H49: =IF(aux!BB48<0,aux!BB48,0) -> -209.803 | I49: 0.1138063335
A50: =IF(C50<>0,aux!AU49,"") -> 12 | B50: =IF(C50<0,aux!AV49,"") -> Sementes e frutos oleaginosos | C50: =IF(aux!AW49<0,aux!AW49,0) -> -284.155 | D50: 0.1016636554 | F50: =IF(H50<>0,aux!AZ49,"") -> 07 | G50: =IF(H50<>0,aux!BA49,"") -> Produtos hortícolas | H50: =IF(aux!BB49<0,aux!BB49,0) -> -249.983 | I50: 0.1356017248
A51: =IF(C51<>0,aux!AU50,"") -> 19a | B51: =IF(C51<0,aux!AV50,"") -> Preparações à base de cereais (exc. NC 19022010) (a) | C51: =IF(aux!AW50<0,aux!AW50,0) -> -841.52 | D51: 0.3010751149 | F51: =IF(H51<>0,aux!AZ50,"") -> 20 | G51: =IF(H51<>0,aux!BA50,"") -> Preparações de produtos vegetais | H51: =IF(aux!BB50<0,aux!BB50,0) -> -327.169 | I51: 0.1774707908
A52: =IF(C52<>0,aux!AU51,"") -> 17 | B52: =IF(C52<0,aux!AV51,"") -> Açúcares e produtos de confeitaria | C52: =IF(aux!AW51<0,aux!AW51,0) -> -886.983 | D52: 0.3173406558 | F52: =IF(H52<>0,aux!AZ51,"") -> 45 | G52: =IF(H52<>0,aux!BA51,"") -> Cortiça e suas obras | H52: =IF(aux!BB51<0,aux!BB51,0) -> -485.512 | I52: 0.263362967
A53: TOTAL | C53: =SUM(C31:C52) -> 18829.773 | F53: TOTAL | H53: =SUM(H31:H52) -> 10131.226

Sheet 5.2A
A1: Trocas comerciais Portugal-República Checa 2018-2022 em milhares de euros (NC 4 dígitos) | G1: Produtos agrícolas e agroalimentares, do mar e da floresta
A2: Cód. NC | B2: Descritivo | C2: Importações | K2: Exportações | S2: Saldo quinquénio (exp-imp) | T2: Evolução das importações | U2: =+"Variação das Importações " & INDEX(K3:N3,1,aux!AL1) & "-"& '5.2'!O3 &"" -> Variação das Importações 2018-2022 | Z2: Evolução das exportações | AA2: ="Variação das Exportações " & INDEX(K3:N3,1,aux!AL1) & "-"& '5.2'!O3 &"" -> Variação das Exportações 2018-2022
C3: 2018 | D3: 2019 | E3: 2020 | F3: 2021 | G3: 2022 | H3: média quinquénio | I3: % Subtot | J3: % Total | K3: 2018 | L3: 2019 | M3: 2020 | N3: 2021 | O3: 2022 | P3: média quinquénio | Q3: % Subtot | R3: % Total | U3: variação total em valor | V3: % no subtotal de variação | W3: % no total de variação | X3: taxa de variação média anual | Y3: taxa de variação total | AA3: variação total em valor | AB3: % no subtotal de variação | AC3: % no total de variação | AD3: taxa de variação média anual | AE3: taxa de variação total | AX3: filtro
A4: 0101 | B4: Equídeos vivos | C4: 0 | D4: 0 | E4: 0 | F4: 0 | G4: 0 | H4: 0 | I4: 0 | J4: 0 | K4: 0 | L4: 0 | M4: 0 | N4: 0 | O4: 0 | P4: 0 | Q4: 0 | R4: 0 | S4: 0 | U4: =G4-INDEX($C4:$G4,1,aux!$AL$1) -> 0 | V4: =IF($U$237<>0,U4/$U$237, "n.d.") -> 0 | W4: =IF($U$322<>0,U4/$U$322, "n.d.") -> 0 | X4: =+IF(INDEX($C4:$G4,1,aux!$AL$1)>0,(G4/INDEX($C4:$G4,1,aux!$AL$1))^(1/($G$3-INDEX($C$3:$G$3,1,aux!$AL$1)))-1,"n.d.") -> n.d. | Y4: =IF(INDEX($C4:$G4,1,aux!$AL$1)>0,(G4-INDEX($C4:$G4,1,aux!$AL$1))/INDEX($C4:$G4,1,aux!$AL$1),"n.d.") -> n.d. | AA4: =O4-INDEX($K4:$O4,1,aux!$AL$1) -> 0 | AB4: =IF($AA$237<>0,AA4/$AA$237, "n.d.") -> 0 | AC4: =IF($AA$322<>0,AA4/$AA$322, "n.d.") -> 0 | AD4: =+IF(INDEX($K4:$O4,1,aux!$AL$1)>0,(O4/INDEX($K4:$O4,1,aux!$AL$1))^(1/($O$3-INDEX($K$3:$O$3,1,aux!$AL$1)))-1,"n.d.") -> n.d. | AE4: =IF(INDEX($K4:$O4,1,aux!$AL$1)>0,(O4-INDEX($K4:$O4,1,aux!$AL$1))/INDEX($K4:$O4,1,aux!$AL$1),"n.d.") -> n.d. | AX4: =+LEFT(A4,2) -> 01
A5: 0102 | B5: Bovinos vivos | C5: 0 | D5: 0 | E5: 0 | F5: 0 | G5: 0 | H5: 0 | I5: 0 | J5: 0 | K5: 0 | L5: 0 | M5: 0 | N5: 0 | O5: 0 | P5: 0 | Q5: 0 | R5: 0 | S5: 0 | U5: =G5-INDEX($C5:$G5,1,aux!$AL$1) -> 0 | V5: 0 | W5: 0 | X5: =+IF(INDEX($C5:$G5,1,aux!$AL$1)>0,(G5/INDEX($C5:$G5,1,aux!$AL$1))^(1/($G$3-INDEX($C$3:$G$3,1,aux!$AL$1)))-1,"n.d.") -> n.d. | Y5: =IF(INDEX($C5:$G5,1,aux!$AL$1)>0,(G5-INDEX($C5:$G5,1,aux!$AL$1))/INDEX($C5:$G5,1,aux!$AL$1),"n.d.") -> n.d. | AA5: =O5-INDEX($K5:$O5,1,aux!$AL$1) -> 0 | AB5: 0 | AC5: 0 | AD5: =+IF(INDEX($K5:$O5,1,aux!$AL$1)>0,(O5/INDEX($K5:$O5,1,aux!$AL$1))^(1/($O$3-INDEX($K$3:$O$3,1,aux!$AL$1)))-1,"n.d.") -> n.d. | AE5: =IF(INDEX($K5:$O5,1,aux!$AL$1)>0,(O5-INDEX($K5:$O5,1,aux!$AL$1))/INDEX($K5:$O5,1,aux!$AL$1),"n.d.") -> n.d. | AX5: 01
A6: 0103 | B6: Suínos vivos | C6: 0 | D6: 0 | E6: 0 | F6: 0 | G6: 0 | H6: 0 | I6: 0 | J6: 0 | K6: 0 | L6: 0 | M6: 0 | N6: 0 | O6: 0 | P6: 0 | Q6: 0 | R6: 0 | S6: 0 | U6: =G6-INDEX($C6:$G6,1,aux!$AL$1) -> 0 | V6: 0 | W6: 0 | X6: =+IF(INDEX($C6:$G6,1,aux!$AL$1)>0,(G6/INDEX($C6:$G6,1,aux!$AL$1))^(1/($G$3-INDEX($C$3:$G$3,1,aux!$AL$1)))-1,"n.d.") -> n.d. | Y6: =IF(INDEX($C6:$G6,1,aux!$AL$1)>0,(G6-INDEX($C6:$G6,1,aux!$AL$1))/INDEX($C6:$G6,1,aux!$AL$1),"n.d.") -> n.d. | AA6: =O6-INDEX($K6:$O6,1,aux!$AL$1) -> 0 | AB6: 0 | AC6: 0 | AD6: =+IF(INDEX($K6:$O6,1,aux!$AL$1)>0,(O6/INDEX($K6:$O6,1,aux!$AL$1))^(1/($O$3-INDEX($K$3:$O$3,1,aux!$AL$1)))-1,"n.d.") -> n.d. | AE6: =IF(INDEX($K6:$O6,1,aux!$AL$1)>0,(O6-INDEX($K6:$O6,1,aux!$AL$1))/INDEX($K6:$O6,1,aux!$AL$1),"n.d.") -> n.d. | AX6: 01
A7: 0104 | B7: Ovinos ou caprinos vivos | C7: 0 | D7: 0 | E7: 0 | F7: 0 | G7: 0 | H7: 0 | I7: 0 | J7: 0 | K7: 0 | L7: 0 | M7: 0 | N7: 0 | O7: 0 | P7: 0 | Q7: 0 | R7: 0 | S7: 0 | U7: =G7-INDEX($C7:$G7,1,aux!$AL$1) -> 0 | V7: 0 | W7: 0 | X7: =+IF(INDEX($C7:$G7,1,aux!$AL$1)>0,(G7/INDEX($C7:$G7,1,aux!$AL$1))^(1/($G$3-INDEX($C$3:$G$3,1,aux!$AL$1)))-1,"n.d.") -> n.d. | Y7: =IF(INDEX($C7:$G7,1,aux!$AL$1)>0,(G7-INDEX($C7:$G7,1,aux!$AL$1))/INDEX($C7:$G7,1,aux!$AL$1),"n.d.") -> n.d. | AA7: =O7-INDEX($K7:$O7,1,aux!$AL$1) -> 0 | AB7: 0 | AC7: 0 | AD7: =+IF(INDEX($K7:$O7,1,aux!$AL$1)>0,(O7/INDEX($K7:$O7,1,aux!$AL$1))^(1/($O$3-INDEX($K$3:$O$3,1,aux!$AL$1)))-1,"n.d.") -> n.d. | AE7: =IF(INDEX($K7:$O7,1,aux!$AL$1)>0,(O7-INDEX($K7:$O7,1,aux!$AL$1))/INDEX($K7:$O7,1,aux!$AL$1),"n.d.") -> n.d. | AX7: 01
A8: 0105 | B8: Aves de capoeira vivas | C8: 0 | D8: 0 | E8: 0 | F8: 0 | G8: 12.373 | H8: 2.4746 | I8: 0.0001116232739 | J8: 6.883137953e-05 | K8: 0 | L8: 0 | M8: 0 | N8: 0 | O8: 0 | P8: 0 | Q8: 0 | R8: 0 | S8: -2.4746 | U8: =G8-INDEX($C8:$G8,1,aux!$AL$1) -> 12.373 | V8: 0.002059382039 | W8: 0.0006570976719 | X8: =+IF(INDEX($C8:$G8,1,aux!$AL$1)>0,(G8/INDEX($C8:$G8,1,aux!$AL$1))^(1/($G$3-INDEX($C$3:$G$3,1,aux!$AL$1)))-1,"n.d.") -> n.d. | Y8: =IF(INDEX($C8:$G8,1,aux!$AL$1)>0,(G8-INDEX($C8:$G8,1,aux!$AL$1))/INDEX($C8:$G8,1,aux!$AL$1),"n.d.") -> n.d. | AA8: =O8-INDEX($K8:$O8,1,aux!$AL$1) -> 0 | AB8: 0 | AC8: 0 | AD8: =+IF(INDEX($K8:$O8,1,aux!$AL$1)>0,(O8/INDEX($K8:$O8,1,aux!$AL$1))^(1/($O$3-INDEX($K$3:$O$3,1,aux!$AL$1)))-1,"n.d.") -> n.d. | AE8: =IF(INDEX($K8:$O8,1,aux!$AL$1)>0,(O8-INDEX($K8:$O8,1,aux!$AL$1))/INDEX($K8:$O8,1,aux!$AL$1),"n.d.") -> n.d. | AX8: 01
A9: 0106 | B9: Outros animais vivos | C9: 9.152 | D9: 4.864 | E9: 7.027 | F9: 56.188 | G9: 38.683 | H9: 23.1828 | I9: 0.001045720534 | J9: 0.0006448331469 | K9: 0 | L9: 42.519 | M9: 33.539 | N9: 0 | O9: 25.391 | P9: 20.2898 | Q9: 0.001112678492 | R9: 0.0006967444468 | S9: -2.893 | U9: =G9-INDEX($C9:$G9,1,aux!$AL$1) -> 29.531 | V9: 0.004915187181 | W9: 0.00156831418 | X9: =+IF(INDEX($C9:$G9,1,aux!$AL$1)>0,(G9/INDEX($C9:$G9,1,aux!$AL$1))^(1/($G$3-INDEX($C$3:$G$3,1,aux!$AL$1)))-1,"n.d.") -> 0.4338411301 | Y9: =IF(INDEX($C9:$G9,1,aux!$AL$1)>0,(G9-INDEX($C9:$G9,1,aux!$AL$1))/INDEX($C9:$G9,1,aux!$AL$1),"n.d.") -> 3.226726399 | AA9: =O9-INDEX($K9:$O9,1,aux!$AL$1) -> 25.391 | AB9: 0.004529103292 | AC9: 0.002506211983 | AD9: =+IF(INDEX($K9:$O9,1,aux!$AL$1)>0,(O9/INDEX($K9:$O9,1,aux!$AL$1))^(1/($O$3-INDEX($K$3:$O$3,1,aux!$AL$1)))-1,"n.d.") -> n.d. | AE9: =IF(INDEX($K9:$O9,1,aux!$AL$1)>0,(O9-INDEX($K9:$O9,1,aux!$AL$1))/INDEX($K9:$O9,1,aux!$AL$1),"n.d.") -> n.d. | AX9: 01
A10: 01SS | B10: Animais vivos | C10: 0 | D10: 0 | E10: 0 | F10: 0 | G10: 0 | H10: 0 | I10: 0 | J10: 0 | K10: 0 | L10: 0 | M10: 0 | N10: 0 | O10: 0 | P10: 0 | Q10: 0 | R10: 0 | S10: 0 | U10: =G10-INDEX($C10:$G10,1,aux!$AL$1) -> 0 | V10: 0 | W10: 0 | X10: =+IF(INDEX($C10:$G10,1,aux!$AL$1)>0,(G10/INDEX($C10:$G10,1,aux!$AL$1))^(1/($G$3-INDEX($C$3:$G$3,1,aux!$AL$1)))-1,"n.d.") -> n.d. | Y10: =IF(INDEX($C10:$G10,1,aux!$AL$1)>0,(G10-INDEX($C10:$G10,1,aux!$AL$1))/INDEX($C10:$G10,1,aux!$AL$1),"n.d.") -> n.d. | AA10: =O10-INDEX($K10:$O10,1,aux!$AL$1) -> 0 | AB10: 0 | AC10: 0 | AD10: =+IF(INDEX($K10:$O10,1,aux!$AL$1)>0,(O10/INDEX($K10:$O10,1,aux!$AL$1))^(1/($O$3-INDEX($K$3:$O$3,1,aux!$AL$1)))-1,"n.d.") -> n.d. | AE10: =IF(INDEX($K10:$O10,1,aux!$AL$1)>0,(O10-INDEX($K10:$O10,1,aux!$AL$1))/INDEX($K10:$O10,1,aux!$AL$1),"n.d.") -> n.d. | AX10: 01
A11: 0201 | B11: Carnes de bovino, frescas ou refrigeradas | C11: 0 | D11: 0 | E11: 0 | F11: 32.34 | G11: 0 | H11: 6.468 | I11: 0.0002917559748 | J11: 0.0001799084146 | K11: 159.817 | L11: 0 | M11: 0 | N11: 69.481 | O11: 38.433 | P11: 53.5462 | Q11: 0.00293643629 | R11: 0.001838757282 | S11: 47.0782 | U11: =G11-INDEX($C11:$G11,1,aux!$AL$1) -> 0 | V11: 0 | W11: 0 | X11: =+IF(INDEX($C11:$G11,1,aux!$AL$1)>0,(G11/INDEX($C11:$G11,1,aux!$AL$1))^(1/($G$3-INDEX($C$3:$G$3,1,aux!$AL$1)))-1,"n.d.") -> n.d. | Y11: =IF(INDEX($C11:$G11,1,aux!$AL$1)>0,(G11-INDEX($C11:$G11,1,aux!$AL$1))/INDEX($C11:$G11,1,aux!$AL$1),"n.d.") -> n.d. | AA11: =O11-INDEX($K11:$O11,1,aux!$AL$1) -> -121.384 | AB11: -0.02165179292 | AC11: -0.01198117582 | AD11: =+IF(INDEX($K11:$O11,1,aux!$AL$1)>0,(O11/INDEX($K11:$O11,1,aux!$AL$1))^(1/($O$3-INDEX($K$3:$O$3,1,aux!$AL$1)))-1,"n.d.") -> -0.2997222495 | AE11: =IF(INDEX($K11:$O11,1,aux!$AL$1)>0,(O11-INDEX($K11:$O11,1,aux!$AL$1))/INDEX($K11:$O11,1,aux!$AL$1),"n.d.") -> -0.7595186995 | AX11: 02
A12: 0202 | B12: Carnes de bovino, congeladas | C12: 0 | D12: 0 | E12: 0 | F12: 0 | G12: 9.19 | H12: 1.838 | I12: 8.290777392e-05 | J12: 5.112425263e-05 | K12: 0 | L12: 0 | M12: 0 | N12: 2.216 | O12: 0 | P12: 0.4432 | Q12: 2.430477912e-05 | R12: 1.521932887e-05 | S12: -1.3948 | U12: =G12-INDEX($C12:$G12,1,aux!$AL$1) -> 9.19 | V12: 0.001529598395 | W12: 0.0004880568661 | X12: =+IF(INDEX($C12:$G12,1,aux!$AL$1)>0,(G12/INDEX($C12:$G12,1,aux!$AL$1))^(1/($G$3-INDEX($C$3:$G$3,1,aux!$AL$1)))-1,"n.d.") -> n.d. | Y12: =IF(INDEX($C12:$G12,1,aux!$AL$1)>0,(G12-INDEX($C12:$G12,1,aux!$AL$1))/INDEX($C12:$G12,1,aux!$AL$1),"n.d.") -> n.d. | AA12: =O12-INDEX($K12:$O12,1,aux!$AL$1) -> 0 | AB12: 0 | AC12: 0 | AD12: =+IF(INDEX($K12:$O12,1,aux!$AL$1)>0,(O12/INDEX($K12:$O12,1,aux!$AL$1))^(1/($O$3-INDEX($K$3:$O$3,1,aux!$AL$1)))-1,"n.d.") -> n.d. | AE12: =IF(INDEX($K12:$O12,1,aux!$AL$1)>0,(O12-INDEX($K12:$O12,1,aux!$AL$1))/INDEX($K12:$O12,1,aux!$AL$1),"n.d.") -> n.d. | AX12: 02
A13: 0203 | B13: Carnes de suíno | C13: 0 | D13: 0 | E13: 0 | F13: 0 | G13: 0 | H13: 0 | I13: 0 | J13: 0 | K13: 0 | L13: 254.669 | M13: 0 | N13: 0.573 | O13: 0 | P13: 51.0484 | Q13: 0.002799458679 | R13: 0.001752983727 | S13: 51.0484 | U13: =G13-INDEX($C13:$G13,1,aux!$AL$1) -> 0 | V13: 0 | W13: 0 | X13: =+IF(INDEX($C13:$G13,1,aux!$AL$1)>0,(G13/INDEX($C13:$G13,1,aux!$AL$1))^(1/($G$3-INDEX($C$3:$G$3,1,aux!$AL$1)))-1,"n.d.") -> n.d. | Y13: =IF(INDEX($C13:$G13,1,aux!$AL$1)>0,(G13-INDEX($C13:$G13,1,aux!$AL$1))/INDEX($C13:$G13,1,aux!$AL$1),"n.d.") -> n.d. | AA13: =O13-INDEX($K13:$O13,1,aux!$AL$1) -> 0 | AB13: 0 | AC13: 0 | AD13: =+IF(INDEX($K13:$O13,1,aux!$AL$1)>0,(O13/INDEX($K13:$O13,1,aux!$AL$1))^(1/($O$3-INDEX($K$3:$O$3,1,aux!$AL$1)))-1,"n.d.") -> n.d. | AE13: =IF(INDEX($K13:$O13,1,aux!$AL$1)>0,(O13-INDEX($K13:$O13,1,aux!$AL$1))/INDEX($K13:$O13,1,aux!$AL$1),"n.d.") -> n.d. | AX13: 02
A14: 0204 | B14: Carnes de ovino ou caprino | C14: 0 | D14: 0 | E14: 0 | F14: 0 | G14: 0 | H14: 0 | I14: 0 | J14: 0 | K14: 0 | L14: 0 | M14: 0 | N14: 0 | O14: 0 | P14: 0 | Q14: 0 | R14: 0 | S14: 0 | U14: =G14-INDEX($C14:$G14,1,aux!$AL$1) -> 0 | V14: 0 | W14: 0 | X14: =+IF(INDEX($C14:$G14,1,aux!$AL$1)>0,(G14/INDEX($C14:$G14,1,aux!$AL$1))^(1/($G$3-INDEX($C$3:$G$3,1,aux!$AL$1)))-1,"n.d.") -> n.d. | Y14: =IF(INDEX($C14:$G14,1,aux!$AL$1)>0,(G14-INDEX($C14:$G14,1,aux!$AL$1))/INDEX($C14:$G14,1,aux!$AL$1),"n.d.") -> n.d. | AA14: =O14-INDEX($K14:$O14,1,aux!$AL$1) -> 0 | AB14: 0 | AC14: 0 | AD14: =+IF(INDEX($K14:$O14,1,aux!$AL$1)>0,(O14/INDEX($K14:$O14,1,aux!$AL$1))^(1/($O$3-INDEX($K$3:$O$3,1,aux!$AL$1)))-1,"n.d.") -> n.d. | AE14: =IF(INDEX($K14:$O14,1,aux!$AL$1)>0,(O14-INDEX($K14:$O14,1,aux!$AL$1))/INDEX($K14:$O14,1,aux!$AL$1),"n.d.") -> n.d. | AX14: 02
A15: 0205 | B15: Carnes de equídeo | C15: 0 | D15: 0 | E15: 0 | F15: 0 | G15: 0 | H15: 0 | I15: 0 | J15: 0 | K15: 0 | L15: 0 | M15: 0 | N15: 0 | O15: 0 | P15: 0 | Q15: 0 | R15: 0 | S15: 0 | U15: =G15-INDEX($C15:$G15,1,aux!$AL$1) -> 0 | V15: 0 | W15: 0 | X15: =+IF(INDEX($C15:$G15,1,aux!$AL$1)>0,(G15/INDEX($C15:$G15,1,aux!$AL$1))^(1/($G$3-INDEX($C$3:$G$3,1,aux!$AL$1)))-1,"n.d.") -> n.d. | Y15: =IF(INDEX($C15:$G15,1,aux!$AL$1)>0,(G15-INDEX($C15:$G15,1,aux!$AL$1))/INDEX($C15:$G15,1,aux!$AL$1),"n.d.") -> n.d. | AA15: =O15-INDEX($K15:$O15,1,aux!$AL$1) -> 0 | AB15: 0 | AC15: 0 | AD15: =+IF(INDEX($K15:$O15,1,aux!$AL$1)>0,(O15/INDEX($K15:$O15,1,aux!$AL$1))^(1/($O$3-INDEX($K$3:$O$3,1,aux!$AL$1)))-1,"n.d.") -> n.d. | AE15: =IF(INDEX($K15:$O15,1,aux!$AL$1)>0,(O15-INDEX($K15:$O15,1,aux!$AL$1))/INDEX($K15:$O15,1,aux!$AL$1),"n.d.") -> n.d. | AX15: 02
A16: 0206 | B16: Miudezas de bovino, suíno, ovino, caprino,equídeo | C16: 0 | D16: 0 | E16: 0 | F16: 0 | G16: 0 | H16: 0 | I16: 0 | J16: 0 | K16: 73.625 | L16: 31.004 | M16: 0 | N16: 0 | O16: 0 | P16: 20.9258 | Q16: 0.001147556288 | R16: 0.0007185844585 | S16: 20.9258 | U16: =G16-INDEX($C16:$G16,1,aux!$AL$1) -> 0 | V16: 0 | W16: 0 | X16: =+IF(INDEX($C16:$G16,1,aux!$AL$1)>0,(G16/INDEX($C16:$G16,1,aux!$AL$1))^(1/($G$3-INDEX($C$3:$G$3,1,aux!$AL$1)))-1,"n.d.") -> n.d. | Y16: =IF(INDEX($C16:$G16,1,aux!$AL$1)>0,(G16-INDEX($C16:$G16,1,aux!$AL$1))/INDEX($C16:$G16,1,aux!$AL$1),"n.d.") -> n.d. | AA16: =O16-INDEX($K16:$O16,1,aux!$AL$1) -> -73.625 | AB16: -0.01313281202 | AC16: -0.007267136277 | AD16: =+IF(INDEX($K16:$O16,1,aux!$AL$1)>0,(O16/INDEX($K16:$O16,1,aux!$AL$1))^(1/($O$3-INDEX($K$3:$O$3,1,aux!$AL$1)))-1,"n.d.") -> -1 | AE16: =IF(INDEX($K16:$O16,1,aux!$AL$1)>0,(O16-INDEX($K16:$O16,1,aux!$AL$1))/INDEX($K16:$O16,1,aux!$AL$1),"n.d.") -> -1 | AX16: 02
A17: 0207 | B17: Carnes e miudezas de aves de capoeira | C17: 0 | D17: 0 | E17: 0 | F17: 0 | G17: 0.011 | H17: 0.0022 | I17: 9.923672613e-08 | J17: 6.11933383e-08 | K17: 0 | L17: 0 | M17: 0 | N17: 0 | O17: 0 | P17: 0 | Q17: 0 | R17: 0 | S17: -0.0022 | U17: =G17-INDEX($C17:$G17,1,aux!$AL$1) -> 0.011 | V17: 1.830857709e-06 | W17: 5.841812326e-07 | X17: =+IF(INDEX($C17:$G17,1,aux!$AL$1)>0,(G17/INDEX($C17:$G17,1,aux!$AL$1))^(1/($G$3-INDEX($C$3:$G$3,1,aux!$AL$1)))-1,"n.d.") -> n.d. | Y17: =IF(INDEX($C17:$G17,1,aux!$AL$1)>0,(G17-INDEX($C17:$G17,1,aux!$AL$1))/INDEX($C17:$G17,1,aux!$AL$1),"n.d.") -> n.d. | AA17: =O17-INDEX($K17:$O17,1,aux!$AL$1) -> 0 | AB17: 0 | AC17: 0 | AD17: =+IF(INDEX($K17:$O17,1,aux!$AL$1)>0,(O17/INDEX($K17:$O17,1,aux!$AL$1))^(1/($O$3-INDEX($K$3:$O$3,1,aux!$AL$1)))-1,"n.d.") -> n.d. | AE17: =IF(INDEX($K17:$O17,1,aux!$AL$1)>0,(O17-INDEX($K17:$O17,1,aux!$AL$1))/INDEX($K17:$O17,1,aux!$AL$1),"n.d.") -> n.d. | AX17: 02
A18: 0208 | B18: Outras carnes e miudezas | C18: 0 | D18: 0 | E18: 0 | F18: 0 | G18: 0 | H18: 0 | I18: 0 | J18: 0 | K18: 0 | L18: 0 | M18: 0 | N18: 0 | O18: 0 | P18: 0 | Q18: 0 | R18: 0 | S18: 0 | U18: =G18-INDEX($C18:$G18,1,aux!$AL$1) -> 0 | V18: 0 | W18: 0 | X18: =+IF(INDEX($C18:$G18,1,aux!$AL$1)>0,(G18/INDEX($C18:$G18,1,aux!$AL$1))^(1/($G$3-INDEX($C$3:$G$3,1,aux!$AL$1)))-1,"n.d.") -> n.d. | Y18: =IF(INDEX($C18:$G18,1,aux!$AL$1)>0,(G18-INDEX($C18:$G18,1,aux!$AL$1))/INDEX($C18:$G18,1,aux!$AL$1),"n.d.") -> n.d. | AA18: =O18-INDEX($K18:$O18,1,aux!$AL$1) -> 0 | AB18: 0 | AC18: 0 | AD18: =+IF(INDEX($K18:$O18,1,aux!$AL$1)>0,(O18/INDEX($K18:$O18,1,aux!$AL$1))^(1/($O$3-INDEX($K$3:$O$3,1,aux!$AL$1)))-1,"n.d.") -> n.d. | AE18: =IF(INDEX($K18:$O18,1,aux!$AL$1)>0,(O18-INDEX($K18:$O18,1,aux!$AL$1))/INDEX($K18:$O18,1,aux!$AL$1),"n.d.") -> n.d. | AX18: 02
A19: 0209 | B19: Toucinho, gorduras de porco e de aves | C19: 0 | D19: 0 | E19: 0 | F19: 0 | G19: 0 | H19: 0 | I19: 0 | J19: 0 | K19: 0 | L19: 0 | M19: 0 | N19: 0 | O19: 0 | P19: 0 | Q19: 0 | R19: 0 | S19: 0 | U19: =G19-INDEX($C19:$G19,1,aux!$AL$1) -> 0 | V19: 0 | W19: 0 | X19: =+IF(INDEX($C19:$G19,1,aux!$AL$1)>0,(G19/INDEX($C19:$G19,1,aux!$AL$1))^(1/($G$3-INDEX($C$3:$G$3,1,aux!$AL$1)))-1,"n.d.") -> n.d. | Y19: =IF(INDEX($C19:$G19,1,aux!$AL$1)>0,(G19-INDEX($C19:$G19,1,aux!$AL$1))/INDEX($C19:$G19,1,aux!$AL$1),"n.d.") -> n.d. | AA19: =O19-INDEX($K19:$O19,1,aux!$AL$1) -> 0 | AB19: 0 | AC19: 0 | AD19: =+IF(INDEX($K19:$O19,1,aux!$AL$1)>0,(O19/INDEX($K19:$O19,1,aux!$AL$1))^(1/($O$3-INDEX($K$3:$O$3,1,aux!$AL$1)))-1,"n.d.") -> n.d. | AE19: =IF(INDEX($K19:$O19,1,aux!$AL$1)>0,(O19-INDEX($K19:$O19,1,aux!$AL$1))/INDEX($K19:$O19,1,aux!$AL$1),"n.d.") -> n.d. | AX19: 02
A20: 0210 | B20: Carnes e miudezas processadas; farinhas de carnes | C20: 0 | D20: 47.894 | E20: 0 | F20: 0 | G20: 0 | H20: 9.5788 | I20: 0.0004320767056 | J20: 0.000266435795 | K20: 14.794 | L20: 77.199 | M20: 0 | N20: 8.876 | O20: 0 | P20: 20.1738 | Q20: 0.001106317132 | R20: 0.0006927610485 | S20: 10.595 | U20: =G20-INDEX($C20:$G20,1,aux!$AL$1) -> 0 | V20: 0 | W20: 0 | X20: =+IF(INDEX($C20:$G20,1,aux!$AL$1)>0,(G20/INDEX($C20:$G20,1,aux!$AL$1))^(1/($G$3-INDEX($C$3:$G$3,1,aux!$AL$1)))-1,"n.d.") -> n.d. | Y20: =IF(INDEX($C20:$G20,1,aux!$AL$1)>0,(G20-INDEX($C20:$G20,1,aux!$AL$1))/INDEX($C20:$G20,1,aux!$AL$1),"n.d.") -> n.d. | AA20: =O20-INDEX($K20:$O20,1,aux!$AL$1) -> -14.794 | AB20: -0.002638870234 | AC20: -0.001460237882 | AD20: =+IF(INDEX($K20:$O20,1,aux!$AL$1)>0,(O20/INDEX($K20:$O20,1,aux!$AL$1))^(1/($O$3-INDEX($K$3:$O$3,1,aux!$AL$1)))-1,"n.d.") -> -1 | AE20: =IF(INDEX($K20:$O20,1,aux!$AL$1)>0,(O20-INDEX($K20:$O20,1,aux!$AL$1))/INDEX($K20:$O20,1,aux!$AL$1),"n.d.") -> -1 | AX20: 02
A21: 02SS | B21: Carnes e miudezas, comestíveis | C21: 0 | D21: 0 | E21: 0 | F21: 0 | G21: 0 | H21: 0 | I21: 0 | J21: 0 | K21: 0 | L21: 0 | M21: 0 | N21: 0 | O21: 0 | P21: 0 | Q21: 0 | R21: 0 | S21: 0 | U21: =G21-INDEX($C21:$G21,1,aux!$AL$1) -> 0 | V21: 0 | W21: 0 | X21: =+IF(INDEX($C21:$G21,1,aux!$AL$1)>0,(G21/INDEX($C21:$G21,1,aux!$AL$1))^(1/($G$3-INDEX($C$3:$G$3,1,aux!$AL$1)))-1,"n.d.") -> n.d. | Y21: =IF(INDEX($C21:$G21,1,aux!$AL$1)>0,(G21-INDEX($C21:$G21,1,aux!$AL$1))/INDEX($C21:$G21,1,aux!$AL$1),"n.d.") -> n.d. | AA21: =O21-INDEX($K21:$O21,1,aux!$AL$1) -> 0 | AB21: 0 | AC21: 0 | AD21: =+IF(INDEX($K21:$O21,1,aux!$AL$1)>0,(O21/INDEX($K21:$O21,1,aux!$AL$1))^(1/($O$3-INDEX($K$3:$O$3,1,aux!$AL$1)))-1,"n.d.") -> n.d. | AE21: =IF(INDEX($K21:$O21,1,aux!$AL$1)>0,(O21-INDEX($K21:$O21,1,aux!$AL$1))/INDEX($K21:$O21,1,aux!$AL$1),"n.d.") -> n.d. | AX21: 02
A22: 0401 | B22: Leite e nata, não concentrados | C22: 0 | D22: 0 | E22: 0.005 | F22: 0.02 | G22: 0.054 | H22: 0.0158 | I22: 7.127001241e-07 | J22: 4.394794296e-07 | K22: 0 | L22: 0 | M22: 0 | N22: 0 | O22: 0.024 | P22: 0.0048 | Q22: 2.632286548e-07 | R22: 1.648302765e-07 | S22: -0.011 | U22: =G22-INDEX($C22:$G22,1,aux!$AL$1) -> 0.054 | V22: 8.987846933e-06 | W22: 2.867798778e-06 | X22: =+IF(INDEX($C22:$G22,1,aux!$AL$1)>0,(G22/INDEX($C22:$G22,1,aux!$AL$1))^(1/($G$3-INDEX($C$3:$G$3,1,aux!$AL$1)))-1,"n.d.") -> n.d. | Y22: =IF(INDEX($C22:$G22,1,aux!$AL$1)>0,(G22-INDEX($C22:$G22,1,aux!$AL$1))/INDEX($C22:$G22,1,aux!$AL$1),"n.d.") -> n.d. | AA22: =O22-INDEX($K22:$O22,1,aux!$AL$1) -> 0.024 | AB22: 4.280984562e-06 | AC22: 2.368913693e-06 | AD22: =+IF(INDEX($K22:$O22,1,aux!$AL$1)>0,(O22/INDEX($K22:$O22,1,aux!$AL$1))^(1/($O$3-INDEX($K$3:$O$3,1,aux!$AL$1)))-1,"n.d.") -> n.d. | AE22: =IF(INDEX($K22:$O22,1,aux!$AL$1)>0,(O22-INDEX($K22:$O22,1,aux!$AL$1))/INDEX($K22:$O22,1,aux!$AL$1),"n.d.") -> n.d. | AX22: 04
A23: 0402 | B23: Leite e nata, concentrados | C23: 0 | D23: 0 | E23: 0.111 | F23: 0.026 | G23: 99.758 | H23: 19.979 | I23: 0.0009012047961 | J23: 0.0005557189572 | K23: 158.045 | L23: 101.174 | M23: 60.111 | N23: 59.745 | O23: 127.774 | P23: 101.3698 | Q23: 0.005559049185 | R23: 0.003481002535 | S23: 81.3908 | U23: =G23-INDEX($C23:$G23,1,aux!$AL$1) -> 99.758 | V23: 0.01660388212 | W23: 0.005297886491 | X23: =+IF(INDEX($C23:$G23,1,aux!$AL$1)>0,(G23/INDEX($C23:$G23,1,aux!$AL$1))^(1/($G$3-INDEX($C$3:$G$3,1,aux!$AL$1)))-1,"n.d.") -> n.d. | Y23: =IF(INDEX($C23:$G23,1,aux!$AL$1)>0,(G23-INDEX($C23:$G23,1,aux!$AL$1))/INDEX($C23:$G23,1,aux!$AL$1),"n.d.") -> n.d. | AA23: =O23-INDEX($K23:$O23,1,aux!$AL$1) -> -30.271 | AB23: -0.005399570153 | AC23: -0.0029878911 | AD23: =+IF(INDEX($K23:$O23,1,aux!$AL$1)>0,(O23/INDEX($K23:$O23,1,aux!$AL$1))^(1/($O$3-INDEX($K$3:$O$3,1,aux!$AL$1)))-1,"n.d.") -> -0.05176619848 | AE23: =IF(INDEX($K23:$O23,1,aux!$AL$1)>0,(O23-INDEX($K23:$O23,1,aux!$AL$1))/INDEX($K23:$O23,1,aux!$AL$1),"n.d.") -> -0.1915340568 | AX23: 04
A24: 0403 | B24: Leitelho, leite coalhado, iogurte, etc. | C24: 1063.638 | D24: 1414.444 | E24: 1459.756 | F24: 2172.294 | G24: 4052.751 | H24: 2032.5766 | I24: 0.09168465791 | J24: 0.05653643068 | K24: 0 | L24: 0 | M24: 0 | N24: 0 | O24: 0 | P24: 0 | Q24: 0 | R24: 0 | S24: -2032.5766 | U24: =G24-INDEX($C24:$G24,1,aux!$AL$1) -> 2989.113 | V24: 0.4975127798 | W24: 0.1587439742 | X24: =+IF(INDEX($C24:$G24,1,aux!$AL$1)>0,(G24/INDEX($C24:$G24,1,aux!$AL$1))^(1/($G$3-INDEX($C$3:$G$3,1,aux!$AL$1)))-1,"n.d.") -> 0.3971370808 | Y24: =IF(INDEX($C24:$G24,1,aux!$AL$1)>0,(G24-INDEX($C24:$G24,1,aux!$AL$1))/INDEX($C24:$G24,1,aux!$AL$1),"n.d.") -> 2.810272856 | AA24: =O24-INDEX($K24:$O24,1,aux!$AL$1) -> 0 | AB24: 0 | AC24: 0 | AD24: =+IF(INDEX($K24:$O24,1,aux!$AL$1)>0,(O24/INDEX($K24:$O24,1,aux!$AL$1))^(1/($O$3-INDEX($K$3:$O$3,1,aux!$AL$1)))-1,"n.d.") -> n.d. | AE24: =IF(INDEX($K24:$O24,1,aux!$AL$1)>0,(O24-INDEX($K24:$O24,1,aux!$AL$1))/INDEX($K24:$O24,1,aux!$AL$1),"n.d.") -> n.d. | AX24: 04
A25: 0404 | B25: Soro de leite e outros produtos do leite | C25: 55.39 | D25: 138.943 | E25: 130.062 | F25: 0 | G25: 0 | H25: 64.879 | I25: 0.002926536161 | J25: 0.001804619362 | K25: 17.305 | L25: 54.482 | M25: 24.278 | N25: 20.201 | O25: 24.987 | P25: 28.2506 | Q25: 0.001549243215 | R25: 0.0009701154604 | S25: -36.6284 | U25: =G25-INDEX($C25:$G25,1,aux!$AL$1) -> -55.39 | V25: -0.009219200771 | W25: -0.002941618043 | X25: =+IF(INDEX($C25:$G25,1,aux!$AL$1)>0,(G25/INDEX($C25:$G25,1,aux!$AL$1))^(1/($G$3-INDEX($C$3:$G$3,1,aux!$AL$1)))-1,"n.d.") -> -1 | Y25: =IF(INDEX($C25:$G25,1,aux!$AL$1)>0,(G25-INDEX($C25:$G25,1,aux!$AL$1))/INDEX($C25:$G25,1,aux!$AL$1),"n.d.") -> -1 | AA25: =O25-INDEX($K25:$O25,1,aux!$AL$1) -> 7.682 | AB25: 0.001370271809 | AC25: 0.0007582497913 | AD25: =+IF(INDEX($K25:$O25,1,aux!$AL$1)>0,(O25/INDEX($K25:$O25,1,aux!$AL$1))^(1/($O$3-INDEX($K$3:$O$3,1,aux!$AL$1)))-1,"n.d.") -> 0.09618947599 | AE25: =IF(INDEX($K25:$O25,1,aux!$AL$1)>0,(O25-INDEX($K25:$O25,1,aux!$AL$1))/INDEX($K25:$O25,1,aux!$AL$1),"n.d.") -> 0.4439179428 | AX25: 04
A26: 0405 | B26: Manteiga | C26: 0 | D26: 0 | E26: 0 | F26: 0 | G26: 0 | H26: 0 | I26: 0 | J26: 0 | K26: 0 | L26: 0 | M26: 0 | N26: 0 | O26: 0 | P26: 0 | Q26: 0 | R26: 0 | S26: 0 | U26: =G26-INDEX($C26:$G26,1,aux!$AL$1) -> 0 | V26: 0 | W26: 0 | X26: =+IF(INDEX($C26:$G26,1,aux!$AL$1)>0,(G26/INDEX($C26:$G26,1,aux!$AL$1))^(1/($G$3-INDEX($C$3:$G$3,1,aux!$AL$1)))-1,"n.d.") -> n.d. | Y26: =IF(INDEX($C26:$G26,1,aux!$AL$1)>0,(G26-INDEX($C26:$G26,1,aux!$AL$1))/INDEX($C26:$G26,1,aux!$AL$1),"n.d.") -> n.d. | AA26: =O26-INDEX($K26:$O26,1,aux!$AL$1) -> 0 | AB26: 0 | AC26: 0 | AD26: =+IF(INDEX($K26:$O26,1,aux!$AL$1)>0,(O26/INDEX($K26:$O26,1,aux!$AL$1))^(1/($O$3-INDEX($K$3:$O$3,1,aux!$AL$1)))-1,"n.d.") -> n.d. | AE26: =IF(INDEX($K26:$O26,1,aux!$AL$1)>0,(O26-INDEX($K26:$O26,1,aux!$AL$1))/INDEX($K26:$O26,1,aux!$AL$1),"n.d.") -> n.d. | AX26: 04
A27: 0406 | B27: Queijos e requeijão | C27: 0 | D27: 6.018 | E27: 0 | F27: 0.006 | G27: 285.482 | H27: 58.3012 | I27: 0.002629827372 | J27: 0.001621656843 | K27: 3.567 | L27: 21.702 | M27: 69.142 | N27: 143.47 | O27: 18.584 | P27: 51.293 | Q27: 0.002812872373 | R27: 0.001761383203 | S27: -7.0082 | U27: =G27-INDEX($C27:$G27,1,aux!$AL$1) -> 285.482 | V27: 0.04751608367 | W27: 0.01516120242 | X27: =+IF(INDEX($C27:$G27,1,aux!$AL$1)>0,(G27/INDEX($C27:$G27,1,aux!$AL$1))^(1/($G$3-INDEX($C$3:$G$3,1,aux!$AL$1)))-1,"n.d.") -> n.d. | Y27: =IF(INDEX($C27:$G27,1,aux!$AL$1)>0,(G27-INDEX($C27:$G27,1,aux!$AL$1))/INDEX($C27:$G27,1,aux!$AL$1),"n.d.") -> n.d. | AA27: =O27-INDEX($K27:$O27,1,aux!$AL$1) -> 15.017 | AB27: 0.002678647715 | AC27: 0.001482249039 | AD27: =+IF(INDEX($K27:$O27,1,aux!$AL$1)>0,(O27/INDEX($K27:$O27,1,aux!$AL$1))^(1/($O$3-INDEX($K$3:$O$3,1,aux!$AL$1)))-1,"n.d.") -> 0.5108071165 | AE27: =IF(INDEX($K27:$O27,1,aux!$AL$1)>0,(O27-INDEX($K27:$O27,1,aux!$AL$1))/INDEX($K27:$O27,1,aux!$AL$1),"n.d.") -> 4.209980376 | AX27: 04
A28: 0407 | B28: Ovos de aves, com cascas | C28: 0 | D28: 0 | E28: 0 | F28: 0 | G28: 513.486 | H28: 102.6972 | I28: 0.004632424505 | J28: 0.00285653841 | K28: 0 | L28: 0 | M28: 0 | N28: 0 | O28: 0 | P28: 0 | Q28: 0 | R28: 0 | S28: -102.6972 | U28: =G28-INDEX($C28:$G28,1,aux!$AL$1) -> 513.486 | V28: 0.08546543649 | W28: 0.02726989858 | X28: =+IF(INDEX($C28:$G28,1,aux!$AL$1)>0,(G28/INDEX($C28:$G28,1,aux!$AL$1))^(1/($G$3-INDEX($C$3:$G$3,1,aux!$AL$1)))-1,"n.d.") -> n.d. | Y28: =IF(INDEX($C28:$G28,1,aux!$AL$1)>0,(G28-INDEX($C28:$G28,1,aux!$AL$1))/INDEX($C28:$G28,1,aux!$AL$1),"n.d.") -> n.d. | AA28: =O28-INDEX($K28:$O28,1,aux!$AL$1) -> 0 | AB28: 0 | AC28: 0 | AD28: =+IF(INDEX($K28:$O28,1,aux!$AL$1)>0,(O28/INDEX($K28:$O28,1,aux!$AL$1))^(1/($O$3-INDEX($K$3:$O$3,1,aux!$AL$1)))-1,"n.d.") -> n.d. | AE28: =IF(INDEX($K28:$O28,1,aux!$AL$1)>0,(O28-INDEX($K28:$O28,1,aux!$AL$1))/INDEX($K28:$O28,1,aux!$AL$1),"n.d.") -> n.d. | AX28: 04
A29: 0408 | B29: Ovos de aves, sem casca | C29: 0 | D29: 0 | E29: 0 | F29: 0 | G29: 0 | H29: 0 | I29: 0 | J29: 0 | K29: 0 | L29: 4.5 | M29: 0 | N29: 0 | O29: 0 | P29: 0.9 | Q29: 4.935537277e-05 | R29: 3.090567685e-05 | S29: 0.9 | U29: =G29-INDEX($C29:$G29,1,aux!$AL$1) -> 0 | V29: 0 | W29: 0 | X29: =+IF(INDEX($C29:$G29,1,aux!$AL$1)>0,(G29/INDEX($C29:$G29,1,aux!$AL$1))^(1/($G$3-INDEX($C$3:$G$3,1,aux!$AL$1)))-1,"n.d.") -> n.d. | Y29: =IF(INDEX($C29:$G29,1,aux!$AL$1)>0,(G29-INDEX($C29:$G29,1,aux!$AL$1))/INDEX($C29:$G29,1,aux!$AL$1),"n.d.") -> n.d. | AA29: =O29-INDEX($K29:$O29,1,aux!$AL$1) -> 0 | AB29: 0 | AC29: 0 | AD29: =+IF(INDEX($K29:$O29,1,aux!$AL$1)>0,(O29/INDEX($K29:$O29,1,aux!$AL$1))^(1/($O$3-INDEX($K$3:$O$3,1,aux!$AL$1)))-1,"n.d.") -> n.d. | AE29: =IF(INDEX($K29:$O29,1,aux!$AL$1)>0,(O29-INDEX($K29:$O29,1,aux!$AL$1))/INDEX($K29:$O29,1,aux!$AL$1),"n.d.") -> n.d. | AX29: 04
A30: 0409 | B30: Mel natural | C30: 79.578 | D30: 67.963 | E30: 48.57 | F30: 25.672 | G30: 17.525 | H30: 47.8616 | I30: 0.002158922042 | J30: 0.001331277764 | K30: 0 | L30: 0 | M30: 0.358 | N30: 0.068 | O30: 97.082 | P30: 19.5016 | Q30: 0.001069454153 | R30: 0.0006696779418 | S30: -28.36 | U30: =G30-INDEX($C30:$G30,1,aux!$AL$1) -> -62.053 | V30: -0.01032820122 | W30: -0.003295472548 | X30: =+IF(INDEX($C30:$G30,1,aux!$AL$1)>0,(G30/INDEX($C30:$G30,1,aux!$AL$1))^(1/($G$3-INDEX($C$3:$G$3,1,aux!$AL$1)))-1,"n.d.") -> -0.3149594942 | Y30: =IF(INDEX($C30:$G30,1,aux!$AL$1)>0,(G30-INDEX($C30:$G30,1,aux!$AL$1))/INDEX($C30:$G30,1,aux!$AL$1),"n.d.") -> -0.7797758174 | AA30: =O30-INDEX($K30:$O30,1,aux!$AL$1) -> 97.082 | AB30: 0.0173169393 | AC30: 0.009582453298 | AD30: =+IF(INDEX($K30:$O30,1,aux!$AL$1)>0,(O30/INDEX($K30:$O30,1,aux!$AL$1))^(1/($O$3-INDEX($K$3:$O$3,1,aux!$AL$1)))-1,"n.d.") -> n.d. | AE30: =IF(INDEX($K30:$O30,1,aux!$AL$1)>0,(O30-INDEX($K30:$O30,1,aux!$AL$1))/INDEX($K30:$O30,1,aux!$AL$1),"n.d.") -> n.d. | AX30: 04
A31: 0410 | B31: Outros produtos comestíveis de origem animal | C31: 0 | D31: 0 | E31: 0 | F31: 0 | G31: 0 | H31: 0 | I31: 0 | J31: 0 | K31: 0 | L31: 0 | M31: 0 | N31: 0 | O31: 0 | P31: 0 | Q31: 0 | R31: 0 | S31: 0 | U31: =G31-INDEX($C31:$G31,1,aux!$AL$1) -> 0 | V31: 0 | W31: 0 | X31: =+IF(INDEX($C31:$G31,1,aux!$AL$1)>0,(G31/INDEX($C31:$G31,1,aux!$AL$1))^(1/($G$3-INDEX($C$3:$G$3,1,aux!$AL$1)))-1,"n.d.") -> n.d. | Y31: =IF(INDEX($C31:$G31,1,aux!$AL$1)>0,(G31-INDEX($C31:$G31,1,aux!$AL$1))/INDEX($C31:$G31,1,aux!$AL$1),"n.d.") -> n.d. | AA31: =O31-INDEX($K31:$O31,1,aux!$AL$1) -> 0 | AB31: 0 | AC31: 0 | AD31: =+IF(INDEX($K31:$O31,1,aux!$AL$1)>0,(O31/INDEX($K31:$O31,1,aux!$AL$1))^(1/($O$3-INDEX($K$3:$O$3,1,aux!$AL$1)))-1,"n.d.") -> n.d. | AE31: =IF(INDEX($K31:$O31,1,aux!$AL$1)>0,(O31-INDEX($K31:$O31,1,aux!$AL$1))/INDEX($K31:$O31,1,aux!$AL$1),"n.d.") -> n.d. | AX31: 04
A32: 04SS | B32: Leite e lacticínios; ovos de aves; mel natural; etc. | C32: 0 | D32: 0 | E32: 0 | F32: 0 | G32: 0 | H32: 0 | I32: 0 | J32: 0 | K32: 0 | L32: 0 | M32: 0 | N32: 0 | O32: 0 | P32: 0 | Q32: 0 | R32: 0 | S32: 0 | U32: =G32-INDEX($C32:$G32,1,aux!$AL$1) -> 0 | V32: 0 | W32: 0 | X32: =+IF(INDEX($C32:$G32,1,aux!$AL$1)>0,(G32/INDEX($C32:$G32,1,aux!$AL$1))^(1/($G$3-INDEX($C$3:$G$3,1,aux!$AL$1)))-1,"n.d.") -> n.d. | Y32: =IF(INDEX($C32:$G32,1,aux!$AL$1)>0,(G32-INDEX($C32:$G32,1,aux!$AL$1))/INDEX($C32:$G32,1,aux!$AL$1),"n.d.") -> n.d. | AA32: =O32-INDEX($K32:$O32,1,aux!$AL$1) -> 0 | AB32: 0 | AC32: 0 | AD32: =+IF(INDEX($K32:$O32,1,aux!$AL$1)>0,(O32/INDEX($K32:$O32,1,aux!$AL$1))^(1/($O$3-INDEX($K$3:$O$3,1,aux!$AL$1)))-1,"n.d.") -> n.d. | AE32: =IF(INDEX($K32:$O32,1,aux!$AL$1)>0,(O32-INDEX($K32:$O32,1,aux!$AL$1))/INDEX($K32:$O32,1,aux!$AL$1),"n.d.") -> n.d. | AX32: 04
A33: 0501 | B33: Cabelos em bruto | C33: 0 | D33: 0 | E33: 0 | F33: 0 | G33: 0 | H33: 0 | I33: 0 | J33: 0 | K33: 0 | L33: 0 | M33: 0 | N33: 0 | O33: 0 | P33: 0 | Q33: 0 | R33: 0 | S33: 0 | U33: =G33-INDEX($C33:$G33,1,aux!$AL$1) -> 0 | V33: 0 | W33: 0 | X33: =+IF(INDEX($C33:$G33,1,aux!$AL$1)>0,(G33/INDEX($C33:$G33,1,aux!$AL$1))^(1/($G$3-INDEX($C$3:$G$3,1,aux!$AL$1)))-1,"n.d.") -> n.d. | Y33: =IF(INDEX($C33:$G33,1,aux!$AL$1)>0,(G33-INDEX($C33:$G33,1,aux!$AL$1))/INDEX($C33:$G33,1,aux!$AL$1),"n.d.") -> n.d. | AA33: =O33-INDEX($K33:$O33,1,aux!$AL$1) -> 0 | AB33: 0 | AC33: 0 | AD33: =+IF(INDEX($K33:$O33,1,aux!$AL$1)>0,(O33/INDEX($K33:$O33,1,aux!$AL$1))^(1/($O$3-INDEX($K$3:$O$3,1,aux!$AL$1)))-1,"n.d.") -> n.d. | AE33: =IF(INDEX($K33:$O33,1,aux!$AL$1)>0,(O33-INDEX($K33:$O33,1,aux!$AL$1))/INDEX($K33:$O33,1,aux!$AL$1),"n.d.") -> n.d. | AX33: 05
A34: 0502 | B34: Cerdas de porco ou de javali, etc. | C34: 0 | D34: 0 | E34: 0 | F34: 0 | G34: 0 | H34: 0 | I34: 0 | J34: 0 | K34: 0 | L34: 0 | M34: 0 | N34: 0 | O34: 0 | P34: 0 | Q34: 0 | R34: 0 | S34: 0 | U34: =G34-INDEX($C34:$G34,1,aux!$AL$1) -> 0 | V34: 0 | W34: 0 | X34: =+IF(INDEX($C34:$G34,1,aux!$AL$1)>0,(G34/INDEX($C34:$G34,1,aux!$AL$1))^(1/($G$3-INDEX($C$3:$G$3,1,aux!$AL$1)))-1,"n.d.") -> n.d. | Y34: =IF(INDEX($C34:$G34,1,aux!$AL$1)>0,(G34-INDEX($C34:$G34,1,aux!$AL$1))/INDEX($C34:$G34,1,aux!$AL$1),"n.d.") -> n.d. | AA34: =O34-INDEX($K34:$O34,1,aux!$AL$1) -> 0 | AB34: 0 | AC34: 0 | AD34: =+IF(INDEX($K34:$O34,1,aux!$AL$1)>0,(O34/INDEX($K34:$O34,1,aux!$AL$1))^(1/($O$3-INDEX($K$3:$O$3,1,aux!$AL$1)))-1,"n.d.") -> n.d. | AE34: =IF(INDEX($K34:$O34,1,aux!$AL$1)>0,(O34-INDEX($K34:$O34,1,aux!$AL$1))/INDEX($K34:$O34,1,aux!$AL$1),"n.d.") -> n.d. | AX34: 05
A35: 0504 | B35: Tripas de animais (excepto peixes) | C35: 0 | D35: 0 | E35: 0 | F35: 0 | G35: 0.008 | H35: 0.0016 | I35: 7.217216446e-08 | J35: 4.450424604e-08 | K35: 0 | L35: 0 | M35: 0 | N35: 0 | O35: 0 | P35: 0 | Q35: 0 | R35: 0 | S35: -0.0016 | U35: =G35-INDEX($C35:$G35,1,aux!$AL$1) -> 0.008 | V35: 1.331532879e-06 | W35: 4.248590782e-07 | X35: =+IF(INDEX($C35:$G35,1,aux!$AL$1)>0,(G35/INDEX($C35:$G35,1,aux!$AL$1))^(1/($G$3-INDEX($C$3:$G$3,1,aux!$AL$1)))-1,"n.d.") -> n.d. | Y35: =IF(INDEX($C35:$G35,1,aux!$AL$1)>0,(G35-INDEX($C35:$G35,1,aux!$AL$1))/INDEX($C35:$G35,1,aux!$AL$1),"n.d.") -> n.d. | AA35: =O35-INDEX($K35:$O35,1,aux!$AL$1) -> 0 | AB35: 0 | AC35: 0 | AD35: =+IF(INDEX($K35:$O35,1,aux!$AL$1)>0,(O35/INDEX($K35:$O35,1,aux!$AL$1))^(1/($O$3-INDEX($K$3:$O$3,1,aux!$AL$1)))-1,"n.d.") -> n.d. | AE35: =IF(INDEX($K35:$O35,1,aux!$AL$1)>0,(O35-INDEX($K35:$O35,1,aux!$AL$1))/INDEX($K35:$O35,1,aux!$AL$1),"n.d.") -> n.d. | AX35: 05
A36: 0505 | B36: Peles e outras partes de aves | C36: 0 | D36: 0 | E36: 0 | F36: 0 | G36: 0 | H36: 0 | I36: 0 | J36: 0 | K36: 0 | L36: 0 | M36: 0 | N36: 0 | O36: 0 | P36: 0 | Q36: 0 | R36: 0 | S36: 0 | U36: =G36-INDEX($C36:$G36,1,aux!$AL$1) -> 0 | V36: 0 | W36: 0 | X36: =+IF(INDEX($C36:$G36,1,aux!$AL$1)>0,(G36/INDEX($C36:$G36,1,aux!$AL$1))^(1/($G$3-INDEX($C$3:$G$3,1,aux!$AL$1)))-1,"n.d.") -> n.d. | Y36: =IF(INDEX($C36:$G36,1,aux!$AL$1)>0,(G36-INDEX($C36:$G36,1,aux!$AL$1))/INDEX($C36:$G36,1,aux!$AL$1),"n.d.") -> n.d. | AA36: =O36-INDEX($K36:$O36,1,aux!$AL$1) -> 0 | AB36: 0 | AC36: 0 | AD36: =+IF(INDEX($K36:$O36,1,aux!$AL$1)>0,(O36/INDEX($K36:$O36,1,aux!$AL$1))^(1/($O$3-INDEX($K$3:$O$3,1,aux!$AL$1)))-1,"n.d.") -> n.d. | AE36: =IF(INDEX($K36:$O36,1,aux!$AL$1)>0,(O36-INDEX($K36:$O36,1,aux!$AL$1))/INDEX($K36:$O36,1,aux!$AL$1),"n.d.") -> n.d. | AX36: 05
A37: 0506 | B37: Ossos e núcleos córneos, em bruto | C37: 0 | D37: 0 | E37: 0 | F37: 0 | G37: 0.001 | H37: 0.0002 | I37: 9.021520558e-09 | J37: 5.563030755e-09 | K37: 0 | L37: 0 | M37: 0 | N37: 0 | O37: 0 | P37: 0 | Q37: 0 | R37: 0 | S37: -0.0002 | U37: =G37-INDEX($C37:$G37,1,aux!$AL$1) -> 0.001 | V37: 1.664416099e-07 | W37: 5.310738478e-08 | X37: =+IF(INDEX($C37:$G37,1,aux!$AL$1)>0,(G37/INDEX($C37:$G37,1,aux!$AL$1))^(1/($G$3-INDEX($C$3:$G$3,1,aux!$AL$1)))-1,"n.d.") -> n.d. | Y37: =IF(INDEX($C37:$G37,1,aux!$AL$1)>0,(G37-INDEX($C37:$G37,1,aux!$AL$1))/INDEX($C37:$G37,1,aux!$AL$1),"n.d.") -> n.d. | AA37: =O37-INDEX($K37:$O37,1,aux!$AL$1) -> 0 | AB37: 0 | AC37: 0 | AD37: =+IF(INDEX($K37:$O37,1,aux!$AL$1)>0,(O37/INDEX($K37:$O37,1,aux!$AL$1))^(1/($O$3-INDEX($K$3:$O$3,1,aux!$AL$1)))-1,"n.d.") -> n.d. | AE37: =IF(INDEX($K37:$O37,1,aux!$AL$1)>0,(O37-INDEX($K37:$O37,1,aux!$AL$1))/INDEX($K37:$O37,1,aux!$AL$1),"n.d.") -> n.d. | AX37: 05
A38: 0507 | B38: Marfim, carapaças de tartaruga, etc. | C38: 0 | D38: 0 | E38: 0 | F38: 0 | G38: 0 | H38: 0 | I38: 0 | J38: 0 | K38: 0 | L38: 0 | M38: 0 | N38: 0 | O38: 0 | P38: 0 | Q38: 0 | R38: 0 | S38: 0 | U38: =G38-INDEX($C38:$G38,1,aux!$AL$1) -> 0 | V38: 0 | W38: 0 | X38: =+IF(INDEX($C38:$G38,1,aux!$AL$1)>0,(G38/INDEX($C38:$G38,1,aux!$AL$1))^(1/($G$3-INDEX($C$3:$G$3,1,aux!$AL$1)))-1,"n.d.") -> n.d. | Y38: =IF(INDEX($C38:$G38,1,aux!$AL$1)>0,(G38-INDEX($C38:$G38,1,aux!$AL$1))/INDEX($C38:$G38,1,aux!$AL$1),"n.d.") -> n.d. | AA38: =O38-INDEX($K38:$O38,1,aux!$AL$1) -> 0 | AB38: 0 | AC38: 0 | AD38: =+IF(INDEX($K38:$O38,1,aux!$AL$1)>0,(O38/INDEX($K38:$O38,1,aux!$AL$1))^(1/($O$3-INDEX($K$3:$O$3,1,aux!$AL$1)))-1,"n.d.") -> n.d. | AE38: =IF(INDEX($K38:$O38,1,aux!$AL$1)>0,(O38-INDEX($K38:$O38,1,aux!$AL$1))/INDEX($K38:$O38,1,aux!$AL$1),"n.d.") -> n.d. | AX38: 05
A39: 0510 | B39: Âmbar-cinzento, castóreo, algália e almíscar, etc. | C39: 0 | D39: 0 | E39: 0 | F39: 0 | G39: 0 | H39: 0 | I39: 0 | J39: 0 | K39: 0 | L39: 0 | M39: 0 | N39: 0 | O39: 0 | P39: 0 | Q39: 0 | R39: 0 | S39: 0 | U39: =G39-INDEX($C39:$G39,1,aux!$AL$1) -> 0 | V39: 0 | W39: 0 | X39: =+IF(INDEX($C39:$G39,1,aux!$AL$1)>0,(G39/INDEX($C39:$G39,1,aux!$AL$1))^(1/($G$3-INDEX($C$3:$G$3,1,aux!$AL$1)))-1,"n.d.") -> n.d. | Y39: =IF(INDEX($C39:$G39,1,aux!$AL$1)>0,(G39-INDEX($C39:$G39,1,aux!$AL$1))/INDEX($C39:$G39,1,aux!$AL$1),"n.d.") -> n.d. | AA39: =O39-INDEX($K39:$O39,1,aux!$AL$1) -> 0 | AB39: 0 | AC39: 0 | AD39: =+IF(INDEX($K39:$O39,1,aux!$AL$1)>0,(O39/INDEX($K39:$O39,1,aux!$AL$1))^(1/($O$3-INDEX($K$3:$O$3,1,aux!$AL$1)))-1,"n.d.") -> n.d. | AE39: =IF(INDEX($K39:$O39,1,aux!$AL$1)>0,(O39-INDEX($K39:$O39,1,aux!$AL$1))/INDEX($K39:$O39,1,aux!$AL$1),"n.d.") -> n.d. | AX39: 05
A40: 0511 | B40: Outros produtos de origem animal (exc. NC 0511 91) (a) | C40: 0 | D40: 0 | E40: 0.005 | F40: 0.006 | G40: 3.168 | H40: 0.6358 | I40: 2.867941385e-05 | J40: 1.768487477e-05 | K40: 0 | L40: 0 | M40: 0 | N40: 0 | O40: 0 | P40: 0 | Q40: 0 | R40: 0 | S40: -0.6358 | U40: =G40-INDEX($C40:$G40,1,aux!$AL$1) -> 3.168 | V40: 0.0005272870201 | W40: 0.000168244195 | X40: =+IF(INDEX($C40:$G40,1,aux!$AL$1)>0,(G40/INDEX($C40:$G40,1,aux!$AL$1))^(1/($G$3-INDEX($C$3:$G$3,1,aux!$AL$1)))-1,"n.d.") -> n.d. | Y40: =IF(INDEX($C40:$G40,1,aux!$AL$1)>0,(G40-INDEX($C40:$G40,1,aux!$AL$1))/INDEX($C40:$G40,1,aux!$AL$1),"n.d.") -> n.d. | AA40: =O40-INDEX($K40:$O40,1,aux!$AL$1) -> 0 | AB40: 0 | AC40: 0 | AD40: =+IF(INDEX($K40:$O40,1,aux!$AL$1)>0,(O40/INDEX($K40:$O40,1,aux!$AL$1))^(1/($O$3-INDEX($K$3:$O$3,1,aux!$AL$1)))-1,"n.d.") -> n.d. | AE40: =IF(INDEX($K40:$O40,1,aux!$AL$1)>0,(O40-INDEX($K40:$O40,1,aux!$AL$1))/INDEX($K40:$O40,1,aux!$AL$1),"n.d.") -> n.d. | AX40: 05
A41: 05SS | B41: Outros produtos de origem animal | C41: 0 | D41: 0 | E41: 0 | F41: 0 | G41: 0 | H41: 0 | I41: 0 | J41: 0 | K41: 0 | L41: 0 | M41: 0 | N41: 0 | O41: 0 | P41: 0 | Q41: 0 | R41: 0 | S41: 0 | U41: =G41-INDEX($C41:$G41,1,aux!$AL$1) -> 0 | V41: 0 | W41: 0 | X41: =+IF(INDEX($C41:$G41,1,aux!$AL$1)>0,(G41/INDEX($C41:$G41,1,aux!$AL$1))^(1/($G$3-INDEX($C$3:$G$3,1,aux!$AL$1)))-1,"n.d.") -> n.d. | Y41: =IF(INDEX($C41:$G41,1,aux!$AL$1)>0,(G41-INDEX($C41:$G41,1,aux!$AL$1))/INDEX($C41:$G41,1,aux!$AL$1),"n.d.") -> n.d. | AA41: =O41-INDEX($K41:$O41,1,aux!$AL$1) -> 0 | AB41: 0 | AC41: 0 | AD41: =+IF(INDEX($K41:$O41,1,aux!$AL$1)>0,(O41/INDEX($K41:$O41,1,aux!$AL$1))^(1/($O$3-INDEX($K$3:$O$3,1,aux!$AL$1)))-1,"n.d.") -> n.d. | AE41: =IF(INDEX($K41:$O41,1,aux!$AL$1)>0,(O41-INDEX($K41:$O41,1,aux!$AL$1))/INDEX($K41:$O41,1,aux!$AL$1),"n.d.") -> n.d. | AX41: 05
A42: 0601 | B42: Bolbos, tubérculos, raízes, etc. | C42: 0 | D42: 0 | E42: 0 | F42: 0 | G42: 0 | H42: 0 | I42: 0 | J42: 0 | K42: 0 | L42: 0 | M42: 0 | N42: 0 | O42: 0 | P42: 0 | Q42: 0 | R42: 0 | S42: 0 | U42: =G42-INDEX($C42:$G42,1,aux!$AL$1) -> 0 | V42: 0 | W42: 0 | X42: =+IF(INDEX($C42:$G42,1,aux!$AL$1)>0,(G42/INDEX($C42:$G42,1,aux!$AL$1))^(1/($G$3-INDEX($C$3:$G$3,1,aux!$AL$1)))-1,"n.d.") -> n.d. | Y42: =IF(INDEX($C42:$G42,1,aux!$AL$1)>0,(G42-INDEX($C42:$G42,1,aux!$AL$1))/INDEX($C42:$G42,1,aux!$AL$1),"n.d.") -> n.d. | AA42: =O42-INDEX($K42:$O42,1,aux!$AL$1) -> 0 | AB42: 0 | AC42: 0 | AD42: =+IF(INDEX($K42:$O42,1,aux!$AL$1)>0,(O42/INDEX($K42:$O42,1,aux!$AL$1))^(1/($O$3-INDEX($K$3:$O$3,1,aux!$AL$1)))-1,"n.d.") -> n.d. | AE42: =IF(INDEX($K42:$O42,1,aux!$AL$1)>0,(O42-INDEX($K42:$O42,1,aux!$AL$1))/INDEX($K42:$O42,1,aux!$AL$1),"n.d.") -> n.d. | AX42: 06
A43: 0602 | B43: Plantas vivas | C43: 8.742 | D43: 6.526 | E43: 8.127 | F43: 10.138 | G43: 6.644 | H43: 8.0354 | I43: 0.0003624576314 | J43: 0.0002235058866 | K43: 37.355 | L43: 54.512 | M43: 0.934 | N43: 1.424 | O43: 2.054 | P43: 19.2558 | Q43: 0.001055974652 | R43: 0.0006612372581 | S43: 11.2204 | U43: =G43-INDEX($C43:$G43,1,aux!$AL$1) -> -2.098 | V43: -0.0003491944975 | W43: -0.0001114192933 | X43: =+IF(INDEX($C43:$G43,1,aux!$AL$1)>0,(G43/INDEX($C43:$G43,1,aux!$AL$1))^(1/($G$3-INDEX($C$3:$G$3,1,aux!$AL$1)))-1,"n.d.") -> -0.06630570459 | Y43: =IF(INDEX($C43:$G43,1,aux!$AL$1)>0,(G43-INDEX($C43:$G43,1,aux!$AL$1))/INDEX($C43:$G43,1,aux!$AL$1),"n.d.") -> -0.2399908488 | AA43: =O43-INDEX($K43:$O43,1,aux!$AL$1) -> -35.301 | AB43: -0.006296793168 | AC43: -0.003484375928 | AD43: =+IF(INDEX($K43:$O43,1,aux!$AL$1)>0,(O43/INDEX($K43:$O43,1,aux!$AL$1))^(1/($O$3-INDEX($K$3:$O$3,1,aux!$AL$1)))-1,"n.d.") -> -0.5157574759 | AE43: =IF(INDEX($K43:$O43,1,aux!$AL$1)>0,(O43-INDEX($K43:$O43,1,aux!$AL$1))/INDEX($K43:$O43,1,aux!$AL$1),"n.d.") -> -0.9450140543 | AX43: 06
A44: 0603 | B44: Flores e seus botões | C44: 0 | D44: 0 | E44: 0 | F44: 0 | G44: 0 | H44: 0 | I44: 0 | J44: 0 | K44: 0 | L44: 0 | M44: 0 | N44: 0 | O44: 0 | P44: 0 | Q44: 0 | R44: 0 | S44: 0 | U44: =G44-INDEX($C44:$G44,1,aux!$AL$1) -> 0 | V44: 0 | W44: 0 | X44: =+IF(INDEX($C44:$G44,1,aux!$AL$1)>0,(G44/INDEX($C44:$G44,1,aux!$AL$1))^(1/($G$3-INDEX($C$3:$G$3,1,aux!$AL$1)))-1,"n.d.") -> n.d. | Y44: =IF(INDEX($C44:$G44,1,aux!$AL$1)>0,(G44-INDEX($C44:$G44,1,aux!$AL$1))/INDEX($C44:$G44,1,aux!$AL$1),"n.d.") -> n.d. | AA44: =O44-INDEX($K44:$O44,1,aux!$AL$1) -> 0 | AB44: 0 | AC44: 0 | AD44: =+IF(INDEX($K44:$O44,1,aux!$AL$1)>0,(O44/INDEX($K44:$O44,1,aux!$AL$1))^(1/($O$3-INDEX($K$3:$O$3,1,aux!$AL$1)))-1,"n.d.") -> n.d. | AE44: =IF(INDEX($K44:$O44,1,aux!$AL$1)>0,(O44-INDEX($K44:$O44,1,aux!$AL$1))/INDEX($K44:$O44,1,aux!$AL$1),"n.d.") -> n.d. | AX44: 06
A45: 0604 | B45: Folhagem, folhas, ramos e outras partes de plantas | C45: 0 | D45: 0 | E45: 0 | F45: 0.006 | G45: 0 | H45: 0.0012 | I45: 5.412912335e-08 | J45: 3.337818453e-08 | K45: 0.394 | L45: 0 | M45: 0 | N45: 0 | O45: 0 | P45: 0.0788 | Q45: 4.321337082e-06 | R45: 2.705963706e-06 | S45: 0.0776 | U45: =G45-INDEX($C45:$G45,1,aux!$AL$1) -> 0 | V45: 0 | W45: 0 | X45: =+IF(INDEX($C45:$G45,1,aux!$AL$1)>0,(G45/INDEX($C45:$G45,1,aux!$AL$1))^(1/($G$3-INDEX($C$3:$G$3,1,aux!$AL$1)))-1,"n.d.") -> n.d. | Y45: =IF(INDEX($C45:$G45,1,aux!$AL$1)>0,(G45-INDEX($C45:$G45,1,aux!$AL$1))/INDEX($C45:$G45,1,aux!$AL$1),"n.d.") -> n.d. | AA45: =O45-INDEX($K45:$O45,1,aux!$AL$1) -> -0.394 | AB45: -7.027949656e-05 | AC45: -3.888966646e-05 | AD45: =+IF(INDEX($K45:$O45,1,aux!$AL$1)>0,(O45/INDEX($K45:$O45,1,aux!$AL$1))^(1/($O$3-INDEX($K$3:$O$3,1,aux!$AL$1)))-1,"n.d.") -> -1 | AE45: =IF(INDEX($K45:$O45,1,aux!$AL$1)>0,(O45-INDEX($K45:$O45,1,aux!$AL$1))/INDEX($K45:$O45,1,aux!$AL$1),"n.d.") -> -1 | AX45: 06
A46: 06SS | B46: Plantas vivas e produtos de floricultura | C46: 0 | D46: 0 | E46: 0 | F46: 0 | G46: 0 | H46: 0 | I46: 0 | J46: 0 | K46: 0 | L46: 0 | M46: 0 | N46: 0 | O46: 0 | P46: 0 | Q46: 0 | R46: 0 | S46: 0 | U46: =G46-INDEX($C46:$G46,1,aux!$AL$1) -> 0 | V46: 0 | W46: 0 | X46: =+IF(INDEX($C46:$G46,1,aux!$AL$1)>0,(G46/INDEX($C46:$G46,1,aux!$AL$1))^(1/($G$3-INDEX($C$3:$G$3,1,aux!$AL$1)))-1,"n.d.") -> n.d. | Y46: =IF(INDEX($C46:$G46,1,aux!$AL$1)>0,(G46-INDEX($C46:$G46,1,aux!$AL$1))/INDEX($C46:$G46,1,aux!$AL$1),"n.d.") -> n.d. | AA46: =O46-INDEX($K46:$O46,1,aux!$AL$1) -> 0 | AB46: 0 | AC46: 0 | AD46: =+IF(INDEX($K46:$O46,1,aux!$AL$1)>0,(O46/INDEX($K46:$O46,1,aux!$AL$1))^(1/($O$3-INDEX($K$3:$O$3,1,aux!$AL$1)))-1,"n.d.") -> n.d. | AE46: =IF(INDEX($K46:$O46,1,aux!$AL$1)>0,(O46-INDEX($K46:$O46,1,aux!$AL$1))/INDEX($K46:$O46,1,aux!$AL$1),"n.d.") -> n.d. | AX46: 06
A47: 0701 | B47: Batatas, frescas ou refrigeradas | C47: 104.245 | D47: 43.63 | E47: 124.06 | F47: 52.393 | G47: 32.302 | H47: 71.326 | I47: 0.003217344876 | J47: 0.001983943658 | K47: 275.475 | L47: 430.215 | M47: 473.577 | N47: 545.53 | O47: 577.2 | P47: 460.3994 | Q47: 0.02524798223 | R47: 0.01580995009 | S47: 389.0734 | U47: =G47-INDEX($C47:$G47,1,aux!$AL$1) -> -71.943 | V47: -0.01197430874 | W47: -0.003820704583 | X47: =+IF(INDEX($C47:$G47,1,aux!$AL$1)>0,(G47/INDEX($C47:$G47,1,aux!$AL$1))^(1/($G$3-INDEX($C$3:$G$3,1,aux!$AL$1)))-1,"n.d.") -> -0.2539060046 | Y47: =IF(INDEX($C47:$G47,1,aux!$AL$1)>0,(G47-INDEX($C47:$G47,1,aux!$AL$1))/INDEX($C47:$G47,1,aux!$AL$1),"n.d.") -> -0.6901338194 | AA47: =O47-INDEX($K47:$O47,1,aux!$AL$1) -> 301.725 | AB47: 0.05382000279 | AC47: 0.02978168684 | AD47: =+IF(INDEX($K47:$O47,1,aux!$AL$1)>0,(O47/INDEX($K47:$O47,1,aux!$AL$1))^(1/($O$3-INDEX($K$3:$O$3,1,aux!$AL$1)))-1,"n.d.") -> 0.2031257798 | AE47: =IF(INDEX($K47:$O47,1,aux!$AL$1)>0,(O47-INDEX($K47:$O47,1,aux!$AL$1))/INDEX($K47:$O47,1,aux!$AL$1),"n.d.") -> 1.095289954 | AX47: 07
A48: 0702 | B48: Tomates, frescos ou refrigerados | C48: 0 | D48: 0 | E48: 0 | F48: 0 | G48: 0 | H48: 0 | I48: 0 | J48: 0 | K48: 0 | L48: 30.537 | M48: 205.96 | N48: 0 | O48: 0 | P48: 47.2994 | Q48: 0.002593866132 | R48: 0.001624244413 | S48: 47.2994 | U48: =G48-INDEX($C48:$G48,1,aux!$AL$1) -> 0 | V48: 0 | W48: 0 | X48: =+IF(INDEX($C48:$G48,1,aux!$AL$1)>0,(G48/INDEX($C48:$G48,1,aux!$AL$1))^(1/($G$3-INDEX($C$3:$G$3,1,aux!$AL$1)))-1,"n.d.") -> n.d. | Y48: =IF(INDEX($C48:$G48,1,aux!$AL$1)>0,(G48-INDEX($C48:$G48,1,aux!$AL$1))/INDEX($C48:$G48,1,aux!$AL$1),"n.d.") -> n.d. | AA48: =O48-INDEX($K48:$O48,1,aux!$AL$1) -> 0 | AB48: 0 | AC48: 0 | AD48: =+IF(INDEX($K48:$O48,1,aux!$AL$1)>0,(O48/INDEX($K48:$O48,1,aux!$AL$1))^(1/($O$3-INDEX($K$3:$O$3,1,aux!$AL$1)))-1,"n.d.") -> n.d. | AE48: =IF(INDEX($K48:$O48,1,aux!$AL$1)>0,(O48-INDEX($K48:$O48,1,aux!$AL$1))/INDEX($K48:$O48,1,aux!$AL$1),"n.d.") -> n.d. | AX48: 07
A49: 0703 | B49: Cebolas, alhos, etc., frescos ou refrigerados | C49: 0 | D49: 0 | E49: 0 | F49: 0.01 | G49: 0 | H49: 0.002 | I49: 9.021520558e-08 | J49: 5.563030755e-08 | K49: 7.453 | L49: 0 | M49: 0 | N49: 0 | O49: 0 | P49: 1.4906 | Q49: 8.174346516e-05 | R49: 5.118666879e-05 | S49: 1.4886 | U49: =G49-INDEX($C49:$G49,1,aux!$AL$1) -> 0 | V49: 0 | W49: 0 | X49: =+IF(INDEX($C49:$G49,1,aux!$AL$1)>0,(G49/INDEX($C49:$G49,1,aux!$AL$1))^(1/($G$3-INDEX($C$3:$G$3,1,aux!$AL$1)))-1,"n.d.") -> n.d. | Y49: =IF(INDEX($C49:$G49,1,aux!$AL$1)>0,(G49-INDEX($C49:$G49,1,aux!$AL$1))/INDEX($C49:$G49,1,aux!$AL$1),"n.d.") -> n.d. | AA49: =O49-INDEX($K49:$O49,1,aux!$AL$1) -> -7.453 | AB49: -0.001329424081 | AC49: -0.0007356464065 | AD49: =+IF(INDEX($K49:$O49,1,aux!$AL$1)>0,(O49/INDEX($K49:$O49,1,aux!$AL$1))^(1/($O$3-INDEX($K$3:$O$3,1,aux!$AL$1)))-1,"n.d.") -> -1 | AE49: =IF(INDEX($K49:$O49,1,aux!$AL$1)>0,(O49-INDEX($K49:$O49,1,aux!$AL$1))/INDEX($K49:$O49,1,aux!$AL$1),"n.d.") -> -1 | AX49: 07
A50: 0704 | B50: Couves, frescas ou refrigeradas | C50: 0.956 | D50: 1.57 | E50: 20.143 | F50: 93.588 | G50: 31.69 | H50: 29.5894 | I50: 0.001334706902 | J50: 0.000823033711 | K50: 221.031 | L50: 333.343 | M50: 800.186 | N50: 664.863 | O50: 1104.507 | P50: 624.786 | Q50: 0.03426282881 | R50: 0.02145492691 | S50: 595.1966 | U50: =G50-INDEX($C50:$G50,1,aux!$AL$1) -> 30.734 | V50: 0.005115416438 | W50: 0.001632202364 | X50: =+IF(INDEX($C50:$G50,1,aux!$AL$1)>0,(G50/INDEX($C50:$G50,1,aux!$AL$1))^(1/($G$3-INDEX($C$3:$G$3,1,aux!$AL$1)))-1,"n.d.") -> 1.399474212 | Y50: =IF(INDEX($C50:$G50,1,aux!$AL$1)>0,(G50-INDEX($C50:$G50,1,aux!$AL$1))/INDEX($C50:$G50,1,aux!$AL$1),"n.d.") -> 32.14853556 | AA50: =O50-INDEX($K50:$O50,1,aux!$AL$1) -> 883.476 | AB50: 0.1575894632 | AC50: 0.08720326642 | AD50: =+IF(INDEX($K50:$O50,1,aux!$AL$1)>0,(O50/INDEX($K50:$O50,1,aux!$AL$1))^(1/($O$3-INDEX($K$3:$O$3,1,aux!$AL$1)))-1,"n.d.") -> 0.4951295362 | AE50: =IF(INDEX($K50:$O50,1,aux!$AL$1)>0,(O50-INDEX($K50:$O50,1,aux!$AL$1))/INDEX($K50:$O50,1,aux!$AL$1),"n.d.") -> 3.997068285 | AX50: 07
A51: 0705 | B51: Alfaces, frescas ou refrigeradas | C51: 0 | D51: 0 | E51: 0 | F51: 0 | G51: 0.419 | H51: 0.0838 | I51: 3.780017114e-06 | J51: 2.330909886e-06 | K51: 0 | L51: 0 | M51: 0 | N51: 0 | O51: 0.932 | P51: 0.1864 | Q51: 1.022204609e-05 | R51: 6.400909072e-06 | S51: 0.1026 | U51: =G51-INDEX($C51:$G51,1,aux!$AL$1) -> 0.419 | V51: 6.973903454e-05 | W51: 2.225199422e-05 | X51: =+IF(INDEX($C51:$G51,1,aux!$AL$1)>0,(G51/INDEX($C51:$G51,1,aux!$AL$1))^(1/($G$3-INDEX($C$3:$G$3,1,aux!$AL$1)))-1,"n.d.") -> n.d. | Y51: =IF(INDEX($C51:$G51,1,aux!$AL$1)>0,(G51-INDEX($C51:$G51,1,aux!$AL$1))/INDEX($C51:$G51,1,aux!$AL$1),"n.d.") -> n.d. | AA51: =O51-INDEX($K51:$O51,1,aux!$AL$1) -> 0.932 | AB51: 0.0001662449005 | AC51: 9.199281508e-05 | AD51: =+IF(INDEX($K51:$O51,1,aux!$AL$1)>0,(O51/INDEX($K51:$O51,1,aux!$AL$1))^(1/($O$3-INDEX($K$3:$O$3,1,aux!$AL$1)))-1,"n.d.") -> n.d. | AE51: =IF(INDEX($K51:$O51,1,aux!$AL$1)>0,(O51-INDEX($K51:$O51,1,aux!$AL$1))/INDEX($K51:$O51,1,aux!$AL$1),"n.d.") -> n.d. | AX51: 07
A52: 0706 | B52: Cenouras, nabos, beterrabas, etc., frescos ou refrigerados | C52: 0.361 | D52: 213.495 | E52: 227.955 | F52: 116.1 | G52: 87.63 | H52: 129.1082 | I52: 0.005823761402 | J52: 0.003591164436 | K52: 4106.332 | L52: 4650.421 | M52: 3621.508 | N52: 4132.917 | O52: 3040.52 | P52: 3910.3396 | Q52: 0.2144402984 | R52: 0.1342796578 | S52: 3781.2314 | U52: =G52-INDEX($C52:$G52,1,aux!$AL$1) -> 87.269 | V52: 0.01452519285 | W52: 0.004634628362 | X52: =+IF(INDEX($C52:$G52,1,aux!$AL$1)>0,(G52/INDEX($C52:$G52,1,aux!$AL$1))^(1/($G$3-INDEX($C$3:$G$3,1,aux!$AL$1)))-1,"n.d.") -> 2.94717519 | Y52: =IF(INDEX($C52:$G52,1,aux!$AL$1)>0,(G52-INDEX($C52:$G52,1,aux!$AL$1))/INDEX($C52:$G52,1,aux!$AL$1),"n.d.") -> 241.7423823 | AA52: =O52-INDEX($K52:$O52,1,aux!$AL$1) -> -1065.812 | AB52: -0.1901135299 | AC52: -0.1052006934 | AD52: =+IF(INDEX($K52:$O52,1,aux!$AL$1)>0,(O52/INDEX($K52:$O52,1,aux!$AL$1))^(1/($O$3-INDEX($K$3:$O$3,1,aux!$AL$1)))-1,"n.d.") -> -0.07237284986 | AE52: =IF(INDEX($K52:$O52,1,aux!$AL$1)>0,(O52-INDEX($K52:$O52,1,aux!$AL$1))/INDEX($K52:$O52,1,aux!$AL$1),"n.d.") -> -0.2595532948 | AX52: 07
A53: 0707 | B53: Pepinos e pepininhos, frescos ou refrigerados | C53: 0 | D53: 0 | E53: 0 | F53: 0 | G53: 0 | H53: 0 | I53: 0 | J53: 0 | K53: 0 | L53: 6.791 | M53: 0 | N53: 0 | O53: 0 | P53: 1.3582 | Q53: 7.448274144e-05 | R53: 4.664010033e-05 | S53: 1.3582 | U53: =G53-INDEX($C53:$G53,1,aux!$AL$1) -> 0 | V53: 0 | W53: 0 | X53: =+IF(INDEX($C53:$G53,1,aux!$AL$1)>0,(G53/INDEX($C53:$G53,1,aux!$AL$1))^(1/($G$3-INDEX($C$3:$G$3,1,aux!$AL$1)))-1,"n.d.") -> n.d. | Y53: =IF(INDEX($C53:$G53,1,aux!$AL$1)>0,(G53-INDEX($C53:$G53,1,aux!$AL$1))/INDEX($C53:$G53,1,aux!$AL$1),"n.d.") -> n.d. | AA53: =O53-INDEX($K53:$O53,1,aux!$AL$1) -> 0 | AB53: 0 | AC53: 0 | AD53: =+IF(INDEX($K53:$O53,1,aux!$AL$1)>0,(O53/INDEX($K53:$O53,1,aux!$AL$1))^(1/($O$3-INDEX($K$3:$O$3,1,aux!$AL$1)))-1,"n.d.") -> n.d. | AE53: =IF(INDEX($K53:$O53,1,aux!$AL$1)>0,(O53-INDEX($K53:$O53,1,aux!$AL$1))/INDEX($K53:$O53,1,aux!$AL$1),"n.d.") -> n.d. | AX53: 07
A54: 0708 | B54: Tomates preparados ou conservados | C54: 0 | D54: 0 | E54: 0 | F54: 0 | G54: 0 | H54: 0 | I54: 0 | J54: 0 | K54: 0 | L54: 2.313 | M54: 56.947 | N54: 0 | O54: 0 | P54: 11.852 | Q54: 0.00064995542 | R54: 0.0004069934245 | S54: 11.852 | U54: =G54-INDEX($C54:$G54,1,aux!$AL$1) -> 0 | V54: 0 | W54: 0 | X54: =+IF(INDEX($C54:$G54,1,aux!$AL$1)>0,(G54/INDEX($C54:$G54,1,aux!$AL$1))^(1/($G$3-INDEX($C$3:$G$3,1,aux!$AL$1)))-1,"n.d.") -> n.d. | Y54: =IF(INDEX($C54:$G54,1,aux!$AL$1)>0,(G54-INDEX($C54:$G54,1,aux!$AL$1))/INDEX($C54:$G54,1,aux!$AL$1),"n.d.") -> n.d. | AA54: =O54-INDEX($K54:$O54,1,aux!$AL$1) -> 0 | AB54: 0 | AC54: 0 | AD54: =+IF(INDEX($K54:$O54,1,aux!$AL$1)>0,(O54/INDEX($K54:$O54,1,aux!$AL$1))^(1/($O$3-INDEX($K$3:$O$3,1,aux!$AL$1)))-1,"n.d.") -> n.d. | AE54: =IF(INDEX($K54:$O54,1,aux!$AL$1)>0,(O54-INDEX($K54:$O54,1,aux!$AL$1))/INDEX($K54:$O54,1,aux!$AL$1),"n.d.") -> n.d. | AX54: 07
A55: 0709 | B55: Outros produtos hortícolas, frescos ou refrigerados | C55: 141.608 | D55: 106.435 | E55: 343.207 | F55: 121.665 | G55: 46.568 | H55: 151.8966 | I55: 0.006851691498 | J55: 0.004225027287 | K55: 1464.546 | L55: 1747.38 | M55: 2570.148 | N55: 1611.604 | O55: 1107.39 | P55: 1700.2136 | Q55: 0.0932385289 | R55: 0.05838472455 | S55: 1548.317 | U55: =G55-INDEX($C55:$G55,1,aux!$AL$1) -> -95.04 | V55: -0.0158186106 | W55: -0.005047325849 | X55: =+IF(INDEX($C55:$G55,1,aux!$AL$1)>0,(G55/INDEX($C55:$G55,1,aux!$AL$1))^(1/($G$3-INDEX($C$3:$G$3,1,aux!$AL$1)))-1,"n.d.") -> -0.2427313999 | Y55: =IF(INDEX($C55:$G55,1,aux!$AL$1)>0,(G55-INDEX($C55:$G55,1,aux!$AL$1))/INDEX($C55:$G55,1,aux!$AL$1),"n.d.") -> -0.6711485227 | AA55: =O55-INDEX($K55:$O55,1,aux!$AL$1) -> -357.156 | AB55: -0.06370747176 | AC55: -0.03525298912 | AD55: =+IF(INDEX($K55:$O55,1,aux!$AL$1)>0,(O55/INDEX($K55:$O55,1,aux!$AL$1))^(1/($O$3-INDEX($K$3:$O$3,1,aux!$AL$1)))-1,"n.d.") -> -0.06749880914 | AE55: =IF(INDEX($K55:$O55,1,aux!$AL$1)>0,(O55-INDEX($K55:$O55,1,aux!$AL$1))/INDEX($K55:$O55,1,aux!$AL$1),"n.d.") -> -0.2438680656 | AX55: 07
A56: 0710 | B56: Produtos hortícolas congelados | C56: 0 | D56: 0 | E56: 0 | F56: 0 | G56: 0 | H56: 0 | I56: 0 | J56: 0 | K56: 12.835 | L56: 0 | M56: 0 | N56: 0.158 | O56: 23.597 | P56: 7.318 | Q56: 0.0004013140199 | R56: 0.0002512974924 | S56: 7.318 | U56: =G56-INDEX($C56:$G56,1,aux!$AL$1) -> 0 | V56: 0 | W56: 0 | X56: =+IF(INDEX($C56:$G56,1,aux!$AL$1)>0,(G56/INDEX($C56:$G56,1,aux!$AL$1))^(1/($G$3-INDEX($C$3:$G$3,1,aux!$AL$1)))-1,"n.d.") -> n.d. | Y56: =IF(INDEX($C56:$G56,1,aux!$AL$1)>0,(G56-INDEX($C56:$G56,1,aux!$AL$1))/INDEX($C56:$G56,1,aux!$AL$1),"n.d.") -> n.d. | AA56: =O56-INDEX($K56:$O56,1,aux!$AL$1) -> 10.762 | AB56: 0.001919664827 | AC56: 0.001062260382 | AD56: =+IF(INDEX($K56:$O56,1,aux!$AL$1)>0,(O56/INDEX($K56:$O56,1,aux!$AL$1))^(1/($O$3-INDEX($K$3:$O$3,1,aux!$AL$1)))-1,"n.d.") -> 0.164434944 | AE56: =IF(INDEX($K56:$O56,1,aux!$AL$1)>0,(O56-INDEX($K56:$O56,1,aux!$AL$1))/INDEX($K56:$O56,1,aux!$AL$1),"n.d.") -> 0.838488508 | AX56: 07
A57: 0711 | B57: Produtos hortícolas conservados transitoriamente | C57: 0 | D57: 0 | E57: 0 | F57: 0 | G57: 0 | H57: 0 | I57: 0 | J57: 0 | K57: 0 | L57: 0 | M57: 0 | N57: 0 | O57: 0 | P57: 0 | Q57: 0 | R57: 0 | S57: 0 | U57: =G57-INDEX($C57:$G57,1,aux!$AL$1) -> 0 | V57: 0 | W57: 0 | X57: =+IF(INDEX($C57:$G57,1,aux!$AL$1)>0,(G57/INDEX($C57:$G57,1,aux!$AL$1))^(1/($G$3-INDEX($C$3:$G$3,1,aux!$AL$1)))-1,"n.d.") -> n.d. | Y57: =IF(INDEX($C57:$G57,1,aux!$AL$1)>0,(G57-INDEX($C57:$G57,1,aux!$AL$1))/INDEX($C57:$G57,1,aux!$AL$1),"n.d.") -> n.d. | AA57: =O57-INDEX($K57:$O57,1,aux!$AL$1) -> 0 | AB57: 0 | AC57: 0 | AD57: =+IF(INDEX($K57:$O57,1,aux!$AL$1)>0,(O57/INDEX($K57:$O57,1,aux!$AL$1))^(1/($O$3-INDEX($K$3:$O$3,1,aux!$AL$1)))-1,"n.d.") -> n.d. | AE57: =IF(INDEX($K57:$O57,1,aux!$AL$1)>0,(O57-INDEX($K57:$O57,1,aux!$AL$1))/INDEX($K57:$O57,1,aux!$AL$1),"n.d.") -> n.d. | AX57: 07
A58: 0712 | B58: Produtos hortícolas secos | C58: 0 | D58: 0.09 | E58: 0.39 | F58: 1.027 | G58: 0.447 | H58: 0.3908 | I58: 1.762805117e-05 | J58: 1.087016209e-05 | K58: 10.41 | L58: 5.062 | M58: 0 | N58: 564.726 | O58: 186.539 | P58: 153.3474 | Q58: 0.008409464544 | R58: 0.005265894656 | S58: 152.9566 | U58: =G58-INDEX($C58:$G58,1,aux!$AL$1) -> 0.447 | V58: 7.439939961e-05 | W58: 2.3739001e-05 | X58: =+IF(INDEX($C58:$G58,1,aux!$AL$1)>0,(G58/INDEX($C58:$G58,1,aux!$AL$1))^(1/($G$3-INDEX($C$3:$G$3,1,aux!$AL$1)))-1,"n.d.") -> n.d. | Y58: =IF(INDEX($C58:$G58,1,aux!$AL$1)>0,(G58-INDEX($C58:$G58,1,aux!$AL$1))/INDEX($C58:$G58,1,aux!$AL$1),"n.d.") -> n.d. | AA58: =O58-INDEX($K58:$O58,1,aux!$AL$1) -> 176.129 | AB58: 0.03141689708 | AC58: 0.01738476666 | AD58: =+IF(INDEX($K58:$O58,1,aux!$AL$1)>0,(O58/INDEX($K58:$O58,1,aux!$AL$1))^(1/($O$3-INDEX($K$3:$O$3,1,aux!$AL$1)))-1,"n.d.") -> 1.057452079 | AE58: =IF(INDEX($K58:$O58,1,aux!$AL$1)>0,(O58-INDEX($K58:$O58,1,aux!$AL$1))/INDEX($K58:$O58,1,aux!$AL$1),"n.d.") -> 16.9192123 | AX58: 07
A59: 0713 | B59: Legumes de vagem, secos, em grão | C59: 0 | D59: 0 | E59: 10.917 | F59: 42.185 | G59: 8.479 | H59: 12.3162 | I59: 0.0005555542575 | J59: 0.0003425769969 | K59: 0.728 | L59: 0 | M59: 0.005 | N59: 0.244 | O59: 0.184 | P59: 0.2322 | Q59: 1.273368617e-05 | R59: 7.973664627e-06 | S59: -12.084 | U59: =G59-INDEX($C59:$G59,1,aux!$AL$1) -> 8.479 | V59: 0.00141125841 | W59: 0.0004502975155 | X59: =+IF(INDEX($C59:$G59,1,aux!$AL$1)>0,(G59/INDEX($C59:$G59,1,aux!$AL$1))^(1/($G$3-INDEX($C$3:$G$3,1,aux!$AL$1)))-1,"n.d.") -> n.d. | Y59: =IF(INDEX($C59:$G59,1,aux!$AL$1)>0,(G59-INDEX($C59:$G59,1,aux!$AL$1))/INDEX($C59:$G59,1,aux!$AL$1),"n.d.") -> n.d. | AA59: =O59-INDEX($K59:$O59,1,aux!$AL$1) -> -0.544 | AB59: -9.703565008e-05 | AC59: -5.369537705e-05 | AD59: =+IF(INDEX($K59:$O59,1,aux!$AL$1)>0,(O59/INDEX($K59:$O59,1,aux!$AL$1))^(1/($O$3-INDEX($K$3:$O$3,1,aux!$AL$1)))-1,"n.d.") -> -0.2909585721 | AE59: =IF(INDEX($K59:$O59,1,aux!$AL$1)>0,(O59-INDEX($K59:$O59,1,aux!$AL$1))/INDEX($K59:$O59,1,aux!$AL$1),"n.d.") -> -0.7472527473 | AX59: 07
A60: 0714 | B60: Raízes de mandioca, de araruta, batata-doce, etc. | C60: 1.165 | D60: 34.52 | E60: 4.142 | F60: 0.555 | G60: 0 | H60: 8.0764 | I60: 0.0003643070432 | J60: 0.0002246463079 | K60: 209.157 | L60: 175.412 | M60: 197.366 | N60: 105.3 | O60: 17.115 | P60: 140.87 | Q60: 0.007725212624 | R60: 0.00483742522 | S60: 132.7936 | U60: =G60-INDEX($C60:$G60,1,aux!$AL$1) -> -1.165 | V60: -0.0001939044755 | W60: -6.187010327e-05 | X60: =+IF(INDEX($C60:$G60,1,aux!$AL$1)>0,(G60/INDEX($C60:$G60,1,aux!$AL$1))^(1/($G$3-INDEX($C$3:$G$3,1,aux!$AL$1)))-1,"n.d.") -> -1 | Y60: =IF(INDEX($C60:$G60,1,aux!$AL$1)>0,(G60-INDEX($C60:$G60,1,aux!$AL$1))/INDEX($C60:$G60,1,aux!$AL$1),"n.d.") -> -1 | AA60: =O60-INDEX($K60:$O60,1,aux!$AL$1) -> -192.042 | AB60: -0.03425536822 | AC60: -0.01895545514 | AD60: =+IF(INDEX($K60:$O60,1,aux!$AL$1)>0,(O60/INDEX($K60:$O60,1,aux!$AL$1))^(1/($O$3-INDEX($K$3:$O$3,1,aux!$AL$1)))-1,"n.d.") -> -0.4651572356 | AE60: =IF(INDEX($K60:$O60,1,aux!$AL$1)>0,(O60-INDEX($K60:$O60,1,aux!$AL$1))/INDEX($K60:$O60,1,aux!$AL$1),"n.d.") -> -0.9181715171 | AX60: 07
A61: 07SS | B61: Produtos hortícolas, plantas, raízes e tubérculos, comestíveis | C61: 0 | D61: 0 | E61: 0 | F61: 0 | G61: 0 | H61: 0 | I61: 0 | J61: 0 | K61: 0 | L61: 0 | M61: 0 | N61: 0 | O61: 0 | P61: 0 | Q61: 0 | R61: 0 | S61: 0 | U61: =G61-INDEX($C61:$G61,1,aux!$AL$1) -> 0 | V61: 0 | W61: 0 | X61: =+IF(INDEX($C61:$G61,1,aux!$AL$1)>0,(G61/INDEX($C61:$G61,1,aux!$AL$1))^(1/($G$3-INDEX($C$3:$G$3,1,aux!$AL$1)))-1,"n.d.") -> n.d. | Y61: =IF(INDEX($C61:$G61,1,aux!$AL$1)>0,(G61-INDEX($C61:$G61,1,aux!$AL$1))/INDEX($C61:$G61,1,aux!$AL$1),"n.d.") -> n.d. | AA61: =O61-INDEX($K61:$O61,1,aux!$AL$1) -> 0 | AB61: 0 | AC61: 0 | AD61: =+IF(INDEX($K61:$O61,1,aux!$AL$1)>0,(O61/INDEX($K61:$O61,1,aux!$AL$1))^(1/($O$3-INDEX($K$3:$O$3,1,aux!$AL$1)))-1,"n.d.") -> n.d. | AE61: =IF(INDEX($K61:$O61,1,aux!$AL$1)>0,(O61-INDEX($K61:$O61,1,aux!$AL$1))/INDEX($K61:$O61,1,aux!$AL$1),"n.d.") -> n.d. | AX61: 07
A62: 0801 | B62: Cocos, castanhas do brasil e castanha de cajú | C62: 0 | D62: 0 | E62: 0 | F62: 0.012 | G62: 0 | H62: 0.0024 | I62: 1.082582467e-07 | J62: 6.675636905e-08 | K62: 0 | L62: 59.096 | M62: 5.563 | N62: 0.409 | O62: 0 | P62: 13.0136 | Q62: 0.0007136567545 | R62: 0.0004468823514 | S62: 13.0112 | U62: =G62-INDEX($C62:$G62,1,aux!$AL$1) -> 0 | V62: 0 | W62: 0 | X62: =+IF(INDEX($C62:$G62,1,aux!$AL$1)>0,(G62/INDEX($C62:$G62,1,aux!$AL$1))^(1/($G$3-INDEX($C$3:$G$3,1,aux!$AL$1)))-1,"n.d.") -> n.d. | Y62: =IF(INDEX($C62:$G62,1,aux!$AL$1)>0,(G62-INDEX($C62:$G62,1,aux!$AL$1))/INDEX($C62:$G62,1,aux!$AL$1),"n.d.") -> n.d. | AA62: =O62-INDEX($K62:$O62,1,aux!$AL$1) -> 0 | AB62: 0 | AC62: 0 | AD62: =+IF(INDEX($K62:$O62,1,aux!$AL$1)>0,(O62/INDEX($K62:$O62,1,aux!$AL$1))^(1/($O$3-INDEX($K$3:$O$3,1,aux!$AL$1)))-1,"n.d.") -> n.d. | AE62: =IF(INDEX($K62:$O62,1,aux!$AL$1)>0,(O62-INDEX($K62:$O62,1,aux!$AL$1))/INDEX($K62:$O62,1,aux!$AL$1),"n.d.") -> n.d. | AX62: 08
A63: 0802 | B63: Frutas de casca rija | C63: 0 | D63: 0.017 | E63: 0.136 | F63: 0.212 | G63: 0.348 | H63: 0.1426 | I63: 6.432344158e-06 | J63: 3.966440928e-06 | K63: 0 | L63: 0 | M63: 0.013 | N63: 0.193 | O63: 0.133 | P63: 0.0678 | Q63: 3.718104748e-06 | R63: 2.328227656e-06 | S63: -0.0748 | U63: =G63-INDEX($C63:$G63,1,aux!$AL$1) -> 0.348 | V63: 5.792168023e-05 | W63: 1.84813699e-05 | X63: =+IF(INDEX($C63:$G63,1,aux!$AL$1)>0,(G63/INDEX($C63:$G63,1,aux!$AL$1))^(1/($G$3-INDEX($C$3:$G$3,1,aux!$AL$1)))-1,"n.d.") -> n.d. | Y63: =IF(INDEX($C63:$G63,1,aux!$AL$1)>0,(G63-INDEX($C63:$G63,1,aux!$AL$1))/INDEX($C63:$G63,1,aux!$AL$1),"n.d.") -> n.d. | AA63: =O63-INDEX($K63:$O63,1,aux!$AL$1) -> 0.133 | AB63: 2.372378945e-05 | AC63: 1.312773005e-05 | AD63: =+IF(INDEX($K63:$O63,1,aux!$AL$1)>0,(O63/INDEX($K63:$O63,1,aux!$AL$1))^(1/($O$3-INDEX($K$3:$O$3,1,aux!$AL$1)))-1,"n.d.") -> n.d. | AE63: =IF(INDEX($K63:$O63,1,aux!$AL$1)>0,(O63-INDEX($K63:$O63,1,aux!$AL$1))/INDEX($K63:$O63,1,aux!$AL$1),"n.d.") -> n.d. | AX63: 08
A64: 0803 | B64: Bananas, frescas ou secas | C64: 0 | D64: 0 | E64: 0 | F64: 0 | G64: 0.016 | H64: 0.0032 | I64: 1.443443289e-07 | J64: 8.900849207e-08 | K64: 0 | L64: 0 | M64: 0 | N64: 0 | O64: 0 | P64: 0 | Q64: 0 | R64: 0 | S64: -0.0032 | U64: =G64-INDEX($C64:$G64,1,aux!$AL$1) -> 0.016 | V64: 2.663065758e-06 | W64: 8.497181565e-07 | X64: =+IF(INDEX($C64:$G64,1,aux!$AL$1)>0,(G64/INDEX($C64:$G64,1,aux!$AL$1))^(1/($G$3-INDEX($C$3:$G$3,1,aux!$AL$1)))-1,"n.d.") -> n.d. | Y64: =IF(INDEX($C64:$G64,1,aux!$AL$1)>0,(G64-INDEX($C64:$G64,1,aux!$AL$1))/INDEX($C64:$G64,1,aux!$AL$1),"n.d.") -> n.d. | AA64: =O64-INDEX($K64:$O64,1,aux!$AL$1) -> 0 | AB64: 0 | AC64: 0 | AD64: =+IF(INDEX($K64:$O64,1,aux!$AL$1)>0,(O64/INDEX($K64:$O64,1,aux!$AL$1))^(1/($O$3-INDEX($K$3:$O$3,1,aux!$AL$1)))-1,"n.d.") -> n.d. | AE64: =IF(INDEX($K64:$O64,1,aux!$AL$1)>0,(O64-INDEX($K64:$O64,1,aux!$AL$1))/INDEX($K64:$O64,1,aux!$AL$1),"n.d.") -> n.d. | AX64: 08
A65: 0804 | B65: Tâmaras, figos, ananases, abacates, goiabas, mangas | C65: 0 | D65: 0 | E65: 0 | F65: 0 | G65: 0 | H65: 0 | I65: 0 | J65: 0 | K65: 0 | L65: 0 | M65: 64.476 | N65: 0 | O65: 0 | P65: 12.8952 | Q65: 0.000707163781 | R65: 0.0004428165379 | S65: 12.8952 | U65: =G65-INDEX($C65:$G65,1,aux!$AL$1) -> 0 | V65: 0 | W65: 0 | X65: =+IF(INDEX($C65:$G65,1,aux!$AL$1)>0,(G65/INDEX($C65:$G65,1,aux!$AL$1))^(1/($G$3-INDEX($C$3:$G$3,1,aux!$AL$1)))-1,"n.d.") -> n.d. | Y65: =IF(INDEX($C65:$G65,1,aux!$AL$1)>0,(G65-INDEX($C65:$G65,1,aux!$AL$1))/INDEX($C65:$G65,1,aux!$AL$1),"n.d.") -> n.d. | AA65: =O65-INDEX($K65:$O65,1,aux!$AL$1) -> 0 | AB65: 0 | AC65: 0 | AD65: =+IF(INDEX($K65:$O65,1,aux!$AL$1)>0,(O65/INDEX($K65:$O65,1,aux!$AL$1))^(1/($O$3-INDEX($K$3:$O$3,1,aux!$AL$1)))-1,"n.d.") -> n.d. | AE65: =IF(INDEX($K65:$O65,1,aux!$AL$1)>0,(O65-INDEX($K65:$O65,1,aux!$AL$1))/INDEX($K65:$O65,1,aux!$AL$1),"n.d.") -> n.d. | AX65: 08
A66: 0805 | B66: Citrinos, frescos ou secos | C66: 0 | D66: 0 | E66: 0.535 | F66: 0 | G66: 0 | H66: 0.107 | I66: 4.826513498e-06 | J66: 2.976221454e-06 | K66: 8.289 | L66: 2.714 | M66: 3.802 | N66: 7.73 | O66: 19.456 | P66: 8.3982 | Q66: 0.0004605514351 | R66: 0.0002883911726 | S66: 8.2912 | U66: =G66-INDEX($C66:$G66,1,aux!$AL$1) -> 0 | V66: 0 | W66: 0 | X66: =+IF(INDEX($C66:$G66,1,aux!$AL$1)>0,(G66/INDEX($C66:$G66,1,aux!$AL$1))^(1/($G$3-INDEX($C$3:$G$3,1,aux!$AL$1)))-1,"n.d.") -> n.d. | Y66: =IF(INDEX($C66:$G66,1,aux!$AL$1)>0,(G66-INDEX($C66:$G66,1,aux!$AL$1))/INDEX($C66:$G66,1,aux!$AL$1),"n.d.") -> n.d. | AA66: =O66-INDEX($K66:$O66,1,aux!$AL$1) -> 11.167 | AB66: 0.001991906442 | AC66: 0.0011022358 | AD66: =+IF(INDEX($K66:$O66,1,aux!$AL$1)>0,(O66/INDEX($K66:$O66,1,aux!$AL$1))^(1/($O$3-INDEX($K$3:$O$3,1,aux!$AL$1)))-1,"n.d.") -> 0.2377640207 | AE66: =IF(INDEX($K66:$O66,1,aux!$AL$1)>0,(O66-INDEX($K66:$O66,1,aux!$AL$1))/INDEX($K66:$O66,1,aux!$AL$1),"n.d.") -> 1.347207142 | AX66: 08
A67: 0806 | B67: Uvas, frescas ou secas | C67: 0 | D67: 0 | E67: 0.147 | F67: 0 | G67: 0 | H67: 0.0294 | I67: 1.326163522e-06 | J67: 8.177655209e-07 | K67: 0.486 | L67: 15.856 | M67: 13.14 | N67: 0 | O67: 0 | P67: 5.8964 | Q67: 0.0003233544666 | R67: 0.0002024802589 | S67: 5.867 | U67: =G67-INDEX($C67:$G67,1,aux!$AL$1) -> 0 | V67: 0 | W67: 0 | X67: =+IF(INDEX($C67:$G67,1,aux!$AL$1)>0,(G67/INDEX($C67:$G67,1,aux!$AL$1))^(1/($G$3-INDEX($C$3:$G$3,1,aux!$AL$1)))-1,"n.d.") -> n.d. | Y67: =IF(INDEX($C67:$G67,1,aux!$AL$1)>0,(G67-INDEX($C67:$G67,1,aux!$AL$1))/INDEX($C67:$G67,1,aux!$AL$1),"n.d.") -> n.d. | AA67: =O67-INDEX($K67:$O67,1,aux!$AL$1) -> -0.486 | AB67: -8.668993739e-05 | AC67: -4.797050229e-05 | AD67: =+IF(INDEX($K67:$O67,1,aux!$AL$1)>0,(O67/INDEX($K67:$O67,1,aux!$AL$1))^(1/($O$3-INDEX($K$3:$O$3,1,aux!$AL$1)))-1,"n.d.") -> -1 | AE67: =IF(INDEX($K67:$O67,1,aux!$AL$1)>0,(O67-INDEX($K67:$O67,1,aux!$AL$1))/INDEX($K67:$O67,1,aux!$AL$1),"n.d.") -> -1 | AX67: 08
A68: 0807 | B68: Melões, melancias e papaia, frescos | C68: 0 | D68: 0 | E68: 0.085 | F68: 0 | G68: 0 | H68: 0.017 | I68: 7.668292474e-07 | J68: 4.728576141e-07 | K68: 8.471 | L68: 38.893 | M68: 40.188 | N68: 0.53 | O68: 0 | P68: 17.6164 | Q68: 0.0009660710987 | R68: 0.0006049408507 | S68: 17.5994 | U68: =G68-INDEX($C68:$G68,1,aux!$AL$1) -> 0 | V68: =IF($U$237<>0,U68/$U$237, "n.d.") -> 0 | W68: =IF($U$322<>0,U68/$U$322, "n.d.") -> 0 | X68: =+IF(INDEX($C68:$G68,1,aux!$AL$1)>0,(G68/INDEX($C68:$G68,1,aux!$AL$1))^(1/($G$3-INDEX($C$3:$G$3,1,aux!$AL$1)))-1,"n.d.") -> n.d. | Y68: =IF(INDEX($C68:$G68,1,aux!$AL$1)>0,(G68-INDEX($C68:$G68,1,aux!$AL$1))/INDEX($C68:$G68,1,aux!$AL$1),"n.d.") -> n.d. | AA68: =O68-INDEX($K68:$O68,1,aux!$AL$1) -> -8.471 | AB68: =IF($AA$237<>0,AA68/$AA$237, "n.d.") -> -0.001511009176 | AC68: =IF($AA$322<>0,AA68/$AA$322, "n.d.") -> -0.000836127829 | AD68: =+IF(INDEX($K68:$O68,1,aux!$AL$1)>0,(O68/INDEX($K68:$O68,1,aux!$AL$1))^(1/($O$3-INDEX($K$3:$O$3,1,aux!$AL$1)))-1,"n.d.") -> -1 | AE68: =IF(INDEX($K68:$O68,1,aux!$AL$1)>0,(O68-INDEX($K68:$O68,1,aux!$AL$1))/INDEX($K68:$O68,1,aux!$AL$1),"n.d.") -> -1 | AX68: 08
A69: 0808 | B69: Maçãs, peras e marmelos, frescos | C69: 0 | D69: 0 | E69: 0 | F69: 0 | G69: 0 | H69: 0 | I69: 0 | J69: 0 | K69: 0 | L69: 0 | M69: 0 | N69: 0 | O69: 0 | P69: 0 | Q69: 0 | R69: 0 | S69: 0 | U69: =G69-INDEX($C69:$G69,1,aux!$AL$1) -> 0 | V69: 0 | W69: 0 | X69: =+IF(INDEX($C69:$G69,1,aux!$AL$1)>0,(G69/INDEX($C69:$G69,1,aux!$AL$1))^(1/($G$3-INDEX($C$3:$G$3,1,aux!$AL$1)))-1,"n.d.") -> n.d. | Y69: =IF(INDEX($C69:$G69,1,aux!$AL$1)>0,(G69-INDEX($C69:$G69,1,aux!$AL$1))/INDEX($C69:$G69,1,aux!$AL$1),"n.d.") -> n.d. | AA69: =O69-INDEX($K69:$O69,1,aux!$AL$1) -> 0 | AB69: 0 | AC69: 0 | AD69: =+IF(INDEX($K69:$O69,1,aux!$AL$1)>0,(O69/INDEX($K69:$O69,1,aux!$AL$1))^(1/($O$3-INDEX($K$3:$O$3,1,aux!$AL$1)))-1,"n.d.") -> n.d. | AE69: =IF(INDEX($K69:$O69,1,aux!$AL$1)>0,(O69-INDEX($K69:$O69,1,aux!$AL$1))/INDEX($K69:$O69,1,aux!$AL$1),"n.d.") -> n.d. | AX69: 08
A70: 0809 | B70: Damascos, cerejas, pêssegos, etc., frescos | C70: 0 | D70: 0 | E70: 0 | F70: 0 | G70: 0 | H70: 0 | I70: 0 | J70: 0 | K70: 0 | L70: 0 | M70: 0 | N70: 0 | O70: 0 | P70: 0 | Q70: 0 | R70: 0 | S70: 0 | U70: =G70-INDEX($C70:$G70,1,aux!$AL$1) -> 0 | V70: 0 | W70: 0 | X70: =+IF(INDEX($C70:$G70,1,aux!$AL$1)>0,(G70/INDEX($C70:$G70,1,aux!$AL$1))^(1/($G$3-INDEX($C$3:$G$3,1,aux!$AL$1)))-1,"n.d.") -> n.d. | Y70: =IF(INDEX($C70:$G70,1,aux!$AL$1)>0,(G70-INDEX($C70:$G70,1,aux!$AL$1))/INDEX($C70:$G70,1,aux!$AL$1),"n.d.") -> n.d. | AA70: =O70-INDEX($K70:$O70,1,aux!$AL$1) -> 0 | AB70: 0 | AC70: 0 | AD70: =+IF(INDEX($K70:$O70,1,aux!$AL$1)>0,(O70/INDEX($K70:$O70,1,aux!$AL$1))^(1/($O$3-INDEX($K$3:$O$3,1,aux!$AL$1)))-1,"n.d.") -> n.d. | AE70: =IF(INDEX($K70:$O70,1,aux!$AL$1)>0,(O70-INDEX($K70:$O70,1,aux!$AL$1))/INDEX($K70:$O70,1,aux!$AL$1),"n.d.") -> n.d. | AX70: 08
A71: 0810 | B71: Outras frutas frescas | C71: 0 | D71: 0 | E71: 0 | F71: 0 | G71: 0 | H71: 0 | I71: 0 | J71: 0 | K71: 161.46 | L71: 39.898 | M71: 93.409 | N71: 142.285 | O71: 8.828 | P71: 89.176 | Q71: 0.004890349691 | R71: 0.003062271821 | S71: 89.176 | U71: =G71-INDEX($C71:$G71,1,aux!$AL$1) -> 0 | V71: 0 | W71: 0 | X71: =+IF(INDEX($C71:$G71,1,aux!$AL$1)>0,(G71/INDEX($C71:$G71,1,aux!$AL$1))^(1/($G$3-INDEX($C$3:$G$3,1,aux!$AL$1)))-1,"n.d.") -> n.d. | Y71: =IF(INDEX($C71:$G71,1,aux!$AL$1)>0,(G71-INDEX($C71:$G71,1,aux!$AL$1))/INDEX($C71:$G71,1,aux!$AL$1),"n.d.") -> n.d. | AA71: =O71-INDEX($K71:$O71,1,aux!$AL$1) -> -152.632 | AB71: -0.02722563482 | AC71: -0.01506550145 | AD71: =+IF(INDEX($K71:$O71,1,aux!$AL$1)>0,(O71/INDEX($K71:$O71,1,aux!$AL$1))^(1/($O$3-INDEX($K$3:$O$3,1,aux!$AL$1)))-1,"n.d.") -> -0.5164411411 | AE71: =IF(INDEX($K71:$O71,1,aux!$AL$1)>0,(O71-INDEX($K71:$O71,1,aux!$AL$1))/INDEX($K71:$O71,1,aux!$AL$1),"n.d.") -> -0.9453239192 | AX71: 08
A72: 0811 | B72: Frutas não cozidas ou cozidas em água ou vapor, congeladas | C72: 0 | D72: 0 | E72: 0.108 | F72: 0 | G72: 0 | H72: 0.0216 | I72: 9.743242202e-07 | J72: 6.008073215e-07 | K72: 2.815 | L72: 0 | M72: 2.61 | N72: 0.82 | O72: 0.809 | P72: 1.4108 | Q72: 7.736728878e-05 | R72: 4.844636544e-05 | S72: 1.3892 | U72: =G72-INDEX($C72:$G72,1,aux!$AL$1) -> 0 | V72: 0 | W72: 0 | X72: =+IF(INDEX($C72:$G72,1,aux!$AL$1)>0,(G72/INDEX($C72:$G72,1,aux!$AL$1))^(1/($G$3-INDEX($C$3:$G$3,1,aux!$AL$1)))-1,"n.d.") -> n.d. | Y72: =IF(INDEX($C72:$G72,1,aux!$AL$1)>0,(G72-INDEX($C72:$G72,1,aux!$AL$1))/INDEX($C72:$G72,1,aux!$AL$1),"n.d.") -> n.d. | AA72: =O72-INDEX($K72:$O72,1,aux!$AL$1) -> -2.006 | AB72: -0.0003578189597 | AC72: -0.0001980017029 | AD72: =+IF(INDEX($K72:$O72,1,aux!$AL$1)>0,(O72/INDEX($K72:$O72,1,aux!$AL$1))^(1/($O$3-INDEX($K$3:$O$3,1,aux!$AL$1)))-1,"n.d.") -> -0.2678205581 | AE72: =IF(INDEX($K72:$O72,1,aux!$AL$1)>0,(O72-INDEX($K72:$O72,1,aux!$AL$1))/INDEX($K72:$O72,1,aux!$AL$1),"n.d.") -> -0.7126110124 | AX72: 08
A73: 0812 | B73: Frutas conservadas transitoriamente | C73: 0 | D73: 0 | E73: 0 | F73: 0.024 | G73: 0 | H73: 0.0048 | I73: 2.165164934e-07 | J73: 1.335127381e-07 | K73: 0 | L73: 0 | M73: 0 | N73: 0 | O73: 0 | P73: 0 | Q73: 0 | R73: 0 | S73: -0.0048 | U73: =G73-INDEX($C73:$G73,1,aux!$AL$1) -> 0 | V73: 0 | W73: 0 | X73: =+IF(INDEX($C73:$G73,1,aux!$AL$1)>0,(G73/INDEX($C73:$G73,1,aux!$AL$1))^(1/($G$3-INDEX($C$3:$G$3,1,aux!$AL$1)))-1,"n.d.") -> n.d. | Y73: =IF(INDEX($C73:$G73,1,aux!$AL$1)>0,(G73-INDEX($C73:$G73,1,aux!$AL$1))/INDEX($C73:$G73,1,aux!$AL$1),"n.d.") -> n.d. | AA73: =O73-INDEX($K73:$O73,1,aux!$AL$1) -> 0 | AB73: 0 | AC73: 0 | AD73: =+IF(INDEX($K73:$O73,1,aux!$AL$1)>0,(O73/INDEX($K73:$O73,1,aux!$AL$1))^(1/($O$3-INDEX($K$3:$O$3,1,aux!$AL$1)))-1,"n.d.") -> n.d. | AE73: =IF(INDEX($K73:$O73,1,aux!$AL$1)>0,(O73-INDEX($K73:$O73,1,aux!$AL$1))/INDEX($K73:$O73,1,aux!$AL$1),"n.d.") -> n.d. | AX73: 08
A74: 0813 | B74: Outras frutas secas | C74: 0 | D74: 0.028 | E74: 0.544 | F74: 0.124 | G74: 0.104 | H74: 0.16 | I74: 7.217216446e-06 | J74: 4.450424604e-06 | K74: 0 | L74: 13.227 | M74: 10.867 | N74: 7.864 | O74: 4.168 | P74: 7.2252 | Q74: 0.0003962249326 | R74: 0.0002481107737 | S74: 7.0652 | U74: =G74-INDEX($C74:$G74,1,aux!$AL$1) -> 0.104 | V74: 1.730992743e-05 | W74: 5.523168017e-06 | X74: =+IF(INDEX($C74:$G74,1,aux!$AL$1)>0,(G74/INDEX($C74:$G74,1,aux!$AL$1))^(1/($G$3-INDEX($C$3:$G$3,1,aux!$AL$1)))-1,"n.d.") -> n.d. | Y74: =IF(INDEX($C74:$G74,1,aux!$AL$1)>0,(G74-INDEX($C74:$G74,1,aux!$AL$1))/INDEX($C74:$G74,1,aux!$AL$1),"n.d.") -> n.d. | AA74: =O74-INDEX($K74:$O74,1,aux!$AL$1) -> 4.168 | AB74: 0.000743464319 | AC74: 0.0004114013447 | AD74: =+IF(INDEX($K74:$O74,1,aux!$AL$1)>0,(O74/INDEX($K74:$O74,1,aux!$AL$1))^(1/($O$3-INDEX($K$3:$O$3,1,aux!$AL$1)))-1,"n.d.") -> n.d. | AE74: =IF(INDEX($K74:$O74,1,aux!$AL$1)>0,(O74-INDEX($K74:$O74,1,aux!$AL$1))/INDEX($K74:$O74,1,aux!$AL$1),"n.d.") -> n.d. | AX74: 08
A75: 0814 | B75: Cascas de citrinos, melões ou melancias | C75: 0 | D75: 0 | E75: 0 | F75: 0 | G75: 0 | H75: 0 | I75: 0 | J75: 0 | K75: 0.722 | L75: 0 | M75: 0 | N75: 0 | O75: 0 | P75: 0.1444 | Q75: 7.918795364e-06 | R75: 4.958644152e-06 | S75: 0.1444 | U75: =G75-INDEX($C75:$G75,1,aux!$AL$1) -> 0 | V75: 0 | W75: 0 | X75: =+IF(INDEX($C75:$G75,1,aux!$AL$1)>0,(G75/INDEX($C75:$G75,1,aux!$AL$1))^(1/($G$3-INDEX($C$3:$G$3,1,aux!$AL$1)))-1,"n.d.") -> n.d. | Y75: =IF(INDEX($C75:$G75,1,aux!$AL$1)>0,(G75-INDEX($C75:$G75,1,aux!$AL$1))/INDEX($C75:$G75,1,aux!$AL$1),"n.d.") -> n.d. | AA75: =O75-INDEX($K75:$O75,1,aux!$AL$1) -> -0.722 | AB75: -0.0001287862856 | AC75: -7.126482027e-05 | AD75: =+IF(INDEX($K75:$O75,1,aux!$AL$1)>0,(O75/INDEX($K75:$O75,1,aux!$AL$1))^(1/($O$3-INDEX($K$3:$O$3,1,aux!$AL$1)))-1,"n.d.") -> -1 | AE75: =IF(INDEX($K75:$O75,1,aux!$AL$1)>0,(O75-INDEX($K75:$O75,1,aux!$AL$1))/INDEX($K75:$O75,1,aux!$AL$1),"n.d.") -> -1 | AX75: =+LEFT(A75,2) -> 08
A76: 08SS | B76: Frutas; cascas de citrinos e de melões | C76: 0 | D76: 0 | E76: 0 | F76: 0 | G76: 0 | H76: 0 | I76: 0 | J76: 0 | K76: 0 | L76: 0 | M76: 0 | N76: 0 | O76: 0 | P76: 0 | Q76: 0 | R76: 0 | S76: 0 | U76: =G76-INDEX($C76:$G76,1,aux!$AL$1) -> 0 | V76: 0 | W76: 0 | X76: =+IF(INDEX($C76:$G76,1,aux!$AL$1)>0,(G76/INDEX($C76:$G76,1,aux!$AL$1))^(1/($G$3-INDEX($C$3:$G$3,1,aux!$AL$1)))-1,"n.d.") -> n.d. | Y76: =IF(INDEX($C76:$G76,1,aux!$AL$1)>0,(G76-INDEX($C76:$G76,1,aux!$AL$1))/INDEX($C76:$G76,1,aux!$AL$1),"n.d.") -> n.d. | AA76: =O76-INDEX($K76:$O76,1,aux!$AL$1) -> 0 | AB76: 0 | AC76: 0 | AD76: =+IF(INDEX($K76:$O76,1,aux!$AL$1)>0,(O76/INDEX($K76:$O76,1,aux!$AL$1))^(1/($O$3-INDEX($K$3:$O$3,1,aux!$AL$1)))-1,"n.d.") -> n.d. | AE76: =IF(INDEX($K76:$O76,1,aux!$AL$1)>0,(O76-INDEX($K76:$O76,1,aux!$AL$1))/INDEX($K76:$O76,1,aux!$AL$1),"n.d.") -> n.d. | AX76: 08
A77: 0901 | B77: Café | C77: 0 | D77: 0.143 | E77: 0.094 | F77: 0.198 | G77: 0.112 | H77: 0.1094 | I77: 4.934771745e-06 | J77: 3.042977823e-06 | K77: 719.861 | L77: 756.087 | M77: 969.618 | N77: 1600.784 | O77: 1831.466 | P77: 1175.5632 | Q77: 0.06446706661 | R77: 0.04036841819 | S77: 1175.4538 | U77: =G77-INDEX($C77:$G77,1,aux!$AL$1) -> 0.112 | V77: 1.864146031e-05 | W77: 5.948027095e-06 | X77: =+IF(INDEX($C77:$G77,1,aux!$AL$1)>0,(G77/INDEX($C77:$G77,1,aux!$AL$1))^(1/($G$3-INDEX($C$3:$G$3,1,aux!$AL$1)))-1,"n.d.") -> n.d. | Y77: =IF(INDEX($C77:$G77,1,aux!$AL$1)>0,(G77-INDEX($C77:$G77,1,aux!$AL$1))/INDEX($C77:$G77,1,aux!$AL$1),"n.d.") -> n.d. | AA77: =O77-INDEX($K77:$O77,1,aux!$AL$1) -> 1111.605 | AB77: 0.1982818268 | AC77: 0.1097206794 | AD77: =+IF(INDEX($K77:$O77,1,aux!$AL$1)>0,(O77/INDEX($K77:$O77,1,aux!$AL$1))^(1/($O$3-INDEX($K$3:$O$3,1,aux!$AL$1)))-1,"n.d.") -> 0.2629540613 | AE77: =IF(INDEX($K77:$O77,1,aux!$AL$1)>0,(O77-INDEX($K77:$O77,1,aux!$AL$1))/INDEX($K77:$O77,1,aux!$AL$1),"n.d.") -> 1.544193949 | AX77: 09
A78: 0902 | B78: Chá | C78: 0 | D78: 0.079 | E78: 0.817 | F78: 0.831 | G78: 0.829 | H78: 0.5112 | I78: 2.305900655e-05 | J78: 1.421910661e-05 | K78: 6.789 | L78: 0 | M78: 11.476 | N78: 8.703 | O78: 9.662 | P78: 7.326 | Q78: 0.0004017527343 | R78: 0.0002515722096 | S78: 6.8148 | U78: =G78-INDEX($C78:$G78,1,aux!$AL$1) -> 0.829 | V78: 0.0001379800946 | W78: 4.402602198e-05 | X78: =+IF(INDEX($C78:$G78,1,aux!$AL$1)>0,(G78/INDEX($C78:$G78,1,aux!$AL$1))^(1/($G$3-INDEX($C$3:$G$3,1,aux!$AL$1)))-1,"n.d.") -> n.d. | Y78: =IF(INDEX($C78:$G78,1,aux!$AL$1)>0,(G78-INDEX($C78:$G78,1,aux!$AL$1))/INDEX($C78:$G78,1,aux!$AL$1),"n.d.") -> n.d. | AA78: =O78-INDEX($K78:$O78,1,aux!$AL$1) -> 2.873 | AB78: 0.000512469527 | AC78: 0.00028357871 | AD78: =+IF(INDEX($K78:$O78,1,aux!$AL$1)>0,(O78/INDEX($K78:$O78,1,aux!$AL$1))^(1/($O$3-INDEX($K$3:$O$3,1,aux!$AL$1)))-1,"n.d.") -> 0.09223303078 | AE78: =IF(INDEX($K78:$O78,1,aux!$AL$1)>0,(O78-INDEX($K78:$O78,1,aux!$AL$1))/INDEX($K78:$O78,1,aux!$AL$1),"n.d.") -> 0.4231845633 | AX78: 09
A79: 0903 | B79: Mate | C79: 0 | D79: 0 | E79: 0 | F79: 0 | G79: 0.01 | H79: 0.002 | I79: 9.021520558e-08 | J79: 5.563030755e-08 | K79: 0 | L79: 0 | M79: 0 | N79: 0 | O79: 0 | P79: 0 | Q79: 0 | R79: 0 | S79: -0.002 | U79: =G79-INDEX($C79:$G79,1,aux!$AL$1) -> 0.01 | V79: 1.664416099e-06 | W79: 5.310738478e-07 | X79: =+IF(INDEX($C79:$G79,1,aux!$AL$1)>0,(G79/INDEX($C79:$G79,1,aux!$AL$1))^(1/($G$3-INDEX($C$3:$G$3,1,aux!$AL$1)))-1,"n.d.") -> n.d. | Y79: =IF(INDEX($C79:$G79,1,aux!$AL$1)>0,(G79-INDEX($C79:$G79,1,aux!$AL$1))/INDEX($C79:$G79,1,aux!$AL$1),"n.d.") -> n.d. | AA79: =O79-INDEX($K79:$O79,1,aux!$AL$1) -> 0 | AB79: 0 | AC79: 0 | AD79: =+IF(INDEX($K79:$O79,1,aux!$AL$1)>0,(O79/INDEX($K79:$O79,1,aux!$AL$1))^(1/($O$3-INDEX($K$3:$O$3,1,aux!$AL$1)))-1,"n.d.") -> n.d. | AE79: =IF(INDEX($K79:$O79,1,aux!$AL$1)>0,(O79-INDEX($K79:$O79,1,aux!$AL$1))/INDEX($K79:$O79,1,aux!$AL$1),"n.d.") -> n.d. | AX79: 09
A80: 0904 | B80: Pimenta | C80: 0 | D80: 0 | E80: 0.018 | F80: 0.019 | G80: 0 | H80: 0.0074 | I80: 3.337962606e-07 | J80: 2.058321379e-07 | K80: 0.014 | L80: 0 | M80: 0 | N80: 0 | O80: 0 | P80: 0.0028 | Q80: 1.535500486e-07 | R80: 9.615099464e-08 | S80: -0.0046 | U80: =G80-INDEX($C80:$G80,1,aux!$AL$1) -> 0 | V80: 0 | W80: 0 | X80: =+IF(INDEX($C80:$G80,1,aux!$AL$1)>0,(G80/INDEX($C80:$G80,1,aux!$AL$1))^(1/($G$3-INDEX($C$3:$G$3,1,aux!$AL$1)))-1,"n.d.") -> n.d. | Y80: =IF(INDEX($C80:$G80,1,aux!$AL$1)>0,(G80-INDEX($C80:$G80,1,aux!$AL$1))/INDEX($C80:$G80,1,aux!$AL$1),"n.d.") -> n.d. | AA80: =O80-INDEX($K80:$O80,1,aux!$AL$1) -> -0.014 | AB80: -2.497240995e-06 | AC80: -1.381866321e-06 | AD80: =+IF(INDEX($K80:$O80,1,aux!$AL$1)>0,(O80/INDEX($K80:$O80,1,aux!$AL$1))^(1/($O$3-INDEX($K$3:$O$3,1,aux!$AL$1)))-1,"n.d.") -> -1 | AE80: =IF(INDEX($K80:$O80,1,aux!$AL$1)>0,(O80-INDEX($K80:$O80,1,aux!$AL$1))/INDEX($K80:$O80,1,aux!$AL$1),"n.d.") -> -1 | AX80: 09
A81: 0905 | B81: Baunilha | C81: 0 | D81: 0 | E81: 0 | F81: 0 | G81: 0 | H81: 0 | I81: 0 | J81: 0 | K81: 0 | L81: 0 | M81: 0 | N81: 0 | O81: 0 | P81: 0 | Q81: 0 | R81: 0 | S81: 0 | U81: =G81-INDEX($C81:$G81,1,aux!$AL$1) -> 0 | V81: 0 | W81: 0 | X81: =+IF(INDEX($C81:$G81,1,aux!$AL$1)>0,(G81/INDEX($C81:$G81,1,aux!$AL$1))^(1/($G$3-INDEX($C$3:$G$3,1,aux!$AL$1)))-1,"n.d.") -> n.d. | Y81: =IF(INDEX($C81:$G81,1,aux!$AL$1)>0,(G81-INDEX($C81:$G81,1,aux!$AL$1))/INDEX($C81:$G81,1,aux!$AL$1),"n.d.") -> n.d. | AA81: =O81-INDEX($K81:$O81,1,aux!$AL$1) -> 0 | AB81: 0 | AC81: 0 | AD81: =+IF(INDEX($K81:$O81,1,aux!$AL$1)>0,(O81/INDEX($K81:$O81,1,aux!$AL$1))^(1/($O$3-INDEX($K$3:$O$3,1,aux!$AL$1)))-1,"n.d.") -> n.d. | AE81: =IF(INDEX($K81:$O81,1,aux!$AL$1)>0,(O81-INDEX($K81:$O81,1,aux!$AL$1))/INDEX($K81:$O81,1,aux!$AL$1),"n.d.") -> n.d. | AX81: 09
A82: 0906 | B82: Canela | C82: 0 | D82: 0 | E82: 0.022 | F82: 0 | G82: 0 | H82: 0.0044 | I82: 1.984734523e-07 | J82: 1.223866766e-07 | K82: 17.845 | L82: 0 | M82: 0.129 | N82: 0 | O82: 0.034 | P82: 3.6016 | Q82: 0.000197509234 | R82: 0.0001236776508 | S82: 3.5972 | U82: =G82-INDEX($C82:$G82,1,aux!$AL$1) -> 0 | V82: 0 | W82: 0 | X82: =+IF(INDEX($C82:$G82,1,aux!$AL$1)>0,(G82/INDEX($C82:$G82,1,aux!$AL$1))^(1/($G$3-INDEX($C$3:$G$3,1,aux!$AL$1)))-1,"n.d.") -> n.d. | Y82: =IF(INDEX($C82:$G82,1,aux!$AL$1)>0,(G82-INDEX($C82:$G82,1,aux!$AL$1))/INDEX($C82:$G82,1,aux!$AL$1),"n.d.") -> n.d. | AA82: =O82-INDEX($K82:$O82,1,aux!$AL$1) -> -17.811 | AB82: -0.003177025668 | AC82: -0.001758030075 | AD82: =+IF(INDEX($K82:$O82,1,aux!$AL$1)>0,(O82/INDEX($K82:$O82,1,aux!$AL$1))^(1/($O$3-INDEX($K$3:$O$3,1,aux!$AL$1)))-1,"n.d.") -> -0.7910749132 | AE82: =IF(INDEX($K82:$O82,1,aux!$AL$1)>0,(O82-INDEX($K82:$O82,1,aux!$AL$1))/INDEX($K82:$O82,1,aux!$AL$1),"n.d.") -> -0.9980947044 | AX82: 09
A83: 0907 | B83: Cravo-da-índia | C83: 0 | D83: 0 | E83: 0 | F83: 0 | G83: 0 | H83: 0 | I83: 0 | J83: 0 | K83: 0 | L83: 0 | M83: 0 | N83: 0 | O83: 0 | P83: 0 | Q83: 0 | R83: 0 | S83: 0 | U83: =G83-INDEX($C83:$G83,1,aux!$AL$1) -> 0 | V83: 0 | W83: 0 | X83: =+IF(INDEX($C83:$G83,1,aux!$AL$1)>0,(G83/INDEX($C83:$G83,1,aux!$AL$1))^(1/($G$3-INDEX($C$3:$G$3,1,aux!$AL$1)))-1,"n.d.") -> n.d. | Y83: =IF(INDEX($C83:$G83,1,aux!$AL$1)>0,(G83-INDEX($C83:$G83,1,aux!$AL$1))/INDEX($C83:$G83,1,aux!$AL$1),"n.d.") -> n.d. | AA83: =O83-INDEX($K83:$O83,1,aux!$AL$1) -> 0 | AB83: 0 | AC83: 0 | AD83: =+IF(INDEX($K83:$O83,1,aux!$AL$1)>0,(O83/INDEX($K83:$O83,1,aux!$AL$1))^(1/($O$3-INDEX($K$3:$O$3,1,aux!$AL$1)))-1,"n.d.") -> n.d. | AE83: =IF(INDEX($K83:$O83,1,aux!$AL$1)>0,(O83-INDEX($K83:$O83,1,aux!$AL$1))/INDEX($K83:$O83,1,aux!$AL$1),"n.d.") -> n.d. | AX83: 09
A84: 0908 | B84: Noz-moscada, etc. | C84: 0 | D84: 0 | E84: 0 | F84: 0 | G84: 0 | H84: 0 | I84: 0 | J84: 0 | K84: 0 | L84: 0 | M84: 0 | N84: 0 | O84: 0 | P84: 0 | Q84: 0 | R84: 0 | S84: 0 | U84: =G84-INDEX($C84:$G84,1,aux!$AL$1) -> 0 | V84: 0 | W84: 0 | X84: =+IF(INDEX($C84:$G84,1,aux!$AL$1)>0,(G84/INDEX($C84:$G84,1,aux!$AL$1))^(1/($G$3-INDEX($C$3:$G$3,1,aux!$AL$1)))-1,"n.d.") -> n.d. | Y84: =IF(INDEX($C84:$G84,1,aux!$AL$1)>0,(G84-INDEX($C84:$G84,1,aux!$AL$1))/INDEX($C84:$G84,1,aux!$AL$1),"n.d.") -> n.d. | AA84: =O84-INDEX($K84:$O84,1,aux!$AL$1) -> 0 | AB84: 0 | AC84: 0 | AD84: =+IF(INDEX($K84:$O84,1,aux!$AL$1)>0,(O84/INDEX($K84:$O84,1,aux!$AL$1))^(1/($O$3-INDEX($K$3:$O$3,1,aux!$AL$1)))-1,"n.d.") -> n.d. | AE84: =IF(INDEX($K84:$O84,1,aux!$AL$1)>0,(O84-INDEX($K84:$O84,1,aux!$AL$1))/INDEX($K84:$O84,1,aux!$AL$1),"n.d.") -> n.d. | AX84: 09
A85: 0909 | B85: Sementes de anis, funcho, etc. | C85: 0 | D85: 0 | E85: 0 | F85: 0 | G85: 0 | H85: 0 | I85: 0 | J85: 0 | K85: 0 | L85: 0 | M85: 0 | N85: 0 | O85: 0 | P85: 0 | Q85: 0 | R85: 0 | S85: 0 | U85: =G85-INDEX($C85:$G85,1,aux!$AL$1) -> 0 | V85: 0 | W85: 0 | X85: =+IF(INDEX($C85:$G85,1,aux!$AL$1)>0,(G85/INDEX($C85:$G85,1,aux!$AL$1))^(1/($G$3-INDEX($C$3:$G$3,1,aux!$AL$1)))-1,"n.d.") -> n.d. | Y85: =IF(INDEX($C85:$G85,1,aux!$AL$1)>0,(G85-INDEX($C85:$G85,1,aux!$AL$1))/INDEX($C85:$G85,1,aux!$AL$1),"n.d.") -> n.d. | AA85: =O85-INDEX($K85:$O85,1,aux!$AL$1) -> 0 | AB85: 0 | AC85: 0 | AD85: =+IF(INDEX($K85:$O85,1,aux!$AL$1)>0,(O85/INDEX($K85:$O85,1,aux!$AL$1))^(1/($O$3-INDEX($K$3:$O$3,1,aux!$AL$1)))-1,"n.d.") -> n.d. | AE85: =IF(INDEX($K85:$O85,1,aux!$AL$1)>0,(O85-INDEX($K85:$O85,1,aux!$AL$1))/INDEX($K85:$O85,1,aux!$AL$1),"n.d.") -> n.d. | AX85: 09
A86: 0910 | B86: Gengibre, açafrão, tomilho, louro, etc. | C86: 0 | D86: 0.18 | E86: 0.477 | F86: 1.166 | G86: 0.786 | H86: 0.5218 | I86: 2.353714713e-05 | J86: 1.451394724e-05 | K86: 0.043 | L86: 0 | M86: 0 | N86: 0 | O86: 0.062 | P86: 0.021 | Q86: 1.151625365e-06 | R86: 7.211324598e-07 | S86: -0.5008 | U86: =G86-INDEX($C86:$G86,1,aux!$AL$1) -> 0.786 | V86: 0.0001308231054 | W86: 4.174240444e-05 | X86: =+IF(INDEX($C86:$G86,1,aux!$AL$1)>0,(G86/INDEX($C86:$G86,1,aux!$AL$1))^(1/($G$3-INDEX($C$3:$G$3,1,aux!$AL$1)))-1,"n.d.") -> n.d. | Y86: =IF(INDEX($C86:$G86,1,aux!$AL$1)>0,(G86-INDEX($C86:$G86,1,aux!$AL$1))/INDEX($C86:$G86,1,aux!$AL$1),"n.d.") -> n.d. | AA86: =O86-INDEX($K86:$O86,1,aux!$AL$1) -> 0.019 | AB86: 3.389112778e-06 | AC86: 1.875390007e-06 | AD86: =+IF(INDEX($K86:$O86,1,aux!$AL$1)>0,(O86/INDEX($K86:$O86,1,aux!$AL$1))^(1/($O$3-INDEX($K$3:$O$3,1,aux!$AL$1)))-1,"n.d.") -> 0.09579876965 | AE86: =IF(INDEX($K86:$O86,1,aux!$AL$1)>0,(O86-INDEX($K86:$O86,1,aux!$AL$1))/INDEX($K86:$O86,1,aux!$AL$1),"n.d.") -> 0.4418604651 | AX86: 09
A87: 09SS | B87: Café, chá, mate e especiarias | C87: 0 | D87: 0 | E87: 0 | F87: 0 | G87: 0 | H87: 0 | I87: 0 | J87: 0 | K87: 0 | L87: 0 | M87: 0 | N87: 0 | O87: 0 | P87: 0 | Q87: 0 | R87: 0 | S87: 0 | U87: =G87-INDEX($C87:$G87,1,aux!$AL$1) -> 0 | V87: 0 | W87: 0 | X87: =+IF(INDEX($C87:$G87,1,aux!$AL$1)>0,(G87/INDEX($C87:$G87,1,aux!$AL$1))^(1/($G$3-INDEX($C$3:$G$3,1,aux!$AL$1)))-1,"n.d.") -> n.d. | Y87: =IF(INDEX($C87:$G87,1,aux!$AL$1)>0,(G87-INDEX($C87:$G87,1,aux!$AL$1))/INDEX($C87:$G87,1,aux!$AL$1),"n.d.") -> n.d. | AA87: =O87-INDEX($K87:$O87,1,aux!$AL$1) -> 0 | AB87: 0 | AC87: 0 | AD87: =+IF(INDEX($K87:$O87,1,aux!$AL$1)>0,(O87/INDEX($K87:$O87,1,aux!$AL$1))^(1/($O$3-INDEX($K$3:$O$3,1,aux!$AL$1)))-1,"n.d.") -> n.d. | AE87: =IF(INDEX($K87:$O87,1,aux!$AL$1)>0,(O87-INDEX($K87:$O87,1,aux!$AL$1))/INDEX($K87:$O87,1,aux!$AL$1),"n.d.") -> n.d. | AX87: 09
A88: 1001 | B88: Trigo e mistura trigo/centeio | C88: 0 | D88: 0 | E88: 0 | F88: 0 | G88: 0 | H88: 0 | I88: 0 | J88: 0 | K88: 0 | L88: 0 | M88: 0 | N88: 0 | O88: 0 | P88: 0 | Q88: 0 | R88: 0 | S88: 0 | U88: =G88-INDEX($C88:$G88,1,aux!$AL$1) -> 0 | V88: 0 | W88: 0 | X88: =+IF(INDEX($C88:$G88,1,aux!$AL$1)>0,(G88/INDEX($C88:$G88,1,aux!$AL$1))^(1/($G$3-INDEX($C$3:$G$3,1,aux!$AL$1)))-1,"n.d.") -> n.d. | Y88: =IF(INDEX($C88:$G88,1,aux!$AL$1)>0,(G88-INDEX($C88:$G88,1,aux!$AL$1))/INDEX($C88:$G88,1,aux!$AL$1),"n.d.") -> n.d. | AA88: =O88-INDEX($K88:$O88,1,aux!$AL$1) -> 0 | AB88: 0 | AC88: 0 | AD88: =+IF(INDEX($K88:$O88,1,aux!$AL$1)>0,(O88/INDEX($K88:$O88,1,aux!$AL$1))^(1/($O$3-INDEX($K$3:$O$3,1,aux!$AL$1)))-1,"n.d.") -> n.d. | AE88: =IF(INDEX($K88:$O88,1,aux!$AL$1)>0,(O88-INDEX($K88:$O88,1,aux!$AL$1))/INDEX($K88:$O88,1,aux!$AL$1),"n.d.") -> n.d. | AX88: 10
A89: 1002 | B89: Centeio | C89: 0 | D89: 0 | E89: 0 | F89: 0 | G89: 0 | H89: 0 | I89: 0 | J89: 0 | K89: 0 | L89: 0 | M89: 0 | N89: 0 | O89: 0 | P89: 0 | Q89: 0 | R89: 0 | S89: 0 | U89: =G89-INDEX($C89:$G89,1,aux!$AL$1) -> 0 | V89: 0 | W89: 0 | X89: =+IF(INDEX($C89:$G89,1,aux!$AL$1)>0,(G89/INDEX($C89:$G89,1,aux!$AL$1))^(1/($G$3-INDEX($C$3:$G$3,1,aux!$AL$1)))-1,"n.d.") -> n.d. | Y89: =IF(INDEX($C89:$G89,1,aux!$AL$1)>0,(G89-INDEX($C89:$G89,1,aux!$AL$1))/INDEX($C89:$G89,1,aux!$AL$1),"n.d.") -> n.d. | AA89: =O89-INDEX($K89:$O89,1,aux!$AL$1) -> 0 | AB89: 0 | AC89: 0 | AD89: =+IF(INDEX($K89:$O89,1,aux!$AL$1)>0,(O89/INDEX($K89:$O89,1,aux!$AL$1))^(1/($O$3-INDEX($K$3:$O$3,1,aux!$AL$1)))-1,"n.d.") -> n.d. | AE89: =IF(INDEX($K89:$O89,1,aux!$AL$1)>0,(O89-INDEX($K89:$O89,1,aux!$AL$1))/INDEX($K89:$O89,1,aux!$AL$1),"n.d.") -> n.d. | AX89: 10
A90: 1003 | B90: Cevada | C90: 0 | D90: 0 | E90: 0.01 | F90: 0.015 | G90: 0 | H90: 0.005 | I90: 2.255380139e-07 | J90: 1.390757689e-07 | K90: 0 | L90: 0 | M90: 0 | N90: 0 | O90: 0 | P90: 0 | Q90: 0 | R90: 0 | S90: -0.005 | U90: =G90-INDEX($C90:$G90,1,aux!$AL$1) -> 0 | V90: 0 | W90: 0 | X90: =+IF(INDEX($C90:$G90,1,aux!$AL$1)>0,(G90/INDEX($C90:$G90,1,aux!$AL$1))^(1/($G$3-INDEX($C$3:$G$3,1,aux!$AL$1)))-1,"n.d.") -> n.d. | Y90: =IF(INDEX($C90:$G90,1,aux!$AL$1)>0,(G90-INDEX($C90:$G90,1,aux!$AL$1))/INDEX($C90:$G90,1,aux!$AL$1),"n.d.") -> n.d. | AA90: =O90-INDEX($K90:$O90,1,aux!$AL$1) -> 0 | AB90: 0 | AC90: 0 | AD90: =+IF(INDEX($K90:$O90,1,aux!$AL$1)>0,(O90/INDEX($K90:$O90,1,aux!$AL$1))^(1/($O$3-INDEX($K$3:$O$3,1,aux!$AL$1)))-1,"n.d.") -> n.d. | AE90: =IF(INDEX($K90:$O90,1,aux!$AL$1)>0,(O90-INDEX($K90:$O90,1,aux!$AL$1))/INDEX($K90:$O90,1,aux!$AL$1),"n.d.") -> n.d. | AX90: 10
A91: 1004 | B91: Aveia | C91: 0 | D91: 0 | E91: 0 | F91: 0 | G91: 0 | H91: 0 | I91: 0 | J91: 0 | K91: 0 | L91: 0 | M91: 0 | N91: 0 | O91: 0 | P91: 0 | Q91: 0 | R91: 0 | S91: 0 | U91: =G91-INDEX($C91:$G91,1,aux!$AL$1) -> 0 | V91: 0 | W91: 0 | X91: =+IF(INDEX($C91:$G91,1,aux!$AL$1)>0,(G91/INDEX($C91:$G91,1,aux!$AL$1))^(1/($G$3-INDEX($C$3:$G$3,1,aux!$AL$1)))-1,"n.d.") -> n.d. | Y91: =IF(INDEX($C91:$G91,1,aux!$AL$1)>0,(G91-INDEX($C91:$G91,1,aux!$AL$1))/INDEX($C91:$G91,1,aux!$AL$1),"n.d.") -> n.d. | AA91: =O91-INDEX($K91:$O91,1,aux!$AL$1) -> 0 | AB91: 0 | AC91: 0 | AD91: =+IF(INDEX($K91:$O91,1,aux!$AL$1)>0,(O91/INDEX($K91:$O91,1,aux!$AL$1))^(1/($O$3-INDEX($K$3:$O$3,1,aux!$AL$1)))-1,"n.d.") -> n.d. | AE91: =IF(INDEX($K91:$O91,1,aux!$AL$1)>0,(O91-INDEX($K91:$O91,1,aux!$AL$1))/INDEX($K91:$O91,1,aux!$AL$1),"n.d.") -> n.d. | AX91: 10
A92: 1005 | B92: Milho | C92: 208.002 | D92: 119.963 | E92: 73.985 | F92: 0 | G92: 0 | H92: 80.39 | I92: 0.003626200188 | J92: 0.002236060212 | K92: 0 | L92: 0 | M92: 0 | N92: 0 | O92: 0 | P92: 0 | Q92: 0 | R92: 0 | S92: -80.39 | U92: =G92-INDEX($C92:$G92,1,aux!$AL$1) -> -208.002 | V92: -0.03462018774 | W92: -0.01104644225 | X92: =+IF(INDEX($C92:$G92,1,aux!$AL$1)>0,(G92/INDEX($C92:$G92,1,aux!$AL$1))^(1/($G$3-INDEX($C$3:$G$3,1,aux!$AL$1)))-1,"n.d.") -> -1 | Y92: =IF(INDEX($C92:$G92,1,aux!$AL$1)>0,(G92-INDEX($C92:$G92,1,aux!$AL$1))/INDEX($C92:$G92,1,aux!$AL$1),"n.d.") -> -1 | AA92: =O92-INDEX($K92:$O92,1,aux!$AL$1) -> 0 | AB92: 0 | AC92: 0 | AD92: =+IF(INDEX($K92:$O92,1,aux!$AL$1)>0,(O92/INDEX($K92:$O92,1,aux!$AL$1))^(1/($O$3-INDEX($K$3:$O$3,1,aux!$AL$1)))-1,"n.d.") -> n.d. | AE92: =IF(INDEX($K92:$O92,1,aux!$AL$1)>0,(O92-INDEX($K92:$O92,1,aux!$AL$1))/INDEX($K92:$O92,1,aux!$AL$1),"n.d.") -> n.d. | AX92: 10
A93: 1006 | B93: Arroz | C93: 0 | D93: 0.024 | E93: 0.087 | F93: 0.353 | G93: 0.259 | H93: 0.1446 | I93: 6.522559363e-06 | J93: 4.022071236e-06 | K93: 62.018 | L93: 77.345 | M93: 0.004 | N93: 0.004 | O93: 66.982 | P93: 41.2706 | Q93: 0.002263250941 | R93: 0.001417217586 | S93: 41.126 | U93: =G93-INDEX($C93:$G93,1,aux!$AL$1) -> 0.259 | V93: 4.310837696e-05 | W93: 1.375481266e-05 | X93: =+IF(INDEX($C93:$G93,1,aux!$AL$1)>0,(G93/INDEX($C93:$G93,1,aux!$AL$1))^(1/($G$3-INDEX($C$3:$G$3,1,aux!$AL$1)))-1,"n.d.") -> n.d. | Y93: =IF(INDEX($C93:$G93,1,aux!$AL$1)>0,(G93-INDEX($C93:$G93,1,aux!$AL$1))/INDEX($C93:$G93,1,aux!$AL$1),"n.d.") -> n.d. | AA93: =O93-INDEX($K93:$O93,1,aux!$AL$1) -> 4.964 | AB93: 0.000885450307 | AC93: 0.0004899703155 | AD93: =+IF(INDEX($K93:$O93,1,aux!$AL$1)>0,(O93/INDEX($K93:$O93,1,aux!$AL$1))^(1/($O$3-INDEX($K$3:$O$3,1,aux!$AL$1)))-1,"n.d.") -> 0.01943628756 | AE93: =IF(INDEX($K93:$O93,1,aux!$AL$1)>0,(O93-INDEX($K93:$O93,1,aux!$AL$1))/INDEX($K93:$O93,1,aux!$AL$1),"n.d.") -> 0.08004127834 | AX93: 10
A94: 1007 | B94: Sorgo de grão | C94: 0 | D94: 0 | E94: 0 | F94: 0 | G94: 0 | H94: 0 | I94: 0 | J94: 0 | K94: 0 | L94: 0 | M94: 0 | N94: 0 | O94: 0 | P94: 0 | Q94: 0 | R94: 0 | S94: 0 | U94: =G94-INDEX($C94:$G94,1,aux!$AL$1) -> 0 | V94: 0 | W94: 0 | X94: =+IF(INDEX($C94:$G94,1,aux!$AL$1)>0,(G94/INDEX($C94:$G94,1,aux!$AL$1))^(1/($G$3-INDEX($C$3:$G$3,1,aux!$AL$1)))-1,"n.d.") -> n.d. | Y94: =IF(INDEX($C94:$G94,1,aux!$AL$1)>0,(G94-INDEX($C94:$G94,1,aux!$AL$1))/INDEX($C94:$G94,1,aux!$AL$1),"n.d.") -> n.d. | AA94: =O94-INDEX($K94:$O94,1,aux!$AL$1) -> 0 | AB94: 0 | AC94: 0 | AD94: =+IF(INDEX($K94:$O94,1,aux!$AL$1)>0,(O94/INDEX($K94:$O94,1,aux!$AL$1))^(1/($O$3-INDEX($K$3:$O$3,1,aux!$AL$1)))-1,"n.d.") -> n.d. | AE94: =IF(INDEX($K94:$O94,1,aux!$AL$1)>0,(O94-INDEX($K94:$O94,1,aux!$AL$1))/INDEX($K94:$O94,1,aux!$AL$1),"n.d.") -> n.d. | AX94: 10
A95: 1008 | B95: Trigo mourisco, painço e outros cereais | C95: 0 | D95: 0 | E95: 0 | F95: 0 | G95: 0 | H95: 0 | I95: 0 | J95: 0 | K95: 0 | L95: 0 | M95: 0 | N95: 0 | O95: 0 | P95: 0 | Q95: 0 | R95: 0 | S95: 0 | U95: =G95-INDEX($C95:$G95,1,aux!$AL$1) -> 0 | V95: 0 | W95: 0 | X95: =+IF(INDEX($C95:$G95,1,aux!$AL$1)>0,(G95/INDEX($C95:$G95,1,aux!$AL$1))^(1/($G$3-INDEX($C$3:$G$3,1,aux!$AL$1)))-1,"n.d.") -> n.d. | Y95: =IF(INDEX($C95:$G95,1,aux!$AL$1)>0,(G95-INDEX($C95:$G95,1,aux!$AL$1))/INDEX($C95:$G95,1,aux!$AL$1),"n.d.") -> n.d. | AA95: =O95-INDEX($K95:$O95,1,aux!$AL$1) -> 0 | AB95: 0 | AC95: 0 | AD95: =+IF(INDEX($K95:$O95,1,aux!$AL$1)>0,(O95/INDEX($K95:$O95,1,aux!$AL$1))^(1/($O$3-INDEX($K$3:$O$3,1,aux!$AL$1)))-1,"n.d.") -> n.d. | AE95: =IF(INDEX($K95:$O95,1,aux!$AL$1)>0,(O95-INDEX($K95:$O95,1,aux!$AL$1))/INDEX($K95:$O95,1,aux!$AL$1),"n.d.") -> n.d. | AX95: 10
A96: 10SS | B96: Cereais | C96: 0 | D96: 0 | E96: 0 | F96: 0 | G96: 0 | H96: 0 | I96: 0 | J96: 0 | K96: 0 | L96: 0 | M96: 0 | N96: 0 | O96: 0 | P96: 0 | Q96: 0 | R96: 0 | S96: 0 | U96: =G96-INDEX($C96:$G96,1,aux!$AL$1) -> 0 | V96: 0 | W96: 0 | X96: =+IF(INDEX($C96:$G96,1,aux!$AL$1)>0,(G96/INDEX($C96:$G96,1,aux!$AL$1))^(1/($G$3-INDEX($C$3:$G$3,1,aux!$AL$1)))-1,"n.d.") -> n.d. | Y96: =IF(INDEX($C96:$G96,1,aux!$AL$1)>0,(G96-INDEX($C96:$G96,1,aux!$AL$1))/INDEX($C96:$G96,1,aux!$AL$1),"n.d.") -> n.d. | AA96: =O96-INDEX($K96:$O96,1,aux!$AL$1) -> 0 | AB96: 0 | AC96: 0 | AD96: =+IF(INDEX($K96:$O96,1,aux!$AL$1)>0,(O96/INDEX($K96:$O96,1,aux!$AL$1))^(1/($O$3-INDEX($K$3:$O$3,1,aux!$AL$1)))-1,"n.d.") -> n.d. | AE96: =IF(INDEX($K96:$O96,1,aux!$AL$1)>0,(O96-INDEX($K96:$O96,1,aux!$AL$1))/INDEX($K96:$O96,1,aux!$AL$1),"n.d.") -> n.d. | AX96: 10
A97: 1101 | B97: Farinhas de trigo ou trigo/centeio | C97: 0 | D97: 0 | E97: 0 | F97: 0 | G97: 0 | H97: 0 | I97: 0 | J97: 0 | K97: 0 | L97: 0 | M97: 0 | N97: 0 | O97: 0 | P97: 0 | Q97: 0 | R97: 0 | S97: 0 | U97: =G97-INDEX($C97:$G97,1,aux!$AL$1) -> 0 | V97: 0 | W97: 0 | X97: =+IF(INDEX($C97:$G97,1,aux!$AL$1)>0,(G97/INDEX($C97:$G97,1,aux!$AL$1))^(1/($G$3-INDEX($C$3:$G$3,1,aux!$AL$1)))-1,"n.d.") -> n.d. | Y97: =IF(INDEX($C97:$G97,1,aux!$AL$1)>0,(G97-INDEX($C97:$G97,1,aux!$AL$1))/INDEX($C97:$G97,1,aux!$AL$1),"n.d.") -> n.d. | AA97: =O97-INDEX($K97:$O97,1,aux!$AL$1) -> 0 | AB97: 0 | AC97: 0 | AD97: =+IF(INDEX($K97:$O97,1,aux!$AL$1)>0,(O97/INDEX($K97:$O97,1,aux!$AL$1))^(1/($O$3-INDEX($K$3:$O$3,1,aux!$AL$1)))-1,"n.d.") -> n.d. | AE97: =IF(INDEX($K97:$O97,1,aux!$AL$1)>0,(O97-INDEX($K97:$O97,1,aux!$AL$1))/INDEX($K97:$O97,1,aux!$AL$1),"n.d.") -> n.d. | AX97: 11
A98: 1102 | B98: Outras farinhas de cereais | C98: 0 | D98: 0 | E98: 0 | F98: 0 | G98: 0 | H98: 0 | I98: 0 | J98: 0 | K98: 89.759 | L98: 78.501 | M98: 82.189 | N98: 18.566 | O98: 4.564 | P98: 54.7158 | Q98: 0.003000576339 | R98: 0.001878920926 | S98: 54.7158 | U98: =G98-INDEX($C98:$G98,1,aux!$AL$1) -> 0 | V98: 0 | W98: 0 | X98: =+IF(INDEX($C98:$G98,1,aux!$AL$1)>0,(G98/INDEX($C98:$G98,1,aux!$AL$1))^(1/($G$3-INDEX($C$3:$G$3,1,aux!$AL$1)))-1,"n.d.") -> n.d. | Y98: =IF(INDEX($C98:$G98,1,aux!$AL$1)>0,(G98-INDEX($C98:$G98,1,aux!$AL$1))/INDEX($C98:$G98,1,aux!$AL$1),"n.d.") -> n.d. | AA98: =O98-INDEX($K98:$O98,1,aux!$AL$1) -> -85.195 | AB98: -0.01519660332 | AC98: -0.008409150087 | AD98: =+IF(INDEX($K98:$O98,1,aux!$AL$1)>0,(O98/INDEX($K98:$O98,1,aux!$AL$1))^(1/($O$3-INDEX($K$3:$O$3,1,aux!$AL$1)))-1,"n.d.") -> -0.5251385574 | AE98: =IF(INDEX($K98:$O98,1,aux!$AL$1)>0,(O98-INDEX($K98:$O98,1,aux!$AL$1))/INDEX($K98:$O98,1,aux!$AL$1),"n.d.") -> -0.9491527312 | AX98: 11
A99: 1103 | B99: Grumos, sêmolas, etc. de cereais | C99: 0 | D99: 0 | E99: 0 | F99: 0 | G99: 0 | H99: 0 | I99: 0 | J99: 0 | K99: 0 | L99: 0 | M99: 0 | N99: 0 | O99: 0 | P99: 0 | Q99: 0 | R99: 0 | S99: 0 | U99: =G99-INDEX($C99:$G99,1,aux!$AL$1) -> 0 | V99: 0 | W99: 0 | X99: =+IF(INDEX($C99:$G99,1,aux!$AL$1)>0,(G99/INDEX($C99:$G99,1,aux!$AL$1))^(1/($G$3-INDEX($C$3:$G$3,1,aux!$AL$1)))-1,"n.d.") -> n.d. | Y99: =IF(INDEX($C99:$G99,1,aux!$AL$1)>0,(G99-INDEX($C99:$G99,1,aux!$AL$1))/INDEX($C99:$G99,1,aux!$AL$1),"n.d.") -> n.d. | AA99: =O99-INDEX($K99:$O99,1,aux!$AL$1) -> 0 | AB99: 0 | AC99: 0 | AD99: =+IF(INDEX($K99:$O99,1,aux!$AL$1)>0,(O99/INDEX($K99:$O99,1,aux!$AL$1))^(1/($O$3-INDEX($K$3:$O$3,1,aux!$AL$1)))-1,"n.d.") -> n.d. | AE99: =IF(INDEX($K99:$O99,1,aux!$AL$1)>0,(O99-INDEX($K99:$O99,1,aux!$AL$1))/INDEX($K99:$O99,1,aux!$AL$1),"n.d.") -> n.d. | AX99: 11
A100: 1104 | B100: Grãos de cereais processados | C100: 0 | D100: 0 | E100: 0 | F100: 0.022 | G100: 0 | H100: 0.0044 | I100: 1.984734523e-07 | J100: 1.223866766e-07 | K100: 0 | L100: 0 | M100: 0 | N100: 3.314 | O100: 0 | P100: 0.6628 | Q100: 3.634749008e-05 | R100: 2.276031402e-05 | S100: 0.6584 | U100: =G100-INDEX($C100:$G100,1,aux!$AL$1) -> 0 | V100: 0 | W100: 0 | X100: =+IF(INDEX($C100:$G100,1,aux!$AL$1)>0,(G100/INDEX($C100:$G100,1,aux!$AL$1))^(1/($G$3-INDEX($C$3:$G$3,1,aux!$AL$1)))-1,"n.d.") -> n.d. | Y100: =IF(INDEX($C100:$G100,1,aux!$AL$1)>0,(G100-INDEX($C100:$G100,1,aux!$AL$1))/INDEX($C100:$G100,1,aux!$AL$1),"n.d.") -> n.d. | AA100: =O100-INDEX($K100:$O100,1,aux!$AL$1) -> 0 | AB100: 0 | AC100: 0 | AD100: =+IF(INDEX($K100:$O100,1,aux!$AL$1)>0,(O100/INDEX($K100:$O100,1,aux!$AL$1))^(1/($O$3-INDEX($K$3:$O$3,1,aux!$AL$1)))-1,"n.d.") -> n.d. | AE100: =IF(INDEX($K100:$O100,1,aux!$AL$1)>0,(O100-INDEX($K100:$O100,1,aux!$AL$1))/INDEX($K100:$O100,1,aux!$AL$1),"n.d.") -> n.d. | AX100: 11
A101: 1105 | B101: Farinha, sêmola, etc. de batata | C101: 0 | D101: 0 | E101: 0.079 | F101: 0.173 | G101: 0.029 | H101: 0.0562 | I101: 2.535047277e-06 | J101: 1.563211642e-06 | K101: 0 | L101: 0 | M101: 0 | N101: 0 | O101: 0 | P101: 0 | Q101: 0 | R101: 0 | S101: -0.0562 | U101: =G101-INDEX($C101:$G101,1,aux!$AL$1) -> 0.029 | V101: 4.826806686e-06 | W101: 1.540114159e-06 | X101: =+IF(INDEX($C101:$G101,1,aux!$AL$1)>0,(G101/INDEX($C101:$G101,1,aux!$AL$1))^(1/($G$3-INDEX($C$3:$G$3,1,aux!$AL$1)))-1,"n.d.") -> n.d. | Y101: =IF(INDEX($C101:$G101,1,aux!$AL$1)>0,(G101-INDEX($C101:$G101,1,aux!$AL$1))/INDEX($C101:$G101,1,aux!$AL$1),"n.d.") -> n.d. | AA101: =O101-INDEX($K101:$O101,1,aux!$AL$1) -> 0 | AB101: 0 | AC101: 0 | AD101: =+IF(INDEX($K101:$O101,1,aux!$AL$1)>0,(O101/INDEX($K101:$O101,1,aux!$AL$1))^(1/($O$3-INDEX($K$3:$O$3,1,aux!$AL$1)))-1,"n.d.") -> n.d. | AE101: =IF(INDEX($K101:$O101,1,aux!$AL$1)>0,(O101-INDEX($K101:$O101,1,aux!$AL$1))/INDEX($K101:$O101,1,aux!$AL$1),"n.d.") -> n.d. | AX101: 11
A102: 1106 | B102: Farinhas, etc. de leguminosas e outros tubérculos | C102: 0 | D102: 0 | E102: 3.037 | F102: 0.015 | G102: 0.044 | H102: 0.6192 | I102: 2.793062765e-05 | J102: 1.722314322e-05 | K102: 7.984 | L102: 0.013 | M102: 6.004 | N102: 6.571 | O102: 3.563 | P102: 4.827 | Q102: 0.0002647093159 | R102: 0.0001657574468 | S102: 4.2078 | U102: =G102-INDEX($C102:$G102,1,aux!$AL$1) -> 0.044 | V102: 7.323430834e-06 | W102: 2.33672493e-06 | X102: =+IF(INDEX($C102:$G102,1,aux!$AL$1)>0,(G102/INDEX($C102:$G102,1,aux!$AL$1))^(1/($G$3-INDEX($C$3:$G$3,1,aux!$AL$1)))-1,"n.d.") -> n.d. | Y102: =IF(INDEX($C102:$G102,1,aux!$AL$1)>0,(G102-INDEX($C102:$G102,1,aux!$AL$1))/INDEX($C102:$G102,1,aux!$AL$1),"n.d.") -> n.d. | AA102: =O102-INDEX($K102:$O102,1,aux!$AL$1) -> -4.421 | AB102: -0.0007885930312 | AC102: -0.0004363736432 | AD102: =+IF(INDEX($K102:$O102,1,aux!$AL$1)>0,(O102/INDEX($K102:$O102,1,aux!$AL$1))^(1/($O$3-INDEX($K$3:$O$3,1,aux!$AL$1)))-1,"n.d.") -> -0.1826673961 | AE102: =IF(INDEX($K102:$O102,1,aux!$AL$1)>0,(O102-INDEX($K102:$O102,1,aux!$AL$1))/INDEX($K102:$O102,1,aux!$AL$1),"n.d.") -> -0.5537324649 | AX102: 11
A103: 1107 | B103: Malte, mesmo torrado | C103: 0 | D103: 0 | E103: 0.112 | F103: 0 | G103: 0.082 | H103: 0.0388 | I103: 1.750174988e-06 | J103: 1.079227966e-06 | K103: 0 | L103: 0 | M103: 0 | N103: 0 | O103: 0 | P103: 0 | Q103: 0 | R103: 0 | S103: -0.0388 | U103: =G103-INDEX($C103:$G103,1,aux!$AL$1) -> 0.082 | V103: 1.364821201e-05 | W103: 4.354805552e-06 | X103: =+IF(INDEX($C103:$G103,1,aux!$AL$1)>0,(G103/INDEX($C103:$G103,1,aux!$AL$1))^(1/($G$3-INDEX($C$3:$G$3,1,aux!$AL$1)))-1,"n.d.") -> n.d. | Y103: =IF(INDEX($C103:$G103,1,aux!$AL$1)>0,(G103-INDEX($C103:$G103,1,aux!$AL$1))/INDEX($C103:$G103,1,aux!$AL$1),"n.d.") -> n.d. | AA103: =O103-INDEX($K103:$O103,1,aux!$AL$1) -> 0 | AB103: 0 | AC103: 0 | AD103: =+IF(INDEX($K103:$O103,1,aux!$AL$1)>0,(O103/INDEX($K103:$O103,1,aux!$AL$1))^(1/($O$3-INDEX($K$3:$O$3,1,aux!$AL$1)))-1,"n.d.") -> n.d. | AE103: =IF(INDEX($K103:$O103,1,aux!$AL$1)>0,(O103-INDEX($K103:$O103,1,aux!$AL$1))/INDEX($K103:$O103,1,aux!$AL$1),"n.d.") -> n.d. | AX103: 11
A104: 1108 | B104: Amidos e féculas; inulina | C104: 0 | D104: 0 | E104: 0 | F104: 0 | G104: 1.383 | H104: 0.2766 | I104: 1.247676293e-05 | J104: 7.693671533e-06 | K104: 0 | L104: 0 | M104: 0 | N104: 0 | O104: 0 | P104: 0 | Q104: 0 | R104: 0 | S104: -0.2766 | U104: =G104-INDEX($C104:$G104,1,aux!$AL$1) -> 1.383 | V104: 0.0002301887465 | W104: 7.344751315e-05 | X104: =+IF(INDEX($C104:$G104,1,aux!$AL$1)>0,(G104/INDEX($C104:$G104,1,aux!$AL$1))^(1/($G$3-INDEX($C$3:$G$3,1,aux!$AL$1)))-1,"n.d.") -> n.d. | Y104: =IF(INDEX($C104:$G104,1,aux!$AL$1)>0,(G104-INDEX($C104:$G104,1,aux!$AL$1))/INDEX($C104:$G104,1,aux!$AL$1),"n.d.") -> n.d. | AA104: =O104-INDEX($K104:$O104,1,aux!$AL$1) -> 0 | AB104: 0 | AC104: 0 | AD104: =+IF(INDEX($K104:$O104,1,aux!$AL$1)>0,(O104/INDEX($K104:$O104,1,aux!$AL$1))^(1/($O$3-INDEX($K$3:$O$3,1,aux!$AL$1)))-1,"n.d.") -> n.d. | AE104: =IF(INDEX($K104:$O104,1,aux!$AL$1)>0,(O104-INDEX($K104:$O104,1,aux!$AL$1))/INDEX($K104:$O104,1,aux!$AL$1),"n.d.") -> n.d. | AX104: 11
A105: 1109 | B105: Glúten de trigo, mesmo seco | C105: 0 | D105: 0 | E105: 0 | F105: 0 | G105: 0 | H105: 0 | I105: 0 | J105: 0 | K105: 0 | L105: 0 | M105: 0 | N105: 0 | O105: 0 | P105: 0 | Q105: 0 | R105: 0 | S105: 0 | U105: =G105-INDEX($C105:$G105,1,aux!$AL$1) -> 0 | V105: 0 | W105: 0 | X105: =+IF(INDEX($C105:$G105,1,aux!$AL$1)>0,(G105/INDEX($C105:$G105,1,aux!$AL$1))^(1/($G$3-INDEX($C$3:$G$3,1,aux!$AL$1)))-1,"n.d.") -> n.d. | Y105: =IF(INDEX($C105:$G105,1,aux!$AL$1)>0,(G105-INDEX($C105:$G105,1,aux!$AL$1))/INDEX($C105:$G105,1,aux!$AL$1),"n.d.") -> n.d. | AA105: =O105-INDEX($K105:$O105,1,aux!$AL$1) -> 0 | AB105: 0 | AC105: 0 | AD105: =+IF(INDEX($K105:$O105,1,aux!$AL$1)>0,(O105/INDEX($K105:$O105,1,aux!$AL$1))^(1/($O$3-INDEX($K$3:$O$3,1,aux!$AL$1)))-1,"n.d.") -> n.d. | AE105: =IF(INDEX($K105:$O105,1,aux!$AL$1)>0,(O105-INDEX($K105:$O105,1,aux!$AL$1))/INDEX($K105:$O105,1,aux!$AL$1),"n.d.") -> n.d. | AX105: 11
A106: 11SS | B106: Produtos da indústria de moagem e outros | C106: 0 | D106: 0 | E106: 0 | F106: 0 | G106: 0 | H106: 0 | I106: 0 | J106: 0 | K106: 0 | L106: 0 | M106: 0 | N106: 0 | O106: 0 | P106: 0 | Q106: 0 | R106: 0 | S106: 0 | U106: =G106-INDEX($C106:$G106,1,aux!$AL$1) -> 0 | V106: 0 | W106: 0 | X106: =+IF(INDEX($C106:$G106,1,aux!$AL$1)>0,(G106/INDEX($C106:$G106,1,aux!$AL$1))^(1/($G$3-INDEX($C$3:$G$3,1,aux!$AL$1)))-1,"n.d.") -> n.d. | Y106: =IF(INDEX($C106:$G106,1,aux!$AL$1)>0,(G106-INDEX($C106:$G106,1,aux!$AL$1))/INDEX($C106:$G106,1,aux!$AL$1),"n.d.") -> n.d. | AA106: =O106-INDEX($K106:$O106,1,aux!$AL$1) -> 0 | AB106: 0 | AC106: 0 | AD106: =+IF(INDEX($K106:$O106,1,aux!$AL$1)>0,(O106/INDEX($K106:$O106,1,aux!$AL$1))^(1/($O$3-INDEX($K$3:$O$3,1,aux!$AL$1)))-1,"n.d.") -> n.d. | AE106: =IF(INDEX($K106:$O106,1,aux!$AL$1)>0,(O106-INDEX($K106:$O106,1,aux!$AL$1))/INDEX($K106:$O106,1,aux!$AL$1),"n.d.") -> n.d. | AX106: 11
A107: 1201 | B107: Soja, mesmo triturada | C107: 0 | D107: 0 | E107: 0 | F107: 0 | G107: 0 | H107: 0 | I107: 0 | J107: 0 | K107: 0 | L107: 0 | M107: 0 | N107: 0 | O107: 0 | P107: 0 | Q107: 0 | R107: 0 | S107: 0 | U107: =G107-INDEX($C107:$G107,1,aux!$AL$1) -> 0 | V107: 0 | W107: 0 | X107: =+IF(INDEX($C107:$G107,1,aux!$AL$1)>0,(G107/INDEX($C107:$G107,1,aux!$AL$1))^(1/($G$3-INDEX($C$3:$G$3,1,aux!$AL$1)))-1,"n.d.") -> n.d. | Y107: =IF(INDEX($C107:$G107,1,aux!$AL$1)>0,(G107-INDEX($C107:$G107,1,aux!$AL$1))/INDEX($C107:$G107,1,aux!$AL$1),"n.d.") -> n.d. | AA107: =O107-INDEX($K107:$O107,1,aux!$AL$1) -> 0 | AB107: 0 | AC107: 0 | AD107: =+IF(INDEX($K107:$O107,1,aux!$AL$1)>0,(O107/INDEX($K107:$O107,1,aux!$AL$1))^(1/($O$3-INDEX($K$3:$O$3,1,aux!$AL$1)))-1,"n.d.") -> n.d. | AE107: =IF(INDEX($K107:$O107,1,aux!$AL$1)>0,(O107-INDEX($K107:$O107,1,aux!$AL$1))/INDEX($K107:$O107,1,aux!$AL$1),"n.d.") -> n.d. | AX107: 12
A108: 1202 | B108: Amendoins não torrados | C108: 0 | D108: 0 | E108: 0.023 | F108: 0 | G108: 0 | H108: 0.0046 | I108: 2.074949728e-07 | J108: 1.279497074e-07 | K108: 0 | L108: 0 | M108: 0 | N108: 0 | O108: 0 | P108: 0 | Q108: 0 | R108: 0 | S108: -0.0046 | U108: =G108-INDEX($C108:$G108,1,aux!$AL$1) -> 0 | V108: 0 | W108: 0 | X108: =+IF(INDEX($C108:$G108,1,aux!$AL$1)>0,(G108/INDEX($C108:$G108,1,aux!$AL$1))^(1/($G$3-INDEX($C$3:$G$3,1,aux!$AL$1)))-1,"n.d.") -> n.d. | Y108: =IF(INDEX($C108:$G108,1,aux!$AL$1)>0,(G108-INDEX($C108:$G108,1,aux!$AL$1))/INDEX($C108:$G108,1,aux!$AL$1),"n.d.") -> n.d. | AA108: =O108-INDEX($K108:$O108,1,aux!$AL$1) -> 0 | AB108: 0 | AC108: 0 | AD108: =+IF(INDEX($K108:$O108,1,aux!$AL$1)>0,(O108/INDEX($K108:$O108,1,aux!$AL$1))^(1/($O$3-INDEX($K$3:$O$3,1,aux!$AL$1)))-1,"n.d.") -> n.d. | AE108: =IF(INDEX($K108:$O108,1,aux!$AL$1)>0,(O108-INDEX($K108:$O108,1,aux!$AL$1))/INDEX($K108:$O108,1,aux!$AL$1),"n.d.") -> n.d. | AX108: 12
A109: 1203 | B109: Copra | C109: 0 | D109: 0 | E109: 0 | F109: 0 | G109: 0 | H109: 0 | I109: 0 | J109: 0 | K109: 0 | L109: 0 | M109: 0 | N109: 0 | O109: 0 | P109: 0 | Q109: 0 | R109: 0 | S109: 0 | U109: =G109-INDEX($C109:$G109,1,aux!$AL$1) -> 0 | V109: 0 | W109: 0 | X109: =+IF(INDEX($C109:$G109,1,aux!$AL$1)>0,(G109/INDEX($C109:$G109,1,aux!$AL$1))^(1/($G$3-INDEX($C$3:$G$3,1,aux!$AL$1)))-1,"n.d.") -> n.d. | Y109: =IF(INDEX($C109:$G109,1,aux!$AL$1)>0,(G109-INDEX($C109:$G109,1,aux!$AL$1))/INDEX($C109:$G109,1,aux!$AL$1),"n.d.") -> n.d. | AA109: =O109-INDEX($K109:$O109,1,aux!$AL$1) -> 0 | AB109: 0 | AC109: 0 | AD109: =+IF(INDEX($K109:$O109,1,aux!$AL$1)>0,(O109/INDEX($K109:$O109,1,aux!$AL$1))^(1/($O$3-INDEX($K$3:$O$3,1,aux!$AL$1)))-1,"n.d.") -> n.d. | AE109: =IF(INDEX($K109:$O109,1,aux!$AL$1)>0,(O109-INDEX($K109:$O109,1,aux!$AL$1))/INDEX($K109:$O109,1,aux!$AL$1),"n.d.") -> n.d. | AX109: 12
A110: 1204 | B110: Sementes de linho (linhaça) | C110: 0 | D110: 0 | E110: 0 | F110: 0 | G110: 0 | H110: 0 | I110: 0 | J110: 0 | K110: 0 | L110: 0 | M110: 3.397 | N110: 6.887 | O110: 4.494 | P110: 2.9556 | Q110: 0.0001620830442 | R110: 0.0001014942428 | S110: 2.9556 | U110: =G110-INDEX($C110:$G110,1,aux!$AL$1) -> 0 | V110: 0 | W110: 0 | X110: =+IF(INDEX($C110:$G110,1,aux!$AL$1)>0,(G110/INDEX($C110:$G110,1,aux!$AL$1))^(1/($G$3-INDEX($C$3:$G$3,1,aux!$AL$1)))-1,"n.d.") -> n.d. | Y110: =IF(INDEX($C110:$G110,1,aux!$AL$1)>0,(G110-INDEX($C110:$G110,1,aux!$AL$1))/INDEX($C110:$G110,1,aux!$AL$1),"n.d.") -> n.d. | AA110: =O110-INDEX($K110:$O110,1,aux!$AL$1) -> 4.494 | AB110: 0.0008016143593 | AC110: 0.000443579089 | AD110: =+IF(INDEX($K110:$O110,1,aux!$AL$1)>0,(O110/INDEX($K110:$O110,1,aux!$AL$1))^(1/($O$3-INDEX($K$3:$O$3,1,aux!$AL$1)))-1,"n.d.") -> n.d. | AE110: =IF(INDEX($K110:$O110,1,aux!$AL$1)>0,(O110-INDEX($K110:$O110,1,aux!$AL$1))/INDEX($K110:$O110,1,aux!$AL$1),"n.d.") -> n.d. | AX110: 12
A111: 1205 | B111: Sementes de nabo silvestre ou de colza | C111: 0 | D111: 0 | E111: 0 | F111: 0 | G111: 0 | H111: 0 | I111: 0 | J111: 0 | K111: 0 | L111: 0 | M111: 0 | N111: 0 | O111: 0 | P111: 0 | Q111: 0 | R111: 0 | S111: 0 | U111: =G111-INDEX($C111:$G111,1,aux!$AL$1) -> 0 | V111: 0 | W111: 0 | X111: =+IF(INDEX($C111:$G111,1,aux!$AL$1)>0,(G111/INDEX($C111:$G111,1,aux!$AL$1))^(1/($G$3-INDEX($C$3:$G$3,1,aux!$AL$1)))-1,"n.d.") -> n.d. | Y111: =IF(INDEX($C111:$G111,1,aux!$AL$1)>0,(G111-INDEX($C111:$G111,1,aux!$AL$1))/INDEX($C111:$G111,1,aux!$AL$1),"n.d.") -> n.d. | AA111: =O111-INDEX($K111:$O111,1,aux!$AL$1) -> 0 | AB111: 0 | AC111: 0 | AD111: =+IF(INDEX($K111:$O111,1,aux!$AL$1)>0,(O111/INDEX($K111:$O111,1,aux!$AL$1))^(1/($O$3-INDEX($K$3:$O$3,1,aux!$AL$1)))-1,"n.d.") -> n.d. | AE111: =IF(INDEX($K111:$O111,1,aux!$AL$1)>0,(O111-INDEX($K111:$O111,1,aux!$AL$1))/INDEX($K111:$O111,1,aux!$AL$1),"n.d.") -> n.d. | AX111: 12
A112: 1206 | B112: Sementes de girassol | C112: 0 | D112: 0 | E112: 0.023 | F112: 0 | G112: 0 | H112: 0.0046 | I112: 2.074949728e-07 | J112: 1.279497074e-07 | K112: 0 | L112: 0 | M112: 0 | N112: 0 | O112: 0 | P112: 0 | Q112: 0 | R112: 0 | S112: -0.0046 | U112: =G112-INDEX($C112:$G112,1,aux!$AL$1) -> 0 | V112: 0 | W112: 0 | X112: =+IF(INDEX($C112:$G112,1,aux!$AL$1)>0,(G112/INDEX($C112:$G112,1,aux!$AL$1))^(1/($G$3-INDEX($C$3:$G$3,1,aux!$AL$1)))-1,"n.d.") -> n.d. | Y112: =IF(INDEX($C112:$G112,1,aux!$AL$1)>0,(G112-INDEX($C112:$G112,1,aux!$AL$1))/INDEX($C112:$G112,1,aux!$AL$1),"n.d.") -> n.d. | AA112: =O112-INDEX($K112:$O112,1,aux!$AL$1) -> 0 | AB112: 0 | AC112: 0 | AD112: =+IF(INDEX($K112:$O112,1,aux!$AL$1)>0,(O112/INDEX($K112:$O112,1,aux!$AL$1))^(1/($O$3-INDEX($K$3:$O$3,1,aux!$AL$1)))-1,"n.d.") -> n.d. | AE112: =IF(INDEX($K112:$O112,1,aux!$AL$1)>0,(O112-INDEX($K112:$O112,1,aux!$AL$1))/INDEX($K112:$O112,1,aux!$AL$1),"n.d.") -> n.d. | AX112: 12
A113: 1207 | B113: Sementes e frutos oleaginosos | C113: 0 | D113: 0 | E113: 0.124 | F113: 0 | G113: 0.009 | H113: 0.0266 | I113: 1.199862234e-06 | J113: 7.398830903e-07 | K113: 2.643 | L113: 0 | M113: 0 | N113: 0 | O113: 0 | P113: 0.5286 | Q113: 2.89880556e-05 | R113: 1.81519342e-05 | S113: 0.502 | U113: =G113-INDEX($C113:$G113,1,aux!$AL$1) -> 0.009 | V113: 1.497974489e-06 | W113: 4.77966463e-07 | X113: =+IF(INDEX($C113:$G113,1,aux!$AL$1)>0,(G113/INDEX($C113:$G113,1,aux!$AL$1))^(1/($G$3-INDEX($C$3:$G$3,1,aux!$AL$1)))-1,"n.d.") -> n.d. | Y113: =IF(INDEX($C113:$G113,1,aux!$AL$1)>0,(G113-INDEX($C113:$G113,1,aux!$AL$1))/INDEX($C113:$G113,1,aux!$AL$1),"n.d.") -> n.d. | AA113: =O113-INDEX($K113:$O113,1,aux!$AL$1) -> -2.643 | AB113: -0.0004714434249 | AC113: -0.0002608766205 | AD113: =+IF(INDEX($K113:$O113,1,aux!$AL$1)>0,(O113/INDEX($K113:$O113,1,aux!$AL$1))^(1/($O$3-INDEX($K$3:$O$3,1,aux!$AL$1)))-1,"n.d.") -> -1 | AE113: =IF(INDEX($K113:$O113,1,aux!$AL$1)>0,(O113-INDEX($K113:$O113,1,aux!$AL$1))/INDEX($K113:$O113,1,aux!$AL$1),"n.d.") -> -1 | AX113: 12
A114: 1208 | B114: Farinhas de sementes oleaginosas | C114: 0 | D114: 0 | E114: 0 | F114: 0 | G114: 0 | H114: 0 | I114: 0 | J114: 0 | K114: 0 | L114: 0 | M114: 0 | N114: 0 | O114: 0 | P114: 0 | Q114: 0 | R114: 0 | S114: 0 | U114: =G114-INDEX($C114:$G114,1,aux!$AL$1) -> 0 | V114: 0 | W114: 0 | X114: =+IF(INDEX($C114:$G114,1,aux!$AL$1)>0,(G114/INDEX($C114:$G114,1,aux!$AL$1))^(1/($G$3-INDEX($C$3:$G$3,1,aux!$AL$1)))-1,"n.d.") -> n.d. | Y114: =IF(INDEX($C114:$G114,1,aux!$AL$1)>0,(G114-INDEX($C114:$G114,1,aux!$AL$1))/INDEX($C114:$G114,1,aux!$AL$1),"n.d.") -> n.d. | AA114: =O114-INDEX($K114:$O114,1,aux!$AL$1) -> 0 | AB114: 0 | AC114: 0 | AD114: =+IF(INDEX($K114:$O114,1,aux!$AL$1)>0,(O114/INDEX($K114:$O114,1,aux!$AL$1))^(1/($O$3-INDEX($K$3:$O$3,1,aux!$AL$1)))-1,"n.d.") -> n.d. | AE114: =IF(INDEX($K114:$O114,1,aux!$AL$1)>0,(O114-INDEX($K114:$O114,1,aux!$AL$1))/INDEX($K114:$O114,1,aux!$AL$1),"n.d.") -> n.d. | AX114: 12
A115: 1209 | B115: Sementes, frutos e esporos para sementeira | C115: 325.74 | D115: 63.339 | E115: 135.14 | F115: 48.779 | G115: 41.491 | H115: 122.8978 | I115: 0.005543625146 | J115: 0.003418421205 | K115: 0 | L115: 0 | M115: 0 | N115: 10.151 | O115: 6.613 | P115: 3.3528 | Q115: 0.0001838652153 | R115: 0.0001151339482 | S115: -119.545 | U115: =G115-INDEX($C115:$G115,1,aux!$AL$1) -> -284.249 | V115: -0.04731086116 | W115: -0.01509572102 | X115: =+IF(INDEX($C115:$G115,1,aux!$AL$1)>0,(G115/INDEX($C115:$G115,1,aux!$AL$1))^(1/($G$3-INDEX($C$3:$G$3,1,aux!$AL$1)))-1,"n.d.") -> -0.402592456 | Y115: =IF(INDEX($C115:$G115,1,aux!$AL$1)>0,(G115-INDEX($C115:$G115,1,aux!$AL$1))/INDEX($C115:$G115,1,aux!$AL$1),"n.d.") -> -0.8726254068 | AA115: =O115-INDEX($K115:$O115,1,aux!$AL$1) -> 6.613 | AB115: 0.001179589621 | AC115: 0.0006527344272 | AD115: =+IF(INDEX($K115:$O115,1,aux!$AL$1)>0,(O115/INDEX($K115:$O115,1,aux!$AL$1))^(1/($O$3-INDEX($K$3:$O$3,1,aux!$AL$1)))-1,"n.d.") -> n.d. | AE115: =IF(INDEX($K115:$O115,1,aux!$AL$1)>0,(O115-INDEX($K115:$O115,1,aux!$AL$1))/INDEX($K115:$O115,1,aux!$AL$1),"n.d.") -> n.d. | AX115: 12
A116: 1210 | B116: Cones de lúpulo, frescos ou secos | C116: 0 | D116: 0 | E116: 0 | F116: 0 | G116: 0 | H116: 0 | I116: 0 | J116: 0 | K116: 0 | L116: 0 | M116: 0 | N116: 0 | O116: 0 | P116: 0 | Q116: 0 | R116: 0 | S116: 0 | U116: =G116-INDEX($C116:$G116,1,aux!$AL$1) -> 0 | V116: 0 | W116: 0 | X116: =+IF(INDEX($C116:$G116,1,aux!$AL$1)>0,(G116/INDEX($C116:$G116,1,aux!$AL$1))^(1/($G$3-INDEX($C$3:$G$3,1,aux!$AL$1)))-1,"n.d.") -> n.d. | Y116: =IF(INDEX($C116:$G116,1,aux!$AL$1)>0,(G116-INDEX($C116:$G116,1,aux!$AL$1))/INDEX($C116:$G116,1,aux!$AL$1),"n.d.") -> n.d. | AA116: =O116-INDEX($K116:$O116,1,aux!$AL$1) -> 0 | AB116: 0 | AC116: 0 | AD116: =+IF(INDEX($K116:$O116,1,aux!$AL$1)>0,(O116/INDEX($K116:$O116,1,aux!$AL$1))^(1/($O$3-INDEX($K$3:$O$3,1,aux!$AL$1)))-1,"n.d.") -> n.d. | AE116: =IF(INDEX($K116:$O116,1,aux!$AL$1)>0,(O116-INDEX($K116:$O116,1,aux!$AL$1))/INDEX($K116:$O116,1,aux!$AL$1),"n.d.") -> n.d. | AX116: 12
